Workbook

Sheet Intro
B2: H7 Opex and Commercial Revenues
B3: Civil Aviation Authority
B4: =TEXT(IF(COUNTA(Table1[Date]),INDEX(Table1[Date],COUNTA(Table1[Date])),""),"dd/mm/yyyy") -> 10/01/2023 | D4: ="Version "&IF(COUNTA(Table1[Version]),INDEX(Table1[Version],COUNTA(Table1[Version])),"") -> Version 11.4 | E4: AIRLINE REDACTED VERSION
B6: Accompanying report: | E6: CEPA (2023), Further Modelling of Opex and Commercial Revenues for CAA H7 Final Determination
B8: The following model produces a set of revenue and opex forecasts for Heathrow Airport Limited (HAL), from a baseline of 2019 spending. Forecasts are based on cost drivers, elasticities and key step-change adjustments. The model can be run to test up to six different scenarios. Disclaimer: This workbook has been prepared solely for the use and benefit of CAA. Neither CEPA nor Taylor Airey accept or assume any responsibility or duty of care to any third party. CEPA and Taylor Airey do not make any representation or warranty, expressed or implied, as to the accuracy or completeness of the workbook and its input assumptions and assumes no responsibility for the accuracy or completeness of such information. CEPA and Taylor Airey accept no liability for any loss or damage arising out of the use of this workbook by a third party.
B11: Format key | G11: Version history
B13: Cells | G13: Version | H13: Date | I13: Edited by | J13: Description of Changes
D14: Cell intentionally blank | G14: 0.1 | H14: 2021-06-11 | I14: WE | J14: Start of model design
B15: Value | D15: Hardcoded input | G15: 0.2 | H15: 2021-06-15 | I15: WE | J15: Finished structure of Forecast Tabs, added further input / Scenarios structure
B16: Value | D16: User input | G16: 0.3 | H16: 2021-06-22 | I16: WE | J16: Adjusted forecast structure, moved more things under Scenarios
B17: Value | D17: Calculation | G17: 0.4 | H17: 2021-06-25 | I17: WE | J17: Addressing feedback from SP; streamlining model
B18: Value | D18: Unique formula | G18: 0.5 | H18: 2021-06-27 | I18: SP | J18: SP Tidy up
B19: Value | D19: Value used on another worksheet | G19: 0.6 | H19: 2021-06-30 | I19: WE; SP; MR | J19: Added mode share and sources; Edited numbers for Scenario 3 in light of CEPA/TA Analysis
B20: Value | D20: Value from another worksheet | G20: 1.0 | H20: 2021-07-05 | I20: WE; SP | J20: Major Version - Interim results
B21: Value | D21: Issue identified in a check | G21: 1.1 | H21: 2021-07-08 | I21: WE | J21: Added in regional split for cost drivers and revenue subcategories
B22: Value | D22: Annotation | G22: 1.2 | H22: 2021-07-13 | I22: SP | J22: Further iterations following CAA presentation
G23: 2.0 | H23: 2021-07-19 | I23: SP | J23: Major Version - Draft Report
B24: Tabs | G24: 2.1 | H24: 2021-07-19 | I24: SP | J24: No change - Model for QA
B25: Sheet colour | D25: Information sheet | G25: 2.2 | H25: 2021-07-21 | I25: WE | J25: Addressing QA comments from NB and LW; recategorising revenue items
B26: Sheet colour | D26: Input sheet | G26: 2.3 | H26: 2021-07-27 | I26: WE; SP | J26: Refinement of model interactions; Added Macro to compile scenario outputs in Dashboard; convert to .xlsm file; corrected inflation forecast numbers.
B27: Sheet colour | D27: Calculation sheet | G27: 3.0 | H27: 2021-08-04 | I27: SP | J27: Major Version - Draft Final Forecasts
B28: Sheet colour | D28: Output sheet | G28: 3.1 | H28: 2021-08-04 | I28: SP | J28: Structural improvements - no change to model
G29: 3.2 | H29: 2021-08-10 | I29: SP | J29: Issued Version - Final Report
G30: 3.4 | H30: 2021-08-27 | I30: WE | J30: Structural improvements - no change to model
G31: 3.5 | H31: 2021-08-31 | I31: WE | J31: Corrections identified by CAA
G32: 3.6 | H32: 2021-08-31 | I32: WE | J32: Changes to Input tabs (Minor)
G33: 3.7 | H33: 2021-08-31 | I33: WE | J33: Changes to Calculation and Output tabs
G34: 4.0 | H34: 2021-09-02 | I34: SP | J34: Issued Version - Final Report - 2nd Sep
G35: 4.1 | H35: 2021-10-07 | I35: WE;SP | J35: Fixed issue with Dashboard, Correction of LLW calc
G36: 5.0 | H36: 2021-10-13 | I36: SP | J36: Issued Version - 13 Oct
G37: 5.1 | H37: 2021-11-22 | I37: SP | J37: New Scenario 5 added with updated passenger forecasts from CAA - Nov 2021
G38: 5.2 | H38: 2021-11-24 | I38: SP | J38: Corrections to Scenario 5 and QA
G39: 6.0 | H39: 2022-01-14 | I39: SP
G40: 6.1 | H40: 2022-01-26 | I40: WE | J40: Replace Scenario 5 with our initial views on HAL's CAP2265 response; this is broken down into different versions to enable a one-dimensional comparison of the effects of changes.
G41: 6.2 | H41: 2022-01-28 | I41: WE | J41: Puts all the changes in model version 6.1 together to create our initial view on HAL's CAP2265 response.
G42: 6.3 | H42: 2021-03-02 | I42: SP | J42: Changes following Feb 2022 update
G43: 6.4 | H43: 2021-03-15 | I43: WE | J43: Update Scenario 5 to incorporate CAA 1st Draft FP Pax Forecasts and geographic splits
G44: 6.5 | H44: 2022-04-06 | I44: WE | J44: Incorporate Taylor Airey feedback, update inflation sources to match CAA update, Update to latest CAA pax forecasts
G45: 6.6 | H45: 2022-04-11 | I45: SP | J45: Minor corrections
G46: 6.7 | H46: 2022-04-27 | I46: SP | J46: Revs: Update to manual parking adjustment; Opex: Correction to LLW; Other: Minor labelling improvements
G47: 6.8 | H47: 2022-05-05 | I47: SP | J47: Correct frontier shift formula error
G48: 6.9 | H48: 2022-05-05 | I48: SP | J48: Correct LLW formula error
G49: 6.10 | H49: 2022-05-11 | I49: WE | J49: Compiled inflation assumptions, alongside data and underlying calculations, to a new file called InflationInpts. Changed sourcing in this file, and all inflation series are now hard coded, linking to the new InflationInputs file.
G50: 6.11 | H50: 2022-05-16 | I50: WE | J50: Update from v1 to v2 of Inflation Inputs, replacing OBR wage inflation assumption in response to J. Earwaker comments. Replaced OBR "Wages and salaries" with "Average earnings".
G51: 6.12 | H51: 2022-05-16 | I51: WE | J51: Update from v2 to v3 of InflationInputs. Replaced assumption of 2021/2022 wage freeze with a 3-year catch-up in wages.
G52: 6.13 | H52: 2022-05-16 | I52: WE | J52: Update frontier shift assumption in response to J. Earwaker feedback. Move frontier shift back to apply from 2020 for all non-people opex categories.
G53: 6.14 | H53: 2022-05-16 | I53: WE / SP | J53: Correction: Opex Assumptions: Where we convert 2018 RPI prices into Nominal and then to our blended series, these series are only correct from 2019 onwards. We convert the 2018 RPI number into 2019 RPI first. Correction: CRAssumptions - Remove formula that passes through retail margin reduction in the form of lower prices, as it was both complex and incorrect.
G54: 7.0 | H54: 2022-05-17 | I54: SP | J54: Issued Version - Final Forecasts (subject to final CAA checks)
G55: 7.2 | H55: 2022-08-30 | I55: WE | J55: v7.1 was a test version. This version is based off of v7.0 Replace Scenario 5 (March forecasts) with mid-passenger numbers from FD forecast (24th August)
G56: 11.0 | H56: 2023-01-10 | I56: SP | J56: New Central case (all scenarios), with the following corrections/changes: - Correction to Piccadilly Line revenue forecasts and historic track access figures in line with new HAL info
G57: 11.1 | H57: 2023-01-10 | I57: SP | J57: New Central case (all scenarios), with the following corrections/changes: - Correction to retail overlay (EEA) - applies to Scenarios 1, 2, 3 and 5.
G58: 11.2 | H58: 2023-01-10 | I58: SP | J58: Update Scenario 5 to reflect latest pax forecasts
G59: 11.3 | H59: 2023-01-10 | I59: SP | J59: Update to inflation forecasts and wage forecasts (OBR Nov 2022)
G60: 11.4 | H60: 2023-01-10 | I60: SP | J60: Utilities RPE update (Use HAL electricity and gas price forecasts)
G62: QA log
G64: Version | H64: Date | I64: QA'd by | J64: Description of QA
G65: 2.1 | H65: 2021-07-19 | I65: LW | J65: QA of Input tabs, focusing on sourcing
G66: 2.1 | H66: 2021-07-21 | I66: NB | J66: QA of calculations in line with BEIS QA guidance
G67: 2.3 | H67: 2021-08-01 | I67: PT | J67: High-level QA of calculation logic
G68: 5.2 | H68: 2021-11-24 | I68: WE | J68: QA of additional scenario and sense check of outputs
G69: 6.5 | H69: 2022-04-07 | I69: TM | J69: QA of formula and checking for sources
G70: 6.10 | H70: 2022-05-14 | I70: PT | J70: Review of CRAssumptions and OpexAssumptions tabs
G71: 7.2 | H71: 2022-08-30 | I71: SP | J71: Review of updates

Sheet Lists
A1: Lists | X1: Constants
A2: Years | B2: Scenarios List | C2: Drivers List | D2: Mode Share List | E2: Categories List | F2: Other List | G2: Commercial List | H2: Commercial Groupings | I2: Opex List | J2: Opex Groupings | K2: Inflation Index | L2: Input adjustments | M2: Input Inflation Index | N2: YoY Efficiency | O2: Management Stretch | P2: Elasticity | Q2: Adjustment timing | R2: Adjustment Type | S2: Choice | T2: TRUE / FALSE | U2: Geographic Split | V2: Geographic Split Summary | W2: Years | X2: Hundred | Y2: Thousand | Z2: Million | AA2: GBP Million | AB2: Forecast Year Start | AC2: Comparator Year
A3: 2014 | B3: Scenario 1: CAA High passenger growth (FP - 7th April) | C3: Total Passengers | D3: Park & Fly Passengers | E3: Other revenue | F3: Cargo revenue | G3: Catering | H3: Retail | I3: Security staff | J3: People | K3: CPI | L3: Labour (OBR) | M3: CPI | N3: 0 | O3: 0 | P3: -1 | Q3: ="Baseline (" &_ComparatorYear&")" -> Baseline (2019) | R3: Multiplicative | S3: Yes | T3: TRUE | U3: UK & CI | V3: UK | W3: - | X3: 100 | Y3: 1000 | Z3: 1000000 | AA3: £m | AB3: 2021 | AC3: 2019
A4: 2015 | B4: Scenario 2: CAA Mid passenger growth (FP - 7th April) | C4: Utilised Terminal Area | D4: Kiss & Fly Passengers | E4: Commercial revenue | F4: ORC revenue | G4: Retail concessions - UK | H4: Bureaux | I4: Operational staff | J4: Operational costs excl. insurance | K4: RPI | L4: + Power (BEIS) | M4: RPI | N4: -0.0025 | O4: 0.0025 | P4: -0.75 | Q4: Forecast | R4: Additive (Nominal) | S4: No | T4: FALSE | U4: EEA | V4: EEA | W4: 2020
A5: 2016 | B5: Scenario 3: CAA Low passenger growth (FP - 7th April) | C5: OD pax | D5: Taxi Passengers | E5: Opex | G5: Retail concessions - EEA | H5: Surface Access | I5: Non-operational staff | J5: Insurance | K5: --- | L5: Utilities (HAL / EIC) | M5: --- Labour (OBR) | N5: -0.005 | O5: 0.005 | P5: -0.5 | U5: Other Europe & CIS | V5: Other | W5: 2021
A6: 2017 | B6: Scenario 4: HAL Medium passenger growth (RBPU2) | C6: HEx pax | D6: Bus/Coach Passengers | G6: Retail concessions - North America | H6: Service | I6: Pensions | J6: Facilities maintenance costs | L6: Insurance | M6: CPI + Power (BEIS) | N6: -0.0075 | O6: 0.0075 | P6: -0.25 | U6: Middle East | V6: Middle East | W6: 2022
A7: 2018 | B7: Scenario 5: CAA Mid Passenger Growth (FD - 19th December) | C7: Parking/rental pax | D7: Tube Passengers | G7: Retail concessions - Middle East | H7: Rail | I7: Operational costs excl. insurance | J7: Rates costs | L7: Labour (OBR) / CPI / RPI blend (Operations) | M7: --- Utilities (HAL / EIC) | N7: -0.01 | O7: 0.01 | P7: 0 | U7: Africa | V7: Other | W7: 2023
A8: 2019 | B8: Scenario 6: Custom Scenario | C8: UK pax | D8: Car Rental Passengers | G8: Retail concessions - Asia/Pacific | H8: Property | I8: Insurance | J8: Utility costs excl. distribution contract | L8: Labour (OBR) / CPI / RPI blend (F&M) | M8: --- Labour (OBR) / CPI / RPI blend (Operations) | N8: -0.0125 | O8: 0.0125 | P8: 0.25 | U8: North America | V8: North America | W8: 2024
A9: 2020 | C9: EEA pax | D9: Walk Passengers | G9: Retail concessions - Other | H9: Other | I9: Facilities maintenance costs | J9: Distribution contract | L9: Labour (OBR) / CPI / RPI blend (GE) | M9: --- Labour (OBR) / CPI / RPI blend (F&M) | N9: -0.015 | O9: 0.015 | P9: 0.5 | U9: Latin America | V9: Other | W9: 2025
A10: 2021 | C10: Middle East pax | D10: Heathrow Express Passengers | G10: Other retail revenue | H10: Intercompany | I10: Rates costs | J10: General expenses incl. consultants & marketing, gen ex & interco | L10: Labour (Taylor Airey) | M10: --- Labour (OBR) / CPI / RPI blend (GE) | N10: -0.0175 | O10: 0.0175 | P10: 0.75 | U10: Asia / Pacific | V10: Asia/Pacific | W10: 2026
A11: 2022 | C11: North America pax | D11: Heathrow Connect Passengers | G11: Bureaux Revenue | H11: Terminal drop-off charge | I11: Utility costs excl. distribution contract | J11: Surface access initiatives | L11: CPI / Guide Price blend | M11: --- | N11: -0.02 | O11: 0.02 | P11: 1 | W11: 2027
A12: 2023 | C12: Asia/Pacific pax | D12: Rail Passengers | G12: Car parking | H12: Red Terminal | I12: Distribution contract | J12: Overlays | M12: --- Insurance | N12: -0.0225 | O12: 0.0225
A13: 2024 | C13: Other pax | D13: Elizabeth Line Passengers | G13: Other surface access | I13: General expenses incl. consultants & marketing, gen ex & interco | M13: --- Labour (Taylor Airey) | N13: -0.025 | O13: 0.025
A14: 2025 | C14: No Elasticity | D14: Air Passengers | G14: Service revenue excl. surface access | I14: Preopening | M14: --- CPI / Guide Price blend
A15: 2026 | C15: TDOC pax | D15: Other Passengers | G15: Track access revenue | I15: Terminal drop-off charge opex | M15: --- Spare 1
D16: Rail-air Passengers | G16: Heathrow Express revenue | I16: Surface access | M16: --- Spare 2
D17: Charter Coach Passengers | G17: Property revenue | I17: Covid-19 overlay
D18: Air Transfer Passengers | G18: Other revenue | I18: Service overlay
D19: Zero Passengers | G19: Intercompany revenue | I19: Opex Spare 1
G20: Terminal drop-off charge revenue | I20: Opex Spare 2
G21: Red Terminal Cost Recovery | I21: Opex Spare 3
G22: T5 Piccadilly Line revenue | I22: Opex Spare 4

Sheet Settings
A1: =RIGHT(CELL("filename",A$2),LEN(CELL("filename",A$2))-FIND("]",CELL("filename",A$2))) -> Settings
A2: ="["&_ModelStatus&"] "&_ModelName&" - "&_OrganisationName&" - "&_ModelVersion&" ("&TEXT(_ModelDate,"dd/mm/yyyy")&")" -> [AIRLINE REDACTED VERSION] H7 Opex and Commercial Revenues - Civil Aviation Authority - Version 11.4 (10/01/2023)
F4: Item | H4: Units | J4: Constant | P4: =Historic!P4 -> 2014 | Q4: =Historic!Q4 -> 2015 | R4: =Historic!R4 -> 2016 | S4: =Historic!S4 -> 2017 | T4: =Historic!T4 -> 2018 | U4: =Historic!U4 -> 2019 | V4: =Historic!V4 -> 2020 | W4: =Historic!W4 -> 2021 | X4: =Historic!X4 -> 2022 | Y4: =Historic!Y4 -> 2023 | Z4: =Historic!Z4 -> 2024 | AA4: =Historic!AA4 -> 2025 | AB4: =Historic!AB4 -> 2026
F5: Period End Date | P5: =Historic!P5 -> 2014-12-31 | Q5: =Historic!Q5 -> 2015-12-31 | R5: =Historic!R5 -> 2016-12-31 | S5: =Historic!S5 -> 2017-12-31 | T5: =Historic!T5 -> 2018-12-31 | U5: =Historic!U5 -> 2019-12-31 | V5: =Historic!V5 -> 2020-12-31 | W5: =Historic!W5 -> 2021-12-31 | X5: =Historic!X5 -> 2022-12-31 | Y5: =Historic!Y5 -> 2023-12-31 | Z5: =Historic!Z5 -> 2024-12-31 | AA5: =Historic!AA5 -> 2025-12-31 | AB5: =Historic!AB5 -> 2026-12-31
F6: Days in Period | P6: =Historic!P6 -> 365 | Q6: =Historic!Q6 -> 365 | R6: =Historic!R6 -> 366 | S6: =Historic!S6 -> 365 | T6: =Historic!T6 -> 365 | U6: =Historic!U6 -> 365 | V6: =Historic!V6 -> 366 | W6: =Historic!W6 -> 365 | X6: =Historic!X6 -> 365 | Y6: =Historic!Y6 -> 365 | Z6: =Historic!Z6 -> 366 | AA6: =Historic!AA6 -> 365 | AB6: =Historic!AB6 -> 365
B8: Description
C10: This sheet contains the settings that the user can adjust to change the model inputs. Scenario inputs are located in the Assumptions tabs.
B12: Choice of Scenario
F14: Active Scenario | J14: Scenario 5: CAA Mid Passenger Growth (FD - 19th December) | K14: _ActiveScenario
F16: Scenario Counter | R16: 1 | S16: 2 | T16: 3 | U16: 4 | V16: 5 | W16: 6
F17: Scenario | R17: =INDEX(Lists!$B$3:$B$8, R$16) -> Scenario 1: CAA High passenger growth (FP - 7th April) | S17: =INDEX(Lists!$B$3:$B$8, S$16) -> Scenario 2: CAA Mid passenger growth (FP - 7th April) | T17: =INDEX(Lists!$B$3:$B$8, T$16) -> Scenario 3: CAA Low passenger growth (FP - 7th April) | U17: =INDEX(Lists!$B$3:$B$8, U$16) -> Scenario 4: HAL Medium passenger growth (RBPU2) | V17: =INDEX(Lists!$B$3:$B$8, V$16) -> Scenario 5: CAA Mid Passenger Growth (FD - 19th December) | W17: =INDEX(Lists!$B$3:$B$8, W$16) -> Scenario 6: Custom Scenario
F18: Scenario in use? | R18: TRUE | S18: TRUE | T18: TRUE | U18: TRUE | V18: TRUE | W18: FALSE
B21: Toggles
F23: This toggle allows the user to override CEPA's internally modelled ORC revenues with HAL's own forecasts. Set the toggle to TRUE to use the override, or false to use CEPA internal modelling.
F25: ORC override toggle | J25: TRUE
B27: Macroeconomic Parameters
F29: Price Base | J29: 2020 | K29: _PriceBase
F30: Inflation Index | J30: CPI | K30: _InflationIndex
A32: 6 | B32: =INDEX(Lists!$B$3:$B$8, A32) -> Scenario 6: Custom Scenario
C34: If you wish to create a custom scenario, please populate the following cells in light blue. Otherwise, the below can be ignored.
C36: Year-on-Year Efficiency / Management Stretch
E38: 1 | F38: =INDEX(Lists!$E$3:$E$5, E38) -> Other revenue | H38: % | J38: 0
E39: 2 | F39: =INDEX(Lists!$E$3:$E$5, E39) -> Commercial revenue | H39: % | J39: 0
E40: 3 | F40: =INDEX(Lists!$E$3:$E$5, E40) -> Opex | H40: % | J40: 0
C43: Splits
D45: O&D
F47: O&D | H47: % | U47: 0 | V47: 0 | W47: 0 | X47: 0 | Y47: 0 | Z47: 0 | AA47: 0 | AB47: 0
D49: Mode share
E51: 1 | F51: =INDEX(Lists!$D$3:$D$19, E51) -> Park & Fly Passengers | H51: % | U51: 0 | V51: 0 | W51: 0 | X51: 0 | Y51: 0 | Z51: 0 | AA51: 0 | AB51: 0
E52: 2 | F52: =INDEX(Lists!$D$3:$D$19, E52) -> Kiss & Fly Passengers | H52: % | U52: 0 | V52: 0 | W52: 0 | X52: 0 | Y52: 0 | Z52: 0 | AA52: 0 | AB52: 0
E53: 3 | F53: =INDEX(Lists!$D$3:$D$19, E53) -> Taxi Passengers | H53: % | U53: 0 | V53: 0 | W53: 0 | X53: 0 | Y53: 0 | Z53: 0 | AA53: 0 | AB53: 0
E54: 4 | F54: =INDEX(Lists!$D$3:$D$19, E54) -> Bus/Coach Passengers | H54: % | U54: 0 | V54: 0 | W54: 0 | X54: 0 | Y54: 0 | Z54: 0 | AA54: 0 | AB54: 0
E55: 5 | F55: =INDEX(Lists!$D$3:$D$19, E55) -> Tube Passengers | H55: % | U55: 0 | V55: 0 | W55: 0 | X55: 0 | Y55: 0 | Z55: 0 | AA55: 0 | AB55: 0
E56: 6 | F56: =INDEX(Lists!$D$3:$D$19, E56) -> Car Rental Passengers | H56: % | U56: 0 | V56: 0 | W56: 0 | X56: 0 | Y56: 0 | Z56: 0 | AA56: 0 | AB56: 0
E57: 7 | F57: =INDEX(Lists!$D$3:$D$19, E57) -> Walk Passengers | H57: % | U57: 0 | V57: 0 | W57: 0 | X57: 0 | Y57: 0 | Z57: 0 | AA57: 0 | AB57: 0
E58: 8 | F58: =INDEX(Lists!$D$3:$D$19, E58) -> Heathrow Express Passengers | H58: % | U58: 0 | V58: 0 | W58: 0 | X58: 0 | Y58: 0 | Z58: 0 | AA58: 0 | AB58: 0
E59: 9 | F59: =INDEX(Lists!$D$3:$D$19, E59) -> Heathrow Connect Passengers | H59: % | U59: 0 | V59: 0 | W59: 0 | X59: 0 | Y59: 0 | Z59: 0 | AA59: 0 | AB59: 0
E60: 10 | F60: =INDEX(Lists!$D$3:$D$19, E60) -> Rail Passengers | H60: % | U60: 0 | V60: 0 | W60: 0 | X60: 0 | Y60: 0 | Z60: 0 | AA60: 0 | AB60: 0
E61: 11 | F61: =INDEX(Lists!$D$3:$D$19, E61) -> Elizabeth Line Passengers | H61: % | U61: 0 | V61: 0 | W61: 0 | X61: 0 | Y61: 0 | Z61: 0 | AA61: 0 | AB61: 0
E62: 12 | F62: =INDEX(Lists!$D$3:$D$19, E62) -> Air Passengers | H62: % | U62: 0 | V62: 0 | W62: 0 | X62: 0 | Y62: 0 | Z62: 0 | AA62: 0 | AB62: 0
E63: 13 | F63: =INDEX(Lists!$D$3:$D$19, E63) -> Other Passengers | H63: % | U63: 0 | V63: 0 | W63: 0 | X63: 0 | Y63: 0 | Z63: 0 | AA63: 0 | AB63: 0
E64: 14 | F64: =INDEX(Lists!$D$3:$D$19, E64) -> Rail-air Passengers | H64: % | U64: 0 | V64: 0 | W64: 0 | X64: 0 | Y64: 0 | Z64: 0 | AA64: 0 | AB64: 0
E65: 15 | F65: =INDEX(Lists!$D$3:$D$19, E65) -> Charter Coach Passengers | H65: % | U65: 0 | V65: 0 | W65: 0 | X65: 0 | Y65: 0 | Z65: 0 | AA65: 0 | AB65: 0
E66: 16 | F66: =INDEX(Lists!$D$3:$D$19, E66) -> Air Transfer Passengers | H66: % | U66: 0 | V66: 0 | W66: 0 | X66: 0 | Y66: 0 | Z66: 0 | AA66: 0 | AB66: 0
E67: 17 | F67: =INDEX(Lists!$D$3:$D$19, E67) -> Zero Passengers | H67: % | U67: 0 | V67: 0 | W67: 0 | X67: 0 | Y67: 0 | Z67: 0 | AA67: 0 | AB67: 0
F68: Sum | H68: % | U68: =SUM(U51:U67) -> 0 | V68: =SUM(V51:V67) -> 0 | W68: 0 | X68: 0 | Y68: 0 | Z68: 0 | AA68: 0 | AB68: 0
D70: Geographic split
E72: 1 | F72: =INDEX(_GeogList, E72) -> UK & CI | H72: % | U72: 0 | V72: 0 | W72: 0 | X72: 0 | Y72: 0 | Z72: 0 | AA72: 0 | AB72: 0
E73: 2 | F73: =INDEX(_GeogList, E73) -> EEA | H73: % | U73: 0 | V73: 0 | W73: 0 | X73: 0 | Y73: 0 | Z73: 0 | AA73: 0 | AB73: 0
E74: 3 | F74: =INDEX(_GeogList, E74) -> Other Europe & CIS | H74: % | U74: 0 | V74: 0 | W74: 0 | X74: 0 | Y74: 0 | Z74: 0 | AA74: 0 | AB74: 0
E75: 4 | F75: =INDEX(_GeogList, E75) -> Middle East | H75: % | U75: 0 | V75: 0 | W75: 0 | X75: 0 | Y75: 0 | Z75: 0 | AA75: 0 | AB75: 0
E76: 5 | F76: =INDEX(_GeogList, E76) -> Africa | H76: % | U76: 0 | V76: 0 | W76: 0 | X76: 0 | Y76: 0 | Z76: 0 | AA76: 0 | AB76: 0
E77: 6 | F77: =INDEX(_GeogList, E77) -> North America | H77: % | U77: 0 | V77: 0 | W77: 0 | X77: 0 | Y77: 0 | Z77: 0 | AA77: 0 | AB77: 0
E78: 7 | F78: =INDEX(_GeogList, E78) -> Latin America | H78: % | U78: 0 | V78: 0 | W78: 0 | X78: 0 | Y78: 0 | Z78: 0 | AA78: 0 | AB78: 0
E79: 8 | F79: =INDEX(_GeogList, E79) -> Asia / Pacific | H79: % | U79: 0 | V79: 0 | W79: 0 | X79: 0 | Y79: 0 | Z79: 0 | AA79: 0 | AB79: 0
F80: Sum | H80: % | U80: =SUM(U72:U79) -> 0 | V80: =SUM(V72:V79) -> 0 | W80: 0 | X80: 0 | Y80: 0 | Z80: 0 | AA80: 0 | AB80: 0
C83: Cost Driver values
E85: 1 | F85: =INDEX(_DriversList,$E85) -> Total Passengers | H85: million pax | U85: 0 | V85: 0 | W85: 0 | X85: 0 | Y85: 0 | Z85: 0 | AA85: 0 | AB85: 0
E86: 2 | F86: =INDEX(_DriversList,$E86) -> Utilised Terminal Area | H86: 000s m2 | U86: 0 | V86: 0 | W86: 0 | X86: 0 | Y86: 0 | Z86: 0 | AA86: 0 | AB86: 0
E87: 3 | F87: =INDEX(_DriversList,$E87) -> OD pax | H87: million pax | U87: 0 | V87: 0 | W87: 0 | X87: 0 | Y87: 0 | Z87: 0 | AA87: 0 | AB87: 0
E88: 4 | F88: =INDEX(_DriversList,$E88) -> HEx pax | H88: million pax | U88: 0 | V88: 0 | W88: 0 | X88: 0 | Y88: 0 | Z88: 0 | AA88: 0 | AB88: 0
E89: 5 | F89: =INDEX(_DriversList,$E89) -> Parking/rental pax | H89: million pax | U89: 0 | V89: 0 | W89: 0 | X89: 0 | Y89: 0 | Z89: 0 | AA89: 0 | AB89: 0
E90: 6 | F90: =INDEX(_DriversList,$E90) -> UK pax | H90: million pax | U90: 0 | V90: 0 | W90: 0 | X90: 0 | Y90: 0 | Z90: 0 | AA90: 0 | AB90: 0
E91: 7 | F91: =INDEX(_DriversList,$E91) -> EEA pax | H91: million pax | U91: 0 | V91: 0 | W91: 0 | X91: 0 | Y91: 0 | Z91: 0 | AA91: 0 | AB91: 0
E92: 8 | F92: =INDEX(_DriversList,$E92) -> Middle East pax | H92: million pax | U92: 0 | V92: 0 | W92: 0 | X92: 0 | Y92: 0 | Z92: 0 | AA92: 0 | AB92: 0
E93: 9 | F93: =INDEX(_DriversList,$E93) -> North America pax | H93: million pax | U93: 0 | V93: 0 | W93: 0 | X93: 0 | Y93: 0 | Z93: 0 | AA93: 0 | AB93: 0
E94: 10 | F94: =INDEX(_DriversList,$E94) -> Asia/Pacific pax | H94: million pax | U94: 0 | V94: 0 | W94: 0 | X94: 0 | Y94: 0 | Z94: 0 | AA94: 0 | AB94: 0
E95: 11 | F95: =INDEX(_DriversList,$E95) -> Other pax | H95: million pax | U95: 0 | V95: 0 | W95: 0 | X95: 0 | Y95: 0 | Z95: 0 | AA95: 0 | AB95: 0
E96: 12 | F96: =INDEX(_DriversList,$E96) -> No Elasticity | H96: # | U96: 0 | V96: 0 | W96: 0 | X96: 0 | Y96: 0 | Z96: 0 | AA96: 0 | AB96: 0
E97: 13 | F97: =INDEX(_DriversList,$E97) -> TDOC pax | H97: million pax | U97: 0 | V97: 0 | W97: 0 | X97: 0 | Y97: 0 | Z97: 0 | AA97: 0 | AB97: 0
C100: Elasticities
H102: Cost Driver 1 | I102: Elasticity | J102: Cost Driver 2 | K102: Elasticity
D104: 1 | E104: =INDEX(_CategoriesList, D104) -> Other revenue
E106: 1 | F106: =INDEX(_OtherList, E106) -> Cargo revenue | H106: =Elasticities!K20 -> No Elasticity | I106: 0 | J106: No Elasticity | K106: 0
E107: 2 | F107: =INDEX(_OtherList, E107) -> ORC revenue | H107: =Elasticities!K21 -> Total Passengers | I107: 0 | J107: No Elasticity | K107: 0
D109: 2 | E109: =INDEX(_CategoriesList, D109) -> Commercial revenue
E111: 1 | F111: =INDEX(_CommercialList, E111) -> Catering | H111: =Elasticities!K25 -> Total Passengers | I111: 0 | J111: No Elasticity | K111: 0
E112: 2 | F112: =INDEX(_CommercialList, E112) -> Retail concessions - UK | H112: =Elasticities!K26 -> UK pax | I112: 0 | J112: No Elasticity | K112: 0
E113: 3 | F113: =INDEX(_CommercialList, E113) -> Retail concessions - EEA | H113: =Elasticities!K27 -> EEA pax | I113: 0 | J113: No Elasticity | K113: 0
E114: 4 | F114: =INDEX(_CommercialList, E114) -> Retail concessions - North America | H114: =Elasticities!K28 -> North America pax | I114: 0 | J114: No Elasticity | K114: 0
E115: 5 | F115: =INDEX(_CommercialList, E115) -> Retail concessions - Middle East | H115: =Elasticities!K29 -> Middle East pax | I115: 0 | J115: No Elasticity | K115: 0
E116: 6 | F116: =INDEX(_CommercialList, E116) -> Retail concessions - Asia/Pacific | H116: =Elasticities!K30 -> Asia/Pacific pax | I116: 0 | J116: No Elasticity | K116: 0
E117: 7 | F117: =INDEX(_CommercialList, E117) -> Retail concessions - Other | H117: =Elasticities!K31 -> Other pax | I117: 0 | J117: No Elasticity | K117: 0
E118: 8 | F118: =INDEX(_CommercialList, E118) -> Other retail revenue | H118: =Elasticities!K32 -> Total Passengers | I118: 0 | J118: No Elasticity | K118: 0
E119: 9 | F119: =INDEX(_CommercialList, E119) -> Bureaux Revenue | H119: =Elasticities!K33 -> Total Passengers | I119: 0 | J119: No Elasticity | K119: 0
E120: 10 | F120: =INDEX(_CommercialList, E120) -> Car parking | H120: =Elasticities!K34 -> Parking/rental pax | I120: 0 | J120: No Elasticity | K120: 0
E121: 11 | F121: =INDEX(_CommercialList, E121) -> Other surface access | H121: =Elasticities!K35 -> Parking/rental pax | I121: 0 | J121: No Elasticity | K121: 0
E122: 12 | F122: =INDEX(_CommercialList, E122) -> Service revenue excl. surface access | H122: =Elasticities!K36 -> Total Passengers | I122: 0 | J122: No Elasticity | K122: 0
E123: 13 | F123: =INDEX(_CommercialList, E123) -> Track access revenue | H123: =Elasticities!K37 -> No Elasticity | I123: 0 | J123: No Elasticity | K123: 0
E124: 14 | F124: =INDEX(_CommercialList, E124) -> Heathrow Express revenue | H124: =Elasticities!K38 -> HEx pax | I124: 0 | J124: No Elasticity | K124: 0
E125: 15 | F125: =INDEX(_CommercialList, E125) -> Property revenue | H125: =Elasticities!K39 -> Utilised Terminal Area | I125: 0 | J125: No Elasticity | K125: 0
E126: 16 | F126: =INDEX(_CommercialList, E126) -> Other revenue | H126: =Elasticities!K40 -> No Elasticity | I126: 0 | J126: No Elasticity | K126: 0
E127: 17 | F127: =INDEX(_CommercialList, E127) -> Intercompany revenue | H127: =Elasticities!K41 -> No Elasticity | I127: 0 | J127: No Elasticity | K127: 0
E128: 18 | F128: =INDEX(_CommercialList, E128) -> Terminal drop-off charge revenue | H128: =Elasticities!K42 -> No Elasticity | I128: 0 | J128: No Elasticity | K128: 0
E129: 19 | F129: =INDEX(_CommercialList, E129) -> Red Terminal Cost Recovery | H129: =Elasticities!K43 -> No Elasticity | I129: 0 | J129: No Elasticity | K129: 0
E130: 20 | F130: =INDEX(_CommercialList, E130) -> T5 Piccadilly Line revenue | H130: =Elasticities!K44 -> No Elasticity | I130: 0 | J130: No Elasticity | K130: 0
D132: 3 | E132: =INDEX(_CategoriesList, D132) -> Opex
E134: 1 | F134: =INDEX(_OpexList, E134) -> Security staff | H134: =Elasticities!K48 -> Total Passengers | I134: 0 | J134: No Elasticity | K134: 0
E135: 2 | F135: =INDEX(_OpexList, E135) -> Operational staff | H135: =Elasticities!K49 -> Total Passengers | I135: 0 | J135: No Elasticity | K135: 0
E136: 3 | F136: =INDEX(_OpexList, E136) -> Non-operational staff | H136: =Elasticities!K50 -> No Elasticity | I136: 0 | J136: No Elasticity | K136: 0
E137: 4 | F137: =INDEX(_OpexList, E137) -> Pensions | H137: =Elasticities!K51 -> No Elasticity | I137: 0 | J137: No Elasticity | K137: 0
E138: 5 | F138: =INDEX(_OpexList, E138) -> Operational costs excl. insurance | H138: =Elasticities!K52 -> Total Passengers | I138: 0 | J138: No Elasticity | K138: 0
E139: 6 | F139: =INDEX(_OpexList, E139) -> Insurance | H139: =Elasticities!K53 -> No Elasticity | I139: 0 | J139: No Elasticity | K139: 0
E140: 7 | F140: =INDEX(_OpexList, E140) -> Facilities maintenance costs | H140: =Elasticities!K54 -> No Elasticity | I140: 0 | J140: No Elasticity | K140: 0
E141: 8 | F141: =INDEX(_OpexList, E141) -> Rates costs | H141: =Elasticities!K55 -> No Elasticity | I141: 0 | J141: No Elasticity | K141: 0
E142: 9 | F142: =INDEX(_OpexList, E142) -> Utility costs excl. distribution contract | H142: =Elasticities!K56 -> Total Passengers | I142: 0 | J142: No Elasticity | K142: 0
E143: 10 | F143: =INDEX(_OpexList, E143) -> Distribution contract | H143: =Elasticities!K57 -> No Elasticity | I143: 0 | J143: No Elasticity | K143: 0
E144: 11 | F144: =INDEX(_OpexList, E144) -> General expenses incl. consultants & marketing, gen ex & interco | H144: =Elasticities!K58 -> Total Passengers | I144: 0 | J144: No Elasticity | K144: 0
E145: 12 | F145: =INDEX(_OpexList, E145) -> Preopening | H145: =Elasticities!K59 -> No Elasticity | I145: 0 | J145: No Elasticity | K145: 0
E146: 13 | F146: =INDEX(_OpexList, E146) -> Terminal drop-off charge opex | H146: =Elasticities!K60 -> No Elasticity | I146: 0 | J146: No Elasticity | K146: 0
E147: 14 | F147: =INDEX(_OpexList, E147) -> Surface access | H147: =Elasticities!K61 -> No Elasticity | I147: 0 | J147: No Elasticity | K147: 0
E148: 15 | F148: =INDEX(_OpexList, E148) -> Covid-19 overlay | H148: =Elasticities!K62 -> No Elasticity | I148: 0 | J148: No Elasticity | K148: 0
E149: 16 | F149: =INDEX(_OpexList, E149) -> Service overlay | H149: =Elasticities!K63 -> No Elasticity | I149: 0 | J149: No Elasticity | K149: 0
E150: 17 | F150: =INDEX(_OpexList, E150) -> Opex Spare 1 | H150: =Elasticities!K64 -> No Elasticity | I150: 0 | J150: No Elasticity | K150: 0
E151: 18 | F151: =INDEX(_OpexList, E151) -> Opex Spare 2 | H151: =Elasticities!K65 -> No Elasticity | I151: 0 | J151: No Elasticity | K151: 0
E152: 19 | F152: =INDEX(_OpexList, E152) -> Opex Spare 3 | H152: =Elasticities!K66 -> No Elasticity | I152: 0 | J152: No Elasticity | K152: 0
E153: 20 | F153: =INDEX(_OpexList, E153) -> Opex Spare 4 | H153: =Elasticities!K67 -> No Elasticity | I153: 0 | J153: No Elasticity | K153: 0
C156: Adjustments | J156: =1 if Baseline | K156: =1 if Multiplicative
D158: Adjustment 1
F160: Adjustment timing | I160: Baseline (2019)
F161: Adjustment type | I161: Multiplicative
D163: 1 | E163: =INDEX(_CategoriesList, D163) -> Other revenue
E165: 1 | F165: =INDEX(_OtherList, E165) -> Cargo revenue | H165: =IF($I$161=Lists!$R$3, "%", _GBPm) -> % | J165: =IF($I$160=Lists!$Q$3, 1, 0) -> 1 | K165: =IF($I$161 = Lists!$R$3, 1, 0) -> 1 | P165: 0 | Q165: 0 | R165: 0 | S165: 0 | T165: 0 | U165: 0 | V165: 0 | W165: 0 | X165: 0 | Y165: 0 | Z165: 0 | AA165: 0 | AB165: 0
D167: 2 | E167: =INDEX(_CategoriesList, D167) -> Commercial revenue
E169: 1 | F169: =INDEX(_CommercialList, E169) -> Catering | H169: =IF($I$161=Lists!$R$3, "%", _GBPm) -> % | J169: =IF($I$160=Lists!$Q$3, 1, 0) -> 1 | K169: =IF($I$161 = Lists!$R$3, 1, 0) -> 1 | P169: 0 | Q169: 0 | R169: 0 | S169: 0 | T169: 0 | U169: 0 | V169: 0 | W169: 0 | X169: 0 | Y169: 0 | Z169: 0 | AA169: 0 | AB169: 0
D171: 3 | E171: =INDEX(_CategoriesList, D171) -> Opex
E173: 1 | F173: =INDEX(_OpexList, E173) -> Security staff | H173: =IF($I$161=Lists!$R$3, "%", _GBPm) -> % | J173: =IF($I$160=Lists!$Q$3, 1, 0) -> 1 | K173: =IF($I$161 = Lists!$R$3, 1, 0) -> 1 | P173: 0 | Q173: 0 | R173: 0 | S173: 0 | T173: 0 | U173: 0 | V173: 0 | W173: 0 | X173: 0 | Y173: 0 | Z173: 0 | AA173: 0 | AB173: 0
D175: Adjustment 2
F177: Adjustment timing | I177: Baseline (2019)
F178: Adjustment type | I178: Additive (Nominal)
D180: 1 | E180: =INDEX(_CategoriesList, D180) -> Other revenue
E182: 1 | F182: =INDEX(_OtherList, E182) -> Cargo revenue | H182: =IF($I$365=Lists!$R$3, "%", _GBPm) -> £m | J182: =IF($I$177=Lists!$Q$3, 1, 0) -> 1 | K182: =IF($I$178 = Lists!$R$3, 1, 0) -> 0 | P182: 0 | Q182: 0 | R182: 0 | S182: 0 | T182: 0 | U182: 0 | V182: 0 | W182: 0 | X182: 0 | Y182: 0 | Z182: 0 | AA182: 0 | AB182: 0
D184: 2 | E184: =INDEX(_CategoriesList, D184) -> Commercial revenue
E186: 1 | F186: =INDEX(_CommercialList, E186) -> Catering | H186: =IF($I$365=Lists!$R$3, "%", _GBPm) -> £m | J186: =IF($I$177=Lists!$Q$3, 1, 0) -> 1 | K186: =IF($I$178 = Lists!$R$3, 1, 0) -> 0 | P186: 0 | Q186: 0 | R186: 0 | S186: 0 | T186: 0 | U186: 0 | V186: 0 | W186: 0 | X186: 0 | Y186: 0 | Z186: 0 | AA186: 0 | AB186: 0
D188: 3 | E188: =INDEX(_CategoriesList, D188) -> Opex
E190: 1 | F190: =INDEX(_OpexList, E190) -> Security staff | H190: =IF($I$365=Lists!$R$3, "%", _GBPm) -> £m | J190: =IF($I$177=Lists!$Q$3, 1, 0) -> 1 | K190: =IF($I$178 = Lists!$R$3, 1, 0) -> 0 | P190: 0 | Q190: 0 | R190: 0 | S190: 0 | T190: 0 | U190: 0 | V190: 0 | W190: 0 | X190: 0 | Y190: 0 | Z190: 0 | AA190: 0 | AB190: 0
D192: Adjustment 3
F194: Adjustment timing | I194: Baseline (2019)
F195: Adjustment type | I195: Additive (Nominal)
D197: 1 | E197: =INDEX(_CategoriesList, D197) -> Other revenue
E199: 1 | F199: =INDEX(_OtherList, E199) -> Cargo revenue | H199: =IF($I$365=Lists!$R$3, "%", _GBPm) -> £m | J199: =IF($I$194=Lists!$Q$3, 1, 0) -> 1 | K199: =IF($I$195 = Lists!$R$3, 1, 0) -> 0 | P199: 0 | Q199: 0 | R199: 0 | S199: 0 | T199: 0 | U199: 0 | V199: 0 | W199: 0 | X199: 0 | Y199: 0 | Z199: 0 | AA199: 0 | AB199: 0
D201: 2 | E201: =INDEX(_CategoriesList, D201) -> Commercial revenue
E203: 1 | F203: =INDEX(_CommercialList, E203) -> Catering | H203: =IF($I$365=Lists!$R$3, "%", _GBPm) -> £m | J203: =IF($I$194=Lists!$Q$3, 1, 0) -> 1 | K203: =IF($I$195 = Lists!$R$3, 1, 0) -> 0 | P203: 0 | Q203: 0 | R203: 0 | S203: 0 | T203: 0 | U203: 0 | V203: 0 | W203: 0 | X203: 0 | Y203: 0 | Z203: 0 | AA203: 0 | AB203: 0
D205: 3 | E205: =INDEX(_CategoriesList, D205) -> Opex
E207: 1 | F207: =INDEX(_OpexList, E207) -> Security staff | H207: =IF($I$365=Lists!$R$3, "%", _GBPm) -> £m | J207: =IF($I$194=Lists!$Q$3, 1, 0) -> 1 | K207: =IF($I$195 = Lists!$R$3, 1, 0) -> 0 | P207: 0 | Q207: 0 | R207: 0 | S207: 0 | T207: 0 | U207: 0 | V207: 0 | W207: 0 | X207: 0 | Y207: 0 | Z207: 0 | AA207: 0 | AB207: 0
D209: Adjustment 4
F211: Adjustment timing | I211: Baseline (2019)
F212: Adjustment type | I212: Additive (Nominal)
D214: 1 | E214: =INDEX(_CategoriesList, D214) -> Other revenue
E216: 1 | F216: =INDEX(_OtherList, E216) -> Cargo revenue | H216: =IF($I$365=Lists!$R$3, "%", _GBPm) -> £m | J216: =IF($I$211=Lists!$Q$3, 1, 0) -> 1 | K216: =IF($I$212 = Lists!$R$3, 1, 0) -> 0 | P216: 0 | Q216: 0 | R216: 0 | S216: 0 | T216: 0 | U216: 0 | V216: 0 | W216: 0 | X216: 0 | Y216: 0 | Z216: 0 | AA216: 0 | AB216: 0
D218: 2 | E218: =INDEX(_CategoriesList, D218) -> Commercial revenue
E220: 1 | F220: =INDEX(_CommercialList, E220) -> Catering | H220: =IF($I$365=Lists!$R$3, "%", _GBPm) -> £m | J220: =IF($I$211=Lists!$Q$3, 1, 0) -> 1 | K220: =IF($I$212 = Lists!$R$3, 1, 0) -> 0 | P220: 0 | Q220: 0 | R220: 0 | S220: 0 | T220: 0 | U220: 0 | V220: 0 | W220: 0 | X220: 0 | Y220: 0 | Z220: 0 | AA220: 0 | AB220: 0
D222: 3 | E222: =INDEX(_CategoriesList, D222) -> Opex
E224: 1 | F224: =INDEX(_OpexList, E224) -> Security staff | H224: =IF($I$365=Lists!$R$3, "%", _GBPm) -> £m | J224: =IF($I$211=Lists!$Q$3, 1, 0) -> 1 | K224: =IF($I$212 = Lists!$R$3, 1, 0) -> 0 | P224: 0 | Q224: 0 | R224: 0 | S224: 0 | T224: 0 | U224: 0 | V224: 0 | W224: 0 | X224: 0 | Y224: 0 | Z224: 0 | AA224: 0 | AB224: 0
D226: Adjustment 5
F228: Adjustment timing | I228: Baseline (2019)
F229: Adjustment type | I229: Additive (Nominal)
D231: 1 | E231: =INDEX(_CategoriesList, D231) -> Other revenue
E233: 1 | F233: =INDEX(_OtherList, E233) -> Cargo revenue | H233: =IF($I$365=Lists!$R$3, "%", _GBPm) -> £m | J233: =IF($I$228=Lists!$Q$3, 1, 0) -> 1 | K233: =IF($I$229 = Lists!$R$3, 1, 0) -> 0 | P233: 0 | Q233: 0 | R233: 0 | S233: 0 | T233: 0 | U233: 0 | V233: 0 | W233: 0 | X233: 0 | Y233: 0 | Z233: 0 | AA233: 0 | AB233: 0
D235: 2 | E235: =INDEX(_CategoriesList, D235) -> Commercial revenue
E237: 1 | F237: =INDEX(_CommercialList, E237) -> Catering | H237: =IF($I$365=Lists!$R$3, "%", _GBPm) -> £m | J237: =IF($I$228=Lists!$Q$3, 1, 0) -> 1 | K237: =IF($I$229 = Lists!$R$3, 1, 0) -> 0 | P237: 0 | Q237: 0 | R237: 0 | S237: 0 | T237: 0 | U237: 0 | V237: 0 | W237: 0 | X237: 0 | Y237: 0 | Z237: 0 | AA237: 0 | AB237: 0
D239: 3 | E239: =INDEX(_CategoriesList, D239) -> Opex
E241: 1 | F241: =INDEX(_OpexList, E241) -> Security staff | H241: =IF($I$365=Lists!$R$3, "%", _GBPm) -> £m | J241: =IF($I$228=Lists!$Q$3, 1, 0) -> 1 | K241: =IF($I$229 = Lists!$R$3, 1, 0) -> 0 | P241: 0 | Q241: 0 | R241: 0 | S241: 0 | T241: 0 | U241: 0 | V241: 0 | W241: 0 | X241: 0 | Y241: 0 | Z241: 0 | AA241: 0 | AB241: 0
D243: Adjustment 6
F245: Adjustment timing | I245: Baseline (2019)
F246: Adjustment type | I246: Additive (Nominal)
D248: 1 | E248: =INDEX(_CategoriesList, D248) -> Other revenue
E250: 1 | F250: =INDEX(_OtherList, E250) -> Cargo revenue | H250: =IF($I$365=Lists!$R$3, "%", _GBPm) -> £m | J250: =IF($I$245=Lists!$Q$3, 1, 0) -> 1 | K250: =IF($I$246 = Lists!$R$3, 1, 0) -> 0 | P250: 0 | Q250: 0 | R250: 0 | S250: 0 | T250: 0 | U250: 0 | V250: 0 | W250: 0 | X250: 0 | Y250: 0 | Z250: 0 | AA250: 0 | AB250: 0
D252: 2 | E252: =INDEX(_CategoriesList, D252) -> Commercial revenue
E254: 1 | F254: =INDEX(_CommercialList, E254) -> Catering | H254: =IF($I$365=Lists!$R$3, "%", _GBPm) -> £m | J254: =IF($I$245=Lists!$Q$3, 1, 0) -> 1 | K254: =IF($I$246 = Lists!$R$3, 1, 0) -> 0 | P254: 0 | Q254: 0 | R254: 0 | S254: 0 | T254: 0 | U254: 0 | V254: 0 | W254: 0 | X254: 0 | Y254: 0 | Z254: 0 | AA254: 0 | AB254: 0
D256: 3 | E256: =INDEX(_CategoriesList, D256) -> Opex
E258: 1 | F258: =INDEX(_OpexList, E258) -> Security staff | H258: =IF($I$365=Lists!$R$3, "%", _GBPm) -> £m | J258: =IF($I$245=Lists!$Q$3, 1, 0) -> 1 | K258: =IF($I$246 = Lists!$R$3, 1, 0) -> 0 | P258: 0 | Q258: 0 | R258: 0 | S258: 0 | T258: 0 | U258: 0 | V258: 0 | W258: 0 | X258: 0 | Y258: 0 | Z258: 0 | AA258: 0 | AB258: 0
D260: Adjustment 7
F262: Adjustment timing | I262: Baseline (2019)
F263: Adjustment type | I263: Additive (Nominal)
D265: 1 | E265: =INDEX(_CategoriesList, D265) -> Other revenue
E267: 1 | F267: =INDEX(_OtherList, E267) -> Cargo revenue | H267: =IF($I$365=Lists!$R$3, "%", _GBPm) -> £m | J267: =IF($I$262=Lists!$Q$3, 1, 0) -> 1 | K267: =IF($I$263 = Lists!$R$3, 1, 0) -> 0 | P267: 0 | Q267: 0 | R267: 0 | S267: 0 | T267: 0 | U267: 0 | V267: 0 | W267: 0 | X267: 0 | Y267: 0 | Z267: 0 | AA267: 0 | AB267: 0
D269: 2 | E269: =INDEX(_CategoriesList, D269) -> Commercial revenue
E271: 1 | F271: =INDEX(_CommercialList, E271) -> Catering | H271: =IF($I$365=Lists!$R$3, "%", _GBPm) -> £m | J271: =IF($I$262=Lists!$Q$3, 1, 0) -> 1 | K271: =IF($I$263 = Lists!$R$3, 1, 0) -> 0 | P271: 0 | Q271: 0 | R271: 0 | S271: 0 | T271: 0 | U271: 0 | V271: 0 | W271: 0 | X271: 0 | Y271: 0 | Z271: 0 | AA271: 0 | AB271: 0
D273: 3 | E273: =INDEX(_CategoriesList, D273) -> Opex
E275: 1 | F275: =INDEX(_OpexList, E275) -> Security staff | H275: =IF($I$365=Lists!$R$3, "%", _GBPm) -> £m | J275: =IF($I$262=Lists!$Q$3, 1, 0) -> 1 | K275: =IF($I$263 = Lists!$R$3, 1, 0) -> 0 | P275: 0 | Q275: 0 | R275: 0 | S275: 0 | T275: 0 | U275: 0 | V275: 0 | W275: 0 | X275: 0 | Y275: 0 | Z275: 0 | AA275: 0 | AB275: 0
D277: Adjustment 8
F279: Adjustment timing | I279: Baseline (2019)
F280: Adjustment type | I280: Additive (Nominal)
D282: 1 | E282: =INDEX(_CategoriesList, D282) -> Other revenue
E284: 1 | F284: =INDEX(_OtherList, E284) -> Cargo revenue | H284: =IF($I$365=Lists!$R$3, "%", _GBPm) -> £m | J284: =IF($I$279=Lists!$Q$3, 1, 0) -> 1 | K284: =IF($I$280 = Lists!$R$3, 1, 0) -> 0 | P284: 0 | Q284: 0 | R284: 0 | S284: 0 | T284: 0 | U284: 0 | V284: 0 | W284: 0 | X284: 0 | Y284: 0 | Z284: 0 | AA284: 0 | AB284: 0
D286: 2 | E286: =INDEX(_CategoriesList, D286) -> Commercial revenue
E288: 1 | F288: =INDEX(_CommercialList, E288) -> Catering | H288: =IF($I$365=Lists!$R$3, "%", _GBPm) -> £m | J288: =IF($I$279=Lists!$Q$3, 1, 0) -> 1 | K288: =IF($I$280 = Lists!$R$3, 1, 0) -> 0 | P288: 0 | Q288: 0 | R288: 0 | S288: 0 | T288: 0 | U288: 0 | V288: 0 | W288: 0 | X288: 0 | Y288: 0 | Z288: 0 | AA288: 0 | AB288: 0
D290: 3 | E290: =INDEX(_CategoriesList, D290) -> Opex
E292: 1 | F292: =INDEX(_OpexList, E292) -> Security staff | H292: =IF($I$365=Lists!$R$3, "%", _GBPm) -> £m | J292: =IF($I$279=Lists!$Q$3, 1, 0) -> 1 | K292: =IF($I$280 = Lists!$R$3, 1, 0) -> 0 | P292: 0 | Q292: 0 | R292: 0 | S292: 0 | T292: 0 | U292: 0 | V292: 0 | W292: 0 | X292: 0 | Y292: 0 | Z292: 0 | AA292: 0 | AB292: 0
D294: Adjustment 9
F296: Adjustment timing | I296: Baseline (2019)
F297: Adjustment type | I297: Additive (Nominal)
D299: 1 | E299: =INDEX(_CategoriesList, D299) -> Other revenue
E301: 1 | F301: =INDEX(_OtherList, E301) -> Cargo revenue | H301: =IF($I$365=Lists!$R$3, "%", _GBPm) -> £m | J301: =IF($I$296=Lists!$Q$3, 1, 0) -> 1 | K301: =IF($I$297 = Lists!$R$3, 1, 0) -> 0 | P301: 0 | Q301: 0 | R301: 0 | S301: 0 | T301: 0 | U301: 0 | V301: 0 | W301: 0 | X301: 0 | Y301: 0 | Z301: 0 | AA301: 0 | AB301: 0
D303: 2 | E303: =INDEX(_CategoriesList, D303) -> Commercial revenue
E305: 1 | F305: =INDEX(_CommercialList, E305) -> Catering | H305: =IF($I$365=Lists!$R$3, "%", _GBPm) -> £m | J305: =IF($I$296=Lists!$Q$3, 1, 0) -> 1 | K305: =IF($I$297 = Lists!$R$3, 1, 0) -> 0 | P305: 0 | Q305: 0 | R305: 0 | S305: 0 | T305: 0 | U305: 0 | V305: 0 | W305: 0 | X305: 0 | Y305: 0 | Z305: 0 | AA305: 0 | AB305: 0
D307: 3 | E307: =INDEX(_CategoriesList, D307) -> Opex
E309: 1 | F309: =INDEX(_OpexList, E309) -> Security staff | H309: =IF($I$365=Lists!$R$3, "%", _GBPm) -> £m | J309: =IF($I$296=Lists!$Q$3, 1, 0) -> 1 | K309: =IF($I$297 = Lists!$R$3, 1, 0) -> 0 | P309: 0 | Q309: 0 | R309: 0 | S309: 0 | T309: 0 | U309: 0 | V309: 0 | W309: 0 | X309: 0 | Y309: 0 | Z309: 0 | AA309: 0 | AB309: 0
D311: Adjustment 10
... 63 more rows

Sheet I >
B2: INPUTS

Sheet HAL
A1: =RIGHT(CELL("filename",A$2),LEN(CELL("filename",A$2))-FIND("]",CELL("filename",A$2))) -> HAL
A2: ="["&_ModelStatus&"] "&_ModelName&" - "&_OrganisationName&" - "&_ModelVersion&" ("&TEXT(_ModelDate,"dd/mm/yyyy")&")" -> [AIRLINE REDACTED VERSION] H7 Opex and Commercial Revenues - Civil Aviation Authority - Version 11.4 (10/01/2023)
F4: Item | H4: Units | I4: Price Base | J4: Constant | K4: Source | O4: 2013 | P4: =O4+1 -> 2014 | Q4: 2015 | R4: 2016 | S4: 2017 | T4: 2018 | U4: 2019 | V4: 2020 | W4: 2021 | X4: 2022 | Y4: 2023 | Z4: 2024 | AA4: 2025 | AB4: 2026
F5: Period End Date | O5: =DATE(O4, 12, 31) -> 2013-12-31 | P5: 2014-12-31 | Q5: 2015-12-31 | R5: 2016-12-31 | S5: 2017-12-31 | T5: 2018-12-31 | U5: 2019-12-31 | V5: 2020-12-31 | W5: 2021-12-31 | X5: 2022-12-31 | Y5: 2023-12-31 | Z5: 2024-12-31 | AA5: 2025-12-31 | AB5: 2026-12-31
F6: Days in Period | P6: =P5-O5 -> 365 | Q6: 365 | R6: 366 | S6: 365 | T6: 365 | U6: 365 | V6: 366 | W6: 365 | X6: 365 | Y6: 365 | Z6: 366 | AA6: 365 | AB6: 365
B8: Description
C10: This sheet presents HAL's passenger numbers, and the opex and revenue forecasts produced by HAL in their RBP, in their two Mid scenarios (Scenarios 2 and 5). This data is presented in nominal and real terms, using HAL's inflation forecast. Data is presented in "groupings", which are mapped to our revenue and cost categories in the "Historic" tab.
B13: Headline results
C15: Totals, Nominal
D17: Commercial Revenues
F19: High (14Jun), RAB adjustment | H19: =_GBPm -> £m | I19: Nominal | J19: =SUM(X19:AB19) -> 4102.754285 | K19: Heathrow RBP (Update 1) - External H7 v1.00 | X19: 593.0893692 | Y19: 743.5913811 | Z19: 856.2158109 | AA19: 934.4941069 | AB19: 975.3636169
F20: Mid (14Jun), RAB adjustment | H20: £m | I20: Nominal | J20: =SUM(X20:AB20) -> 3733.817637 | K20: Heathrow RBP (Update 1) - External H7 v1.00 | X20: 512.9180883 | Y20: 662.4616905 | Z20: 783.6761854 | AA20: 865.7808822 | AB20: 908.9807901
F21: Low (14Jun), RAB adjustment | H21: £m | I21: Nominal | J21: 2579.227363 | K21: Heathrow RBP (Update 1) - External H7 v1.00 | X21: 264.5554546 | Y21: 399.2073781 | Z21: 546.5388858 | AA21: 649.2053019 | AB21: 719.7203428
F22: High (14Jun), no RAB adjustment | H22: £m | I22: Nominal | J22: 3753.497139 | K22: Heathrow RBP (Update 1) - External H7 v1.00 | X22: 561.5685956 | Y22: 691.4569673 | Z22: 784.9684192 | AA22: 845.4896058 | AB22: 870.013551
F23: Mid (14Jun), no RAB adjustment | H23: £m | I23: Nominal | J23: 3398.413399 | K23: Heathrow RBP (Update 1) - External H7 v1.00 | X23: 484.4076023 | Y23: 613.3735509 | Z23: 715.1525264 | AA23: 779.3564392 | AB23: 806.1232802
F24: Low (14Jun), no RAB adjustment | H24: £m | I24: Nominal | J24: 2502.767223 | K24: Heathrow RBP (Update 1) - External H7 v1.00 | X24: 259.8073163 | Y24: 388.604964 | Z24: 529.7483832 | AA24: 628.4534525 | AB24: 696.1531074
D26: Cargo revenues
F28: High (14Jun), RAB adjustment | H28: =_GBPm -> £m | I28: Nominal | J28: =SUM(X28:AB28) -> 68.45375833 | K28: Heathrow RBP (Update 1) - External H7 v1.00 | X28: 15.71400999 | Y28: 13.91604715 | Z28: 13.0537627 | AA28: 12.79607939 | AB28: 12.97385909
F29: Mid (14Jun), RAB adjustment | H29: £m | I29: Nominal | J29: =SUM(X29:AB29) -> 74.63978266 | K29: Heathrow RBP (Update 1) - External H7 v1.00 | X29: 17.10689565 | Y29: 15.29734422 | Z29: 14.26124444 | AA29: 13.91771127 | AB29: 14.05658708
F30: Low (14Jun), RAB adjustment | H30: £m | I30: Nominal | J30: 89.82788122 | K30: Heathrow RBP (Update 1) - External H7 v1.00 | X30: 21.14963539 | Y30: 19.14002992 | Z30: 17.2348365 | AA30: 16.3826499 | AB30: 15.92072951
F31: High (14Jun), no RAB adjustment | H31: £m | I31: Nominal | J31: 70.52015716 | K31: Heathrow RBP (Update 1) - External H7 v1.00 | X31: 16.00018117 | Y31: 14.29238829 | Z31: 13.48944698 | AA31: 13.2692141 | AB31: 13.46892663
F32: Mid (14Jun), no RAB adjustment | H32: £m | I32: Nominal | J32: 76.47390739 | K32: Heathrow RBP (Update 1) - External H7 v1.00 | X32: 17.34076647 | Y32: 15.62182013 | Z32: 14.65158995 | AA32: 14.34873072 | AB32: 14.51100013
F33: Low (14Jun), no RAB adjustment | H33: £m | I33: Nominal | J33: 91.09172013 | K33: Heathrow RBP (Update 1) - External H7 v1.00 | X33: 21.2317086 | Y33: 19.32021989 | Z33: 17.51352896 | AA33: 16.72111533 | AB33: 16.30514735
D35: Commercial Revenues + Cargo
F37: High (14Jun), RAB adjustment | G37: High, RAB adjustment | H37: =_GBPm -> £m | I37: Nominal | J37: =SUM(X37:AB37) -> 4171.208043 | K37: Heathrow RBP (Update 1) - External H7 v1.00 | X37: =X19 + X28 -> 608.8033792 | Y37: =Y19 + Y28 -> 757.5074282 | Z37: 869.2695736 | AA37: 947.2901863 | AB37: 988.337476
F38: Mid (14Jun), RAB adjustment | G38: Mid, RAB adjustment | H38: £m | I38: Nominal | J38: =SUM(X38:AB38) -> 3808.457419 | K38: Heathrow RBP (Update 1) - External H7 v1.00 | X38: =X20 + X29 -> 530.024984 | Y38: 677.7590347 | Z38: 797.9374299 | AA38: 879.6985935 | AB38: 923.0373772
F39: Low (14Jun), RAB adjustment | G39: Low, RAB adjustment | H39: £m | I39: Nominal | J39: 2669.055244 | K39: Heathrow RBP (Update 1) - External H7 v1.00 | X39: 285.70509 | Y39: 418.347408 | Z39: 563.7737223 | AA39: 665.5879518 | AB39: 735.6410723
F40: High (14Jun), no RAB adjustment | G40: High, no RAB adjustment | H40: £m | I40: Nominal | J40: 3824.017296 | K40: Heathrow RBP (Update 1) - External H7 v1.00 | X40: 577.5687767 | Y40: 705.7493556 | Z40: 798.4578662 | AA40: 858.7588199 | AB40: 883.4824777
F41: Mid (14Jun), no RAB adjustment | G41: Mid, no RAB adjustment | H41: £m | I41: Nominal | J41: 3474.887306 | K41: Heathrow RBP (Update 1) - External H7 v1.00 | X41: 501.7483687 | Y41: 628.995371 | Z41: 729.8041164 | AA41: 793.7051699 | AB41: 820.6342803
F42: Low (14Jun), no RAB adjustment | G42: Low, no RAB adjustment | H42: £m | I42: Nominal | J42: 2593.858944 | K42: Heathrow RBP (Update 1) - External H7 v1.00 | X42: 281.0390249 | Y42: 407.9251839 | Z42: 547.2619122 | AA42: 645.1745678 | AB42: 712.4582548
D44: Opex
F46: High (14Jun), RAB adjustment | H46: =_GBPm -> £m | I46: Nominal | J46: =SUM(X46:AB46) -> -6653.137928 | K46: Heathrow RBP (Update 1) - External H7 v1.00 | X46: -1170.326864 | Y46: -1280.347138 | Z46: -1354.978031 | AA46: -1404.825862 | AB46: -1442.660033
F47: Mid (14Jun), RAB adjustment | H47: £m | I47: Nominal | J47: =SUM(X47:AB47) -> -6475.85285 | K47: Heathrow RBP (Update 1) - External H7 v1.00 | X47: -1132.449513 | Y47: -1242.232018 | Z47: -1319.110284 | AA47: -1371.520591 | AB47: -1410.540444
F48: Low (14Jun), RAB adjustment | H48: £m | I48: Nominal | J48: -5862.253528 | K48: Heathrow RBP (Update 1) - External H7 v1.00 | X48: -999.5528459 | Y48: -1083.825764 | Z48: -1168.533038 | AA48: -1269.17332 | AB48: -1341.16856
F49: High (14Jun), no RAB adjustment | H49: £m | I49: Nominal | J49: -6648.074544 | K49: Heathrow RBP (Update 1) - External H7 v1.00 | X49: -1146.323955 | Y49: -1266.293292 | Z49: -1352.732495 | AA49: -1415.483307 | AB49: -1467.241495
F50: Mid (14Jun), no RAB adjustment | H50: £m | I50: Nominal | J50: -6472.084922 | K50: Heathrow RBP (Update 1) - External H7 v1.00 | X50: -1109.458604 | Y50: -1228.782599 | Z50: -1317.059746 | AA50: -1382.06385 | AB50: -1434.720123
F51: Low (14Jun), no RAB adjustment | H51: £m | I51: Nominal | J51: -5974.734109 | K51: Heathrow RBP (Update 1) - External H7 v1.00 | X51: -1005.166333 | Y51: -1096.189388 | Z51: -1189.242492 | AA51: -1300.24934 | AB51: -1383.886557
F53: High (14Jun), RAB adjustment | G53: High, RAB adjustment | H53: £m | I53: Nominal | J53: =SUM(X53:AB53) -> 6653.137928 | K53: Heathrow RBP (Update 1) - External H7 v1.00 | X53: =-X46 -> 1170.326864 | Y53: =-Y46 -> 1280.347138 | Z53: 1354.978031 | AA53: 1404.825862 | AB53: 1442.660033
F54: Mid (14Jun), RAB adjustment | G54: Mid, RAB adjustment | H54: £m | I54: Nominal | J54: =SUM(X54:AB54) -> 6475.85285 | K54: Heathrow RBP (Update 1) - External H7 v1.00 | X54: =-X47 -> 1132.449513 | Y54: 1242.232018 | Z54: 1319.110284 | AA54: 1371.520591 | AB54: 1410.540444
F55: Low (14Jun), RAB adjustment | G55: Low, RAB adjustment | H55: £m | I55: Nominal | J55: 5862.253528 | K55: Heathrow RBP (Update 1) - External H7 v1.00 | X55: 999.5528459 | Y55: 1083.825764 | Z55: 1168.533038 | AA55: 1269.17332 | AB55: 1341.16856
F56: High (14Jun), no RAB adjustment | G56: High, no RAB adjustment | H56: £m | I56: Nominal | J56: 6648.074544 | K56: Heathrow RBP (Update 1) - External H7 v1.00 | X56: 1146.323955 | Y56: 1266.293292 | Z56: 1352.732495 | AA56: 1415.483307 | AB56: 1467.241495
F57: Mid (14Jun), no RAB adjustment | G57: Mid, no RAB adjustment | H57: £m | I57: Nominal | J57: 6472.084922 | K57: Heathrow RBP (Update 1) - External H7 v1.00 | X57: 1109.458604 | Y57: 1228.782599 | Z57: 1317.059746 | AA57: 1382.06385 | AB57: 1434.720123
F58: Low (14Jun), no RAB adjustment | G58: Low, no RAB adjustment | H58: £m | I58: Nominal | J58: 5974.734109 | K58: Heathrow RBP (Update 1) - External H7 v1.00 | X58: 1005.166333 | Y58: 1096.189388 | Z58: 1189.242492 | AA58: 1300.24934 | AB58: 1383.886557
C60: Other forecasts
D62: Passengers
F64: High (14Jun), RAB adjustment | H64: million pax | K64: Heathrow RBP (Update 1) - External H7 v1.00 | P64: 73.374678 | Q64: 74.958974 | R64: 75.675695 | S64: 77.988006 | T64: 80.102014 | U64: 80.88626 | V64: 22.10558 | W64: 21.52423507 | X64: 52.83544823 | Y64: 67.73179626 | Z64: 76.12820109 | AA64: 80.26408631 | AB64: 81.53868078
F65: Mid (14Jun), RAB adjustment | H65: million pax | K65: Heathrow RBP (Update 1) - External H7 v1.00 | P65: 73.374678 | Q65: 74.958974 | R65: 75.675695 | S65: 77.988006 | T65: 80.102014 | U65: 80.88626 | V65: 22.10558 | W65: 21.52423507 | X65: 43.17929519 | Y65: 58.3973801 | Z65: 68.20604457 | AA65: 73.11951843 | AB65: 74.84279925
F66: Low (14Jun), RAB adjustment | H66: million pax | K66: Heathrow RBP (Update 1) - External H7 v1.00 | P66: 73.374678 | Q66: 74.958974 | R66: 75.675695 | S66: 77.988006 | T66: 80.102014 | U66: 80.88626 | V66: 22.10558 | W66: 21.52423507 | X66: 15.15307974 | Y66: 32.42959334 | Z66: 48.69663014 | AA66: 57.41835869 | AB66: 63.31444039
F67: High (14Jun), no RAB adjustment | H67: million pax | K67: Heathrow RBP (Update 1) - External H7 v1.00 | P67: 73.374678 | Q67: 74.958974 | R67: 75.675695 | S67: 77.988006 | T67: 80.102014 | U67: 80.88626 | V67: 22.10558 | W67: 21.52423507 | X67: 50.85157205 | Y67: 65.18858898 | Z67: 73.26972388 | AA67: 77.25031404 | AB67: 78.47704978
F68: Mid (14Jun), no RAB adjustment | H68: million pax | K68: Heathrow RBP (Update 1) - External H7 v1.00 | P68: 73.374678 | Q68: 74.958974 | R68: 75.675695 | S68: 77.988006 | T68: 80.102014 | U68: 80.88626 | V68: 22.10558 | W68: 21.52423507 | X68: 41.55799022 | Y68: 56.20466337 | Z68: 65.64503011 | AA68: 70.37401185 | AB68: 72.03258657
F69: Low (14Jun), no RAB adjustment | H69: million pax | K69: Heathrow RBP (Update 1) - External H7 v1.00 | P69: 73.374678 | Q69: 74.958974 | R69: 75.675695 | S69: 77.988006 | T69: 80.102014 | U69: 80.88626 | V69: 22.10558 | W69: 21.52423507 | X69: 14.58410882 | Y69: 31.21192036 | Z69: 46.86815915 | AA69: 55.26240245 | AB69: 60.93709688
D71: Utilised terminal area
F73: High (14Jun), RAB adjustment | H73: 000s m2 | K73: Heathrow RBP (Update 1) - External H7 v1.00 | T73: 1117.033 | U73: 1117.033 | V73: 837.3326667 | W73: 812.5925 | X73: 909.412 | Y73: 1030.52425 | Z73: 1117.033 | AA73: 1117.033 | AB73: 1117.033
F74: Mid (14Jun), RAB adjustment | H74: 000s m2 | K74: Heathrow RBP (Update 1) - External H7 v1.00 | T74: 1117.033 | U74: 1117.033 | V74: 837.3326667 | W74: 812.5925 | X74: 909.412 | Y74: 1030.52425 | Z74: 1117.033 | AA74: 1117.033 | AB74: 1117.033
F75: Low (14Jun), RAB adjustment | H75: 000s m2 | K75: Heathrow RBP (Update 1) - External H7 v1.00 | T75: 1117.033 | U75: 1117.033 | V75: 837.3326667 | W75: 812.5925 | X75: 909.412 | Y75: 909.412 | Z75: 909.412 | AA75: 1030.52425 | AB75: 1117.033
F76: High (14Jun), no RAB adjustment | H76: 000s m2 | K76: Heathrow RBP (Update 1) - External H7 v1.00 | T76: 1117.033 | U76: 1117.033 | V76: 837.3326667 | W76: 812.5925 | X76: 909.412 | Y76: 1030.52425 | Z76: 1117.033 | AA76: 1117.033 | AB76: 1117.033
F77: Mid (14Jun), no RAB adjustment | H77: 000s m2 | K77: Heathrow RBP (Update 1) - External H7 v1.00 | T77: 1117.033 | U77: 1117.033 | V77: 837.3326667 | W77: 812.5925 | X77: 909.412 | Y77: 1030.52425 | Z77: 1117.033 | AA77: 1117.033 | AB77: 1117.033
F78: Low (14Jun), no RAB adjustment | H78: 000s m2 | K78: Heathrow RBP (Update 1) - External H7 v1.00 | T78: 1117.033 | U78: 1117.033 | V78: 837.3326667 | W78: 812.5925 | X78: 909.412 | Y78: 909.412 | Z78: 909.412 | AA78: 1030.52425 | AB78: 1117.033
D80: O&D passengers
F82: High (14Jun), RAB adjustment | H82: % | K82: Heathrow RBP (Update 1) - External H7 v1.00 | T82: 0.7516262575 | U82: 0.7704327781 | V82: 0.79025237 | W82: 0.781554573 | X82: 0.7690815426 | Y82: 0.7686594266 | Z82: 0.7687275852 | AA82: 0.7686415554 | AB82: 0.7686261696
F83: Mid (14Jun), RAB adjustment | H83: % | K83: Heathrow RBP (Update 1) - External H7 v1.00 | T83: 0.7516262575 | U83: 0.7704327781 | V83: 0.79025237 | W83: 0.781554573 | X83: 0.7701609955 | Y83: 0.7690253051 | Z83: 0.7692793274 | AA83: 0.7687513316 | AB83: 0.7686116977
F84: Low (14Jun), RAB adjustment | H84: % | K84: Heathrow RBP (Update 1) - External H7 v1.00 | T84: 0.7516262575 | U84: 0.7704327781 | V84: 0.79025237 | W84: 0.781554573 | X84: 0.7724938882 | Y84: 0.769384352 | Z84: 0.7688219921 | AA84: 0.7688809532 | AB84: 0.7686650839
F85: High (14Jun), no RAB adjustment | H85: % | K85: Heathrow RBP (Update 1) - External H7 v1.00 | T85: 0.7516262575 | U85: 0.7704327781 | V85: 0.79025237 | W85: 0.781554573 | X85: 0.7690815426 | Y85: 0.7686594266 | Z85: 0.7687275852 | AA85: 0.7686415554 | AB85: 0.7686261696
F86: Mid (14Jun), no RAB adjustment | H86: % | K86: Heathrow RBP (Update 1) - External H7 v1.00 | T86: 0.7516262575 | U86: 0.7704327781 | V86: 0.79025237 | W86: 0.781554573 | X86: 0.7701609955 | Y86: 0.7690253051 | Z86: 0.7692793274 | AA86: 0.7687513316 | AB86: 0.7686116977
F87: Low (14Jun), no RAB adjustment | H87: % | K87: Heathrow RBP (Update 1) - External H7 v1.00 | T87: 0.7516262575 | U87: 0.7704327781 | V87: 0.79025237 | W87: 0.781554573 | X87: 0.7724938882 | Y87: 0.769384352 | Z87: 0.7688219921 | AA87: 0.7688809532 | AB87: 0.7686650839
C89: Per passenger, Nominal
D91: Commercial Revenues
F93: Historical | G93: Historical | H93: =_GBPm -> £m | I93: Nominal | P93: =SUM(Historic!P137:P156) / Historic!P$125 -> 10.61496666 | Q93: =SUM(Historic!Q137:Q156) / Historic!Q$125 -> 11.04981394 | R93: =SUM(Historic!R137:R156) / Historic!R$125 -> 11.63353649 | S93: =SUM(Historic!S137:S156) / Historic!S$125 -> 11.91624253 | T93: =SUM(Historic!T137:T156) / Historic!T$125 -> 12.31274706 | U93: =SUM(Historic!U137:U156) / Historic!U$125 -> 12.29592965 | V93: =SUM(Historic!V137:V156) / Historic!V$125 -> 16.82051635
F94: High (14Jun), RAB adjustment | G94: High, RAB adjustment | H94: £m | I94: Nominal | X94: =X19 / X64 -> 11.22521695 | Y94: =Y19 / Y64 -> 10.97846834 | Z94: 11.24702539 | AA94: 11.64274273 | AB94: 11.96197446
F95: Mid (14Jun), RAB adjustment | G95: Mid, RAB adjustment | H95: £m | I95: Nominal | X95: 11.87879714 | Y95: =Y20 / Y65 -> 11.34403101 | Z95: 11.48983481 | AA95: 11.84062615 | AB95: 12.14520033
F96: Low (14Jun), RAB adjustment | G96: Low, RAB adjustment | H96: £m | I96: Nominal | X96: 17.45885715 | Y96: 12.30997176 | Z96: 11.223341 | AA96: 11.30658063 | AB96: 11.36739642
F97: High (14Jun), no RAB adjustment | G97: High, no RAB adjustment | H97: £m | I97: Nominal | X97: 11.04328879 | Y97: 10.60702461 | Z97: 10.71340764 | AA97: 10.94480477 | AB97: 11.08621633
F98: Mid (14Jun), no RAB adjustment | G98: Mid, no RAB adjustment | H98: £m | I98: Nominal | X98: 11.65618452 | Y98: 10.91321456 | Z98: 10.89423716 | AA98: 11.07449211 | AB98: 11.19109168
F99: Low (14Jun), no RAB adjustment | G99: Low, no RAB adjustment | H99: £m | I99: Nominal | X99: 17.81441153 | Y99: 12.45053043 | Z99: 11.30294837 | AA99: 11.37217031 | AB99: 11.42412657
D101: Cargo revenues
F103: Historical | G103: Historical | H103: =_GBPm -> £m | I103: Nominal | P103: =SUM(Historic!P132) / Historic!P$125 -> 0.09233430639 | Q103: =SUM(Historic!Q132) / Historic!Q$125 -> 0.09338441585 | R103: =SUM(Historic!R132) / Historic!R$125 -> 0.09249997638 | S103: =SUM(Historic!S132) / Historic!S$125 -> 0.1048565002 | T103: =SUM(Historic!T132) / Historic!T$125 -> 0.1131986046 | U103: =SUM(Historic!U132) / Historic!U$125 -> 0.1349791511 | V103: =SUM(Historic!V132) / Historic!V$125 -> 3.41581323
F104: High (14Jun), RAB adjustment | G104: High, RAB adjustment | H104: =_GBPm -> £m | I104: Nominal | X104: =X28 / X64 -> 0.2974141512 | Y104: =Y28 / Y64 -> 0.2054581145 | Z104: 0.1714707889 | AA104: 0.1594247188 | AB104: 0.1591129384
F105: Mid (14Jun), RAB adjustment | G105: Mid, RAB adjustment | H105: £m | I105: Nominal | X105: 0.3961828365 | Y105: =Y29 / Y65 -> 0.2619525772 | Z105: 0.2090906243 | AA105: 0.1903419438 | AB105: 0.1878148229
F106: Low (14Jun), RAB adjustment | G106: Low, RAB adjustment | H106: £m | I106: Nominal | X106: 1.395731808 | Y106: 0.5902025883 | Z106: 0.3539225702 | AA106: 0.2853207627 | AB106: 0.251454951
F107: High (14Jun), no RAB adjustment | G107: High, no RAB adjustment | H107: £m | I107: Nominal | X107: 0.3146447695 | Y107: 0.2192467809 | Z107: 0.1841066987 | AA107: 0.1717690635 | AB107: 0.1716288605
F108: Mid (14Jun), no RAB adjustment | G108: Mid, no RAB adjustment | H108: £m | I108: Nominal | X108: 0.4172667249 | Y108: 0.2779452663 | Z108: 0.2231941995 | AA108: 0.2038924646 | AB108: 0.2014504937
F109: Low (14Jun), no RAB adjustment | G109: Low, no RAB adjustment | H109: £m | I109: Nominal | X109: 1.455811175 | Y109: 0.6190013196 | Z109: 0.3736764849 | AA109: 0.3025766992 | AB109: 0.2675734189
D111: Commercial Revenues + Cargo
F113: Historical | G113: Historical | H113: =_GBPm -> £m | I113: Nominal | P113: =P93 + P103 -> 10.70730097 | Q113: =Q93 + Q103 -> 11.14319835 | R113: 11.72603646 | S113: 12.02109903 | T113: 12.42594566 | U113: 12.4309088 | V113: 20.23632958
F114: High (14Jun), RAB adjustment | G114: High, RAB adjustment | H114: =_GBPm -> £m | I114: Nominal | X114: =X37 / X64 -> 11.52263111 | Y114: =Y37 / Y64 -> 11.18392646 | Z114: 11.41849618 | AA114: 11.80216744 | AB114: 12.1210874
F115: Mid (14Jun), RAB adjustment | G115: Mid, RAB adjustment | H115: £m | I115: Nominal | X115: 12.27497998 | Y115: =Y38 / Y65 -> 11.60598358 | Z115: 11.69892544 | AA115: 12.0309681 | AB115: 12.33301515
F116: Low (14Jun), RAB adjustment | G116: Low, RAB adjustment | H116: £m | I116: Nominal | X116: 18.85458896 | Y116: 12.90017435 | Z116: 11.57726357 | AA116: 11.59190139 | AB116: 11.61885137
F117: High (14Jun), no RAB adjustment | G117: High, no RAB adjustment | H117: £m | I117: Nominal | X117: 11.35793356 | Y117: 10.82627139 | Z117: 10.89751433 | AA117: 11.11657384 | AB117: 11.25784519
F118: Mid (14Jun), no RAB adjustment | G118: Mid, no RAB adjustment | H118: £m | I118: Nominal | X118: 12.07345124 | Y118: 11.19115983 | Z118: 11.11743136 | AA118: 11.27838458 | AB118: 11.39254217
F119: Low (14Jun), no RAB adjustment | G119: Low, no RAB adjustment | H119: £m | I119: Nominal | X119: 19.27022271 | Y119: 13.06953175 | Z119: 11.67662486 | AA119: 11.67474701 | AB119: 11.69169999
D121: Opex
F123: Historical | G123: Historical | H123: =_GBPm -> £m | I123: Nominal | P123: =SUM(Historic!P160:P179) / Historic!P$125 -> 15.30857408 | Q123: =SUM(Historic!Q160:Q179) / Historic!Q$125 -> 15.37312699 | R123: =SUM(Historic!R160:R179) / Historic!R$125 -> 14.78614938 | S123: =SUM(Historic!S160:S179) / Historic!S$125 -> 14.2837488 | T123: =SUM(Historic!T160:T179) / Historic!T$125 -> 13.99120793 | U123: =SUM(Historic!U160:U179) / Historic!U$125 -> 14.88531099
F124: High (14Jun), RAB adjustment | G124: High, RAB adjustment | H124: =_GBPm -> £m | I124: Nominal | X124: =X53 / X64 -> 22.15041044 | Y124: =Y53 / Y64 -> 18.90319183 | Z124: 17.79863456 | AA124: 17.50254599 | AB124: 17.69295284
F125: Mid (14Jun), RAB adjustment | G125: Mid, RAB adjustment | H125: £m | I125: Nominal | X125: =X54 / X65 -> 26.22667896 | Y125: =Y54 / Y65 -> 21.27205049 | Z125: 19.34007891 | AA125: 18.75724321 | AB125: 18.84670881
F126: Low (14Jun), RAB adjustment | G126: Low, RAB adjustment | H126: £m | I126: Nominal | X126: =X55 / X66 -> 65.96367622 | Y126: 33.42088669 | Z126: 23.99617867 | AA126: 22.10396377 | AB126: 21.18266467
F127: High (14Jun), no RAB adjustment | G127: High, no RAB adjustment | H127: £m | I127: Nominal | X127: =X56 / X67 -> 22.54254704 | Y127: 19.42507596 | Z127: 18.46236649 | AA127: 18.32333402 | AB127: 18.69644054
F128: Mid (14Jun), no RAB adjustment | G128: Mid, no RAB adjustment | H128: £m | I128: Nominal | X128: =X57 / X68 -> 26.6966376 | Y128: 21.86264494 | Z128: 20.06335809 | AA128: 19.63883845 | AB128: 19.91765382
F129: Low (14Jun), no RAB adjustment | G129: Low, no RAB adjustment | H129: £m | I129: Nominal | X129: =X58 / X69 -> 68.9220264 | Y129: 35.12085687 | Z129: 25.37420956 | AA129: 23.52864302 | AB129: 22.71008347
B132: Scenario 1: High (14Jun), RAB adjustment
C134: Passengers
F136: Total passengers | H136: millions of passengers | K136: Heathrow RBP (Update 1) - External H7 v1.00 | P136: 73.374678 | Q136: 74.958974 | R136: 75.675695 | S136: 77.988006 | T136: 80.102014 | U136: 80.88626 | V136: 22.10558 | W136: 21.52423507 | X136: 52.83544823 | Y136: 67.73179626 | Z136: 76.12820109 | AA136: 80.26408631 | AB136: 81.53868078
F137: O&D % | H137: % | K137: Heathrow RBP (Update 1) - External H7 v1.00 | T137: 0.7516262575 | U137: 0.7704327781 | V137: 0.79025237 | W137: 0.781554573 | X137: 0.7690815426 | Y137: 0.7686594266 | Z137: 0.7687275852 | AA137: 0.7686415554 | AB137: 0.7686261696
F138: OD passengers | H138: millions of passengers | T138: =T137*T136 -> 60.206777 | U138: =U137*U136 -> 62.317426 | V138: 17.46898698 | W138: 16.82236435 | X138: 40.63476803 | Y138: 52.06268368 | Z138: 58.52184818 | AA138: 61.69431214 | AB138: 62.67276388
C140: Mode share
F142: Park & Fly | G142: Park & Fly | H142: % | K142: Heathrow RBP (Update 1) - External H7 v1.00 | U142: 0.06994908428 | V142: 0.1013625753 | W142: 0.04857123795 | X142: 0.05934675853 | Y142: 0.06668303296 | Z142: 0.07137430487 | AA142: 0.07137430487 | AB142: 0.07137430487
F143: Kiss & Fly | G143: Kiss & Fly | H143: % | K143: Heathrow RBP (Update 1) - External H7 v1.00 | U143: 0.1786778781 | V143: 0.2172293834 | W143: 0.2992525563 | X143: 0.2465304651 | Y143: 0.1868269218 | Z143: 0.1611831745 | AA143: 0.1611831745 | AB143: 0.1611831745
F144: Taxi | G144: Taxi | H144: % | K144: Heathrow RBP (Update 1) - External H7 v1.00 | U144: 0.3061789254 | V144: 0.2962787275 | W144: 0.3308162203 | X144: 0.311838167 | Y144: 0.2788594287 | Z144: 0.2738455904 | AA144: 0.2738455904 | AB144: 0.2738455904
F145: Bus/Coach | G145: Bus/Coach | H145: % | K145: Heathrow RBP (Update 1) - External H7 v1.00 | U145: 0.08995732782 | V145: 0.07811954366 | W145: 0.0588272958 | X145: 0.07298464326 | Y145: 0.07729259044 | Z145: 0.08402018187 | AA145: 0.08402018187 | AB145: 0.08402018187
F146: Tube | G146: Tube | H146: % | K146: Heathrow RBP (Update 1) - External H7 v1.00 | U146: 0.1981807809 | V146: 0.1917330229 | W146: 0.1595414562 | X146: 0.1830246436 | Y146: 0.1751679136 | Z146: 0.1819929673 | AA146: 0.1819929673 | AB146: 0.1819929673
F147: Car Rental | G147: Car Rental | H147: % | K147: Heathrow RBP (Update 1) - External H7 v1.00 | U147: 0.01962176631 | V147: 0.02260930341 | W147: 0.01879720101 | X147: 0.01933889114 | Y147: 0.01775029266 | Z147: 0.01801598799 | AA147: 0.01801598799 | AB147: 0.01801598799
F148: Walk | G148: Other | H148: % | K148: Heathrow RBP (Update 1) - External H7 v1.00 | U148: 0 | V148: 0 | W148: 0 | X148: 0 | Y148: 0 | Z148: 0 | AA148: 0 | AB148: 0
F149: Heathrow Express | G149: Heathrow Express | H149: % | K149: Heathrow RBP (Update 1) - External H7 v1.00 | U149: 0.08540518144 | V149: 0.04952769213 | W149: 0.04468696444 | X149: 0.06073275044 | Y149: 0.0605538164 | Z149: 0.0698578551 | AA149: 0.0698578551 | AB149: 0.0698578551
F150: Heathrow Connect | G150: TfL Rail / Crossrail | H150: % | K150: Heathrow RBP (Update 1) - External H7 v1.00 | U150: 0.009437959924 | V150: 0.0113232987 | W150: 0.01199975619 | X150: 0.01267229827 | Y150: 0 | Z150: 0 | AA150: 0 | AB150: 0
F151: Rail | G151: TfL Rail / Crossrail | H151: % | K151: Heathrow RBP (Update 1) - External H7 v1.00 | U151: 0 | V151: 0 | W151: 0 | X151: 0 | Y151: 0 | Z151: 0 | AA151: 0 | AB151: 0
F152: Elizabeth Line | G152: TfL Rail / Crossrail | H152: % | K152: Heathrow RBP (Update 1) - External H7 v1.00 | U152: 0 | V152: 0 | W152: 0 | X152: 0 | Y152: 0.09867601846 | Z152: 0.09833753469 | AA152: 0.09833753469 | AB152: 0.09833753469
F153: Air | G153: Other | H153: % | K153: Heathrow RBP (Update 1) - External H7 v1.00 | U153: 0 | V153: 0 | W153: 0 | X153: 0 | Y153: 0 | Z153: 0 | AA153: 0 | AB153: 0
F154: Other | G154: Other | H154: % | K154: Heathrow RBP (Update 1) - External H7 v1.00 | U154: 0.01055798403 | V154: 0.01369158547 | W154: 0.01195359971 | X154: 0.01192984044 | Y154: 0.01104026375 | Z154: 0.01055840972 | AA154: 0.01055840972 | AB154: 0.01055840972
F155: Rail-air | G155: Bus/Coach | H155: % | K155: Heathrow RBP (Update 1) - External H7 v1.00 | U155: 0.00304584144 | V155: 0.001847848174 | W155: 0.003907440627 | X155: 0.003917991855 | Y155: 0.002504340614 | Z155: 0.002236974004 | AA155: 0.002236974004 | AB155: 0.002236974004
F156: Charter Coach | G156: Bus/Coach | H156: % | K156: Heathrow RBP (Update 1) - External H7 v1.00 | U156: 0.02898727041 | V156: 0.01627701931 | W156: 0.01164638076 | X156: 0.01768420606 | Y156: 0.02464429056 | Z156: 0.02857592956 | AA156: 0.02857592956 | AB156: 0.02857592956
F157: Air Transfer | G157: Other | H157: % | K157: Heathrow RBP (Update 1) - External H7 v1.00 | U157: 0 | V157: 0 | W157: 0 | X157: 0 | Y157: 1.745677656e-06 | Z157: 1.745677656e-06 | AA157: 1.745677656e-06 | AB157: 1.745677656e-06
F158: Zero | G158: Other | H158: % | K158: Heathrow RBP (Update 1) - External H7 v1.00 | U158: 0 | V158: 0 | W158: 0 | X158: 0 | Y158: 0 | Z158: 0 | AA158: 0 | AB158: 0
C160: Nominal
D162: Commercial Revenues
E164: 1 | F164: =INDEX(_OtherList, $E164) -> Cargo revenue | H164: =_GBPm -> £m | I164: Nominal | K164: Heathrow RBP (Update 1) - External H7 v1.00; "Cargo revenue" | X164: 15.71400999 | Y164: 13.91604715 | Z164: 13.0537627 | AA164: 12.79607939 | AB164: 12.97385909
E165: 2 | F165: =INDEX(_OtherList, $E165) -> ORC revenue | H165: =_GBPm -> £m | I165: Nominal | K165: Heathrow RBP (Update 1) - External H7 v1.00; "ORC revenue" | X165: 297.1522821 | Y165: 319.566824 | Z165: 335.217495 | AA165: 346.4181254 | AB165: 356.0591473
E167: 1 | F167: =INDEX(_CommercialGroupings, E167) -> Retail | H167: =_GBPm -> £m | I167: Nominal | K167: Heathrow RBP (Update 1) - External H7 v1.00; "Retail revenue exc. Bureaux" | X167: 201.5689342 | Y167: 279.3206117 | Z167: 334.8966433 | AA167: 367.5288146 | AB167: 390.1908432
E168: 2 | F168: =INDEX(_CommercialGroupings, E168) -> Bureaux | H168: £m | I168: Nominal | K168: Heathrow RBP (Update 1) - External H7 v1.00; "Bureaux Revenue" | X168: 12.85899125 | Y168: 13.1915401 | Z168: 13.58728631 | AA168: 13.9949049 | AB168: 14.41475204
E169: 3 | F169: =INDEX(_CommercialGroupings, E169) -> Surface Access | H169: £m | I169: Nominal | K169: Heathrow RBP (Update 1) - External H7 v1.00; "surface access revenue" | X169: 83.94366841 | Y169: 124.7438798 | Z169: 155.7087188 | AA169: 169.0741643 | AB169: 176.9082943
E170: 4 | F170: =INDEX(_CommercialGroupings, E170) -> Service | H170: £m | I170: Nominal | K170: Heathrow RBP (Update 1) - External H7 v1.00; "Service revenue excl. Surface access" | X170: 37.81828514 | Y170: 49.73448561 | Z170: 57.57684048 | AA170: 62.52601533 | AB170: 65.42449694
E171: 5 | F171: =INDEX(_CommercialGroupings, E171) -> Rail | H171: £m | I171: Nominal | K171: Heathrow RBP (Update 1) - External H7 v1.00; "Rail revenue" | X171: 62.09691115 | Y171: 81.37779821 | Z171: 94.56438926 | AA171: 102.6814375 | AB171: 107.4392297
E172: 6 | F172: =INDEX(_CommercialGroupings, E172) -> Property | H172: £m | I172: Nominal | K172: Heathrow RBP (Update 1) - External H7 v1.00; "Property revenue" | X172: 112.3030128 | Y172: 122.4661017 | Z172: 131.480487 | AA172: 135.4249016 | AB172: 139.4876487
E173: 7 | F173: =INDEX(_CommercialGroupings, E173) -> Other | H173: £m | I173: Nominal | K173: Heathrow RBP (Update 1) - External H7 v1.00; "Other revenue" | X173: 1.382967387 | Y173: 1.418732573 | Z173: 1.46129455 | AA173: 1.505133387 | AB173: 1.550287389
E174: 8 | F174: =INDEX(_CommercialGroupings, E174) -> Intercompany | H174: £m | I174: Nominal | K174: Heathrow RBP (Update 1) - External H7 v1.00; "Intercompany revenue" | X174: 0 | Y174: 0 | Z174: 0 | AA174: 0 | AB174: 0
E175: 9 | F175: =INDEX(_CommercialGroupings, E175) -> Terminal drop-off charge | H175: £m | I175: Nominal | K175: Heathrow RBP (Update 1) - External H7 v1.00; "EDC revenue" | X175: 63.67296399 | Y175: 64.26559452 | Z175: 66.94015113 | AA175: 81.75873534 | AB175: 79.94806467
E176: 10 | F176: =INDEX(_CommercialGroupings, E176) -> Red Terminal | H176: £m | I176: Nominal | K176: Heathrow RBP (Update 1) - External H7 v1.00; "Red terminal cost recovery" | X176: 17.44363492 | Y176: 7.072636829 | Z176: 0 | AA176: 0 | AB176: 0
F178: Minimal capex overlay | H178: =_GBPm -> £m | I178: Nominal | K178: Heathrow RBP (Update 1) - External H7 v1.00; "Minimal capex overlay" | X178: 0 | Y178: 0 | Z178: 0 | AA178: 0 | AB178: 0
F179: Total | H179: =_GBPm -> £m | I179: Nominal | X179: =SUM(X167:X178) -> 593.0893692 | Y179: =SUM(Y167:Y178) -> 743.5913811 | Z179: =SUM(Z167:Z178) -> 856.2158109 | AA179: =SUM(AA167:AA178) -> 934.4941069 | AB179: =SUM(AB167:AB178) -> 975.3636169
D181: Opex
E183: 1 | F183: =INDEX(_OpexGroupings, E183) -> People | H183: =_GBPm -> £m | I183: Nominal | K183: Heathrow RBP (Update 1) - External H7 v1.00; "People costs" | X183: -308.5326147 | Y183: -352.1338354 | Z183: -378.2275788 | AA183: -394.5912864 | AB183: -405.9158293
E184: 2 | F184: =INDEX(_OpexGroupings, E184) -> Operational costs excl. insurance | H184: £m | I184: Nominal | K184: Heathrow RBP (Update 1) - External H7 v1.00; "Operational costs excl. insurance" | X184: -277.6282951 | Y184: -301.1147732 | Z184: -316.4463229 | AA184: -325.7492005 | AB184: -332.9386898
E185: 3 | F185: =INDEX(_OpexGroupings, E185) -> Insurance | H185: £m | I185: Nominal | K185: Heathrow RBP (Update 1) - External H7 v1.00; "Insurance" | X185: -19.47336289 | Y185: -21.71096804 | Z185: -24.30334447 | AA185: -27.20526101 | AB185: -30.453678
E186: 4 | F186: =INDEX(_OpexGroupings, E186) -> Facilities maintenance costs | H186: £m | I186: Nominal | K186: Heathrow RBP (Update 1) - External H7 v1.00; "Facilities maintenance costs" | X186: -175.9907766 | Y186: -187.0890936 | Z186: -196.6458443 | AA186: -200.3084269 | AB186: -204.0392261
E187: 5 | F187: =INDEX(_OpexGroupings, E187) -> Rates costs | H187: £m | I187: Nominal | K187: Heathrow RBP (Update 1) - External H7 v1.00; "Rates costs" | X187: -125.6339326 | Y187: -128.8829759 | Z187: -132.7494652 | AA187: -136.7319492 | AB187: -140.8339077
E188: 6 | F188: =INDEX(_OpexGroupings, E188) -> Utility costs excl. distribution contract | H188: £m | I188: Nominal | K188: Heathrow RBP (Update 1) - External H7 v1.00; "Utilities costs excl. distribution contract" | X188: -58.90689477 | Y188: -67.61882854 | Z188: -72.09855671 | AA188: -74.88698037 | AB188: -76.69733366
E189: 7 | F189: =INDEX(_OpexGroupings, E189) -> Distribution contract | H189: £m | I189: Nominal | K189: Heathrow RBP (Update 1) - External H7 v1.00; "Distribution contract" | X189: -32.27958625 | Y189: -33.02909128 | Z189: -30.87668405 | AA189: -30.78219235 | AB189: -31.75387762
E190: 8 | F190: =INDEX(_OpexGroupings, E190) -> General expenses incl. consultants & marketing, gen ex & interco | H190: £m | I190: Nominal | K190: Heathrow RBP (Update 1) - External H7 v1.00; "General expenses incl. consultants & marketing, gen ex & interco" | X190: -121.1378221 | Y190: -132.8647733 | Z190: -141.0777915 | AA190: -146.8389827 | AB190: -150.7017448
E191: 9 | F191: =INDEX(_OpexGroupings, E191) -> Surface access initiatives | H191: £m | I191: Nominal | K191: Heathrow RBP (Update 1) - External H7 v1.00; "EDC opex" and "SAS initiatives opex" | X191: -12.75463919 | Y191: -16.05377073 | Z191: -20.86224517 | AA191: -24.79067894 | AB191: -25.09661557
E192: 10 | F192: =INDEX(_OpexGroupings, E192) -> Overlays | H192: £m | I192: Nominal | K192: Heathrow RBP (Update 1) - External H7 v1.00; "Preopening", "Service opex" and "COVID overlay" | X192: -37.98893991 | Y192: -39.84902805 | Z192: -41.69019768 | AA192: -42.94090361 | AB192: -44.22913072
F194: Total | H194: =_GBPm -> £m | I194: Nominal | X194: =SUM(X183:X193) -> -1170.326864 | Y194: =SUM(Y183:Y193) -> -1280.347138 | Z194: =SUM(Z183:Z193) -> -1354.978031 | AA194: =SUM(AA183:AA193) -> -1404.825862 | AB194: =SUM(AB183:AB193) -> -1442.660033
C197: Real, 2018 prices (RPI)
D199: Commercial Revenues
E201: 1 | F201: =INDEX(_OtherList, $E201) -> Cargo revenue | H201: =_GBPm -> £m | I201: 2018 RPI | K201: Heathrow RBP (Update 1) - External H7 v1.00; "Cargo revenue" | X201: 14.33679735 | Y201: 12.37634514 | Z201: 11.27132595 | AA201: 10.72701769 | AB201: 10.55927312
E202: 2 | F202: =INDEX(_OtherList, $E202) -> ORC revenue | H202: =_GBPm -> £m | I202: 2018 RPI | K202: Heathrow RBP (Update 1) - External H7 v1.00; "ORC revenue" | X202: 271.1091601 | Y202: 284.2092489 | Z202: 289.4449469 | AA202: 290.4040563 | AB202: 289.7924014
E204: 1 | F204: =INDEX(_CommercialGroupings, E204) -> Retail | H204: =_GBPm -> £m | I204: 2018 RPI | K204: Heathrow RBP (Update 1) - External H7 v1.00; "Retail revenue exc. Bureaux" | X204: 183.9029607 | Y204: 248.4159659 | Z204: 289.1679062 | AA204: 308.1012533 | AB204: 317.571792
E205: 2 | F205: =INDEX(_CommercialGroupings, E205) -> Bureaux | H205: £m | I205: 2018 RPI | K205: Heathrow RBP (Update 1) - External H7 v1.00; "Bureaux Revenue" | X205: 11.73199914 | Y205: 11.73199914 | Z205: 11.73199914 | AA205: 11.73199914 | AB205: 11.73199914
E206: 3 | F206: =INDEX(_CommercialGroupings, E206) -> Surface Access | H206: £m | I206: 2018 RPI | K206: Heathrow RBP (Update 1) - External H7 v1.00; "surface access revenue" | X206: 76.5866487 | Y206: 110.9419431 | Z206: 134.447344 | AA206: 141.735722 | AB206: 143.9836045
E207: 4 | F207: =INDEX(_CommercialGroupings, E207) -> Service | H207: £m | I207: 2018 RPI | K207: Heathrow RBP (Update 1) - External H7 v1.00; "Service revenue excl. Surface access" | X207: 34.50380206 | Y207: 44.23175292 | Z207: 49.71496352 | AA207: 52.41587304 | AB207: 53.24823761
E208: 5 | F208: =INDEX(_CommercialGroupings, E208) -> Rail | H208: £m | I208: 2018 RPI | K208: Heathrow RBP (Update 1) - External H7 v1.00; "Rail revenue" | X208: 56.65459242 | Y208: 72.37397993 | Z208: 81.65201709 | AA208: 86.07836535 | AB208: 87.44354025
E209: 6 | F209: =INDEX(_CommercialGroupings, E209) -> Property | H209: £m | I209: 2018 RPI | K209: Heathrow RBP (Update 1) - External H7 v1.00; "Property revenue" | X209: 102.4605137 | Y209: 108.9161834 | Z209: 113.5273759 | AA209: 113.5273759 | AB209: 113.5273759
E210: 7 | F210: =INDEX(_CommercialGroupings, E210) -> Other | H210: £m | I210: 2018 RPI | K210: Heathrow RBP (Update 1) - External H7 v1.00; "Other revenue" | X210: 1.261760886 | Y210: 1.261760886 | Z210: 1.261760886 | AA210: 1.261760886 | AB210: 1.261760886
E211: 8 | F211: =INDEX(_CommercialGroupings, E211) -> Intercompany | H211: £m | I211: 2018 RPI | K211: Heathrow RBP (Update 1) - External H7 v1.00; "Intercompany revenue" | X211: 0 | Y211: 0 | Z211: 0 | AA211: 0 | AB211: 0
E212: 9 | F212: =INDEX(_CommercialGroupings, E212) -> Terminal drop-off charge | H212: £m | I212: 2018 RPI | K212: Heathrow RBP (Update 1) - External H7 v1.00; "EDC revenue" | X212: 58.0925163 | Y212: 57.15510803 | Z212: 57.79975323 | AA212: 68.53875892 | AB212: 65.06880058
E213: 10 | F213: =INDEX(_CommercialGroupings, E213) -> Red Terminal | H213: £m | I213: 2018 RPI | K213: Heathrow RBP (Update 1) - External H7 v1.00; "Red terminal cost recovery" | X213: 15.9148339 | Y213: 6.290104761 | Z213: 0 | AA213: 0 | AB213: 0
F215: Minimal capex overlay | H215: =_GBPm -> £m | I215: 2018 RPI | K215: Heathrow RBP (Update 1) - External H7 v1.00; "Minimal capex overlay" | X215: 0 | Y215: 0 | Z215: 0 | AA215: 0 | AB215: 0
F216: Total | H216: =_GBPm -> £m | I216: 2018 RPI | X216: =SUM(X204:X215) -> 541.1096278 | Y216: =SUM(Y204:Y215) -> 661.318798 | Z216: =SUM(Z204:Z215) -> 739.30312 | AA216: =SUM(AA204:AA215) -> 783.3911086 | AB216: =SUM(AB204:AB215) -> 793.8371109
D218: Opex
E220: 1 | F220: =INDEX(_OpexGroupings, E220) -> People | H220: =_GBPm -> £m | I220: 2018 RPI | K220: Heathrow RBP (Update 1) - External H7 v1.00; "People costs" | X220: -281.4920937 | Y220: -313.1729747 | Z220: -326.5821835 | AA220: -330.7878594 | AB220: -330.3701755
E221: 2 | F221: =INDEX(_OpexGroupings, E221) -> Operational costs excl. insurance | H221: £m | I221: 2018 RPI | K221: Heathrow RBP (Update 1) - External H7 v1.00; "Operational costs excl. insurance" | X221: -253.296301 | Y221: -267.7987735 | Z221: -273.2368999 | AA221: -273.0771927 | AB221: -270.9749298
E222: 3 | F222: =INDEX(_OpexGroupings, E222) -> Insurance | H222: £m | I222: 2018 RPI | K222: Heathrow RBP (Update 1) - External H7 v1.00; "Insurance" | X222: -17.76667176 | Y222: -19.30881887 | Z222: -20.98482434 | AA222: -22.8063071 | AB222: -24.78589455
E223: 4 | F223: =INDEX(_OpexGroupings, E223) -> Facilities maintenance costs | H223: £m | I223: 2018 RPI | K223: Heathrow RBP (Update 1) - External H7 v1.00; "Facilities maintenance costs" | X223: -160.5665327 | Y223: -166.3891455 | Z223: -169.794676 | AA223: -167.9195614 | AB223: -166.0651546
E224: 5 | F224: =INDEX(_OpexGroupings, E224) -> Rates costs | H224: £m | I224: 2018 RPI | K224: Heathrow RBP (Update 1) - External H7 v1.00; "Rates costs" | X224: -114.6230805 | Y224: -114.6230805 | Z224: -114.6230805 | AA224: -114.6230805 | AB224: -114.6230805
E225: 6 | F225: =INDEX(_OpexGroupings, E225) -> Utility costs excl. distribution contract | H225: £m | I225: 2018 RPI | K225: Heathrow RBP (Update 1) - External H7 v1.00; "Utilities costs excl. distribution contract" | X225: -53.74415654 | Y225: -60.13733288 | Z225: -62.25380009 | AA225: -62.77813218 | AB225: -62.4230684
E226: 7 | F226: =INDEX(_OpexGroupings, E226) -> Distribution contract | H226: £m | I226: 2018 RPI | K226: Heathrow RBP (Update 1) - External H7 v1.00; "Distribution contract" | X226: -29.45052771 | Y226: -29.3746801 | Z226: -26.66060187 | AA226: -25.80486662 | AB226: -25.84411191
E227: 8 | F227: =INDEX(_OpexGroupings, E227) -> General expenses incl. consultants & marketing, gen ex & interco | H227: £m | I227: 2018 RPI | K227: Heathrow RBP (Update 1) - External H7 v1.00; "General expenses incl. consultants & marketing, gen ex & interco" | X227: -110.5210197 | Y227: -118.1643231 | Z227: -121.8142086 | AA227: -123.0958575 | AB227: -122.6543985
E228: 9 | F228: =INDEX(_OpexGroupings, E228) -> Surface access initiatives | H228: £m | I228: 2018 RPI | K228: Heathrow RBP (Update 1) - External H7 v1.00; "EDC opex" and "SAS initiatives opex" | X228: -11.63679274 | Y228: -14.27754629 | Z228: -18.01359278 | AA228: -20.7821508 | AB228: -20.4258437
E229: 10 | F229: =INDEX(_OpexGroupings, E229) -> Overlays | H229: £m | I229: 2018 RPI | K229: Heathrow RBP (Update 1) - External H7 v1.00; "Preopening", "Service opex" and "COVID overlay" | X229: -34.65950024 | Y229: -35.44004409 | Z229: -35.9975754 | AA229: -35.9975754 | AB229: -35.9975754
F231: Total | H231: =_GBPm -> £m | I231: 2018 RPI | X231: =SUM(X220:X230) -> -1067.756677 | Y231: =SUM(Y220:Y230) -> -1138.686719 | Z231: =SUM(Z220:Z230) -> -1169.961443 | AA231: =SUM(AA220:AA230) -> -1177.672584 | AB231: =SUM(AB220:AB230) -> -1174.164233
B234: Scenario 2: Mid (14Jun), RAB adjustment
C236: Passengers
F238: Total passengers | H238: millions of passengers | K238: Heathrow RBP (Update 1) - External H7 v1.00 | P238: 73.374678 | Q238: 74.958974 | R238: 75.675695 | S238: 77.988006 | T238: 80.102014 | U238: 80.88626 | V238: 22.10558 | W238: 21.52423507 | X238: 43.17929519 | Y238: 58.3973801 | Z238: 68.20604457 | AA238: 73.11951843 | AB238: 74.84279925
F239: O&D % | H239: % | K239: Heathrow RBP (Update 1) - External H7 v1.00 | T239: 0.7516262575 | U239: 0.7704327781 | V239: 0.79025237 | W239: 0.781554573 | X239: 0.7701609955 | Y239: 0.7690253051 | Z239: 0.7692793274 | AA239: 0.7687513316 | AB239: 0.7686116977
F240: OD passengers | H240: millions of passengers | T240: =T239*R238 -> 56.87983942 | U240: 60.08451612 | V240: 63.3008064 | W240: 63.2170264 | X240: 17.0248555 | Y240: 16.55268144 | Z240: 33.21693917 | AA240: 44.89306371 | AB240: 52.42396372
C242: Mode share
F244: Park & Fly | G244: Park & Fly | H244: % | K244: Heathrow RBP (Update 1) - External H7 v1.00 | U244: 0.06994908428 | V244: 0.1013625753 | W244: 0.04857123795 | X244: 0.05934675853 | Y244: 0.06668303296 | Z244: 0.07137430487 | AA244: 0.07137430487 | AB244: 0.07137430487
F245: Kiss & Fly | G245: Kiss & Fly | H245: % | K245: Heathrow RBP (Update 1) - External H7 v1.00 | U245: 0.1786778781 | V245: 0.2172293834 | W245: 0.2992525563 | X245: 0.2465304651 | Y245: 0.1868269218 | Z245: 0.1611831745 | AA245: 0.1611831745 | AB245: 0.1611831745
F246: Taxi | G246: Taxi | H246: % | K246: Heathrow RBP (Update 1) - External H7 v1.00 | U246: 0.3061789254 | V246: 0.2962787275 | W246: 0.3308162203 | X246: 0.311838167 | Y246: 0.2788594287 | Z246: 0.2738455904 | AA246: 0.2738455904 | AB246: 0.2738455904
F247: Bus/Coach | G247: Bus/Coach | H247: % | K247: Heathrow RBP (Update 1) - External H7 v1.00 | U247: 0.08995732782 | V247: 0.07811954366 | W247: 0.0588272958 | X247: 0.07298464326 | Y247: 0.07729259044 | Z247: 0.08402018187 | AA247: 0.08402018187 | AB247: 0.08402018187
F248: Tube | G248: Tube | H248: % | K248: Heathrow RBP (Update 1) - External H7 v1.00 | U248: 0.1981807809 | V248: 0.1917330229 | W248: 0.1595414562 | X248: 0.1830246436 | Y248: 0.1751679136 | Z248: 0.1819929673 | AA248: 0.1819929673 | AB248: 0.1819929673
F249: Car Rental | G249: Car Rental | H249: % | K249: Heathrow RBP (Update 1) - External H7 v1.00 | U249: 0.01962176631 | V249: 0.02260930341 | W249: 0.01879720101 | X249: 0.01933889114 | Y249: 0.01775029266 | Z249: 0.01801598799 | AA249: 0.01801598799 | AB249: 0.01801598799
F250: Walk | G250: Other | H250: % | K250: Heathrow RBP (Update 1) - External H7 v1.00 | U250: 0 | V250: 0 | W250: 0 | X250: 0 | Y250: 0 | Z250: 0 | AA250: 0 | AB250: 0
F251: Heathrow Express | G251: Heathrow Express | H251: % | K251: Heathrow RBP (Update 1) - External H7 v1.00 | U251: 0.08540518144 | V251: 0.04952769213 | W251: 0.04468696444 | X251: 0.06073275044 | Y251: 0.0605538164 | Z251: 0.0698578551 | AA251: 0.0698578551 | AB251: 0.0698578551
F252: Heathrow Connect | G252: TfL Rail / Crossrail | H252: % | K252: Heathrow RBP (Update 1) - External H7 v1.00 | U252: 0.009437959924 | V252: 0.0113232987 | W252: 0.01199975619 | X252: 0.01267229827 | Y252: 0 | Z252: 0 | AA252: 0 | AB252: 0
F253: Rail | G253: TfL Rail / Crossrail | H253: % | K253: Heathrow RBP (Update 1) - External H7 v1.00 | U253: 0 | V253: 0 | W253: 0 | X253: 0 | Y253: 0 | Z253: 0 | AA253: 0 | AB253: 0
F254: Elizabeth Line | G254: TfL Rail / Crossrail | H254: % | K254: Heathrow RBP (Update 1) - External H7 v1.00 | U254: 0 | V254: 0 | W254: 0 | X254: 0 | Y254: 0.09867601846 | Z254: 0.09833753469 | AA254: 0.09833753469 | AB254: 0.09833753469
F255: Air | G255: Other | H255: % | K255: Heathrow RBP (Update 1) - External H7 v1.00 | U255: 0 | V255: 0 | W255: 0 | X255: 0 | Y255: 0 | Z255: 0 | AA255: 0 | AB255: 0
F256: Other | G256: Other | H256: % | K256: Heathrow RBP (Update 1) - External H7 v1.00 | U256: 0.01055798403 | V256: 0.01369158547 | W256: 0.01195359971 | X256: 0.01192984044 | Y256: 0.01104026375 | Z256: 0.01055840972 | AA256: 0.01055840972 | AB256: 0.01055840972
F257: Rail-air | G257: Bus/Coach | H257: % | K257: Heathrow RBP (Update 1) - External H7 v1.00 | U257: 0.00304584144 | V257: 0.001847848174 | W257: 0.003907440627 | X257: 0.003917991855 | Y257: 0.002504340614 | Z257: 0.002236974004 | AA257: 0.002236974004 | AB257: 0.002236974004
F258: Charter Coach | G258: Bus/Coach | H258: % | K258: Heathrow RBP (Update 1) - External H7 v1.00 | U258: 0.02898727041 | V258: 0.01627701931 | W258: 0.01164638076 | X258: 0.01768420606 | Y258: 0.02464429056 | Z258: 0.02857592956 | AA258: 0.02857592956 | AB258: 0.02857592956
F259: Air Transfer | G259: Other | H259: % | K259: Heathrow RBP (Update 1) - External H7 v1.00 | U259: 0 | V259: 0 | W259: 0 | X259: 0 | Y259: 1.745677656e-06 | Z259: 1.745677656e-06 | AA259: 1.745677656e-06 | AB259: 1.745677656e-06
F260: Zero | G260: Other | H260: % | K260: Heathrow RBP (Update 1) - External H7 v1.00 | U260: 0 | V260: 0 | W260: 0 | X260: 0 | Y260: 0 | Z260: 0 | AA260: 0 | AB260: 0
... 467 more rows

Sheet Historic
A1: =RIGHT(CELL("filename",A$2),LEN(CELL("filename",A$2))-FIND("]",CELL("filename",A$2))) -> Historic
A2: ="["&_ModelStatus&"] "&_ModelName&" - "&_OrganisationName&" - "&_ModelVersion&" ("&TEXT(_ModelDate,"dd/mm/yyyy")&")" -> [AIRLINE REDACTED VERSION] H7 Opex and Commercial Revenues - Civil Aviation Authority - Version 11.4 (10/01/2023)
F4: Item | H4: Units | I4: Price Base | J4: Constant | K4: Source | O4: 2013 | P4: =O4+1 -> 2014 | Q4: 2015 | R4: 2016 | S4: 2017 | T4: 2018 | U4: 2019 | V4: 2020 | W4: 2021 | X4: 2022 | Y4: 2023 | Z4: 2024 | AA4: 2025 | AB4: 2026
F5: Period End Date | O5: =DATE(O4, 12, 31) -> 2013-12-31 | P5: 2014-12-31 | Q5: 2015-12-31 | R5: 2016-12-31 | S5: 2017-12-31 | T5: 2018-12-31 | U5: 2019-12-31 | V5: 2020-12-31 | W5: 2021-12-31 | X5: 2022-12-31 | Y5: 2023-12-31 | Z5: 2024-12-31 | AA5: 2025-12-31 | AB5: 2026-12-31
F6: Days in Period | P6: =P5-O5 -> 365 | Q6: 365 | R6: 366 | S6: 365 | T6: 365 | U6: 365 | V6: 366 | W6: 365 | X6: 365 | Y6: 365 | Z6: 366 | AA6: 365 | AB6: 365
B8: Description
C10: This sheet presents the raw revenue / cost data to be used in this model.
B12: Flags
C14: Forecast Flag
F16: Forecast Year Start | J16: =_ForecastYearStart -> 2021
F17: Forecast Flag | P17: =IF(RIGHT($J$16,2) > RIGHT(P$4,2), 0, 1) -> 0 | Q17: 0 | R17: 0 | S17: 0 | T17: 0 | U17: 0 | V17: 0 | W17: 1 | X17: 1 | Y17: 1 | Z17: 1 | AA17: 1 | AB17: 1
B20: Cost item categories
B22: 1 | C22: =INDEX(_CategoriesList, B22) -> Other revenue
E24: 1 | F24: =INDEX(_OtherList, $E24) -> Cargo revenue | J24: Cargo revenue
E25: 2 | F25: =INDEX(_OtherList, $E25) -> ORC revenue | J25: ORC revenue
B27: 2 | C27: =INDEX(_CategoriesList, B27) -> Commercial revenue
E29: 1 | F29: =INDEX(_CommercialList, $E29) -> Catering | J29: Retail
E30: 2 | F30: =INDEX(_CommercialList, $E30) -> Retail concessions - UK | G30: UK | J30: Retail
E31: 3 | F31: =INDEX(_CommercialList, $E31) -> Retail concessions - EEA | G31: EEA | J31: Retail
E32: 4 | F32: =INDEX(_CommercialList, $E32) -> Retail concessions - North America | G32: North America | J32: Retail
E33: 5 | F33: =INDEX(_CommercialList, $E33) -> Retail concessions - Middle East | G33: Middle East | J33: Retail
E34: 6 | F34: =INDEX(_CommercialList, $E34) -> Retail concessions - Asia/Pacific | G34: Asia/Pacific | J34: Retail
E35: 7 | F35: =INDEX(_CommercialList, $E35) -> Retail concessions - Other | G35: Other | J35: Retail
E36: 8 | F36: =INDEX(_CommercialList, $E36) -> Other retail revenue | J36: Retail
E37: 9 | F37: =INDEX(_CommercialList, $E37) -> Bureaux Revenue | J37: Bureaux
E38: 10 | F38: =INDEX(_CommercialList, $E38) -> Car parking | J38: Surface Access
E39: 11 | F39: =INDEX(_CommercialList, $E39) -> Other surface access | J39: Surface Access
E40: 12 | F40: =INDEX(_CommercialList, $E40) -> Service revenue excl. surface access | J40: Service
E41: 13 | F41: =INDEX(_CommercialList, $E41) -> Track access revenue | J41: Rail
E42: 14 | F42: =INDEX(_CommercialList, $E42) -> Heathrow Express revenue | J42: Rail
E43: 15 | F43: =INDEX(_CommercialList, $E43) -> Property revenue | J43: Property
E44: 16 | F44: =INDEX(_CommercialList, $E44) -> Other revenue | J44: Other
E45: 17 | F45: =INDEX(_CommercialList, $E45) -> Intercompany revenue | J45: Intercompany
E46: 18 | F46: =INDEX(_CommercialList, $E46) -> Terminal drop-off charge revenue | J46: Terminal drop-off charge
E47: 19 | F47: =INDEX(_CommercialList, $E47) -> Red Terminal Cost Recovery | J47: Red Terminal
E48: 20 | F48: =INDEX(_CommercialList, $E48) -> T5 Piccadilly Line revenue | J48: Rail
B50: 3 | C50: =INDEX(_CategoriesList, B50) -> Opex
E52: 1 | F52: =INDEX(_OpexList, $E52) -> Security staff | J52: People
E53: 2 | F53: =INDEX(_OpexList, $E53) -> Operational staff | J53: People
E54: 3 | F54: =INDEX(_OpexList, $E54) -> Non-operational staff | J54: People
E55: 4 | F55: =INDEX(_OpexList, $E55) -> Pensions | J55: People
E56: 5 | F56: =INDEX(_OpexList, $E56) -> Operational costs excl. insurance | J56: Operational costs excl. insurance
E57: 6 | F57: =INDEX(_OpexList, $E57) -> Insurance | J57: Insurance
E58: 7 | F58: =INDEX(_OpexList, $E58) -> Facilities maintenance costs | J58: Facilities maintenance costs
E59: 8 | F59: =INDEX(_OpexList, $E59) -> Rates costs | J59: Rates costs
E60: 9 | F60: =INDEX(_OpexList, $E60) -> Utility costs excl. distribution contract | J60: Utility costs excl. distribution contract
E61: 10 | F61: =INDEX(_OpexList, $E61) -> Distribution contract | J61: Distribution contract
E62: 11 | F62: =INDEX(_OpexList, $E62) -> General expenses incl. consultants & marketing, gen ex & interco | J62: General expenses incl. consultants & marketing, gen ex & interco
E63: 12 | F63: =INDEX(_OpexList, $E63) -> Preopening | J63: Overlays
E64: 13 | F64: =INDEX(_OpexList, $E64) -> Terminal drop-off charge opex | J64: Surface access initiatives
E65: 14 | F65: =INDEX(_OpexList, $E65) -> Surface access | J65: Surface access initiatives
E66: 15 | F66: =INDEX(_OpexList, $E66) -> Covid-19 overlay | J66: Overlays
E67: 16 | F67: =INDEX(_OpexList, $E67) -> Service overlay | J67: Overlays
E68: 17 | F68: =INDEX(_OpexList, $E68) -> Opex Spare 1
E69: 18 | F69: =INDEX(_OpexList, $E69) -> Opex Spare 2
E70: 19 | F70: =INDEX(_OpexList, $E70) -> Opex Spare 3
E71: 20 | F71: =INDEX(_OpexList, $E71) -> Opex Spare 4
B74: Retail concession revenues by Origin-Destination market
C76: Income per passenger | K76: HAL RBP Update 2 (Document) - Table 21: Income per Market 2019 (Heathrow Retail Futures)
E78: 1 | F78: =INDEX(_GeogList, $E78) -> UK & CI | G78: UK | H78: £ per pax | I78: Nominal | K78: Heathrow CAP2265 Response Final.pdf | U78: 5
E79: 2 | F79: =INDEX(_GeogList, $E79) -> EEA | G79: EEA | H79: £ per pax | I79: Nominal | K79: Heathrow CAP2265 Response Final.pdf | U79: 4.1
E80: 3 | F80: =INDEX(_GeogList, $E80) -> Other Europe & CIS | G80: Other | H80: £ per pax | I80: Nominal | K80: Heathrow CAP2265 Response Final.pdf | U80: 7.56
E81: 4 | F81: =INDEX(_GeogList, $E81) -> Middle East | G81: Middle East | H81: £ per pax | I81: Nominal | K81: Heathrow CAP2265 Response Final.pdf | U81: 8.61
E82: 5 | F82: =INDEX(_GeogList, $E82) -> Africa | G82: Other | H82: £ per pax | I82: Nominal | K82: Heathrow CAP2265 Response Final.pdf | U82: 8.6
E83: 6 | F83: =INDEX(_GeogList, $E83) -> North America | G83: North America | H83: £ per pax | I83: Nominal | K83: Heathrow CAP2265 Response Final.pdf | U83: 5.32
E84: 7 | F84: =INDEX(_GeogList, $E84) -> Latin America | G84: Other | H84: £ per pax | I84: Nominal | K84: Heathrow CAP2265 Response Final.pdf | U84: 7.03
E85: 8 | F85: =INDEX(_GeogList, $E85) -> Asia / Pacific | G85: Asia/Pacific | H85: £ per pax | I85: Nominal | K85: Heathrow CAP2265 Response Final.pdf | U85: 12.21
C87: Passenger volumes | K87: Heathrow Airport Limited Regulatory Accounts 2019 - Page 6 (EEA and Other Europe split using HAL 2022-26 forecast in RBP update model)
E89: 1 | F89: =INDEX(_GeogList, $E89) -> UK & CI | G89: UK | H89: million pax | K89: HAL Regulatory Accounts 2019 | U89: 4.84
E90: 2 | F90: =INDEX(_GeogList, $E90) -> EEA | G90: EEA | H90: million pax | K90: HAL Regulatory Accounts 2019 | U90: =33.155 * Drivers!$U161/SUM(Drivers!$U$161:$U$162) -> 30.89626521
E91: 3 | F91: =INDEX(_GeogList, $E91) -> Other Europe & CIS | G91: Other | H91: million pax | K91: HAL Regulatory Accounts 2019 | U91: =33.155 * Drivers!$U162/SUM(Drivers!$U$161:$U$162) -> 2.258734793
E92: 4 | F92: =INDEX(_GeogList, $E92) -> Middle East | G92: Middle East | H92: million pax | K92: HAL Regulatory Accounts 2019 | U92: 7.75
E93: 5 | F93: =INDEX(_GeogList, $E93) -> Africa | G93: Other | H93: million pax | K93: HAL Regulatory Accounts 2019 | U93: 3.515
E94: 6 | F94: =INDEX(_GeogList, $E94) -> North America | G94: North America | H94: million pax | K94: HAL Regulatory Accounts 2019 | U94: 18.835
E95: 7 | F95: =INDEX(_GeogList, $E95) -> Latin America | G95: Other | H95: million pax | K95: HAL Regulatory Accounts 2019 | U95: 1.382
E96: 8 | F96: =INDEX(_GeogList, $E96) -> Asia / Pacific | G96: Asia/Pacific | H96: million pax | K96: HAL Regulatory Accounts 2019 | U96: 11.407
C98: Retail concession income
F100: Retail concessions | H100: £m | I100: Nominal | K100: H7_Revenue_Inputs_v6.6.xslx | P100: 222 | Q100: 228 | R100: 253 | S100: 304 | T100: 323 | U100: 342 | V100: 100.03125 | W100: 83.04844845
E102: The totals below do not equal the total concession income above. We think this is due to the totals below capturing all retail income rather than just concession income. Implicitly, therefore, we are assuming that the geographic breakdown of retail concession income broadly aligns with all retail income. We are also implicitly assuming that 2019 spending patterns are reflective of geographic differences in willingness to spend.
E104: 1 | F104: =INDEX(_GeogList, $E104) -> UK & CI | G104: UK | H104: £m | I104: Nominal | J104: =$U104 / $U$112 * $U$100 -> 16.09867717 | U104: =U78*U89 -> 24.2
E105: 2 | F105: =INDEX(_GeogList, $E105) -> EEA | G105: EEA | H105: £m | I105: Nominal | J105: =$U105 / $U$112 * $U$100 -> 84.26838418 | U105: 126.6746873
E106: 3 | F106: =INDEX(_GeogList, $E106) -> Other Europe & CIS | G106: Other | H106: £m | I106: Nominal | J106: 11.35956923 | U106: 17.07603504
E107: 4 | F107: =INDEX(_GeogList, $E107) -> Middle East | G107: Middle East | H107: £m | I107: Nominal | J107: 44.38944135 | U107: 66.7275
E108: 5 | F108: =INDEX(_GeogList, $E108) -> Africa | G108: Other | H108: £m | I108: Nominal | J108: 20.10937653 | U108: 30.229
E109: 6 | F109: =INDEX(_GeogList, $E109) -> North America | G109: North America | H109: £m | I109: Nominal | J109: 66.65796981 | U109: 100.2022
E110: 7 | F110: =INDEX(_GeogList, $E110) -> Latin America | G110: Other | H110: £m | I110: Nominal | J110: 6.463060086 | U110: 9.71546
E111: 8 | F111: =INDEX(_GeogList, $E111) -> Asia / Pacific | G111: Asia/Pacific | H111: £m | I111: Nominal | J111: 92.65352164 | U111: 139.27947
F112: Total | H112: £m | I112: Nominal | J112: =SUM(J104:J111) -> 342 | U112: =SUM(U104:U111) -> 514.1043524
B115: Historic airport data
C117: Security staff (FTEs)
F119: Fixed | H119: # | K119: H7_OpexHistoricInputs.xlsx | P119: 833 | Q119: 872 | R119: 856 | S119: 900 | T119: 953 | U119: 953
F120: Variable | H120: # | K120: H7_OpexHistoricInputs.xlsx | P120: 2955 | Q120: 2917 | R120: 2723 | S120: 2790 | T120: 2826 | U120: 3113
F121: Total | H121: # | K121: H7_OpexHistoricInputs.xlsx | P121: 3788 | Q121: 4089 | R121: 3579 | S121: 3690 | T121: 3779 | U121: 4066
C123: Passengers
F125: Fixed | H125: million pax | K125: [2014-2020] Heathrow RBP (Update 2) - External H7 v1.00; [2021] https://www.heathrow.com/company/investor-centre/reports/traffic-statistics | P125: 73.374678 | Q125: 74.958974 | R125: 75.675695 | S125: 77.988006 | T125: 80.102014 | U125: 80.88626 | V125: 22.10558 | W125: 19.393145
B128: Historic opex and revenue data
B130: 1 | C130: =INDEX(_CategoriesList, B130) -> Other revenue
E132: 1 | F132: =INDEX(_OtherList, $E132) -> Cargo revenue | H132: £m | I132: Nominal | K132: H7_Revenue_Inputs_v6.6.xslx | P132: 6.775 | Q132: 7 | R132: 7 | S132: 8.17754937 | T132: 9.06743621 | U132: 10.91795871 | V132: 75.50853263 | W132: 89.65797864
E133: 2 | F133: =INDEX(_OtherList, $E133) -> ORC revenue | H133: £m | I133: Nominal | K133: H7_Revenue_Inputs_v6.6.xslx | P133: 232 | Q133: 239 | R133: 232 | S133: 240 | T133: 243 | U133: 244 | V133: 118 | W133: 195.9572298
B135: 2 | C135: =INDEX(_CategoriesList, B135) -> Commercial revenue
E137: 1 | F137: =INDEX(_CommercialList, $E137) -> Catering | H137: £m | I137: Nominal | K137: H7_Revenue_Inputs_v6.6.xslx | P137: 40 | Q137: 45 | R137: 49 | S137: 56 | T137: 61 | U137: 64 | V137: 19 | W137: 15.77427574
E138: 2 | F138: =INDEX(_CommercialList, $E138) -> Retail concessions - UK | G138: UK | H138: £m | I138: Nominal | P138: =P$100 * SUMIFS($U$104:$U$111,$G$104:$G$111,$G138) / SUM($U$104:$U$111) -> 10.45001851 | Q138: 10.73245145 | R138: 11.90925533 | S138: 14.30993526 | T138: 15.20430621 | U138: 16.09867717 | V138: 4.708686551 | W138: 3.909269476
E139: 3 | F139: =INDEX(_CommercialList, $E139) -> Retail concessions - EEA | G139: EEA | H139: £m | I139: Nominal | P139: =P$100 * SUMIFS($U$104:$U$111,$G$104:$G$111,$G139) / SUM($U$104:$U$111) -> 54.70053008 | Q139: 56.17892278 | R139: 62.33889239 | S139: 74.90523038 | T139: 79.58680728 | U139: 84.26838418 | V139: 24.64757838 | W139: 20.46303672
E140: 4 | F140: =INDEX(_CommercialList, $E140) -> Retail concessions - North America | G140: North America | H140: £m | I140: Nominal | P140: 43.26920847 | Q140: 44.43864654 | R140: 49.31130515 | S140: 59.25152872 | T140: 62.95474926 | U140: 66.65796981 | V140: 19.49672527 | W140: 16.1866695
E141: 5 | F141: =INDEX(_CommercialList, $E141) -> Retail concessions - Middle East | G141: Middle East | H141: £m | I141: Nominal | P141: 28.81419877 | Q141: 29.5929609 | R141: 32.83780311 | S141: 39.4572812 | T141: 41.92336128 | U141: 44.38944135 | V141: 12.98342487 | W141: 10.77916442
E142: 6 | F142: =INDEX(_CommercialList, $E142) -> Retail concessions - Asia/Pacific | G142: Asia/Pacific | H142: £m | I142: Nominal | P142: 60.14351405 | Q142: 61.76901443 | R142: 68.54193268 | S142: 82.3586859 | T142: 87.50610377 | U142: 92.65352164 | V142: 27.10013914 | W142: 22.49921408
E143: 7 | F143: =INDEX(_CommercialList, $E143) -> Retail concessions - Other | G143: Other | H143: £m | I143: Nominal | P143: 24.62253011 | Q143: 25.2880039 | R143: 28.06081135 | S143: 33.71733853 | T143: 35.82467219 | U143: 37.93200585 | V143: 11.09469579 | W143: 9.211094247
E144: 8 | F144: =INDEX(_CommercialList, $E144) -> Other retail revenue | H144: £m | I144: Nominal | K144: H7_Revenue_Inputs_v6.6.xslx | P144: 67 | Q144: 75 | R144: 86 | S144: 66.077949 | T144: 71.1434581 | U144: 72.89107603 | V144: 27.73731212 | W144: 27.09577214
E145: 9 | F145: =INDEX(_CommercialList, $E145) -> Bureaux Revenue | H145: £m | I145: Nominal | K145: H7_Revenue_Inputs_v6.6.xslx | P145: 44 | Q145: 53 | R145: 50 | S145: 42.922051 | T145: 56.8565419 | U145: 40.10892397 | V145: 15.26268788 | W145: 7.152421603
E146: 10 | F146: =INDEX(_CommercialList, $E146) -> Car parking | H146: £m | I146: Nominal | K146: H7_Revenue_Inputs_v6.6.xslx | P146: 99 | Q146: 107 | R146: 114 | S146: 120 | T146: 126 | U146: 125 | V146: 40 | W146: 46.34931
E147: 11 | F147: =INDEX(_CommercialList, $E147) -> Other surface access | H147: £m | I147: Nominal | K147: H7_Revenue_Inputs_v6.6.xslx | P147: 17.30326433 | Q147: 17.66715862 | R147: 18.89688519 | S147: 20.36948179 | T147: 20.91778912 | U147: 22.133065 | V147: 9.931503526 | W147: 8.206818327
E148: 12 | F148: =INDEX(_CommercialList, $E148) -> Service revenue excl. surface access | H148: £m | I148: Nominal | K148: H7_Revenue_Inputs_v6.6.xslx | P148: 36.83769692 | Q148: 44.06592511 | R148: 45.72265479 | S148: 49.82572795 | T148: 57.13228354 | U148: 54.17595252 | V148: 24.30972228 | W148: 23.8439831
E149: 13 | F149: =INDEX(_CommercialList, $E149) -> Track access revenue | H149: £m | I149: Nominal | K149: H7_Revenue_Inputs_v6.6.xslx | P149: 6.65359787 | Q149: 6.79356788 | R149: 6.910879399 | S149: 7.053052761 | T149: 7.13941828 | U149: =Sensitivities!U35 -> 7.01 | V149: =Sensitivities!V35 -> 6.937582148 | W149: =Sensitivities!W35 -> 7.111317375
E150: 14 | F150: =INDEX(_CommercialList, $E150) -> Heathrow Express revenue | H150: £m | I150: Nominal | K150: H7_Revenue_Inputs_v6.6.xslx | P150: 108.2764853 | Q150: 110.5542696 | R150: 112.4633238 | S150: 114.7769641 | T150: 116.1824225 | U150: 117 | V150: 41.5006416 | W150: 19.87089034
E151: 15 | F151: =INDEX(_CommercialList, $E151) -> Property revenue | H151: £m | I151: Nominal | K151: H7_Revenue_Inputs_v6.6.xslx | P151: 116.4060461 | Q151: 121.0661642 | R151: 126.3752984 | S151: 129.7345605 | T151: 131.1785809 | U151: 133.8355815 | V151: 86.28227966 | W151: 114.5196007
E152: 16 | F152: =INDEX(_CommercialList, $E152) -> Other revenue | H152: £m | I152: Nominal | K152: H7_Revenue_Inputs_v6.6.xslx | P152: 4.83119112 | Q152: 3.06978232 | R152: 3.23593499 | S152: 3.5695108 | T152: 0.88635866 | U152: 1.29409841 | V152: 0.83429055 | W152: 6.053100366
E153: 17 | F153: =INDEX(_CommercialList, $E153) -> Intercompany revenue | H153: £m | I153: Nominal | K153: H7_Revenue_Inputs_v6.6.xslx | P153: 2.73225219 | Q153: 2.94569935 | R153: 0.40700651 | S153: 0.33521913 | T153: 0 | U153: 0 | V153: 0 | W153: 0
E154: 18 | F154: =INDEX(_CommercialList, $E154) -> Terminal drop-off charge revenue | H154: £m | I154: Nominal | K154: H7_Revenue_Inputs_v6.6.xslx | P154: 0 | Q154: 0 | R154: 0 | S154: 0 | T154: 0 | U154: 0 | V154: 0 | W154: 5.431185822
E155: 19 | F155: =INDEX(_CommercialList, $E155) -> Red Terminal Cost Recovery | H155: £m | I155: Nominal | K155: H7_Revenue_Inputs_v6.6.xslx | P155: 0 | Q155: 0 | R155: 0 | S155: 0 | T155: 0 | U155: 0 | V155: 0 | W155: 0
E156: 20 | F156: =INDEX(_CommercialList, $E156) -> T5 Piccadilly Line revenue | H156: £m | I156: Nominal | K156: H7_Revenue_Inputs_v6.6.xslx | P156: 13.82922681 | Q156: 14.12014866 | R156: 14.36397578 | S156: 14.65947721 | T156: 14.83898435 | U156: =Sensitivities!U36 -> 15.123065 | V156: =Sensitivities!V36 -> 0 | W156: =Sensitivities!W36 -> 0
B158: 3 | C158: =INDEX(_CategoriesList, B158) -> Opex
E160: 1 | F160: =INDEX(_OpexList, $E160) -> Security staff | H160: £m | I160: Nominal | K160: H7_OpexHistoricInputs.xlsx | P160: 154.2136828 | Q160: 152 | R160: 142 | S160: 147 | T160: 154 | U160: 159 | V160: 117 | W160: 112.9502323
E161: 2 | F161: =INDEX(_OpexList, $E161) -> Operational staff | H161: £m | I161: Nominal | K161: H7_OpexHistoricInputs.xlsx | P161: 100.4418066 | Q161: 99 | R161: 97 | S161: 107 | T161: 91 | U161: 94 | V161: 79 | W161: 76.26554146
E162: 3 | F162: =INDEX(_OpexList, $E162) -> Non-operational staff | H162: £m | I162: Nominal | K162: H7_OpexHistoricInputs.xlsx | P162: 73.04858659 | Q162: 72 | R162: 91 | S162: 70 | T162: 74 | U162: 85 | V162: 49.01450437 | W162: 47.31794576
E163: 4 | F163: =INDEX(_OpexList, $E163) -> Pensions | H163: £m | I163: Nominal | K163: H7_OpexHistoricInputs.xlsx | P163: 54.78643994 | Q163: 54 | R163: 37 | S163: 40 | T163: 47 | U163: 41 | V163: 37 | W163: 35.71930423
E164: 5 | F164: =INDEX(_OpexList, $E164) -> Operational costs excl. insurance | H164: £m | I164: Nominal | K164: H7_OpexHistoricInputs.xlsx | P164: 250.442917 | Q164: 229.2235771 | R164: 248.7007545 | S164: 235.2730707 | T164: 250.1649685 | U164: 288.8313644 | V164: 238.8813168 | W164: 234.0163756
E165: 6 | F165: =INDEX(_OpexList, $E165) -> Insurance | H165: £m | I165: Nominal | K165: H7_OpexHistoricInputs.xlsx | P165: 14.85798559 | Q165: 12.77624928 | R165: 16.73996406 | S165: 16.20697207 | T165: 13.68980374 | U165: 14.84391957 | V165: 12.62633943 | W165: 10.76585991
E166: 7 | F166: =INDEX(_OpexList, $E166) -> Facilities maintenance costs | H166: £m | I166: Nominal | K166: H7_OpexHistoricInputs.xlsx | P166: 179.7264797 | Q166: 186.6381034 | R166: 176.4728826 | S166: 175.7907267 | T166: 175.9911081 | U166: 173.5918357 | V166: 140.4509472 | W166: 138.3404335
E167: 8 | F167: =INDEX(_OpexList, $E167) -> Rates costs | H167: £m | I167: Nominal | K167: H7_OpexHistoricInputs.xlsx | P167: 119.7214411 | Q167: 122.7347002 | R167: 128.0622669 | S167: 126.260053 | T167: 121.7153914 | U167: 117.5607422 | V167: 115.9939588 | W167: 122.7308354
E168: 9 | F168: =INDEX(_OpexList, $E168) -> Utility costs excl. distribution contract | H168: £m | I168: Nominal | K168: H7_OpexHistoricInputs.xlsx | P168: 34.86083389 | Q168: 56.9105597 | R168: 57.2785402 | S168: 57.32566668 | T168: 60.60404309 | U168: 67.14599883 | V168: 57.56409567 | W168: 54.70288118
E169: 10 | F169: =INDEX(_OpexList, $E169) -> Distribution contract | H169: £m | I169: Nominal | K169: H7_OpexHistoricInputs.xlsx | P169: 33.19498976 | Q169: 35.46666612 | R169: 16.65403992 | S169: 28.90363738 | T169: 29.89870365 | U169: 30.64164977 | V169: 31.59556416 | W169: 30.13599184
E170: 11 | F170: =INDEX(_OpexList, $E170) -> General expenses incl. consultants & marketing, gen ex & interco | H170: £m | I170: Nominal | K170: H7_OpexHistoricInputs.xlsx | P170: 107.9665311 | Q170: 131.6039703 | R170: 108.0436826 | S170: 110.2009603 | T170: 102.659915 | U170: 132.4016248 | V170: 80.65345153 | W170: 72.0135378
E171: 12 | F171: =INDEX(_OpexList, $E171) -> Preopening | H171: £m | I171: Nominal | K171: H7_OpexHistoricInputs.xlsx | P171: 0 | Q171: 0 | R171: 0 | S171: 0 | T171: 0 | U171: 0 | V171: 0 | W171: 0
E172: 13 | F172: =INDEX(_OpexList, $E172) -> Terminal drop-off charge opex | H172: £m | I172: Nominal | K172: H7_OpexHistoricInputs.xlsx | P172: 0 | Q172: 0 | R172: 0 | S172: 0 | T172: 0 | U172: 0 | V172: 0 | W172: 2.892588319
E173: 14 | F173: =INDEX(_OpexList, $E173) -> Surface access | H173: £m | I173: Nominal | K173: H7_OpexHistoricInputs.xlsx | P173: 0 | Q173: 0 | R173: 0 | S173: 0 | T173: 0 | U173: 0 | V173: 0 | W173: 0
E174: 15 | F174: =INDEX(_OpexList, $E174) -> Covid-19 overlay | H174: £m | I174: Nominal | K174: H7_OpexHistoricInputs.xlsx | P174: 0 | Q174: 0 | R174: 0 | S174: 0 | T174: 0 | U174: 0 | V174: 0 | W174: 0
E175: 16 | F175: =INDEX(_OpexList, $E175) -> Service overlay | H175: £m | I175: Nominal | K175: H7_OpexHistoricInputs.xlsx | P175: 0 | Q175: 0 | R175: 0 | S175: 0 | T175: 0 | U175: 0 | V175: 0 | W175: 0
E176: 17 | F176: =INDEX(_OpexList, $E176) -> Opex Spare 1 | H176: £m | I176: Nominal | K176: H7_OpexHistoricInputs.xlsx | P176: 0 | Q176: 0 | R176: 0 | S176: 0 | T176: 0 | U176: 0 | V176: 0 | W176: 0
E177: 18 | F177: =INDEX(_OpexList, $E177) -> Opex Spare 2 | H177: £m | I177: Nominal | K177: H7_OpexHistoricInputs.xlsx | P177: 0 | Q177: 0 | R177: 0 | S177: 0 | T177: 0 | U177: 0 | V177: 0 | W177: 0
E178: 19 | F178: =INDEX(_OpexList, $E178) -> Opex Spare 3 | H178: £m | I178: Nominal | K178: H7_OpexHistoricInputs.xlsx | P178: 0 | Q178: 0 | R178: 0 | S178: 0 | T178: 0 | U178: 0 | V178: 0 | W178: 0
E179: 20 | F179: =INDEX(_OpexList, $E179) -> Opex Spare 4 | H179: £m | I179: Nominal | K179: H7_OpexHistoricInputs.xlsx | P179: 0 | Q179: 0 | R179: 0 | S179: 0 | T179: 0 | U179: 0 | V179: 0 | W179: 0
A181: END | B181: =A181 -> END | C181: END | D181: END | E181: END | F181: END | G181: END | H181: END | I181: END | J181: END | K181: END | L181: END | M181: END | N181: END | O181: END | P181: END | Q181: END | R181: END | S181: END | T181: END | U181: END | V181: END | W181: END | X181: END | Y181: END | Z181: END | AA181: END | AB181: END | AC181: END

Sheet Drivers
A1: =RIGHT(CELL("filename",A$2),LEN(CELL("filename",A$2))-FIND("]",CELL("filename",A$2))) -> Drivers
A2: ="["&_ModelStatus&"] "&_ModelName&" - "&_OrganisationName&" - "&_ModelVersion&" ("&TEXT(_ModelDate,"dd/mm/yyyy")&")" -> [AIRLINE REDACTED VERSION] H7 Opex and Commercial Revenues - Civil Aviation Authority - Version 11.4 (10/01/2023)
F4: Item | H4: Units | I4: Price Base | J4: Constant | K4: Source | P4: =Historic!P4 -> 2014 | Q4: =Historic!Q4 -> 2015 | R4: =Historic!R4 -> 2016 | S4: =Historic!S4 -> 2017 | T4: =Historic!T4 -> 2018 | U4: =Historic!U4 -> 2019 | V4: =Historic!V4 -> 2020 | W4: =Historic!W4 -> 2021 | X4: =Historic!X4 -> 2022 | Y4: =Historic!Y4 -> 2023 | Z4: =Historic!Z4 -> 2024 | AA4: =Historic!AA4 -> 2025 | AB4: =Historic!AB4 -> 2026
F5: Period End Date | P5: =Historic!P5 -> 2014-12-31 | Q5: =Historic!Q5 -> 2015-12-31 | R5: =Historic!R5 -> 2016-12-31 | S5: =Historic!S5 -> 2017-12-31 | T5: =Historic!T5 -> 2018-12-31 | U5: =Historic!U5 -> 2019-12-31 | V5: =Historic!V5 -> 2020-12-31 | W5: =Historic!W5 -> 2021-12-31 | X5: =Historic!X5 -> 2022-12-31 | Y5: =Historic!Y5 -> 2023-12-31 | Z5: =Historic!Z5 -> 2024-12-31 | AA5: =Historic!AA5 -> 2025-12-31 | AB5: =Historic!AB5 -> 2026-12-31
F6: Days in Period | P6: =Historic!P6 -> 365 | Q6: =Historic!Q6 -> 365 | R6: =Historic!R6 -> 366 | S6: =Historic!S6 -> 365 | T6: =Historic!T6 -> 365 | U6: =Historic!U6 -> 365 | V6: =Historic!V6 -> 366 | W6: =Historic!W6 -> 365 | X6: =Historic!X6 -> 365 | Y6: =Historic!Y6 -> 365 | Z6: =Historic!Z6 -> 366 | AA6: =Historic!AA6 -> 365 | AB6: =Historic!AB6 -> 365
B8: Description
C10: This sheet presents the cost and revenue driver data, that differs by Scenario. It shows how much drivers are forecast to change over the H7 period.
B12: Active Scenario
F14: Active Scenario | J14: =_ActiveScenario -> Scenario 5: CAA Mid Passenger Growth (FD - 19th December)
F15: Scenario Counter | J15: =MID(J14,10,1) -> 5
F16: Row length of scenario | J16: =ROW($B$130) - ROW($B$58) -> 72
C18: Flags and Indices
D20: Forecast Flag
F22: Forecast Year Start | J22: =_ForecastYearStart -> 2021
F23: Forecast Flag | P23: =Historic!P17 -> 0 | Q23: =Historic!Q17 -> 0 | R23: =Historic!R17 -> 0 | S23: =Historic!S17 -> 0 | T23: =Historic!T17 -> 0 | U23: =Historic!U17 -> 0 | V23: =Historic!V17 -> 0 | W23: =Historic!W17 -> 1 | X23: =Historic!X17 -> 1 | Y23: =Historic!Y17 -> 1 | Z23: =Historic!Z17 -> 1 | AA23: =Historic!AA17 -> 1 | AB23: =Historic!AB17 -> 1
C25: Cost / Revenue Driver values
E27: 1 | F27: =INDEX(_DriversList,$E27) -> Total Passengers | H27: million pax | K27: =INDEX($A$1:$AB$488, $J$15*$J$16 + ROW(K27), COLUMN(K27)) -> [2022-2026] CAA H7 Pax Forecast - Final Decision 19 Dec | L27: =INDEX($A$1:$AB$488, $J$15*$J$16 + ROW(L27), COLUMN(L27)) -> 0 | M27: =INDEX($A$1:$AB$488, $J$15*$J$16 + ROW(M27), COLUMN(M27)) -> 0 | N27: =INDEX($A$1:$AB$488, $J$15*$J$16 + ROW(N27), COLUMN(N27)) -> 0 | O27: =INDEX($A$1:$AB$488, $J$15*$J$16 + ROW(O27), COLUMN(O27)) -> 0 | P27: =INDEX($A$1:$AB$488, $J$15*$J$16 + ROW(P27), COLUMN(P27)) -> 73.374678 | Q27: =INDEX($A$1:$AB$488, $J$15*$J$16 + ROW(Q27), COLUMN(Q27)) -> 74.958974 | R27: =INDEX($A$1:$AB$488, $J$15*$J$16 + ROW(R27), COLUMN(R27)) -> 75.675695 | S27: =INDEX($A$1:$AB$488, $J$15*$J$16 + ROW(S27), COLUMN(S27)) -> 77.988006 | T27: =INDEX($A$1:$AB$488, $J$15*$J$16 + ROW(T27), COLUMN(T27)) -> 80.102014 | U27: =INDEX($A$1:$AB$488, $J$15*$J$16 + ROW(U27), COLUMN(U27)) -> 80.88626 | V27: =INDEX($A$1:$AB$488, $J$15*$J$16 + ROW(V27), COLUMN(V27)) -> 22.10558 | W27: =INDEX($A$1:$AB$488, $J$15*$J$16 + ROW(W27), COLUMN(W27)) -> 19.393145 | X27: =INDEX($A$1:$AB$488, $J$15*$J$16 + ROW(X27), COLUMN(X27)) -> 61.6864 | Y27: =INDEX($A$1:$AB$488, $J$15*$J$16 + ROW(Y27), COLUMN(Y27)) -> 73.008769 | Z27: =INDEX($A$1:$AB$488, $J$15*$J$16 + ROW(Z27), COLUMN(Z27)) -> 78.890705 | AA27: =INDEX($A$1:$AB$488, $J$15*$J$16 + ROW(AA27), COLUMN(AA27)) -> 80.653561 | AB27: =INDEX($A$1:$AB$488, $J$15*$J$16 + ROW(AB27), COLUMN(AB27)) -> 81.318198
E28: 2 | F28: =INDEX(_DriversList,$E28) -> Utilised Terminal Area | H28: 000s m2 | K28: =INDEX($A$1:$AB$488, $J$15*$J$16 + ROW(K28), COLUMN(K28)) -> 0 | L28: =INDEX($A$1:$AB$488, $J$15*$J$16 + ROW(L28), COLUMN(L28)) -> 0 | M28: =INDEX($A$1:$AB$488, $J$15*$J$16 + ROW(M28), COLUMN(M28)) -> 0 | N28: =INDEX($A$1:$AB$488, $J$15*$J$16 + ROW(N28), COLUMN(N28)) -> 0 | O28: =INDEX($A$1:$AB$488, $J$15*$J$16 + ROW(O28), COLUMN(O28)) -> 0 | P28: =INDEX($A$1:$AB$488, $J$15*$J$16 + ROW(P28), COLUMN(P28)) -> 0 | Q28: =INDEX($A$1:$AB$488, $J$15*$J$16 + ROW(Q28), COLUMN(Q28)) -> 0 | R28: =INDEX($A$1:$AB$488, $J$15*$J$16 + ROW(R28), COLUMN(R28)) -> 0 | S28: =INDEX($A$1:$AB$488, $J$15*$J$16 + ROW(S28), COLUMN(S28)) -> 0 | T28: =INDEX($A$1:$AB$488, $J$15*$J$16 + ROW(T28), COLUMN(T28)) -> 1117.033 | U28: =INDEX($A$1:$AB$488, $J$15*$J$16 + ROW(U28), COLUMN(U28)) -> 1117.033 | V28: =INDEX($A$1:$AB$488, $J$15*$J$16 + ROW(V28), COLUMN(V28)) -> 837.3326667 | W28: =INDEX($A$1:$AB$488, $J$15*$J$16 + ROW(W28), COLUMN(W28)) -> 812.5925 | X28: =INDEX($A$1:$AB$488, $J$15*$J$16 + ROW(X28), COLUMN(X28)) -> 1013.2225 | Y28: =INDEX($A$1:$AB$488, $J$15*$J$16 + ROW(Y28), COLUMN(Y28)) -> 1117.033 | Z28: =INDEX($A$1:$AB$488, $J$15*$J$16 + ROW(Z28), COLUMN(Z28)) -> 1117.033 | AA28: =INDEX($A$1:$AB$488, $J$15*$J$16 + ROW(AA28), COLUMN(AA28)) -> 1117.033 | AB28: =INDEX($A$1:$AB$488, $J$15*$J$16 + ROW(AB28), COLUMN(AB28)) -> 1117.033
E29: 3 | F29: =INDEX(_DriversList,$E29) -> OD pax | H29: million pax | K29: =INDEX($A$1:$AB$488, $J$15*$J$16 + ROW(K29), COLUMN(K29)) -> 0 | L29: =INDEX($A$1:$AB$488, $J$15*$J$16 + ROW(L29), COLUMN(L29)) -> 0 | M29: =INDEX($A$1:$AB$488, $J$15*$J$16 + ROW(M29), COLUMN(M29)) -> 0 | N29: =INDEX($A$1:$AB$488, $J$15*$J$16 + ROW(N29), COLUMN(N29)) -> 0 | O29: =INDEX($A$1:$AB$488, $J$15*$J$16 + ROW(O29), COLUMN(O29)) -> 0 | P29: =INDEX($A$1:$AB$488, $J$15*$J$16 + ROW(P29), COLUMN(P29)) -> 0 | Q29: =INDEX($A$1:$AB$488, $J$15*$J$16 + ROW(Q29), COLUMN(Q29)) -> 0 | R29: =INDEX($A$1:$AB$488, $J$15*$J$16 + ROW(R29), COLUMN(R29)) -> 0 | S29: =INDEX($A$1:$AB$488, $J$15*$J$16 + ROW(S29), COLUMN(S29)) -> 0 | T29: =INDEX($A$1:$AB$488, $J$15*$J$16 + ROW(T29), COLUMN(T29)) -> 60.206777 | U29: =INDEX($A$1:$AB$488, $J$15*$J$16 + ROW(U29), COLUMN(U29)) -> 62.317426 | V29: =INDEX($A$1:$AB$488, $J$15*$J$16 + ROW(V29), COLUMN(V29)) -> 17.46898698 | W29: =INDEX($A$1:$AB$488, $J$15*$J$16 + ROW(W29), COLUMN(W29)) -> 15.15680116 | X29: =INDEX($A$1:$AB$488, $J$15*$J$16 + ROW(X29), COLUMN(X29)) -> 47.2211364 | Y29: =INDEX($A$1:$AB$488, $J$15*$J$16 + ROW(Y29), COLUMN(Y29)) -> 55.99417169 | Z29: =INDEX($A$1:$AB$488, $J$15*$J$16 + ROW(Z29), COLUMN(Z29)) -> 60.70294478 | AA29: =INDEX($A$1:$AB$488, $J$15*$J$16 + ROW(AA29), COLUMN(AA29)) -> 62.18927315 | AB29: =INDEX($A$1:$AB$488, $J$15*$J$16 + ROW(AB29), COLUMN(AB29)) -> 62.80444574
E30: 4 | F30: =INDEX(_DriversList,$E30) -> HEx pax | H30: million pax | K30: =INDEX($A$1:$AB$488, $J$15*$J$16 + ROW(K30), COLUMN(K30)) -> 0 | L30: =INDEX($A$1:$AB$488, $J$15*$J$16 + ROW(L30), COLUMN(L30)) -> 0 | M30: =INDEX($A$1:$AB$488, $J$15*$J$16 + ROW(M30), COLUMN(M30)) -> 0 | N30: =INDEX($A$1:$AB$488, $J$15*$J$16 + ROW(N30), COLUMN(N30)) -> 0 | O30: =INDEX($A$1:$AB$488, $J$15*$J$16 + ROW(O30), COLUMN(O30)) -> 0 | P30: =INDEX($A$1:$AB$488, $J$15*$J$16 + ROW(P30), COLUMN(P30)) -> 0 | Q30: =INDEX($A$1:$AB$488, $J$15*$J$16 + ROW(Q30), COLUMN(Q30)) -> 0 | R30: =INDEX($A$1:$AB$488, $J$15*$J$16 + ROW(R30), COLUMN(R30)) -> 0 | S30: =INDEX($A$1:$AB$488, $J$15*$J$16 + ROW(S30), COLUMN(S30)) -> 0 | T30: =INDEX($A$1:$AB$488, $J$15*$J$16 + ROW(T30), COLUMN(T30)) -> 0 | U30: =INDEX($A$1:$AB$488, $J$15*$J$16 + ROW(U30), COLUMN(U30)) -> 5.322231074 | V30: =INDEX($A$1:$AB$488, $J$15*$J$16 + ROW(V30), COLUMN(V30)) -> 1.158485548 | W30: =INDEX($A$1:$AB$488, $J$15*$J$16 + ROW(W30), COLUMN(W30)) -> 0.8634464902 | X30: =INDEX($A$1:$AB$488, $J$15*$J$16 + ROW(X30), COLUMN(X30)) -> 3.597387702 | Y30: =INDEX($A$1:$AB$488, $J$15*$J$16 + ROW(Y30), COLUMN(Y30)) -> 3.866216007 | Z30: =INDEX($A$1:$AB$488, $J$15*$J$16 + ROW(Z30), COLUMN(Z30)) -> 4.201352157 | AA30: =INDEX($A$1:$AB$488, $J$15*$J$16 + ROW(AA30), COLUMN(AA30)) -> 4.355934208 | AB30: =INDEX($A$1:$AB$488, $J$15*$J$16 + ROW(AB30), COLUMN(AB30)) -> 4.405526401
E31: 5 | F31: =INDEX(_DriversList,$E31) -> Parking/rental pax | H31: million pax | K31: =INDEX($A$1:$AB$488, $J$15*$J$16 + ROW(K31), COLUMN(K31)) -> 0 | L31: =INDEX($A$1:$AB$488, $J$15*$J$16 + ROW(L31), COLUMN(L31)) -> 0 | M31: =INDEX($A$1:$AB$488, $J$15*$J$16 + ROW(M31), COLUMN(M31)) -> 0 | N31: =INDEX($A$1:$AB$488, $J$15*$J$16 + ROW(N31), COLUMN(N31)) -> 0 | O31: =INDEX($A$1:$AB$488, $J$15*$J$16 + ROW(O31), COLUMN(O31)) -> 0 | P31: =INDEX($A$1:$AB$488, $J$15*$J$16 + ROW(P31), COLUMN(P31)) -> 0 | Q31: =INDEX($A$1:$AB$488, $J$15*$J$16 + ROW(Q31), COLUMN(Q31)) -> 0 | R31: =INDEX($A$1:$AB$488, $J$15*$J$16 + ROW(R31), COLUMN(R31)) -> 0 | S31: =INDEX($A$1:$AB$488, $J$15*$J$16 + ROW(S31), COLUMN(S31)) -> 0 | T31: =INDEX($A$1:$AB$488, $J$15*$J$16 + ROW(T31), COLUMN(T31)) -> 0 | U31: =INDEX($A$1:$AB$488, $J$15*$J$16 + ROW(U31), COLUMN(U31)) -> 5.581824853 | V31: =INDEX($A$1:$AB$488, $J$15*$J$16 + ROW(V31), COLUMN(V31)) -> 1.47316213 | W31: =INDEX($A$1:$AB$488, $J$15*$J$16 + ROW(W31), COLUMN(W31)) -> 1.478765678 | X31: =INDEX($A$1:$AB$488, $J$15*$J$16 + ROW(X31), COLUMN(X31)) -> 4.456545869 | Y31: =INDEX($A$1:$AB$488, $J$15*$J$16 + ROW(Y31), COLUMN(Y31)) -> 5.057078783 | Z31: =INDEX($A$1:$AB$488, $J$15*$J$16 + ROW(Z31), COLUMN(Z31)) -> 5.43142383 | AA31: =INDEX($A$1:$AB$488, $J$15*$J$16 + ROW(AA31), COLUMN(AA31)) -> 5.551685018 | AB31: =INDEX($A$1:$AB$488, $J$15*$J$16 + ROW(AB31), COLUMN(AB31)) -> 5.604318564
E32: 6 | F32: =INDEX(_DriversList,$E32) -> UK pax | H32: million pax | K32: =INDEX($A$1:$AB$488, $J$15*$J$16 + ROW(K32), COLUMN(K32)) -> 0 | L32: =INDEX($A$1:$AB$488, $J$15*$J$16 + ROW(L32), COLUMN(L32)) -> 0 | M32: =INDEX($A$1:$AB$488, $J$15*$J$16 + ROW(M32), COLUMN(M32)) -> 0 | N32: =INDEX($A$1:$AB$488, $J$15*$J$16 + ROW(N32), COLUMN(N32)) -> 0 | O32: =INDEX($A$1:$AB$488, $J$15*$J$16 + ROW(O32), COLUMN(O32)) -> 0 | P32: =INDEX($A$1:$AB$488, $J$15*$J$16 + ROW(P32), COLUMN(P32)) -> 5.281953406 | Q32: =INDEX($A$1:$AB$488, $J$15*$J$16 + ROW(Q32), COLUMN(Q32)) -> 5.141254713 | R32: =INDEX($A$1:$AB$488, $J$15*$J$16 + ROW(R32), COLUMN(R32)) -> 4.647586102 | S32: =INDEX($A$1:$AB$488, $J$15*$J$16 + ROW(S32), COLUMN(S32)) -> 4.801938797 | T32: =INDEX($A$1:$AB$488, $J$15*$J$16 + ROW(T32), COLUMN(T32)) -> 4.795000838 | U32: =INDEX($A$1:$AB$488, $J$15*$J$16 + ROW(U32), COLUMN(U32)) -> 4.8531756 | V32: =INDEX($A$1:$AB$488, $J$15*$J$16 + ROW(V32), COLUMN(V32)) -> 1.459708132 | W32: =INDEX($A$1:$AB$488, $J$15*$J$16 + ROW(W32), COLUMN(W32)) -> 1.387493721 | X32: =INDEX($A$1:$AB$488, $J$15*$J$16 + ROW(X32), COLUMN(X32)) -> 4.753411 | Y32: =INDEX($A$1:$AB$488, $J$15*$J$16 + ROW(Y32), COLUMN(Y32)) -> 4.299609 | Z32: =INDEX($A$1:$AB$488, $J$15*$J$16 + ROW(Z32), COLUMN(Z32)) -> 4.061243 | AA32: =INDEX($A$1:$AB$488, $J$15*$J$16 + ROW(AA32), COLUMN(AA32)) -> 3.889854 | AB32: =INDEX($A$1:$AB$488, $J$15*$J$16 + ROW(AB32), COLUMN(AB32)) -> 3.81263
E33: 7 | F33: =INDEX(_DriversList,$E33) -> EEA pax | H33: million pax | K33: =INDEX($A$1:$AB$488, $J$15*$J$16 + ROW(K33), COLUMN(K33)) -> 0 | L33: =INDEX($A$1:$AB$488, $J$15*$J$16 + ROW(L33), COLUMN(L33)) -> 0 | M33: =INDEX($A$1:$AB$488, $J$15*$J$16 + ROW(M33), COLUMN(M33)) -> 0 | N33: =INDEX($A$1:$AB$488, $J$15*$J$16 + ROW(N33), COLUMN(N33)) -> 0 | O33: =INDEX($A$1:$AB$488, $J$15*$J$16 + ROW(O33), COLUMN(O33)) -> 0 | P33: =INDEX($A$1:$AB$488, $J$15*$J$16 + ROW(P33), COLUMN(P33)) -> 27.97158832 | Q33: =INDEX($A$1:$AB$488, $J$15*$J$16 + ROW(Q33), COLUMN(Q33)) -> 29.07621344 | R33: =INDEX($A$1:$AB$488, $J$15*$J$16 + ROW(R33), COLUMN(R33)) -> 29.60364142 | S33: =INDEX($A$1:$AB$488, $J$15*$J$16 + ROW(S33), COLUMN(S33)) -> 30.31575745 | T33: =INDEX($A$1:$AB$488, $J$15*$J$16 + ROW(T33), COLUMN(T33)) -> 31.10100004 | U33: =INDEX($A$1:$AB$488, $J$15*$J$16 + ROW(U33), COLUMN(U33)) -> 30.97943758 | V33: =INDEX($A$1:$AB$488, $J$15*$J$16 + ROW(V33), COLUMN(V33)) -> 9.176532854 | W33: =INDEX($A$1:$AB$488, $J$15*$J$16 + ROW(W33), COLUMN(W33)) -> 8.128516192 | X33: =INDEX($A$1:$AB$488, $J$15*$J$16 + ROW(X33), COLUMN(X33)) -> 26.103504 | Y33: =INDEX($A$1:$AB$488, $J$15*$J$16 + ROW(Y33), COLUMN(Y33)) -> 29.442606 | Z33: =INDEX($A$1:$AB$488, $J$15*$J$16 + ROW(Z33), COLUMN(Z33)) -> 31.66115 | AA33: =INDEX($A$1:$AB$488, $J$15*$J$16 + ROW(AA33), COLUMN(AA33)) -> 31.741276 | AB33: =INDEX($A$1:$AB$488, $J$15*$J$16 + ROW(AB33), COLUMN(AB33)) -> 31.646847
E34: 8 | F34: =INDEX(_DriversList,$E34) -> Middle East pax | H34: million pax | K34: =INDEX($A$1:$AB$488, $J$15*$J$16 + ROW(K34), COLUMN(K34)) -> 0 | L34: =INDEX($A$1:$AB$488, $J$15*$J$16 + ROW(L34), COLUMN(L34)) -> 0 | M34: =INDEX($A$1:$AB$488, $J$15*$J$16 + ROW(M34), COLUMN(M34)) -> 0 | N34: =INDEX($A$1:$AB$488, $J$15*$J$16 + ROW(N34), COLUMN(N34)) -> 0 | O34: =INDEX($A$1:$AB$488, $J$15*$J$16 + ROW(O34), COLUMN(O34)) -> 0 | P34: =INDEX($A$1:$AB$488, $J$15*$J$16 + ROW(P34), COLUMN(P34)) -> 6.062503191 | Q34: =INDEX($A$1:$AB$488, $J$15*$J$16 + ROW(Q34), COLUMN(Q34)) -> 6.41357533 | R34: =INDEX($A$1:$AB$488, $J$15*$J$16 + ROW(R34), COLUMN(R34)) -> 6.971379154 | S34: =INDEX($A$1:$AB$488, $J$15*$J$16 + ROW(S34), COLUMN(S34)) -> 7.621902855 | T34: =INDEX($A$1:$AB$488, $J$15*$J$16 + ROW(T34), COLUMN(T34)) -> 7.660001339 | U34: =INDEX($A$1:$AB$488, $J$15*$J$16 + ROW(U34), COLUMN(U34)) -> 7.76508096 | V34: =INDEX($A$1:$AB$488, $J$15*$J$16 + ROW(V34), COLUMN(V34)) -> 2.462507623 | W34: =INDEX($A$1:$AB$488, $J$15*$J$16 + ROW(W34), COLUMN(W34)) -> 2.024921464 | X34: =INDEX($A$1:$AB$488, $J$15*$J$16 + ROW(X34), COLUMN(X34)) -> 6.010169 | Y34: =INDEX($A$1:$AB$488, $J$15*$J$16 + ROW(Y34), COLUMN(Y34)) -> 6.827772 | Z34: =INDEX($A$1:$AB$488, $J$15*$J$16 + ROW(Z34), COLUMN(Z34)) -> 7.404416 | AA34: =INDEX($A$1:$AB$488, $J$15*$J$16 + ROW(AA34), COLUMN(AA34)) -> 7.822469 | AB34: =INDEX($A$1:$AB$488, $J$15*$J$16 + ROW(AB34), COLUMN(AB34)) -> 8.093719
E35: 9 | F35: =INDEX(_DriversList,$E35) -> North America pax | H35: million pax | K35: =INDEX($A$1:$AB$488, $J$15*$J$16 + ROW(K35), COLUMN(K35)) -> 0 | L35: =INDEX($A$1:$AB$488, $J$15*$J$16 + ROW(L35), COLUMN(L35)) -> 0 | M35: =INDEX($A$1:$AB$488, $J$15*$J$16 + ROW(M35), COLUMN(M35)) -> 0 | N35: =INDEX($A$1:$AB$488, $J$15*$J$16 + ROW(N35), COLUMN(N35)) -> 0 | O35: =INDEX($A$1:$AB$488, $J$15*$J$16 + ROW(O35), COLUMN(O35)) -> 0 | P35: =INDEX($A$1:$AB$488, $J$15*$J$16 + ROW(P35), COLUMN(P35)) -> 16.98020594 | Q35: =INDEX($A$1:$AB$488, $J$15*$J$16 + ROW(Q35), COLUMN(Q35)) -> 17.27177735 | R35: =INDEX($A$1:$AB$488, $J$15*$J$16 + ROW(R35), COLUMN(R35)) -> 17.1790774 | S35: =INDEX($A$1:$AB$488, $J$15*$J$16 + ROW(S35), COLUMN(S35)) -> 17.35777877 | T35: =INDEX($A$1:$AB$488, $J$15*$J$16 + ROW(T35), COLUMN(T35)) -> 18.10000316 | U35: =INDEX($A$1:$AB$488, $J$15*$J$16 + ROW(U35), COLUMN(U35)) -> 18.84649858 | V35: =INDEX($A$1:$AB$488, $J$15*$J$16 + ROW(V35), COLUMN(V35)) -> 3.861227949 | W35: =INDEX($A$1:$AB$488, $J$15*$J$16 + ROW(W35), COLUMN(W35)) -> 3.902357463 | X35: =INDEX($A$1:$AB$488, $J$15*$J$16 + ROW(X35), COLUMN(X35)) -> 14.05062 | Y35: =INDEX($A$1:$AB$488, $J$15*$J$16 + ROW(Y35), COLUMN(Y35)) -> 18.004745 | Z35: =INDEX($A$1:$AB$488, $J$15*$J$16 + ROW(Z35), COLUMN(Z35)) -> 19.119201 | AA35: =INDEX($A$1:$AB$488, $J$15*$J$16 + ROW(AA35), COLUMN(AA35)) -> 19.124545 | AB35: =INDEX($A$1:$AB$488, $J$15*$J$16 + ROW(AB35), COLUMN(AB35)) -> 18.862266
E36: 10 | F36: =INDEX(_DriversList,$E36) -> Asia/Pacific pax | H36: million pax | K36: =INDEX($A$1:$AB$488, $J$15*$J$16 + ROW(K36), COLUMN(K36)) -> 0 | L36: =INDEX($A$1:$AB$488, $J$15*$J$16 + ROW(L36), COLUMN(L36)) -> 0 | M36: =INDEX($A$1:$AB$488, $J$15*$J$16 + ROW(M36), COLUMN(M36)) -> 0 | N36: =INDEX($A$1:$AB$488, $J$15*$J$16 + ROW(N36), COLUMN(N36)) -> 0 | O36: =INDEX($A$1:$AB$488, $J$15*$J$16 + ROW(O36), COLUMN(O36)) -> 0 | P36: =INDEX($A$1:$AB$488, $J$15*$J$16 + ROW(P36), COLUMN(P36)) -> 10.43698002 | Q36: =INDEX($A$1:$AB$488, $J$15*$J$16 + ROW(Q36), COLUMN(Q36)) -> 10.47040909 | R36: =INDEX($A$1:$AB$488, $J$15*$J$16 + ROW(R36), COLUMN(R36)) -> 10.76840703 | S36: =INDEX($A$1:$AB$488, $J$15*$J$16 + ROW(S36), COLUMN(S36)) -> 11.25785651 | T36: =INDEX($A$1:$AB$488, $J$15*$J$16 + ROW(T36), COLUMN(T36)) -> 11.53200202 | U36: =INDEX($A$1:$AB$488, $J$15*$J$16 + ROW(U36), COLUMN(U36)) -> 11.3240764 | V36: =INDEX($A$1:$AB$488, $J$15*$J$16 + ROW(V36), COLUMN(V36)) -> 2.910418063 | W36: =INDEX($A$1:$AB$488, $J$15*$J$16 + ROW(W36), COLUMN(W36)) -> 2.180878119 | X36: =INDEX($A$1:$AB$488, $J$15*$J$16 + ROW(X36), COLUMN(X36)) -> 5.752404 | Y36: =INDEX($A$1:$AB$488, $J$15*$J$16 + ROW(Y36), COLUMN(Y36)) -> 8.060006 | Z36: =INDEX($A$1:$AB$488, $J$15*$J$16 + ROW(Z36), COLUMN(Z36)) -> 9.755756 | AA36: =INDEX($A$1:$AB$488, $J$15*$J$16 + ROW(AA36), COLUMN(AA36)) -> 11.007722 | AB36: =INDEX($A$1:$AB$488, $J$15*$J$16 + ROW(AB36), COLUMN(AB36)) -> 11.799806
E37: 11 | F37: =INDEX(_DriversList,$E37) -> Other pax | H37: million pax | K37: =INDEX($A$1:$AB$488, $J$15*$J$16 + ROW(K37), COLUMN(K37)) -> 0 | L37: =INDEX($A$1:$AB$488, $J$15*$J$16 + ROW(L37), COLUMN(L37)) -> 0 | M37: =INDEX($A$1:$AB$488, $J$15*$J$16 + ROW(M37), COLUMN(M37)) -> 0 | N37: =INDEX($A$1:$AB$488, $J$15*$J$16 + ROW(N37), COLUMN(N37)) -> 0 | O37: =INDEX($A$1:$AB$488, $J$15*$J$16 + ROW(O37), COLUMN(O37)) -> 0 | P37: =INDEX($A$1:$AB$488, $J$15*$J$16 + ROW(P37), COLUMN(P37)) -> 6.641447119 | Q37: =INDEX($A$1:$AB$488, $J$15*$J$16 + ROW(Q37), COLUMN(Q37)) -> 6.585744074 | R37: =INDEX($A$1:$AB$488, $J$15*$J$16 + ROW(R37), COLUMN(R37)) -> 6.505603889 | S37: =INDEX($A$1:$AB$488, $J$15*$J$16 + ROW(S37), COLUMN(S37)) -> 6.632771623 | T37: =INDEX($A$1:$AB$488, $J$15*$J$16 + ROW(T37), COLUMN(T37)) -> 6.914006609 | U37: =INDEX($A$1:$AB$488, $J$15*$J$16 + ROW(U37), COLUMN(U37)) -> 7.11799088 | V37: =INDEX($A$1:$AB$488, $J$15*$J$16 + ROW(V37), COLUMN(V37)) -> 2.235185378 | W37: =INDEX($A$1:$AB$488, $J$15*$J$16 + ROW(W37), COLUMN(W37)) -> 1.768978199 | X37: =INDEX($A$1:$AB$488, $J$15*$J$16 + ROW(X37), COLUMN(X37)) -> 5.016293 | Y37: =INDEX($A$1:$AB$488, $J$15*$J$16 + ROW(Y37), COLUMN(Y37)) -> 6.374031 | Z37: =INDEX($A$1:$AB$488, $J$15*$J$16 + ROW(Z37), COLUMN(Z37)) -> 6.888939 | AA37: =INDEX($A$1:$AB$488, $J$15*$J$16 + ROW(AA37), COLUMN(AA37)) -> 7.067696 | AB37: =INDEX($A$1:$AB$488, $J$15*$J$16 + ROW(AB37), COLUMN(AB37)) -> 7.102928
E38: 12 | F38: =INDEX(_DriversList,$E38) -> No Elasticity | H38: # | K38: =INDEX($A$1:$AB$488, $J$15*$J$16 + ROW(K38), COLUMN(K38)) -> 0 | L38: =INDEX($A$1:$AB$488, $J$15*$J$16 + ROW(L38), COLUMN(L38)) -> 0 | M38: =INDEX($A$1:$AB$488, $J$15*$J$16 + ROW(M38), COLUMN(M38)) -> 0 | N38: =INDEX($A$1:$AB$488, $J$15*$J$16 + ROW(N38), COLUMN(N38)) -> 0 | O38: =INDEX($A$1:$AB$488, $J$15*$J$16 + ROW(O38), COLUMN(O38)) -> 0 | P38: =INDEX($A$1:$AB$488, $J$15*$J$16 + ROW(P38), COLUMN(P38)) -> 0 | Q38: =INDEX($A$1:$AB$488, $J$15*$J$16 + ROW(Q38), COLUMN(Q38)) -> 0 | R38: =INDEX($A$1:$AB$488, $J$15*$J$16 + ROW(R38), COLUMN(R38)) -> 0 | S38: =INDEX($A$1:$AB$488, $J$15*$J$16 + ROW(S38), COLUMN(S38)) -> 0 | T38: =INDEX($A$1:$AB$488, $J$15*$J$16 + ROW(T38), COLUMN(T38)) -> 0 | U38: =INDEX($A$1:$AB$488, $J$15*$J$16 + ROW(U38), COLUMN(U38)) -> 0 | V38: =INDEX($A$1:$AB$488, $J$15*$J$16 + ROW(V38), COLUMN(V38)) -> 0 | W38: =INDEX($A$1:$AB$488, $J$15*$J$16 + ROW(W38), COLUMN(W38)) -> 0 | X38: =INDEX($A$1:$AB$488, $J$15*$J$16 + ROW(X38), COLUMN(X38)) -> 0 | Y38: =INDEX($A$1:$AB$488, $J$15*$J$16 + ROW(Y38), COLUMN(Y38)) -> 0 | Z38: =INDEX($A$1:$AB$488, $J$15*$J$16 + ROW(Z38), COLUMN(Z38)) -> 0 | AA38: =INDEX($A$1:$AB$488, $J$15*$J$16 + ROW(AA38), COLUMN(AA38)) -> 0 | AB38: =INDEX($A$1:$AB$488, $J$15*$J$16 + ROW(AB38), COLUMN(AB38)) -> 0
E39: 13 | F39: =INDEX(_DriversList,$E39) -> TDOC pax | H39: million pax | K39: =INDEX($A$1:$AB$488, $J$15*$J$16 + ROW(K39), COLUMN(K39)) -> 0 | L39: =INDEX($A$1:$AB$488, $J$15*$J$16 + ROW(L39), COLUMN(L39)) -> 0 | M39: =INDEX($A$1:$AB$488, $J$15*$J$16 + ROW(M39), COLUMN(M39)) -> 0 | N39: =INDEX($A$1:$AB$488, $J$15*$J$16 + ROW(N39), COLUMN(N39)) -> 0 | O39: =INDEX($A$1:$AB$488, $J$15*$J$16 + ROW(O39), COLUMN(O39)) -> 0 | P39: =INDEX($A$1:$AB$488, $J$15*$J$16 + ROW(P39), COLUMN(P39)) -> 0 | Q39: =INDEX($A$1:$AB$488, $J$15*$J$16 + ROW(Q39), COLUMN(Q39)) -> 0 | R39: =INDEX($A$1:$AB$488, $J$15*$J$16 + ROW(R39), COLUMN(R39)) -> 0 | S39: =INDEX($A$1:$AB$488, $J$15*$J$16 + ROW(S39), COLUMN(S39)) -> 0 | T39: =INDEX($A$1:$AB$488, $J$15*$J$16 + ROW(T39), COLUMN(T39)) -> 0 | U39: =INDEX($A$1:$AB$488, $J$15*$J$16 + ROW(U39), COLUMN(U39)) -> 20.67488671 | V39: =INDEX($A$1:$AB$488, $J$15*$J$16 + ROW(V39), COLUMN(V39)) -> 6.643380293 | W39: =INDEX($A$1:$AB$488, $J$15*$J$16 + ROW(W39), COLUMN(W39)) -> 6.423344159 | X39: =INDEX($A$1:$AB$488, $J$15*$J$16 + ROW(X39), COLUMN(X39)) -> 16.4568821 | Y39: =INDEX($A$1:$AB$488, $J$15*$J$16 + ROW(Y39), COLUMN(Y39)) -> 17.64321222 | Z39: =INDEX($A$1:$AB$488, $J$15*$J$16 + ROW(Z39), COLUMN(Z39)) -> 18.25060515 | AA39: =INDEX($A$1:$AB$488, $J$15*$J$16 + ROW(AA39), COLUMN(AA39)) -> 18.52841127 | AB39: =INDEX($A$1:$AB$488, $J$15*$J$16 + ROW(AB39), COLUMN(AB39)) -> 18.69108232
C41: ="Cost / Revenue Driver (change vs. " &_ComparatorYear & ")" -> Cost / Revenue Driver (change vs. 2019)
E43: 1 | F43: =INDEX(_DriversList,$E43) -> Total Passengers | H43: % | P43: =INDEX($A$1:$AB$488, $J$15*$J$16 + ROW(P43), COLUMN(P43)) -> 0 | Q43: =INDEX($A$1:$AB$488, $J$15*$J$16 + ROW(Q43), COLUMN(Q43)) -> 0 | R43: =INDEX($A$1:$AB$488, $J$15*$J$16 + ROW(R43), COLUMN(R43)) -> 0 | S43: =INDEX($A$1:$AB$488, $J$15*$J$16 + ROW(S43), COLUMN(S43)) -> 0 | T43: =INDEX($A$1:$AB$488, $J$15*$J$16 + ROW(T43), COLUMN(T43)) -> 0 | U43: =INDEX($A$1:$AB$488, $J$15*$J$16 + ROW(U43), COLUMN(U43)) -> 0 | V43: =INDEX($A$1:$AB$488, $J$15*$J$16 + ROW(V43), COLUMN(V43)) -> 0 | W43: =INDEX($A$1:$AB$488, $J$15*$J$16 + ROW(W43), COLUMN(W43)) -> -0.7602417889 | X43: =INDEX($A$1:$AB$488, $J$15*$J$16 + ROW(X43), COLUMN(X43)) -> -0.2373686211 | Y43: =INDEX($A$1:$AB$488, $J$15*$J$16 + ROW(Y43), COLUMN(Y43)) -> -0.09738972973 | Z43: =INDEX($A$1:$AB$488, $J$15*$J$16 + ROW(Z43), COLUMN(Z43)) -> -0.02467112461 | AA43: =INDEX($A$1:$AB$488, $J$15*$J$16 + ROW(AA43), COLUMN(AA43)) -> -0.00287686685 | AB43: =INDEX($A$1:$AB$488, $J$15*$J$16 + ROW(AB43), COLUMN(AB43)) -> 0.005340066409
E44: 2 | F44: =INDEX(_DriversList,$E44) -> Utilised Terminal Area | H44: % | P44: =INDEX($A$1:$AB$488, $J$15*$J$16 + ROW(P44), COLUMN(P44)) -> 0 | Q44: =INDEX($A$1:$AB$488, $J$15*$J$16 + ROW(Q44), COLUMN(Q44)) -> 0 | R44: =INDEX($A$1:$AB$488, $J$15*$J$16 + ROW(R44), COLUMN(R44)) -> 0 | S44: =INDEX($A$1:$AB$488, $J$15*$J$16 + ROW(S44), COLUMN(S44)) -> 0 | T44: =INDEX($A$1:$AB$488, $J$15*$J$16 + ROW(T44), COLUMN(T44)) -> 0 | U44: =INDEX($A$1:$AB$488, $J$15*$J$16 + ROW(U44), COLUMN(U44)) -> 0 | V44: =INDEX($A$1:$AB$488, $J$15*$J$16 + ROW(V44), COLUMN(V44)) -> 0 | W44: =INDEX($A$1:$AB$488, $J$15*$J$16 + ROW(W44), COLUMN(W44)) -> -0.2725438729 | X44: =INDEX($A$1:$AB$488, $J$15*$J$16 + ROW(X44), COLUMN(X44)) -> -0.09293413892 | Y44: =INDEX($A$1:$AB$488, $J$15*$J$16 + ROW(Y44), COLUMN(Y44)) -> 0 | Z44: =INDEX($A$1:$AB$488, $J$15*$J$16 + ROW(Z44), COLUMN(Z44)) -> 0 | AA44: =INDEX($A$1:$AB$488, $J$15*$J$16 + ROW(AA44), COLUMN(AA44)) -> 0 | AB44: =INDEX($A$1:$AB$488, $J$15*$J$16 + ROW(AB44), COLUMN(AB44)) -> 0
E45: 3 | F45: =INDEX(_DriversList,$E45) -> OD pax | H45: % | P45: =INDEX($A$1:$AB$488, $J$15*$J$16 + ROW(P45), COLUMN(P45)) -> 0 | Q45: =INDEX($A$1:$AB$488, $J$15*$J$16 + ROW(Q45), COLUMN(Q45)) -> 0 | R45: =INDEX($A$1:$AB$488, $J$15*$J$16 + ROW(R45), COLUMN(R45)) -> 0 | S45: =INDEX($A$1:$AB$488, $J$15*$J$16 + ROW(S45), COLUMN(S45)) -> 0 | T45: =INDEX($A$1:$AB$488, $J$15*$J$16 + ROW(T45), COLUMN(T45)) -> 0 | U45: =INDEX($A$1:$AB$488, $J$15*$J$16 + ROW(U45), COLUMN(U45)) -> 0 | V45: =INDEX($A$1:$AB$488, $J$15*$J$16 + ROW(V45), COLUMN(V45)) -> 0 | W45: =INDEX($A$1:$AB$488, $J$15*$J$16 + ROW(W45), COLUMN(W45)) -> -0.7567806931 | X45: =INDEX($A$1:$AB$488, $J$15*$J$16 + ROW(X45), COLUMN(X45)) -> -0.2422482855 | Y45: =INDEX($A$1:$AB$488, $J$15*$J$16 + ROW(Y45), COLUMN(Y45)) -> -0.101468477 | Z45: =INDEX($A$1:$AB$488, $J$15*$J$16 + ROW(Z45), COLUMN(Z45)) -> -0.02590737971 | AA45: =INDEX($A$1:$AB$488, $J$15*$J$16 + ROW(AA45), COLUMN(AA45)) -> -0.002056452891 | AB45: =INDEX($A$1:$AB$488, $J$15*$J$16 + ROW(AB45), COLUMN(AB45)) -> 0.007815145248
E46: 4 | F46: =INDEX(_DriversList,$E46) -> HEx pax | H46: % | P46: =INDEX($A$1:$AB$488, $J$15*$J$16 + ROW(P46), COLUMN(P46)) -> 0 | Q46: =INDEX($A$1:$AB$488, $J$15*$J$16 + ROW(Q46), COLUMN(Q46)) -> 0 | R46: =INDEX($A$1:$AB$488, $J$15*$J$16 + ROW(R46), COLUMN(R46)) -> 0 | S46: =INDEX($A$1:$AB$488, $J$15*$J$16 + ROW(S46), COLUMN(S46)) -> 0 | T46: =INDEX($A$1:$AB$488, $J$15*$J$16 + ROW(T46), COLUMN(T46)) -> 0 | U46: =INDEX($A$1:$AB$488, $J$15*$J$16 + ROW(U46), COLUMN(U46)) -> 0 | V46: =INDEX($A$1:$AB$488, $J$15*$J$16 + ROW(V46), COLUMN(V46)) -> 0 | W46: =INDEX($A$1:$AB$488, $J$15*$J$16 + ROW(W46), COLUMN(W46)) -> -0.837766065 | X46: =INDEX($A$1:$AB$488, $J$15*$J$16 + ROW(X46), COLUMN(X46)) -> -0.3240827668 | Y46: =INDEX($A$1:$AB$488, $J$15*$J$16 + ROW(Y46), COLUMN(Y46)) -> -0.2735723134 | Z46: =INDEX($A$1:$AB$488, $J$15*$J$16 + ROW(Z46), COLUMN(Z46)) -> -0.2106032041 | AA46: =INDEX($A$1:$AB$488, $J$15*$J$16 + ROW(AA46), COLUMN(AA46)) -> -0.1815586082 | AB46: =INDEX($A$1:$AB$488, $J$15*$J$16 + ROW(AB46), COLUMN(AB46)) -> -0.1722406751
E47: 5 | F47: =INDEX(_DriversList,$E47) -> Parking/rental pax | H47: % | P47: =INDEX($A$1:$AB$488, $J$15*$J$16 + ROW(P47), COLUMN(P47)) -> 0 | Q47: =INDEX($A$1:$AB$488, $J$15*$J$16 + ROW(Q47), COLUMN(Q47)) -> 0 | R47: =INDEX($A$1:$AB$488, $J$15*$J$16 + ROW(R47), COLUMN(R47)) -> 0 | S47: =INDEX($A$1:$AB$488, $J$15*$J$16 + ROW(S47), COLUMN(S47)) -> 0 | T47: =INDEX($A$1:$AB$488, $J$15*$J$16 + ROW(T47), COLUMN(T47)) -> 0 | U47: =INDEX($A$1:$AB$488, $J$15*$J$16 + ROW(U47), COLUMN(U47)) -> 0 | V47: =INDEX($A$1:$AB$488, $J$15*$J$16 + ROW(V47), COLUMN(V47)) -> 0 | W47: =INDEX($A$1:$AB$488, $J$15*$J$16 + ROW(W47), COLUMN(W47)) -> -0.7350748694 | X47: =INDEX($A$1:$AB$488, $J$15*$J$16 + ROW(X47), COLUMN(X47)) -> -0.2015969713 | Y47: =INDEX($A$1:$AB$488, $J$15*$J$16 + ROW(Y47), COLUMN(Y47)) -> -0.09400977003 | Z47: =INDEX($A$1:$AB$488, $J$15*$J$16 + ROW(Z47), COLUMN(Z47)) -> -0.02694477656 | AA47: =INDEX($A$1:$AB$488, $J$15*$J$16 + ROW(AA47), COLUMN(AA47)) -> -0.005399638342 | AB47: =INDEX($A$1:$AB$488, $J$15*$J$16 + ROW(AB47), COLUMN(AB47)) -> 0.004029813106
E48: 6 | F48: =INDEX(_DriversList,$E48) -> UK pax | H48: % | P48: =INDEX($A$1:$AB$488, $J$15*$J$16 + ROW(P48), COLUMN(P48)) -> 0 | Q48: =INDEX($A$1:$AB$488, $J$15*$J$16 + ROW(Q48), COLUMN(Q48)) -> 0 | R48: =INDEX($A$1:$AB$488, $J$15*$J$16 + ROW(R48), COLUMN(R48)) -> 0 | S48: =INDEX($A$1:$AB$488, $J$15*$J$16 + ROW(S48), COLUMN(S48)) -> 0 | T48: =INDEX($A$1:$AB$488, $J$15*$J$16 + ROW(T48), COLUMN(T48)) -> 0 | U48: =INDEX($A$1:$AB$488, $J$15*$J$16 + ROW(U48), COLUMN(U48)) -> 0 | V48: =INDEX($A$1:$AB$488, $J$15*$J$16 + ROW(V48), COLUMN(V48)) -> 0 | W48: =INDEX($A$1:$AB$488, $J$15*$J$16 + ROW(W48), COLUMN(W48)) -> -0.7141060132 | X48: =INDEX($A$1:$AB$488, $J$15*$J$16 + ROW(X48), COLUMN(X48)) -> -0.02055656095 | Y48: =INDEX($A$1:$AB$488, $J$15*$J$16 + ROW(Y48), COLUMN(Y48)) -> -0.1140627592 | Z48: =INDEX($A$1:$AB$488, $J$15*$J$16 + ROW(Z48), COLUMN(Z48)) -> -0.1631782291 | AA48: =INDEX($A$1:$AB$488, $J$15*$J$16 + ROW(AA48), COLUMN(AA48)) -> -0.1984930444 | AB48: =INDEX($A$1:$AB$488, $J$15*$J$16 + ROW(AB48), COLUMN(AB48)) -> -0.2144051
E49: 7 | F49: =INDEX(_DriversList,$E49) -> EEA pax | H49: % | P49: =INDEX($A$1:$AB$488, $J$15*$J$16 + ROW(P49), COLUMN(P49)) -> 0 | Q49: =INDEX($A$1:$AB$488, $J$15*$J$16 + ROW(Q49), COLUMN(Q49)) -> 0 | R49: =INDEX($A$1:$AB$488, $J$15*$J$16 + ROW(R49), COLUMN(R49)) -> 0 | S49: =INDEX($A$1:$AB$488, $J$15*$J$16 + ROW(S49), COLUMN(S49)) -> 0 | T49: =INDEX($A$1:$AB$488, $J$15*$J$16 + ROW(T49), COLUMN(T49)) -> 0 | U49: =INDEX($A$1:$AB$488, $J$15*$J$16 + ROW(U49), COLUMN(U49)) -> 0 | V49: =INDEX($A$1:$AB$488, $J$15*$J$16 + ROW(V49), COLUMN(V49)) -> 0 | W49: =INDEX($A$1:$AB$488, $J$15*$J$16 + ROW(W49), COLUMN(W49)) -> -0.7376157598 | X49: =INDEX($A$1:$AB$488, $J$15*$J$16 + ROW(X49), COLUMN(X49)) -> -0.1573925791 | Y49: =INDEX($A$1:$AB$488, $J$15*$J$16 + ROW(Y49), COLUMN(Y49)) -> -0.04960811751 | Z49: =INDEX($A$1:$AB$488, $J$15*$J$16 + ROW(Z49), COLUMN(Z49)) -> 0.02200531944 | AA49: =INDEX($A$1:$AB$488, $J$15*$J$16 + ROW(AA49), COLUMN(AA49)) -> 0.0245917447 | AB49: =INDEX($A$1:$AB$488, $J$15*$J$16 + ROW(AB49), COLUMN(AB49)) -> 0.0215436261
E50: 8 | F50: =INDEX(_DriversList,$E50) -> Middle East pax | H50: % | P50: =INDEX($A$1:$AB$488, $J$15*$J$16 + ROW(P50), COLUMN(P50)) -> 0 | Q50: =INDEX($A$1:$AB$488, $J$15*$J$16 + ROW(Q50), COLUMN(Q50)) -> 0 | R50: =INDEX($A$1:$AB$488, $J$15*$J$16 + ROW(R50), COLUMN(R50)) -> 0 | S50: =INDEX($A$1:$AB$488, $J$15*$J$16 + ROW(S50), COLUMN(S50)) -> 0 | T50: =INDEX($A$1:$AB$488, $J$15*$J$16 + ROW(T50), COLUMN(T50)) -> 0 | U50: =INDEX($A$1:$AB$488, $J$15*$J$16 + ROW(U50), COLUMN(U50)) -> 0 | V50: =INDEX($A$1:$AB$488, $J$15*$J$16 + ROW(V50), COLUMN(V50)) -> 0 | W50: =INDEX($A$1:$AB$488, $J$15*$J$16 + ROW(W50), COLUMN(W50)) -> -0.7392272567 | X50: =INDEX($A$1:$AB$488, $J$15*$J$16 + ROW(X50), COLUMN(X50)) -> -0.2260004717 | Y50: =INDEX($A$1:$AB$488, $J$15*$J$16 + ROW(Y50), COLUMN(Y50)) -> -0.1207082019 | Z50: =INDEX($A$1:$AB$488, $J$15*$J$16 + ROW(Z50), COLUMN(Z50)) -> -0.04644703151 | AA50: =INDEX($A$1:$AB$488, $J$15*$J$16 + ROW(AA50), COLUMN(AA50)) -> 0.007390526937 | AB50: =INDEX($A$1:$AB$488, $J$15*$J$16 + ROW(AB50), COLUMN(AB50)) -> 0.04232255165
E51: 9 | F51: =INDEX(_DriversList,$E51) -> North America pax | H51: % | P51: =INDEX($A$1:$AB$488, $J$15*$J$16 + ROW(P51), COLUMN(P51)) -> 0 | Q51: =INDEX($A$1:$AB$488, $J$15*$J$16 + ROW(Q51), COLUMN(Q51)) -> 0 | R51: =INDEX($A$1:$AB$488, $J$15*$J$16 + ROW(R51), COLUMN(R51)) -> 0 | S51: =INDEX($A$1:$AB$488, $J$15*$J$16 + ROW(S51), COLUMN(S51)) -> 0 | T51: =INDEX($A$1:$AB$488, $J$15*$J$16 + ROW(T51), COLUMN(T51)) -> 0 | U51: =INDEX($A$1:$AB$488, $J$15*$J$16 + ROW(U51), COLUMN(U51)) -> 0 | V51: =INDEX($A$1:$AB$488, $J$15*$J$16 + ROW(V51), COLUMN(V51)) -> 0 | W51: =INDEX($A$1:$AB$488, $J$15*$J$16 + ROW(W51), COLUMN(W51)) -> -0.7929399222 | X51: =INDEX($A$1:$AB$488, $J$15*$J$16 + ROW(X51), COLUMN(X51)) -> -0.2544705352 | Y51: =INDEX($A$1:$AB$488, $J$15*$J$16 + ROW(Y51), COLUMN(Y51)) -> -0.04466365869 | Z51: =INDEX($A$1:$AB$488, $J$15*$J$16 + ROW(Z51), COLUMN(Z51)) -> 0.01446965965 | AA51: =INDEX($A$1:$AB$488, $J$15*$J$16 + ROW(AA51), COLUMN(AA51)) -> 0.01475321364 | AB51: =INDEX($A$1:$AB$488, $J$15*$J$16 + ROW(AB51), COLUMN(AB51)) -> 0.0008366233087
E52: 10 | F52: =INDEX(_DriversList,$E52) -> Asia/Pacific pax | H52: % | P52: =INDEX($A$1:$AB$488, $J$15*$J$16 + ROW(P52), COLUMN(P52)) -> 0 | Q52: =INDEX($A$1:$AB$488, $J$15*$J$16 + ROW(Q52), COLUMN(Q52)) -> 0 | R52: =INDEX($A$1:$AB$488, $J$15*$J$16 + ROW(R52), COLUMN(R52)) -> 0 | S52: =INDEX($A$1:$AB$488, $J$15*$J$16 + ROW(S52), COLUMN(S52)) -> 0 | T52: =INDEX($A$1:$AB$488, $J$15*$J$16 + ROW(T52), COLUMN(T52)) -> 0 | U52: =INDEX($A$1:$AB$488, $J$15*$J$16 + ROW(U52), COLUMN(U52)) -> 0 | V52: =INDEX($A$1:$AB$488, $J$15*$J$16 + ROW(V52), COLUMN(V52)) -> 0 | W52: =INDEX($A$1:$AB$488, $J$15*$J$16 + ROW(W52), COLUMN(W52)) -> -0.8074122743 | X52: =INDEX($A$1:$AB$488, $J$15*$J$16 + ROW(X52), COLUMN(X52)) -> -0.4920200291 | Y52: =INDEX($A$1:$AB$488, $J$15*$J$16 + ROW(Y52), COLUMN(Y52)) -> -0.2882416441 | Z52: =INDEX($A$1:$AB$488, $J$15*$J$16 + ROW(Z52), COLUMN(Z52)) -> -0.1384943323 | AA52: =INDEX($A$1:$AB$488, $J$15*$J$16 + ROW(AA52), COLUMN(AA52)) -> -0.02793644169 | AB52: =INDEX($A$1:$AB$488, $J$15*$J$16 + ROW(AB52), COLUMN(AB52)) -> 0.04201045482
E53: 11 | F53: =INDEX(_DriversList,$E53) -> Other pax | H53: % | P53: =INDEX($A$1:$AB$488, $J$15*$J$16 + ROW(P53), COLUMN(P53)) -> 0 | Q53: =INDEX($A$1:$AB$488, $J$15*$J$16 + ROW(Q53), COLUMN(Q53)) -> 0 | R53: =INDEX($A$1:$AB$488, $J$15*$J$16 + ROW(R53), COLUMN(R53)) -> 0 | S53: =INDEX($A$1:$AB$488, $J$15*$J$16 + ROW(S53), COLUMN(S53)) -> 0 | T53: =INDEX($A$1:$AB$488, $J$15*$J$16 + ROW(T53), COLUMN(T53)) -> 0 | U53: =INDEX($A$1:$AB$488, $J$15*$J$16 + ROW(U53), COLUMN(U53)) -> 0 | V53: =INDEX($A$1:$AB$488, $J$15*$J$16 + ROW(V53), COLUMN(V53)) -> 0 | W53: =INDEX($A$1:$AB$488, $J$15*$J$16 + ROW(W53), COLUMN(W53)) -> -0.7514778778 | X53: =INDEX($A$1:$AB$488, $J$15*$J$16 + ROW(X53), COLUMN(X53)) -> -0.2952656045 | Y53: =INDEX($A$1:$AB$488, $J$15*$J$16 + ROW(Y53), COLUMN(Y53)) -> -0.1045182401 | Z53: =INDEX($A$1:$AB$488, $J$15*$J$16 + ROW(Z53), COLUMN(Z53)) -> -0.03217928821 | AA53: =INDEX($A$1:$AB$488, $J$15*$J$16 + ROW(AA53), COLUMN(AA53)) -> -0.007065881489 | AB53: =INDEX($A$1:$AB$488, $J$15*$J$16 + ROW(AB53), COLUMN(AB53)) -> -0.002116170174
E54: 12 | F54: =INDEX(_DriversList,$E54) -> No Elasticity | H54: % | P54: =INDEX($A$1:$AB$488, $J$15*$J$16 + ROW(P54), COLUMN(P54)) -> 0 | Q54: =INDEX($A$1:$AB$488, $J$15*$J$16 + ROW(Q54), COLUMN(Q54)) -> 0 | R54: =INDEX($A$1:$AB$488, $J$15*$J$16 + ROW(R54), COLUMN(R54)) -> 0 | S54: =INDEX($A$1:$AB$488, $J$15*$J$16 + ROW(S54), COLUMN(S54)) -> 0 | T54: =INDEX($A$1:$AB$488, $J$15*$J$16 + ROW(T54), COLUMN(T54)) -> 0 | U54: =INDEX($A$1:$AB$488, $J$15*$J$16 + ROW(U54), COLUMN(U54)) -> 0 | V54: =INDEX($A$1:$AB$488, $J$15*$J$16 + ROW(V54), COLUMN(V54)) -> 0 | W54: =INDEX($A$1:$AB$488, $J$15*$J$16 + ROW(W54), COLUMN(W54)) -> 0 | X54: =INDEX($A$1:$AB$488, $J$15*$J$16 + ROW(X54), COLUMN(X54)) -> 0 | Y54: =INDEX($A$1:$AB$488, $J$15*$J$16 + ROW(Y54), COLUMN(Y54)) -> 0 | Z54: =INDEX($A$1:$AB$488, $J$15*$J$16 + ROW(Z54), COLUMN(Z54)) -> 0 | AA54: =INDEX($A$1:$AB$488, $J$15*$J$16 + ROW(AA54), COLUMN(AA54)) -> 0 | AB54: =INDEX($A$1:$AB$488, $J$15*$J$16 + ROW(AB54), COLUMN(AB54)) -> 0
E55: 13 | F55: =INDEX(_DriversList,$E55) -> TDOC pax | H55: % | P55: =INDEX($A$1:$AB$488, $J$15*$J$16 + ROW(P55), COLUMN(P55)) -> 0 | Q55: =INDEX($A$1:$AB$488, $J$15*$J$16 + ROW(Q55), COLUMN(Q55)) -> 0 | R55: =INDEX($A$1:$AB$488, $J$15*$J$16 + ROW(R55), COLUMN(R55)) -> 0 | S55: =INDEX($A$1:$AB$488, $J$15*$J$16 + ROW(S55), COLUMN(S55)) -> 0 | T55: =INDEX($A$1:$AB$488, $J$15*$J$16 + ROW(T55), COLUMN(T55)) -> 0 | U55: =INDEX($A$1:$AB$488, $J$15*$J$16 + ROW(U55), COLUMN(U55)) -> 0 | V55: =INDEX($A$1:$AB$488, $J$15*$J$16 + ROW(V55), COLUMN(V55)) -> 0 | W55: =INDEX($A$1:$AB$488, $J$15*$J$16 + ROW(W55), COLUMN(W55)) -> -0.689316597 | X55: =INDEX($A$1:$AB$488, $J$15*$J$16 + ROW(X55), COLUMN(X55)) -> -0.2040158511 | Y55: =INDEX($A$1:$AB$488, $J$15*$J$16 + ROW(Y55), COLUMN(Y55)) -> -0.1466356034 | Z55: =INDEX($A$1:$AB$488, $J$15*$J$16 + ROW(Z55), COLUMN(Z55)) -> -0.1172573079 | AA55: =INDEX($A$1:$AB$488, $J$15*$J$16 + ROW(AA55), COLUMN(AA55)) -> -0.1038204209 | AB55: =INDEX($A$1:$AB$488, $J$15*$J$16 + ROW(AB55), COLUMN(AB55)) -> -0.09595237024
A58: 1 | B58: =INDEX(Lists!$B$3:$B$8, A58) -> Scenario 1: CAA High passenger growth (FP - 7th April)
C60: Passenger splits
D62: O&D
F64: O&D | H64: % | K64: [2014-21] Heathrow RBP (Update 2) - External H7 v1.00; [2022-2026] CAA H7 Pax Forecast - Final Proposals - 7 April 2022 | T64: 0.7516262575 | U64: 0.7704327781 | V64: 0.79025237 | W64: 0.781554573 | X64: 0.7655031968 | Y64: 0.7669513191 | Z64: 0.7694562342 | AA64: 0.7710666755 | AB64: 0.7723295312
D66: Mode share
E68: 1 | F68: =INDEX(Lists!$D$3:$D$19, E68) -> Park & Fly Passengers | H68: % | U68: =CRAssumptions!U544 -> 0.06994908428 | V68: =CRAssumptions!V544 -> 0.06464270187 | W68: =CRAssumptions!W544 -> 0.07979048868 | X68: =CRAssumptions!X544 -> 0.07493270492 | Y68: =CRAssumptions!Y544 -> 0.0719335759 | Z68: =CRAssumptions!Z544 -> 0.07113720775 | AA68: =CRAssumptions!AA544 -> 0.07115742967 | AB68: =CRAssumptions!AB544 -> 0.07115238428
E69: 2 | F69: =INDEX(Lists!$D$3:$D$19, E69) -> Kiss & Fly Passengers | H69: % | U69: =CRAssumptions!U545 -> 0.1786778781 | V69: =CRAssumptions!V545 -> 0.2260671277 | W69: =CRAssumptions!W545 -> 0.2647797992 | X69: =CRAssumptions!X545 -> 0.1977782938 | Y69: =CRAssumptions!Y545 -> 0.1726752117 | Z69: =CRAssumptions!Z545 -> 0.1611974855 | AA69: =CRAssumptions!AA545 -> 0.1611558151 | AB69: =CRAssumptions!AB545 -> 0.1611662119
E70: 3 | F70: =INDEX(Lists!$D$3:$D$19, E70) -> Taxi Passengers | H70: % | U70: =CRAssumptions!U546 -> 0.3061789254 | V70: =CRAssumptions!V546 -> 0.3084571056 | W70: =CRAssumptions!W546 -> 0.3180261278 | X70: =CRAssumptions!X546 -> 0.2980547898 | Y70: =CRAssumptions!Y546 -> 0.2796145704 | Z70: =CRAssumptions!Z546 -> 0.2729409877 | AA70: =CRAssumptions!AA546 -> 0.2728635072 | AB70: =CRAssumptions!AB546 -> 0.2728828386
E71: 4 | F71: =INDEX(Lists!$D$3:$D$19, E71) -> Bus/Coach Passengers | H71: % | U71: =CRAssumptions!U547 -> 0.08995732782 | V71: =CRAssumptions!V547 -> 0.08553809346 | W71: =CRAssumptions!W547 -> 0.06882293191 | X71: =CRAssumptions!X547 -> 0.08492418462 | Y71: =CRAssumptions!Y547 -> 0.08314935034 | Z71: =CRAssumptions!Z547 -> 0.08430342185 | AA71: =CRAssumptions!AA547 -> 0.08432299306 | AB71: =CRAssumptions!AB547 -> 0.08431811002
E72: 5 | F72: =INDEX(Lists!$D$3:$D$19, E72) -> Tube Passengers | H72: % | U72: =CRAssumptions!U548 -> 0.1981807809 | V72: =CRAssumptions!V548 -> 0.1830789421 | W72: =CRAssumptions!W548 -> 0.1597542346 | X72: =CRAssumptions!X548 -> 0.1886346275 | Y72: =CRAssumptions!Y548 -> 0.1813589656 | Z72: =CRAssumptions!Z548 -> 0.1825664828 | AA72: =CRAssumptions!AA548 -> 0.1826048952 | AB72: =CRAssumptions!AB548 -> 0.1825953113
E73: 6 | F73: =INDEX(Lists!$D$3:$D$19, E73) -> Car Rental Passengers | H73: % | U73: =CRAssumptions!U549 -> 0.01962176631 | V73: =CRAssumptions!V549 -> 0.01968743879 | W73: =CRAssumptions!W549 -> 0.01777400814 | X73: =CRAssumptions!X549 -> 0.0192956227 | Y73: =CRAssumptions!Y549 -> 0.01815429208 | Z73: =CRAssumptions!Z549 -> 0.01807884371 | AA73: =CRAssumptions!AA549 -> 0.01808310274 | AB73: =CRAssumptions!AB549 -> 0.01808204011
E74: 7 | F74: =INDEX(Lists!$D$3:$D$19, E74) -> Walk Passengers | H74: % | U74: =CRAssumptions!U550 -> 0 | V74: =CRAssumptions!V550 -> 0 | W74: =CRAssumptions!W550 -> 0 | X74: =CRAssumptions!X550 -> 0 | Y74: =CRAssumptions!Y550 -> 0 | Z74: =CRAssumptions!Z550 -> 0 | AA74: =CRAssumptions!AA550 -> 0 | AB74: =CRAssumptions!AB550 -> 0
E75: 8 | F75: =INDEX(Lists!$D$3:$D$19, E75) -> Heathrow Express Passengers | H75: % | U75: =CRAssumptions!U551 -> 0.08540518144 | V75: =CRAssumptions!V551 -> 0.06631669878 | W75: =CRAssumptions!W551 -> 0.05696759369 | X75: =CRAssumptions!X551 -> 0.07670736847 | Y75: =CRAssumptions!Y551 -> 0.0698525722 | Z75: =CRAssumptions!Z551 -> 0.07013451713 | AA75: =CRAssumptions!AA551 -> 0.07015078807 | AB75: =CRAssumptions!AB551 -> 0.07014672846
E76: 9 | F76: =INDEX(Lists!$D$3:$D$19, E76) -> Heathrow Connect Passengers | H76: % | U76: =CRAssumptions!U552 -> 0.009437959924 | V76: =CRAssumptions!V552 -> 0.009613716412 | W76: =CRAssumptions!W552 -> 0.01125464195 | X76: =CRAssumptions!X552 -> 0.01074732691 | Y76: =CRAssumptions!Y552 -> 0.001705768182 | Z76: =CRAssumptions!Z552 -> -7.336778426e-05 | AA76: =CRAssumptions!AA552 -> -5.293379412e-05 | AB76: =CRAssumptions!AB552 -> -5.803209505e-05
E77: 10 | F77: =INDEX(Lists!$D$3:$D$19, E77) -> Rail Passengers | H77: % | U77: =CRAssumptions!U553 -> 0 | V77: =CRAssumptions!V553 -> 0 | W77: =CRAssumptions!W553 -> 0.003356301 | X77: =CRAssumptions!X553 -> 0.0009858924311 | Y77: =CRAssumptions!Y553 -> 0.0003348493588 | Z77: =CRAssumptions!Z553 -> 0 | AA77: =CRAssumptions!AA553 -> 0 | AB77: =CRAssumptions!AB553 -> 0
E78: 11 | F78: =INDEX(Lists!$D$3:$D$19, E78) -> Elizabeth Line Passengers | H78: % | U78: =CRAssumptions!U554 -> 0 | V78: =CRAssumptions!V554 -> 0 | W78: =CRAssumptions!W554 -> 0 | X78: =CRAssumptions!X554 -> 0.01229219184 | Y78: =CRAssumptions!Y554 -> 0.08194794557 | Z78: =CRAssumptions!Z554 -> 0.09833753469 | AA78: =CRAssumptions!AA554 -> 0.09833753469 | AB78: =CRAssumptions!AB554 -> 0.09833753469
E79: 12 | F79: =INDEX(Lists!$D$3:$D$19, E79) -> Air Passengers | H79: % | U79: =CRAssumptions!U555 -> 0 | V79: =CRAssumptions!V555 -> 0 | W79: =CRAssumptions!W555 -> 8.407626362e-08 | X79: =CRAssumptions!X555 -> 4.523290677e-07 | Y79: =CRAssumptions!Y555 -> 4.065558442e-07 | Z79: =CRAssumptions!Z555 -> 4.74951621e-07 | AA79: =CRAssumptions!AA555 -> 4.78781876e-07 | AB79: =CRAssumptions!AB555 -> 4.778262236e-07
E80: 13 | F80: =INDEX(Lists!$D$3:$D$19, E80) -> Other Passengers | H80: % | U80: =CRAssumptions!U556 -> 0.01055798403 | V80: =CRAssumptions!V556 -> 0.01369681257 | W80: =CRAssumptions!W556 -> 0.00727607479 | X80: =CRAssumptions!X556 -> 0.009593943716 | Y80: =CRAssumptions!Y556 -> 0.01023055655 | Z80: =CRAssumptions!Z556 -> 0.01055798403 | AA80: =CRAssumptions!AA556 -> 0.01055798403 | AB80: =CRAssumptions!AB556 -> 0.01055798403
E81: 14 | F81: =INDEX(Lists!$D$3:$D$19, E81) -> Rail-air Passengers | H81: % | U81: =CRAssumptions!U557 -> 0.00304584144 | V81: =CRAssumptions!V557 -> 0.002840074977 | W81: =CRAssumptions!W557 -> 0.0008225540965 | X81: =CRAssumptions!X557 -> 0.00238989817 | Y81: =CRAssumptions!Y557 -> 0.002164293878 | Z81: =CRAssumptions!Z557 -> 0.002253413913 | AA81: =CRAssumptions!AA557 -> 0.00225441434 | AB81: =CRAssumptions!AB557 -> 0.002254164733
E82: 15 | F82: =INDEX(Lists!$D$3:$D$19, E82) -> Charter Coach Passengers | H82: % | U82: =CRAssumptions!U558 -> 0.02898727041 | V82: =CRAssumptions!V558 -> 0.02006128779 | W82: =CRAssumptions!W558 -> 0.01141301072 | X82: =CRAssumptions!X558 -> 0.02367426258 | Y82: =CRAssumptions!Y558 -> 0.02688058212 | Z82: =CRAssumptions!Z558 -> 0.02856400646 | AA82: =CRAssumptions!AA558 -> 0.02856298956 | AB82: =CRAssumptions!AB558 -> 0.02856324328
E83: 16 | F83: =INDEX(Lists!$D$3:$D$19, E83) -> Air Transfer Passengers | H83: % | U83: =CRAssumptions!U559 -> 0 | V83: =CRAssumptions!V559 -> 0 | W83: =CRAssumptions!W559 -> 8.407626362e-08 | X83: =CRAssumptions!X559 -> 6.696918639e-07 | Y83: =CRAssumptions!Y559 -> 1.855641152e-06 | Z83: =CRAssumptions!Z559 -> 2.21385399e-06 | AA83: =CRAssumptions!AA559 -> 2.217684245e-06 | AB83: =CRAssumptions!AB559 -> 2.216728593e-06
E84: 17 | F84: =INDEX(Lists!$D$3:$D$19, E84) -> Zero Passengers | H84: % | U84: =CRAssumptions!U560 -> 0 | V84: =CRAssumptions!V560 -> 0 | W84: =CRAssumptions!W560 -> 0 | X84: =CRAssumptions!X560 -> 0 | Y84: =CRAssumptions!Y560 -> 0 | Z84: =CRAssumptions!Z560 -> 0 | AA84: =CRAssumptions!AA560 -> 0 | AB84: =CRAssumptions!AB560 -> 0
D86: Geographic split
E88: 1 | F88: =INDEX(_GeogList, E88) -> UK & CI | G88: =INDEX(_GeogSummaryList, E88) -> UK | H88: % | K88: [2014-20, exc. 2019] H7_Revenue_Inputs; [2019] HAL CAP2265 Response - Table 20]; [2022-2026] CAA H7 Pax Forecast - Final Proposals - 7 April 2022 | P88: 0.07198605228 | Q88: 0.06858758117 | R88: 0.06141451496 | S88: 0.06157278591 | T88: 0.059861177 | U88: 0.06 | V88: 0.06603346902 | W88: =AVERAGE(V88,X88) -> 0.06947985261 | X88: 0.0729262362 | Y88: 0.05116916234 | Z88: 0.04691214485 | AA88: 0.04654414501 | AB88: 0.04631909456
E89: 2 | F89: =INDEX(_GeogList, E89) -> EEA | G89: =INDEX(_GeogSummaryList, E89) -> EEA | H89: % | K89: [2014-20, exc. 2019] H7_Revenue_Inputs; [2019] HAL CAP2265 Response - Table 20]; [2022-2026] CAA H7 Pax Forecast - Final Proposals - 7 April 2022 | P89: 0.3812158239 | Q89: 0.3878950296 | R89: 0.3911908761 | S89: 0.3887233307 | T89: 0.3882673916 | U89: 0.383 | V89: 0.4151229171 | W89: =AVERAGE(V89,X89) -> 0.4152426068 | X89: 0.4153622965 | Y89: 0.395782476 | Z89: 0.3895265182 | AA89: 0.3861745547 | AB89: 0.384528739
E90: 3 | F90: =INDEX(_GeogList, E90) -> Other Europe & CIS | G90: =INDEX(_GeogSummaryList, E90) -> Other | H90: % | K90: [2014-20, exc. 2019] H7_Revenue_Inputs; [2019] HAL CAP2265 Response - Table 20]; [2022-2026] CAA H7 Pax Forecast - Final Proposals - 7 April 2022 | P90: 0.02727267335 | Q90: 0.02775051237 | R90: 0.0279863015 | S90: 0.02780977011 | T90: 0.02777715163 | U90: 0.028 | V90: 0.02969843068 | W90: 0.02440950534 | X90: 0.01912057999 | Y90: 0.02779296556 | Z90: 0.02730356782 | AA90: 0.02726375552 | AB90: 0.02710427762
E91: 4 | F91: =INDEX(_GeogList, E91) -> Middle East | G91: =INDEX(_GeogSummaryList, E91) -> Middle East | H91: % | K91: [2014-20, exc. 2019] H7_Revenue_Inputs; [2019] HAL CAP2265 Response - Table 20]; [2022-2026] CAA H7 Pax Forecast - Final Proposals - 7 April 2022 | P91: 0.08262391544 | Q91: 0.08556114082 | R91: 0.09212177244 | S91: 0.0977317314 | T91: 0.09562807421 | U91: 0.096 | V91: 0.1113975577 | W91: 0.1045166154 | X91: 0.09763567323 | Y91: 0.09644764082 | Z91: 0.09763635023 | AA91: 0.1002698225 | AB91: 0.1010496686
E92: 5 | F92: =INDEX(_GeogList, E92) -> Africa | G92: =INDEX(_GeogSummaryList, E92) -> Other | H92: % | K92: [2014-20, exc. 2019] H7_Revenue_Inputs; [2019] HAL CAP2265 Response - Table 20]; [2022-2026] CAA H7 Pax Forecast - Final Proposals - 7 April 2022 | P92: 0.04804064454 | Q92: 0.04398725316 | R92: 0.04178828502 | S92: 0.04064675788 | T92: 0.04167186837 | U92: 0.043 | V92: 0.05192220715 | W92: 0.04749036986 | X92: 0.04305853257 | Y92: 0.04301415523 | Z92: 0.04320107093 | AA92: 0.04204664819 | AB92: 0.04229571417
E93: 6 | F93: =INDEX(_GeogList, E93) -> North America | G93: =INDEX(_GeogSummaryList, E93) -> North America | H93: % | K93: [2014-20, exc. 2019] H7_Revenue_Inputs; [2019] HAL CAP2265 Response - Table 20]; [2022-2026] CAA H7 Pax Forecast - Final Proposals - 7 April 2022 | P93: 0.2314177915 | Q93: 0.2304164056 | R93: 0.2270091792 | S93: 0.2225698496 | T93: 0.2259618986 | U93: 0.233 | V93: 0.1746720941 | W93: 0.2010299127 | X93: 0.2273877314 | Y93: 0.236601452 | Z93: 0.2343525436 | AA93: 0.2300190727 | AB93: 0.2294542551
E94: 7 | F94: =INDEX(_GeogList, E94) -> Latin America | G94: =INDEX(_GeogSummaryList, E94) -> Other | H94: % | K94: [2014-20, exc. 2019] H7_Revenue_Inputs; [2019] HAL CAP2265 Response - Table 20]; [2022-2026] CAA H7 Pax Forecast - Final Proposals - 7 April 2022 | P94: 0.01520083904 | Q94: 0.01612021494 | R94: 0.01619230007 | S94: 0.0165920835 | T94: 0.01686599586 | U94: 0.017 | V94: 0.01949344188 | W94: 0.01835506722 | X94: 0.01721669256 | Y94: 0.01635624757 | Z94: 0.01748158948 | AA94: 0.01737952813 | AB94: 0.01740646343
E95: 8 | F95: =INDEX(_GeogList, E95) -> Asia / Pacific | G95: =INDEX(_GeogSummaryList, E95) -> Asia/Pacific | H95: % | K95: [2014-20, exc. 2019] H7_Revenue_Inputs; [2019] HAL CAP2265 Response - Table 20]; [2022-2026] CAA H7 Pax Forecast - Final Proposals - 7 April 2022 | P95: 0.14224226 | Q95: 0.1396818624 | R95: 0.1422967708 | S95: 0.1443536909 | T95: 0.1439664428 | U95: 0.14 | V95: 0.1316598824 | W95: 0.11947607 | X95: 0.1072922575 | Y95: 0.132835887 | Z95: 0.1435862149 | AA95: 0.1503024612 | AB95: 0.1518417876
C97: Cost / Revenue Driver values
E99: 1 | F99: =INDEX(_DriversList,$E99) -> Total Passengers | H99: million pax | K99: [2014-2020] Heathrow RBP (Update 2) - External H7 v1.00; [2021] https://www.heathrow.com/company/investor-centre/reports/traffic-statistics; [2022-2026] CAA H7 Pax Forecast - Final Proposals - 7 April 2022 | P99: 73.374678 | Q99: 74.958974 | R99: 75.675695 | S99: 77.988006 | T99: 80.102014 | U99: 80.88626 | V99: 22.10558 | W99: 19.393145 | X99: 62.823042 | Y99: 74.751253 | Z99: 81.515757 | AA99: 83.44375 | AB99: 83.661739
E100: 2 | F100: =INDEX(_DriversList,$E100) -> Utilised Terminal Area | H100: 000s m2 | K100: Heathrow RBP (Update 2) - External H7 v1.00.xlsb - "IC_Drivers" | T100: 1117.033 | U100: 1117.033 | V100: 837.3326667 | W100: 812.5925 | X100: 1013.2225 | Y100: 1117.033 | Z100: 1117.033 | AA100: 1117.033 | AB100: 1117.033
E101: 3 | F101: =INDEX(_DriversList,$E101) -> OD pax | H101: million pax | T101: =T64*T99 -> 60.206777 | U101: 62.317426 | V101: 17.46898698 | W101: 15.15680116 | X101: 48.09123948 | Y101: 57.33057209 | Z101: 62.72280741 | AA101: 64.34069491 | AB101: 64.61443166
E102: 4 | F102: =INDEX(_DriversList,$E102) -> HEx pax | H102: million pax | U102: =U75*U101 -> 5.322231074 | V102: 1.158485548 | W102: 0.8634464902 | X102: 3.688952427 | Y102: 4.004687926 | Z102: 4.399033811 | AA102: 4.513550453 | AB102: 4.532490992
E103: 5 | F103: =INDEX(_DriversList,$E103) -> Parking/rental pax | H103: million pax | U103: =(U68+U73) *U101 -> 5.581824853 | V103: 1.47316213 | W103: 1.478765678 | X103: 4.531557069 | Y103: 5.16478901 | Z103: 5.595881213 | AA103: 5.741797869 | AB103: 5.765831616
E104: 6 | F104: =INDEX(_DriversList,$E104) -> UK pax | G104: UK | H104: million pax | P104: =P$99*SUMIFS(P$88:P$95,$G$88:$G$95,$G104) -> 5.281953406 | Q104: 5.141254713 | R104: 4.647586102 | S104: 4.801938797 | T104: 4.795000838 | U104: 4.8531756 | V104: 1.459708132 | W104: 1.347432856 | X104: 4.581448 | Y104: 3.824959 | Z104: 3.824079 | AA104: 3.883818 | AB104: 3.875136
E105: 7 | F105: =INDEX(_DriversList,$E105) -> EEA pax | G105: EEA | H105: million pax | P105: 27.97158832 | Q105: 29.07621344 | R105: 29.60364142 | S105: 30.31575745 | T105: 31.10100004 | U105: 30.97943758 | V105: 9.176532854 | W105: 8.052860084 | X105: 26.094323 | Y105: 29.585236 | Z105: 31.752549 | AA105: 32.223853 | AB105: 32.170343
E106: 8 | F106: =INDEX(_DriversList,$E106) -> Middle East pax | G106: Middle East | H106: million pax | P106: 6.062503191 | Q106: 6.41357533 | R106: 6.971379154 | S106: 7.621902855 | T106: 7.660001339 | U106: 7.76508096 | V106: 2.462507623 | W106: 2.026905878 | X106: 6.13377 | Y106: 7.209582 | Z106: 7.958901 | AA106: 8.36689 | AB106: 8.453991
E107: 9 | F107: =INDEX(_DriversList,$E107) -> North America pax | G107: North America | H107: million pax | P107: 16.98020594 | Q107: 17.27177735 | R107: 17.1790774 | S107: 17.35777877 | T107: 18.10000316 | U107: 18.84649858 | V107: 3.861227949 | W107: 3.898602247 | X107: 14.285189 | Y107: 17.686255 | Z107: 19.103425 | AA107: 19.193654 | AB107: 19.196542
E108: 10 | F108: =INDEX(_DriversList,$E108) -> Asia/Pacific pax | G108: Asia/Pacific | H108: million pax | P108: 10.43698002 | Q108: 10.47040909 | R108: 10.76840703 | S108: 11.25785651 | T108: 11.53200202 | U108: 11.3240764 | V108: 2.910418063 | W108: 2.317016749 | X108: 6.740426 | Y108: 9.929649 | Z108: 11.704539 | AA108: 12.541801 | AB108: 12.703348
E109: 11 | F109: =INDEX(_DriversList,$E109) -> Other pax | G109: Other | H109: million pax | P109: 6.641447119 | Q109: 6.585744074 | R109: 6.505603889 | S109: 6.632771623 | T109: 6.914006609 | U109: 7.11799088 | V109: 2.235185378 | W109: 1.750327185 | X109: 4.987886 | Y109: 6.515571 | Z109: 7.172264 | AA109: 7.233733 | AB109: 7.262379
E110: 12 | F110: =INDEX(_DriversList,$E110) -> No Elasticity | H110: # | P110: 0 | Q110: 0 | R110: 0 | S110: 0 | T110: 0 | U110: 0 | V110: 0 | W110: 0 | X110: 0 | Y110: 0 | Z110: 0 | AA110: 0 | AB110: 0
E111: 13 | F111: =INDEX(_DriversList,$E111) -> TDOC pax | H111: million pax | U111: =(U70*CRAssumptions!$J$238+U69) *U101 -> 20.67488671 | V111: =(V70*CRAssumptions!$J$238+V69) *V101 -> 6.643380293 | W111: =(W70*CRAssumptions!$J$238+W69) *W101 -> 6.423344159 | X111: =(X70*CRAssumptions!$J$238+X69) *X101 -> 16.67831543 | Y111: =(Y70*CRAssumptions!$J$238+Y69) *Y101 -> 17.91480032 | Z111: =(Z70*CRAssumptions!$J$238+Z69) *Z101 -> 18.67057134 | AA111: =(AA70*CRAssumptions!$J$238+AA69) *AA101 -> 19.14699096 | AB111: =(AB70*CRAssumptions!$J$238+AB69) *AB101 -> 19.22974795
C113: ="Cost / Revenue Driver (change vs. " &_ComparatorYear & ")" -> Cost / Revenue Driver (change vs. 2019)
E115: 1 | F115: =INDEX(_DriversList,$E115) -> Total Passengers | H115: % | P115: =IF(INDEX($P99:$AB99,0,MATCH(_ComparatorYear,$P$4:$AB$4,0))=0,0,(P99/INDEX($P99:$AB99,0,MATCH(_ComparatorYear,$P$4:$AB$4,0)))-1)*P$23 -> 0 | Q115: =IF(INDEX($P99:$AB99,0,MATCH(_ComparatorYear,$P$4:$AB$4,0))=0,0,(Q99/INDEX($P99:$AB99,0,MATCH(_ComparatorYear,$P$4:$AB$4,0)))-1)*Q$23 -> 0 | R115: =IF(INDEX($P99:$AB99,0,MATCH(_ComparatorYear,$P$4:$AB$4,0))=0,0,(R99/INDEX($P99:$AB99,0,MATCH(_ComparatorYear,$P$4:$AB$4,0)))-1)*R$23 -> 0 | S115: =IF(INDEX($P99:$AB99,0,MATCH(_ComparatorYear,$P$4:$AB$4,0))=0,0,(S99/INDEX($P99:$AB99,0,MATCH(_ComparatorYear,$P$4:$AB$4,0)))-1)*S$23 -> 0 | T115: =IF(INDEX($P99:$AB99,0,MATCH(_ComparatorYear,$P$4:$AB$4,0))=0,0,(T99/INDEX($P99:$AB99,0,MATCH(_ComparatorYear,$P$4:$AB$4,0)))-1)*T$23 -> 0 | U115: =IF(INDEX($P99:$AB99,0,MATCH(_ComparatorYear,$P$4:$AB$4,0))=0,0,(U99/INDEX($P99:$AB99,0,MATCH(_ComparatorYear,$P$4:$AB$4,0)))-1)*U$23 -> 0 | V115: =IF(INDEX($P99:$AB99,0,MATCH(_ComparatorYear,$P$4:$AB$4,0))=0,0,(V99/INDEX($P99:$AB99,0,MATCH(_ComparatorYear,$P$4:$AB$4,0)))-1)*V$23 -> 0 | W115: =IF(INDEX($P99:$AB99,0,MATCH(_ComparatorYear,$P$4:$AB$4,0))=0,0,(W99/INDEX($P99:$AB99,0,MATCH(_ComparatorYear,$P$4:$AB$4,0)))-1)*W$23 -> -0.7602417889 | X115: =IF(INDEX($P99:$AB99,0,MATCH(_ComparatorYear,$P$4:$AB$4,0))=0,0,(X99/INDEX($P99:$AB99,0,MATCH(_ComparatorYear,$P$4:$AB$4,0)))-1)*X$23 -> -0.2233162715 | Y115: =IF(INDEX($P99:$AB99,0,MATCH(_ComparatorYear,$P$4:$AB$4,0))=0,0,(Y99/INDEX($P99:$AB99,0,MATCH(_ComparatorYear,$P$4:$AB$4,0)))-1)*Y$23 -> -0.0758473318 | Z115: =IF(INDEX($P99:$AB99,0,MATCH(_ComparatorYear,$P$4:$AB$4,0))=0,0,(Z99/INDEX($P99:$AB99,0,MATCH(_ComparatorYear,$P$4:$AB$4,0)))-1)*Z$23 -> 0.007782496063 | AA115: =IF(INDEX($P99:$AB99,0,MATCH(_ComparatorYear,$P$4:$AB$4,0))=0,0,(AA99/INDEX($P99:$AB99,0,MATCH(_ComparatorYear,$P$4:$AB$4,0)))-1)*AA$23 -> 0.03161834902 | AB115: =IF(INDEX($P99:$AB99,0,MATCH(_ComparatorYear,$P$4:$AB$4,0))=0,0,(AB99/INDEX($P99:$AB99,0,MATCH(_ComparatorYear,$P$4:$AB$4,0)))-1)*AB$23 -> 0.03431335557
E116: 2 | F116: =INDEX(_DriversList,$E116) -> Utilised Terminal Area | H116: % | P116: =IF(INDEX($P100:$AB100,0,MATCH(_ComparatorYear,$P$4:$AB$4,0))=0,0,(P100/INDEX($P100:$AB100,0,MATCH(_ComparatorYear,$P$4:$AB$4,0)))-1)*P$23 -> 0 | Q116: =IF(INDEX($P100:$AB100,0,MATCH(_ComparatorYear,$P$4:$AB$4,0))=0,0,(Q100/INDEX($P100:$AB100,0,MATCH(_ComparatorYear,$P$4:$AB$4,0)))-1)*Q$23 -> 0 | R116: =IF(INDEX($P100:$AB100,0,MATCH(_ComparatorYear,$P$4:$AB$4,0))=0,0,(R100/INDEX($P100:$AB100,0,MATCH(_ComparatorYear,$P$4:$AB$4,0)))-1)*R$23 -> 0 | S116: =IF(INDEX($P100:$AB100,0,MATCH(_ComparatorYear,$P$4:$AB$4,0))=0,0,(S100/INDEX($P100:$AB100,0,MATCH(_ComparatorYear,$P$4:$AB$4,0)))-1)*S$23 -> 0 | T116: =IF(INDEX($P100:$AB100,0,MATCH(_ComparatorYear,$P$4:$AB$4,0))=0,0,(T100/INDEX($P100:$AB100,0,MATCH(_ComparatorYear,$P$4:$AB$4,0)))-1)*T$23 -> 0 | U116: =IF(INDEX($P100:$AB100,0,MATCH(_ComparatorYear,$P$4:$AB$4,0))=0,0,(U100/INDEX($P100:$AB100,0,MATCH(_ComparatorYear,$P$4:$AB$4,0)))-1)*U$23 -> 0 | V116: =IF(INDEX($P100:$AB100,0,MATCH(_ComparatorYear,$P$4:$AB$4,0))=0,0,(V100/INDEX($P100:$AB100,0,MATCH(_ComparatorYear,$P$4:$AB$4,0)))-1)*V$23 -> 0 | W116: =IF(INDEX($P100:$AB100,0,MATCH(_ComparatorYear,$P$4:$AB$4,0))=0,0,(W100/INDEX($P100:$AB100,0,MATCH(_ComparatorYear,$P$4:$AB$4,0)))-1)*W$23 -> -0.2725438729 | X116: =IF(INDEX($P100:$AB100,0,MATCH(_ComparatorYear,$P$4:$AB$4,0))=0,0,(X100/INDEX($P100:$AB100,0,MATCH(_ComparatorYear,$P$4:$AB$4,0)))-1)*X$23 -> -0.09293413892 | Y116: =IF(INDEX($P100:$AB100,0,MATCH(_ComparatorYear,$P$4:$AB$4,0))=0,0,(Y100/INDEX($P100:$AB100,0,MATCH(_ComparatorYear,$P$4:$AB$4,0)))-1)*Y$23 -> 0 | Z116: =IF(INDEX($P100:$AB100,0,MATCH(_ComparatorYear,$P$4:$AB$4,0))=0,0,(Z100/INDEX($P100:$AB100,0,MATCH(_ComparatorYear,$P$4:$AB$4,0)))-1)*Z$23 -> 0 | AA116: =IF(INDEX($P100:$AB100,0,MATCH(_ComparatorYear,$P$4:$AB$4,0))=0,0,(AA100/INDEX($P100:$AB100,0,MATCH(_ComparatorYear,$P$4:$AB$4,0)))-1)*AA$23 -> 0 | AB116: =IF(INDEX($P100:$AB100,0,MATCH(_ComparatorYear,$P$4:$AB$4,0))=0,0,(AB100/INDEX($P100:$AB100,0,MATCH(_ComparatorYear,$P$4:$AB$4,0)))-1)*AB$23 -> 0
E117: 3 | F117: =INDEX(_DriversList,$E117) -> OD pax | H117: % | P117: =IF(INDEX($P101:$AB101,0,MATCH(_ComparatorYear,$P$4:$AB$4,0))=0,0,(P101/INDEX($P101:$AB101,0,MATCH(_ComparatorYear,$P$4:$AB$4,0)))-1)*P$23 -> 0 | Q117: =IF(INDEX($P101:$AB101,0,MATCH(_ComparatorYear,$P$4:$AB$4,0))=0,0,(Q101/INDEX($P101:$AB101,0,MATCH(_ComparatorYear,$P$4:$AB$4,0)))-1)*Q$23 -> 0 | R117: =IF(INDEX($P101:$AB101,0,MATCH(_ComparatorYear,$P$4:$AB$4,0))=0,0,(R101/INDEX($P101:$AB101,0,MATCH(_ComparatorYear,$P$4:$AB$4,0)))-1)*R$23 -> 0 | S117: =IF(INDEX($P101:$AB101,0,MATCH(_ComparatorYear,$P$4:$AB$4,0))=0,0,(S101/INDEX($P101:$AB101,0,MATCH(_ComparatorYear,$P$4:$AB$4,0)))-1)*S$23 -> 0 | T117: =IF(INDEX($P101:$AB101,0,MATCH(_ComparatorYear,$P$4:$AB$4,0))=0,0,(T101/INDEX($P101:$AB101,0,MATCH(_ComparatorYear,$P$4:$AB$4,0)))-1)*T$23 -> 0 | U117: =IF(INDEX($P101:$AB101,0,MATCH(_ComparatorYear,$P$4:$AB$4,0))=0,0,(U101/INDEX($P101:$AB101,0,MATCH(_ComparatorYear,$P$4:$AB$4,0)))-1)*U$23 -> 0 | V117: =IF(INDEX($P101:$AB101,0,MATCH(_ComparatorYear,$P$4:$AB$4,0))=0,0,(V101/INDEX($P101:$AB101,0,MATCH(_ComparatorYear,$P$4:$AB$4,0)))-1)*V$23 -> 0 | W117: =IF(INDEX($P101:$AB101,0,MATCH(_ComparatorYear,$P$4:$AB$4,0))=0,0,(W101/INDEX($P101:$AB101,0,MATCH(_ComparatorYear,$P$4:$AB$4,0)))-1)*W$23 -> -0.7567806931 | X117: =IF(INDEX($P101:$AB101,0,MATCH(_ComparatorYear,$P$4:$AB$4,0))=0,0,(X101/INDEX($P101:$AB101,0,MATCH(_ComparatorYear,$P$4:$AB$4,0)))-1)*X$23 -> -0.2282858493 | Y117: =IF(INDEX($P101:$AB101,0,MATCH(_ComparatorYear,$P$4:$AB$4,0))=0,0,(Y101/INDEX($P101:$AB101,0,MATCH(_ComparatorYear,$P$4:$AB$4,0)))-1)*Y$23 -> -0.08002342565 | Z117: =IF(INDEX($P101:$AB101,0,MATCH(_ComparatorYear,$P$4:$AB$4,0))=0,0,(Z101/INDEX($P101:$AB101,0,MATCH(_ComparatorYear,$P$4:$AB$4,0)))-1)*Z$23 -> 0.006505105148 | AA117: =IF(INDEX($P101:$AB101,0,MATCH(_ComparatorYear,$P$4:$AB$4,0))=0,0,(AA101/INDEX($P101:$AB101,0,MATCH(_ComparatorYear,$P$4:$AB$4,0)))-1)*AA$23 -> 0.03246714499 | AB117: =IF(INDEX($P101:$AB101,0,MATCH(_ComparatorYear,$P$4:$AB$4,0))=0,0,(AB101/INDEX($P101:$AB101,0,MATCH(_ComparatorYear,$P$4:$AB$4,0)))-1)*AB$23 -> 0.03685976467
E118: 4 | F118: =INDEX(_DriversList,$E118) -> HEx pax | H118: % | P118: =IF(INDEX($P102:$AB102,0,MATCH(_ComparatorYear,$P$4:$AB$4,0))=0,0,(P102/INDEX($P102:$AB102,0,MATCH(_ComparatorYear,$P$4:$AB$4,0)))-1)*P$23 -> 0 | Q118: =IF(INDEX($P102:$AB102,0,MATCH(_ComparatorYear,$P$4:$AB$4,0))=0,0,(Q102/INDEX($P102:$AB102,0,MATCH(_ComparatorYear,$P$4:$AB$4,0)))-1)*Q$23 -> 0 | R118: =IF(INDEX($P102:$AB102,0,MATCH(_ComparatorYear,$P$4:$AB$4,0))=0,0,(R102/INDEX($P102:$AB102,0,MATCH(_ComparatorYear,$P$4:$AB$4,0)))-1)*R$23 -> 0 | S118: =IF(INDEX($P102:$AB102,0,MATCH(_ComparatorYear,$P$4:$AB$4,0))=0,0,(S102/INDEX($P102:$AB102,0,MATCH(_ComparatorYear,$P$4:$AB$4,0)))-1)*S$23 -> 0 | T118: =IF(INDEX($P102:$AB102,0,MATCH(_ComparatorYear,$P$4:$AB$4,0))=0,0,(T102/INDEX($P102:$AB102,0,MATCH(_ComparatorYear,$P$4:$AB$4,0)))-1)*T$23 -> 0 | U118: =IF(INDEX($P102:$AB102,0,MATCH(_ComparatorYear,$P$4:$AB$4,0))=0,0,(U102/INDEX($P102:$AB102,0,MATCH(_ComparatorYear,$P$4:$AB$4,0)))-1)*U$23 -> 0 | V118: =IF(INDEX($P102:$AB102,0,MATCH(_ComparatorYear,$P$4:$AB$4,0))=0,0,(V102/INDEX($P102:$AB102,0,MATCH(_ComparatorYear,$P$4:$AB$4,0)))-1)*V$23 -> 0 | W118: =IF(INDEX($P102:$AB102,0,MATCH(_ComparatorYear,$P$4:$AB$4,0))=0,0,(W102/INDEX($P102:$AB102,0,MATCH(_ComparatorYear,$P$4:$AB$4,0)))-1)*W$23 -> -0.837766065 | X118: =IF(INDEX($P102:$AB102,0,MATCH(_ComparatorYear,$P$4:$AB$4,0))=0,0,(X102/INDEX($P102:$AB102,0,MATCH(_ComparatorYear,$P$4:$AB$4,0)))-1)*X$23 -> -0.3068785674 | Y118: =IF(INDEX($P102:$AB102,0,MATCH(_ComparatorYear,$P$4:$AB$4,0))=0,0,(Y102/INDEX($P102:$AB102,0,MATCH(_ComparatorYear,$P$4:$AB$4,0)))-1)*Y$23 -> -0.2475546683 | Z118: =IF(INDEX($P102:$AB102,0,MATCH(_ComparatorYear,$P$4:$AB$4,0))=0,0,(Z102/INDEX($P102:$AB102,0,MATCH(_ComparatorYear,$P$4:$AB$4,0)))-1)*Z$23 -> -0.1734605752 | AA118: =IF(INDEX($P102:$AB102,0,MATCH(_ComparatorYear,$P$4:$AB$4,0))=0,0,(AA102/INDEX($P102:$AB102,0,MATCH(_ComparatorYear,$P$4:$AB$4,0)))-1)*AA$23 -> -0.1519439142 | AB118: =IF(INDEX($P102:$AB102,0,MATCH(_ComparatorYear,$P$4:$AB$4,0))=0,0,(AB102/INDEX($P102:$AB102,0,MATCH(_ComparatorYear,$P$4:$AB$4,0)))-1)*AB$23 -> -0.1483851549
E119: 5 | F119: =INDEX(_DriversList,$E119) -> Parking/rental pax | H119: % | P119: =IF(INDEX($P103:$AB103,0,MATCH(_ComparatorYear,$P$4:$AB$4,0))=0,0,(P103/INDEX($P103:$AB103,0,MATCH(_ComparatorYear,$P$4:$AB$4,0)))-1)*P$23 -> 0 | Q119: =IF(INDEX($P103:$AB103,0,MATCH(_ComparatorYear,$P$4:$AB$4,0))=0,0,(Q103/INDEX($P103:$AB103,0,MATCH(_ComparatorYear,$P$4:$AB$4,0)))-1)*Q$23 -> 0 | R119: =IF(INDEX($P103:$AB103,0,MATCH(_ComparatorYear,$P$4:$AB$4,0))=0,0,(R103/INDEX($P103:$AB103,0,MATCH(_ComparatorYear,$P$4:$AB$4,0)))-1)*R$23 -> 0 | S119: =IF(INDEX($P103:$AB103,0,MATCH(_ComparatorYear,$P$4:$AB$4,0))=0,0,(S103/INDEX($P103:$AB103,0,MATCH(_ComparatorYear,$P$4:$AB$4,0)))-1)*S$23 -> 0 | T119: =IF(INDEX($P103:$AB103,0,MATCH(_ComparatorYear,$P$4:$AB$4,0))=0,0,(T103/INDEX($P103:$AB103,0,MATCH(_ComparatorYear,$P$4:$AB$4,0)))-1)*T$23 -> 0 | U119: =IF(INDEX($P103:$AB103,0,MATCH(_ComparatorYear,$P$4:$AB$4,0))=0,0,(U103/INDEX($P103:$AB103,0,MATCH(_ComparatorYear,$P$4:$AB$4,0)))-1)*U$23 -> 0 | V119: =IF(INDEX($P103:$AB103,0,MATCH(_ComparatorYear,$P$4:$AB$4,0))=0,0,(V103/INDEX($P103:$AB103,0,MATCH(_ComparatorYear,$P$4:$AB$4,0)))-1)*V$23 -> 0 | W119: =IF(INDEX($P103:$AB103,0,MATCH(_ComparatorYear,$P$4:$AB$4,0))=0,0,(W103/INDEX($P103:$AB103,0,MATCH(_ComparatorYear,$P$4:$AB$4,0)))-1)*W$23 -> -0.7350748694 | X119: =IF(INDEX($P103:$AB103,0,MATCH(_ComparatorYear,$P$4:$AB$4,0))=0,0,(X103/INDEX($P103:$AB103,0,MATCH(_ComparatorYear,$P$4:$AB$4,0)))-1)*X$23 -> -0.1881584987 | Y119: =IF(INDEX($P103:$AB103,0,MATCH(_ComparatorYear,$P$4:$AB$4,0))=0,0,(Y103/INDEX($P103:$AB103,0,MATCH(_ComparatorYear,$P$4:$AB$4,0)))-1)*Y$23 -> -0.07471317252 | Z119: =IF(INDEX($P103:$AB103,0,MATCH(_ComparatorYear,$P$4:$AB$4,0))=0,0,(Z103/INDEX($P103:$AB103,0,MATCH(_ComparatorYear,$P$4:$AB$4,0)))-1)*Z$23 -> 0.002518237338 | AA119: =IF(INDEX($P103:$AB103,0,MATCH(_ComparatorYear,$P$4:$AB$4,0))=0,0,(AA103/INDEX($P103:$AB103,0,MATCH(_ComparatorYear,$P$4:$AB$4,0)))-1)*AA$23 -> 0.02865962656 | AB119: =IF(INDEX($P103:$AB103,0,MATCH(_ComparatorYear,$P$4:$AB$4,0))=0,0,(AB103/INDEX($P103:$AB103,0,MATCH(_ComparatorYear,$P$4:$AB$4,0)))-1)*AB$23 -> 0.03296534156
E120: 6 | F120: =INDEX(_DriversList,$E120) -> UK pax | H120: % | P120: =IF(INDEX($P104:$AB104,0,MATCH(_ComparatorYear,$P$4:$AB$4,0))=0,0,(P104/INDEX($P104:$AB104,0,MATCH(_ComparatorYear,$P$4:$AB$4,0)))-1)*P$23 -> 0 | Q120: =IF(INDEX($P104:$AB104,0,MATCH(_ComparatorYear,$P$4:$AB$4,0))=0,0,(Q104/INDEX($P104:$AB104,0,MATCH(_ComparatorYear,$P$4:$AB$4,0)))-1)*Q$23 -> 0 | R120: =IF(INDEX($P104:$AB104,0,MATCH(_ComparatorYear,$P$4:$AB$4,0))=0,0,(R104/INDEX($P104:$AB104,0,MATCH(_ComparatorYear,$P$4:$AB$4,0)))-1)*R$23 -> 0 | S120: =IF(INDEX($P104:$AB104,0,MATCH(_ComparatorYear,$P$4:$AB$4,0))=0,0,(S104/INDEX($P104:$AB104,0,MATCH(_ComparatorYear,$P$4:$AB$4,0)))-1)*S$23 -> 0 | T120: =IF(INDEX($P104:$AB104,0,MATCH(_ComparatorYear,$P$4:$AB$4,0))=0,0,(T104/INDEX($P104:$AB104,0,MATCH(_ComparatorYear,$P$4:$AB$4,0)))-1)*T$23 -> 0 | U120: =IF(INDEX($P104:$AB104,0,MATCH(_ComparatorYear,$P$4:$AB$4,0))=0,0,(U104/INDEX($P104:$AB104,0,MATCH(_ComparatorYear,$P$4:$AB$4,0)))-1)*U$23 -> 0 | V120: =IF(INDEX($P104:$AB104,0,MATCH(_ComparatorYear,$P$4:$AB$4,0))=0,0,(V104/INDEX($P104:$AB104,0,MATCH(_ComparatorYear,$P$4:$AB$4,0)))-1)*V$23 -> 0 | W120: =IF(INDEX($P104:$AB104,0,MATCH(_ComparatorYear,$P$4:$AB$4,0))=0,0,(W104/INDEX($P104:$AB104,0,MATCH(_ComparatorYear,$P$4:$AB$4,0)))-1)*W$23 -> -0.7223605805 | X120: =IF(INDEX($P104:$AB104,0,MATCH(_ComparatorYear,$P$4:$AB$4,0))=0,0,(X104/INDEX($P104:$AB104,0,MATCH(_ComparatorYear,$P$4:$AB$4,0)))-1)*X$23 -> -0.05598964933 | Y120: =IF(INDEX($P104:$AB104,0,MATCH(_ComparatorYear,$P$4:$AB$4,0))=0,0,(Y104/INDEX($P104:$AB104,0,MATCH(_ComparatorYear,$P$4:$AB$4,0)))-1)*Y$23 -> -0.2118647015 | Z120: =IF(INDEX($P104:$AB104,0,MATCH(_ComparatorYear,$P$4:$AB$4,0))=0,0,(Z104/INDEX($P104:$AB104,0,MATCH(_ComparatorYear,$P$4:$AB$4,0)))-1)*Z$23 -> -0.2120460261 | AA120: =IF(INDEX($P104:$AB104,0,MATCH(_ComparatorYear,$P$4:$AB$4,0))=0,0,(AA104/INDEX($P104:$AB104,0,MATCH(_ComparatorYear,$P$4:$AB$4,0)))-1)*AA$23 -> -0.1997367662 | AB120: =IF(INDEX($P104:$AB104,0,MATCH(_ComparatorYear,$P$4:$AB$4,0))=0,0,(AB104/INDEX($P104:$AB104,0,MATCH(_ComparatorYear,$P$4:$AB$4,0)))-1)*AB$23 -> -0.2015256979
E121: 7 | F121: =INDEX(_DriversList,$E121) -> EEA pax | H121: % | P121: =IF(INDEX($P105:$AB105,0,MATCH(_ComparatorYear,$P$4:$AB$4,0))=0,0,(P105/INDEX($P105:$AB105,0,MATCH(_ComparatorYear,$P$4:$AB$4,0)))-1)*P$23 -> 0 | Q121: =IF(INDEX($P105:$AB105,0,MATCH(_ComparatorYear,$P$4:$AB$4,0))=0,0,(Q105/INDEX($P105:$AB105,0,MATCH(_ComparatorYear,$P$4:$AB$4,0)))-1)*Q$23 -> 0 | R121: =IF(INDEX($P105:$AB105,0,MATCH(_ComparatorYear,$P$4:$AB$4,0))=0,0,(R105/INDEX($P105:$AB105,0,MATCH(_ComparatorYear,$P$4:$AB$4,0)))-1)*R$23 -> 0 | S121: =IF(INDEX($P105:$AB105,0,MATCH(_ComparatorYear,$P$4:$AB$4,0))=0,0,(S105/INDEX($P105:$AB105,0,MATCH(_ComparatorYear,$P$4:$AB$4,0)))-1)*S$23 -> 0 | T121: =IF(INDEX($P105:$AB105,0,MATCH(_ComparatorYear,$P$4:$AB$4,0))=0,0,(T105/INDEX($P105:$AB105,0,MATCH(_ComparatorYear,$P$4:$AB$4,0)))-1)*T$23 -> 0 | U121: =IF(INDEX($P105:$AB105,0,MATCH(_ComparatorYear,$P$4:$AB$4,0))=0,0,(U105/INDEX($P105:$AB105,0,MATCH(_ComparatorYear,$P$4:$AB$4,0)))-1)*U$23 -> 0 | V121: =IF(INDEX($P105:$AB105,0,MATCH(_ComparatorYear,$P$4:$AB$4,0))=0,0,(V105/INDEX($P105:$AB105,0,MATCH(_ComparatorYear,$P$4:$AB$4,0)))-1)*V$23 -> 0 | W121: =IF(INDEX($P105:$AB105,0,MATCH(_ComparatorYear,$P$4:$AB$4,0))=0,0,(W105/INDEX($P105:$AB105,0,MATCH(_ComparatorYear,$P$4:$AB$4,0)))-1)*W$23 -> -0.7400578993 | X121: =IF(INDEX($P105:$AB105,0,MATCH(_ComparatorYear,$P$4:$AB$4,0))=0,0,(X105/INDEX($P105:$AB105,0,MATCH(_ComparatorYear,$P$4:$AB$4,0)))-1)*X$23 -> -0.157688937 | Y121: =IF(INDEX($P105:$AB105,0,MATCH(_ComparatorYear,$P$4:$AB$4,0))=0,0,(Y105/INDEX($P105:$AB105,0,MATCH(_ComparatorYear,$P$4:$AB$4,0)))-1)*Y$23 -> -0.04500409591 | Z121: =IF(INDEX($P105:$AB105,0,MATCH(_ComparatorYear,$P$4:$AB$4,0))=0,0,(Z105/INDEX($P105:$AB105,0,MATCH(_ComparatorYear,$P$4:$AB$4,0)))-1)*Z$23 -> 0.02495563123 | AA121: =IF(INDEX($P105:$AB105,0,MATCH(_ComparatorYear,$P$4:$AB$4,0))=0,0,(AA105/INDEX($P105:$AB105,0,MATCH(_ComparatorYear,$P$4:$AB$4,0)))-1)*AA$23 -> 0.04016907721 | AB121: =IF(INDEX($P105:$AB105,0,MATCH(_ComparatorYear,$P$4:$AB$4,0))=0,0,(AB105/INDEX($P105:$AB105,0,MATCH(_ComparatorYear,$P$4:$AB$4,0)))-1)*AB$23 -> 0.03844180247
E122: 8 | F122: =INDEX(_DriversList,$E122) -> Middle East pax | H122: % | P122: =IF(INDEX($P106:$AB106,0,MATCH(_ComparatorYear,$P$4:$AB$4,0))=0,0,(P106/INDEX($P106:$AB106,0,MATCH(_ComparatorYear,$P$4:$AB$4,0)))-1)*P$23 -> 0 | Q122: =IF(INDEX($P106:$AB106,0,MATCH(_ComparatorYear,$P$4:$AB$4,0))=0,0,(Q106/INDEX($P106:$AB106,0,MATCH(_ComparatorYear,$P$4:$AB$4,0)))-1)*Q$23 -> 0 | R122: =IF(INDEX($P106:$AB106,0,MATCH(_ComparatorYear,$P$4:$AB$4,0))=0,0,(R106/INDEX($P106:$AB106,0,MATCH(_ComparatorYear,$P$4:$AB$4,0)))-1)*R$23 -> 0 | S122: =IF(INDEX($P106:$AB106,0,MATCH(_ComparatorYear,$P$4:$AB$4,0))=0,0,(S106/INDEX($P106:$AB106,0,MATCH(_ComparatorYear,$P$4:$AB$4,0)))-1)*S$23 -> 0 | T122: =IF(INDEX($P106:$AB106,0,MATCH(_ComparatorYear,$P$4:$AB$4,0))=0,0,(T106/INDEX($P106:$AB106,0,MATCH(_ComparatorYear,$P$4:$AB$4,0)))-1)*T$23 -> 0 | U122: =IF(INDEX($P106:$AB106,0,MATCH(_ComparatorYear,$P$4:$AB$4,0))=0,0,(U106/INDEX($P106:$AB106,0,MATCH(_ComparatorYear,$P$4:$AB$4,0)))-1)*U$23 -> 0 | V122: =IF(INDEX($P106:$AB106,0,MATCH(_ComparatorYear,$P$4:$AB$4,0))=0,0,(V106/INDEX($P106:$AB106,0,MATCH(_ComparatorYear,$P$4:$AB$4,0)))-1)*V$23 -> 0 | W122: =IF(INDEX($P106:$AB106,0,MATCH(_ComparatorYear,$P$4:$AB$4,0))=0,0,(W106/INDEX($P106:$AB106,0,MATCH(_ComparatorYear,$P$4:$AB$4,0)))-1)*W$23 -> -0.7389717005 | X122: =IF(INDEX($P106:$AB106,0,MATCH(_ComparatorYear,$P$4:$AB$4,0))=0,0,(X106/INDEX($P106:$AB106,0,MATCH(_ComparatorYear,$P$4:$AB$4,0)))-1)*X$23 -> -0.21008293 | Y122: =IF(INDEX($P106:$AB106,0,MATCH(_ComparatorYear,$P$4:$AB$4,0))=0,0,(Y106/INDEX($P106:$AB106,0,MATCH(_ComparatorYear,$P$4:$AB$4,0)))-1)*Y$23 -> -0.07153807705 | Z122: =IF(INDEX($P106:$AB106,0,MATCH(_ComparatorYear,$P$4:$AB$4,0))=0,0,(Z106/INDEX($P106:$AB106,0,MATCH(_ComparatorYear,$P$4:$AB$4,0)))-1)*Z$23 -> 0.02496046609 | AA122: =IF(INDEX($P106:$AB106,0,MATCH(_ComparatorYear,$P$4:$AB$4,0))=0,0,(AA106/INDEX($P106:$AB106,0,MATCH(_ComparatorYear,$P$4:$AB$4,0)))-1)*AA$23 -> 0.07750196593 | AB122: =IF(INDEX($P106:$AB106,0,MATCH(_ComparatorYear,$P$4:$AB$4,0))=0,0,(AB106/INDEX($P106:$AB106,0,MATCH(_ComparatorYear,$P$4:$AB$4,0)))-1)*AB$23 -> 0.08871897712
E123: 9 | F123: =INDEX(_DriversList,$E123) -> North America pax | H123: % | P123: =IF(INDEX($P107:$AB107,0,MATCH(_ComparatorYear,$P$4:$AB$4,0))=0,0,(P107/INDEX($P107:$AB107,0,MATCH(_ComparatorYear,$P$4:$AB$4,0)))-1)*P$23 -> 0 | Q123: =IF(INDEX($P107:$AB107,0,MATCH(_ComparatorYear,$P$4:$AB$4,0))=0,0,(Q107/INDEX($P107:$AB107,0,MATCH(_ComparatorYear,$P$4:$AB$4,0)))-1)*Q$23 -> 0 | R123: =IF(INDEX($P107:$AB107,0,MATCH(_ComparatorYear,$P$4:$AB$4,0))=0,0,(R107/INDEX($P107:$AB107,0,MATCH(_ComparatorYear,$P$4:$AB$4,0)))-1)*R$23 -> 0 | S123: =IF(INDEX($P107:$AB107,0,MATCH(_ComparatorYear,$P$4:$AB$4,0))=0,0,(S107/INDEX($P107:$AB107,0,MATCH(_ComparatorYear,$P$4:$AB$4,0)))-1)*S$23 -> 0 | T123: =IF(INDEX($P107:$AB107,0,MATCH(_ComparatorYear,$P$4:$AB$4,0))=0,0,(T107/INDEX($P107:$AB107,0,MATCH(_ComparatorYear,$P$4:$AB$4,0)))-1)*T$23 -> 0 | U123: =IF(INDEX($P107:$AB107,0,MATCH(_ComparatorYear,$P$4:$AB$4,0))=0,0,(U107/INDEX($P107:$AB107,0,MATCH(_ComparatorYear,$P$4:$AB$4,0)))-1)*U$23 -> 0 | V123: =IF(INDEX($P107:$AB107,0,MATCH(_ComparatorYear,$P$4:$AB$4,0))=0,0,(V107/INDEX($P107:$AB107,0,MATCH(_ComparatorYear,$P$4:$AB$4,0)))-1)*V$23 -> 0 | W123: =IF(INDEX($P107:$AB107,0,MATCH(_ComparatorYear,$P$4:$AB$4,0))=0,0,(W107/INDEX($P107:$AB107,0,MATCH(_ComparatorYear,$P$4:$AB$4,0)))-1)*W$23 -> -0.7931391749 | X123: =IF(INDEX($P107:$AB107,0,MATCH(_ComparatorYear,$P$4:$AB$4,0))=0,0,(X107/INDEX($P107:$AB107,0,MATCH(_ComparatorYear,$P$4:$AB$4,0)))-1)*X$23 -> -0.2420242445 | Y123: =IF(INDEX($P107:$AB107,0,MATCH(_ComparatorYear,$P$4:$AB$4,0))=0,0,(Y107/INDEX($P107:$AB107,0,MATCH(_ComparatorYear,$P$4:$AB$4,0)))-1)*Y$23 -> -0.06156281895 | Z123: =IF(INDEX($P107:$AB107,0,MATCH(_ComparatorYear,$P$4:$AB$4,0))=0,0,(Z107/INDEX($P107:$AB107,0,MATCH(_ComparatorYear,$P$4:$AB$4,0)))-1)*Z$23 -> 0.01363258108 | AA123: =IF(INDEX($P107:$AB107,0,MATCH(_ComparatorYear,$P$4:$AB$4,0))=0,0,(AA107/INDEX($P107:$AB107,0,MATCH(_ComparatorYear,$P$4:$AB$4,0)))-1)*AA$23 -> 0.01842015473 | AB123: =IF(INDEX($P107:$AB107,0,MATCH(_ComparatorYear,$P$4:$AB$4,0))=0,0,(AB107/INDEX($P107:$AB107,0,MATCH(_ComparatorYear,$P$4:$AB$4,0)))-1)*AB$23 -> 0.01857339275
E124: 10 | F124: =INDEX(_DriversList,$E124) -> Asia/Pacific pax | H124: % | P124: =IF(INDEX($P108:$AB108,0,MATCH(_ComparatorYear,$P$4:$AB$4,0))=0,0,(P108/INDEX($P108:$AB108,0,MATCH(_ComparatorYear,$P$4:$AB$4,0)))-1)*P$23 -> 0 | Q124: =IF(INDEX($P108:$AB108,0,MATCH(_ComparatorYear,$P$4:$AB$4,0))=0,0,(Q108/INDEX($P108:$AB108,0,MATCH(_ComparatorYear,$P$4:$AB$4,0)))-1)*Q$23 -> 0 | R124: =IF(INDEX($P108:$AB108,0,MATCH(_ComparatorYear,$P$4:$AB$4,0))=0,0,(R108/INDEX($P108:$AB108,0,MATCH(_ComparatorYear,$P$4:$AB$4,0)))-1)*R$23 -> 0 | S124: =IF(INDEX($P108:$AB108,0,MATCH(_ComparatorYear,$P$4:$AB$4,0))=0,0,(S108/INDEX($P108:$AB108,0,MATCH(_ComparatorYear,$P$4:$AB$4,0)))-1)*S$23 -> 0 | T124: =IF(INDEX($P108:$AB108,0,MATCH(_ComparatorYear,$P$4:$AB$4,0))=0,0,(T108/INDEX($P108:$AB108,0,MATCH(_ComparatorYear,$P$4:$AB$4,0)))-1)*T$23 -> 0 | U124: =IF(INDEX($P108:$AB108,0,MATCH(_ComparatorYear,$P$4:$AB$4,0))=0,0,(U108/INDEX($P108:$AB108,0,MATCH(_ComparatorYear,$P$4:$AB$4,0)))-1)*U$23 -> 0 | V124: =IF(INDEX($P108:$AB108,0,MATCH(_ComparatorYear,$P$4:$AB$4,0))=0,0,(V108/INDEX($P108:$AB108,0,MATCH(_ComparatorYear,$P$4:$AB$4,0)))-1)*V$23 -> 0 | W124: =IF(INDEX($P108:$AB108,0,MATCH(_ComparatorYear,$P$4:$AB$4,0))=0,0,(W108/INDEX($P108:$AB108,0,MATCH(_ComparatorYear,$P$4:$AB$4,0)))-1)*W$23 -> -0.7953902228 | X124: =IF(INDEX($P108:$AB108,0,MATCH(_ComparatorYear,$P$4:$AB$4,0))=0,0,(X108/INDEX($P108:$AB108,0,MATCH(_ComparatorYear,$P$4:$AB$4,0)))-1)*X$23 -> -0.4047703528 | Y124: =IF(INDEX($P108:$AB108,0,MATCH(_ComparatorYear,$P$4:$AB$4,0))=0,0,(Y108/INDEX($P108:$AB108,0,MATCH(_ComparatorYear,$P$4:$AB$4,0)))-1)*Y$23 -> -0.1231382897 | Z124: =IF(INDEX($P108:$AB108,0,MATCH(_ComparatorYear,$P$4:$AB$4,0))=0,0,(Z108/INDEX($P108:$AB108,0,MATCH(_ComparatorYear,$P$4:$AB$4,0)))-1)*Z$23 -> 0.03359767159 | AA124: =IF(INDEX($P108:$AB108,0,MATCH(_ComparatorYear,$P$4:$AB$4,0))=0,0,(AA108/INDEX($P108:$AB108,0,MATCH(_ComparatorYear,$P$4:$AB$4,0)))-1)*AA$23 -> 0.1075341208 | AB124: =IF(INDEX($P108:$AB108,0,MATCH(_ComparatorYear,$P$4:$AB$4,0))=0,0,(AB108/INDEX($P108:$AB108,0,MATCH(_ComparatorYear,$P$4:$AB$4,0)))-1)*AB$23 -> 0.12179992
E125: 11 | F125: =INDEX(_DriversList,$E125) -> Other pax | H125: % | P125: =IF(INDEX($P109:$AB109,0,MATCH(_ComparatorYear,$P$4:$AB$4,0))=0,0,(P109/INDEX($P109:$AB109,0,MATCH(_ComparatorYear,$P$4:$AB$4,0)))-1)*P$23 -> 0 | Q125: =IF(INDEX($P109:$AB109,0,MATCH(_ComparatorYear,$P$4:$AB$4,0))=0,0,(Q109/INDEX($P109:$AB109,0,MATCH(_ComparatorYear,$P$4:$AB$4,0)))-1)*Q$23 -> 0 | R125: =IF(INDEX($P109:$AB109,0,MATCH(_ComparatorYear,$P$4:$AB$4,0))=0,0,(R109/INDEX($P109:$AB109,0,MATCH(_ComparatorYear,$P$4:$AB$4,0)))-1)*R$23 -> 0 | S125: =IF(INDEX($P109:$AB109,0,MATCH(_ComparatorYear,$P$4:$AB$4,0))=0,0,(S109/INDEX($P109:$AB109,0,MATCH(_ComparatorYear,$P$4:$AB$4,0)))-1)*S$23 -> 0 | T125: =IF(INDEX($P109:$AB109,0,MATCH(_ComparatorYear,$P$4:$AB$4,0))=0,0,(T109/INDEX($P109:$AB109,0,MATCH(_ComparatorYear,$P$4:$AB$4,0)))-1)*T$23 -> 0 | U125: =IF(INDEX($P109:$AB109,0,MATCH(_ComparatorYear,$P$4:$AB$4,0))=0,0,(U109/INDEX($P109:$AB109,0,MATCH(_ComparatorYear,$P$4:$AB$4,0)))-1)*U$23 -> 0 | V125: =IF(INDEX($P109:$AB109,0,MATCH(_ComparatorYear,$P$4:$AB$4,0))=0,0,(V109/INDEX($P109:$AB109,0,MATCH(_ComparatorYear,$P$4:$AB$4,0)))-1)*V$23 -> 0 | W125: =IF(INDEX($P109:$AB109,0,MATCH(_ComparatorYear,$P$4:$AB$4,0))=0,0,(W109/INDEX($P109:$AB109,0,MATCH(_ComparatorYear,$P$4:$AB$4,0)))-1)*W$23 -> -0.7540981416 | X125: =IF(INDEX($P109:$AB109,0,MATCH(_ComparatorYear,$P$4:$AB$4,0))=0,0,(X109/INDEX($P109:$AB109,0,MATCH(_ComparatorYear,$P$4:$AB$4,0)))-1)*X$23 -> -0.2992564778 | Y125: =IF(INDEX($P109:$AB109,0,MATCH(_ComparatorYear,$P$4:$AB$4,0))=0,0,(Y109/INDEX($P109:$AB109,0,MATCH(_ComparatorYear,$P$4:$AB$4,0)))-1)*Y$23 -> -0.08463341555 | Z125: =IF(INDEX($P109:$AB109,0,MATCH(_ComparatorYear,$P$4:$AB$4,0))=0,0,(Z109/INDEX($P109:$AB109,0,MATCH(_ComparatorYear,$P$4:$AB$4,0)))-1)*Z$23 -> 0.007624780772 | AA125: =IF(INDEX($P109:$AB109,0,MATCH(_ComparatorYear,$P$4:$AB$4,0))=0,0,(AA109/INDEX($P109:$AB109,0,MATCH(_ComparatorYear,$P$4:$AB$4,0)))-1)*AA$23 -> 0.01626050412 | AB125: =IF(INDEX($P109:$AB109,0,MATCH(_ComparatorYear,$P$4:$AB$4,0))=0,0,(AB109/INDEX($P109:$AB109,0,MATCH(_ComparatorYear,$P$4:$AB$4,0)))-1)*AB$23 -> 0.02028495434
E126: 12 | F126: =INDEX(_DriversList,$E126) -> No Elasticity | H126: % | P126: =IF(INDEX($P110:$AB110,0,MATCH(_ComparatorYear,$P$4:$AB$4,0))=0,0,(P110/INDEX($P110:$AB110,0,MATCH(_ComparatorYear,$P$4:$AB$4,0)))-1)*P$23 -> 0 | Q126: =IF(INDEX($P110:$AB110,0,MATCH(_ComparatorYear,$P$4:$AB$4,0))=0,0,(Q110/INDEX($P110:$AB110,0,MATCH(_ComparatorYear,$P$4:$AB$4,0)))-1)*Q$23 -> 0 | R126: =IF(INDEX($P110:$AB110,0,MATCH(_ComparatorYear,$P$4:$AB$4,0))=0,0,(R110/INDEX($P110:$AB110,0,MATCH(_ComparatorYear,$P$4:$AB$4,0)))-1)*R$23 -> 0 | S126: =IF(INDEX($P110:$AB110,0,MATCH(_ComparatorYear,$P$4:$AB$4,0))=0,0,(S110/INDEX($P110:$AB110,0,MATCH(_ComparatorYear,$P$4:$AB$4,0)))-1)*S$23 -> 0 | T126: =IF(INDEX($P110:$AB110,0,MATCH(_ComparatorYear,$P$4:$AB$4,0))=0,0,(T110/INDEX($P110:$AB110,0,MATCH(_ComparatorYear,$P$4:$AB$4,0)))-1)*T$23 -> 0 | U126: =IF(INDEX($P110:$AB110,0,MATCH(_ComparatorYear,$P$4:$AB$4,0))=0,0,(U110/INDEX($P110:$AB110,0,MATCH(_ComparatorYear,$P$4:$AB$4,0)))-1)*U$23 -> 0 | V126: =IF(INDEX($P110:$AB110,0,MATCH(_ComparatorYear,$P$4:$AB$4,0))=0,0,(V110/INDEX($P110:$AB110,0,MATCH(_ComparatorYear,$P$4:$AB$4,0)))-1)*V$23 -> 0 | W126: =IF(INDEX($P110:$AB110,0,MATCH(_ComparatorYear,$P$4:$AB$4,0))=0,0,(W110/INDEX($P110:$AB110,0,MATCH(_ComparatorYear,$P$4:$AB$4,0)))-1)*W$23 -> 0 | X126: =IF(INDEX($P110:$AB110,0,MATCH(_ComparatorYear,$P$4:$AB$4,0))=0,0,(X110/INDEX($P110:$AB110,0,MATCH(_ComparatorYear,$P$4:$AB$4,0)))-1)*X$23 -> 0 | Y126: =IF(INDEX($P110:$AB110,0,MATCH(_ComparatorYear,$P$4:$AB$4,0))=0,0,(Y110/INDEX($P110:$AB110,0,MATCH(_ComparatorYear,$P$4:$AB$4,0)))-1)*Y$23 -> 0 | Z126: =IF(INDEX($P110:$AB110,0,MATCH(_ComparatorYear,$P$4:$AB$4,0))=0,0,(Z110/INDEX($P110:$AB110,0,MATCH(_ComparatorYear,$P$4:$AB$4,0)))-1)*Z$23 -> 0 | AA126: =IF(INDEX($P110:$AB110,0,MATCH(_ComparatorYear,$P$4:$AB$4,0))=0,0,(AA110/INDEX($P110:$AB110,0,MATCH(_ComparatorYear,$P$4:$AB$4,0)))-1)*AA$23 -> 0 | AB126: =IF(INDEX($P110:$AB110,0,MATCH(_ComparatorYear,$P$4:$AB$4,0))=0,0,(AB110/INDEX($P110:$AB110,0,MATCH(_ComparatorYear,$P$4:$AB$4,0)))-1)*AB$23 -> 0
E127: 13 | F127: =INDEX(_DriversList,$E127) -> TDOC pax | H127: % | P127: =IF(INDEX($P111:$AB111,0,MATCH(_ComparatorYear,$P$4:$AB$4,0))=0,0,(P111/INDEX($P111:$AB111,0,MATCH(_ComparatorYear,$P$4:$AB$4,0)))-1)*P$23 -> 0 | Q127: =IF(INDEX($P111:$AB111,0,MATCH(_ComparatorYear,$P$4:$AB$4,0))=0,0,(Q111/INDEX($P111:$AB111,0,MATCH(_ComparatorYear,$P$4:$AB$4,0)))-1)*Q$23 -> 0 | R127: =IF(INDEX($P111:$AB111,0,MATCH(_ComparatorYear,$P$4:$AB$4,0))=0,0,(R111/INDEX($P111:$AB111,0,MATCH(_ComparatorYear,$P$4:$AB$4,0)))-1)*R$23 -> 0 | S127: =IF(INDEX($P111:$AB111,0,MATCH(_ComparatorYear,$P$4:$AB$4,0))=0,0,(S111/INDEX($P111:$AB111,0,MATCH(_ComparatorYear,$P$4:$AB$4,0)))-1)*S$23 -> 0 | T127: =IF(INDEX($P111:$AB111,0,MATCH(_ComparatorYear,$P$4:$AB$4,0))=0,0,(T111/INDEX($P111:$AB111,0,MATCH(_ComparatorYear,$P$4:$AB$4,0)))-1)*T$23 -> 0 | U127: =IF(INDEX($P111:$AB111,0,MATCH(_ComparatorYear,$P$4:$AB$4,0))=0,0,(U111/INDEX($P111:$AB111,0,MATCH(_ComparatorYear,$P$4:$AB$4,0)))-1)*U$23 -> 0 | V127: =IF(INDEX($P111:$AB111,0,MATCH(_ComparatorYear,$P$4:$AB$4,0))=0,0,(V111/INDEX($P111:$AB111,0,MATCH(_ComparatorYear,$P$4:$AB$4,0)))-1)*V$23 -> 0 | W127: =IF(INDEX($P111:$AB111,0,MATCH(_ComparatorYear,$P$4:$AB$4,0))=0,0,(W111/INDEX($P111:$AB111,0,MATCH(_ComparatorYear,$P$4:$AB$4,0)))-1)*W$23 -> -0.689316597 | X127: =IF(INDEX($P111:$AB111,0,MATCH(_ComparatorYear,$P$4:$AB$4,0))=0,0,(X111/INDEX($P111:$AB111,0,MATCH(_ComparatorYear,$P$4:$AB$4,0)))-1)*X$23 -> -0.1933055952 | Y127: =IF(INDEX($P111:$AB111,0,MATCH(_ComparatorYear,$P$4:$AB$4,0))=0,0,(Y111/INDEX($P111:$AB111,0,MATCH(_ComparatorYear,$P$4:$AB$4,0)))-1)*Y$23 -> -0.1334994687 | Z127: =IF(INDEX($P111:$AB111,0,MATCH(_ComparatorYear,$P$4:$AB$4,0))=0,0,(Z111/INDEX($P111:$AB111,0,MATCH(_ComparatorYear,$P$4:$AB$4,0)))-1)*Z$23 -> -0.0969444427 | AA127: =IF(INDEX($P111:$AB111,0,MATCH(_ComparatorYear,$P$4:$AB$4,0))=0,0,(AA111/INDEX($P111:$AB111,0,MATCH(_ComparatorYear,$P$4:$AB$4,0)))-1)*AA$23 -> -0.07390104561 | AB127: =IF(INDEX($P111:$AB111,0,MATCH(_ComparatorYear,$P$4:$AB$4,0))=0,0,(AB111/INDEX($P111:$AB111,0,MATCH(_ComparatorYear,$P$4:$AB$4,0)))-1)*AB$23 -> -0.06989826749
A130: 2 | B130: =INDEX(Lists!$B$3:$B$8, A130) -> Scenario 2: CAA Mid passenger growth (FP - 7th April)
C132: Passenger splits
D134: O&D
F136: O&D | H136: % | K136: [2014-21] Heathrow RBP (Update 2) - External H7 v1.00; [2022-2026] CAA H7 Pax Forecast - Final Proposals - 7 April 2022 | T136: 0.7516262575 | U136: 0.7704327781 | V136: 0.79025237 | W136: 0.781554573 | X136: 0.7655031968 | Y136: 0.7669513191 | Z136: 0.7694562342 | AA136: 0.7710666755 | AB136: 0.7723295312
D138: Mode share
E140: 1 | F140: =INDEX(Lists!$D$3:$D$19, E140) -> Park & Fly Passengers | H140: % | U140: =CRAssumptions!U564 -> 0.06994908428 | V140: =CRAssumptions!V564 -> 0.06464270187 | W140: =CRAssumptions!W564 -> 0.07979048868 | X140: =CRAssumptions!X564 -> 0.07620473602 | Y140: =CRAssumptions!Y564 -> 0.07312032625 | Z140: =CRAssumptions!Z564 -> 0.07202148252 | AA140: =CRAssumptions!AA564 -> 0.07115742967 | AB140: =CRAssumptions!AB564 -> 0.07115238428
E141: 2 | F141: =INDEX(Lists!$D$3:$D$19, E141) -> Kiss & Fly Passengers | H141: % | U141: =CRAssumptions!U565 -> 0.1786778781 | V141: =CRAssumptions!V565 -> 0.2260671277 | W141: =CRAssumptions!W565 -> 0.2647797992 | X141: =CRAssumptions!X565 -> 0.2089072259 | Y141: =CRAssumptions!Y565 -> 0.1830580271 | Z141: =CRAssumptions!Z565 -> 0.1689339582 | AA141: =CRAssumptions!AA565 -> 0.1611558151 | AB141: =CRAssumptions!AB565 -> 0.1611662119
E142: 3 | F142: =INDEX(Lists!$D$3:$D$19, E142) -> Taxi Passengers | H142: % | U142: =CRAssumptions!U566 -> 0.3061789254 | V142: =CRAssumptions!V566 -> 0.3084571056 | W142: =CRAssumptions!W566 -> 0.3180261278 | X142: =CRAssumptions!X566 -> 0.2995860764 | Y142: =CRAssumptions!Y566 -> 0.2810431949 | Z142: =CRAssumptions!Z566 -> 0.2740054884 | AA142: =CRAssumptions!AA566 -> 0.2728635072 | AB142: =CRAssumptions!AB566 -> 0.2728828386
E143: 4 | F143: =INDEX(Lists!$D$3:$D$19, E143) -> Bus/Coach Passengers | H143: % | U143: =CRAssumptions!U567 -> 0.08995732782 | V143: =CRAssumptions!V567 -> 0.08553809346 | W143: =CRAssumptions!W567 -> 0.06882293191 | X143: =CRAssumptions!X567 -> 0.08219250041 | Y143: =CRAssumptions!Y567 -> 0.08060080638 | Z143: =CRAssumptions!Z567 -> 0.08240444358 | AA143: =CRAssumptions!AA567 -> 0.08432299306 | AB143: =CRAssumptions!AB567 -> 0.08431811002
E144: 5 | F144: =INDEX(Lists!$D$3:$D$19, E144) -> Tube Passengers | H144: % | U144: =CRAssumptions!U568 -> 0.1981807809 | V144: =CRAssumptions!V568 -> 0.1830789421 | W144: =CRAssumptions!W568 -> 0.1597542346 | X144: =CRAssumptions!X568 -> 0.1836678808 | Y144: =CRAssumptions!Y568 -> 0.1767252045 | Z144: =CRAssumptions!Z568 -> 0.1791137616 | AA144: =CRAssumptions!AA568 -> 0.1826048952 | AB144: =CRAssumptions!AB568 -> 0.1825953113
E145: 6 | F145: =INDEX(Lists!$D$3:$D$19, E145) -> Car Rental Passengers | H145: % | U145: =CRAssumptions!U569 -> 0.01962176631 | V145: =CRAssumptions!V569 -> 0.01968743879 | W145: =CRAssumptions!W569 -> 0.01777400814 | X145: =CRAssumptions!X569 -> 0.0190567944 | Y145: =CRAssumptions!Y569 -> 0.01793147555 | Z145: =CRAssumptions!Z569 -> 0.01791281802 | AA145: =CRAssumptions!AA569 -> 0.01808310274 | AB145: =CRAssumptions!AB569 -> 0.01808204011
E146: 7 | F146: =INDEX(Lists!$D$3:$D$19, E146) -> Walk Passengers | H146: % | U146: =CRAssumptions!U570 -> 0 | V146: =CRAssumptions!V570 -> 0 | W146: =CRAssumptions!W570 -> 0 | X146: =CRAssumptions!X570 -> 0 | Y146: =CRAssumptions!Y570 -> 0 | Z146: =CRAssumptions!Z570 -> 0 | AA146: =CRAssumptions!AA570 -> 0 | AB146: =CRAssumptions!AB570 -> 0
E147: 8 | F147: =INDEX(Lists!$D$3:$D$19, E147) -> Heathrow Express Passengers | H147: % | U147: =CRAssumptions!U571 -> 0.08540518144 | V147: =CRAssumptions!V571 -> 0.06631669878 | W147: =CRAssumptions!W571 -> 0.05696759369 | X147: =CRAssumptions!X571 -> 0.07303172475 | Y147: =CRAssumptions!Y571 -> 0.06642335459 | Z147: =CRAssumptions!Z571 -> 0.06757932883 | AA147: =CRAssumptions!AA571 -> 0.07015078807 | AB147: =CRAssumptions!AB571 -> 0.07014672846
E148: 9 | F148: =INDEX(Lists!$D$3:$D$19, E148) -> Heathrow Connect Passengers | H148: % | U148: =CRAssumptions!U572 -> 0.009437959924 | V148: =CRAssumptions!V572 -> 0.009613716412 | W148: =CRAssumptions!W572 -> 0.01125464195 | X148: =CRAssumptions!X572 -> 0.01098213852 | Y148: =CRAssumptions!Y572 -> 0.001924837326 | Z148: =CRAssumptions!Z572 -> 8.986563442e-05 | AA148: =CRAssumptions!AA572 -> -5.293379412e-05 | AB148: =CRAssumptions!AB572 -> -5.803209505e-05
E149: 10 | F149: =INDEX(Lists!$D$3:$D$19, E149) -> Rail Passengers | H149: % | U149: =CRAssumptions!U573 -> 0 | V149: =CRAssumptions!V573 -> 0 | W149: =CRAssumptions!W573 -> 0.003356301 | X149: =CRAssumptions!X573 -> 0.001419704426 | Y149: =CRAssumptions!Y573 -> 0.0007395773054 | Z149: =CRAssumptions!Z573 -> 0.0003015720293 | AA149: =CRAssumptions!AA573 -> 0 | AB149: =CRAssumptions!AB573 -> 0
E150: 11 | F150: =INDEX(Lists!$D$3:$D$19, E150) -> Elizabeth Line Passengers | H150: % | U150: =CRAssumptions!U574 -> 0 | V150: =CRAssumptions!V574 -> 0 | W150: =CRAssumptions!W574 -> 0 | X150: =CRAssumptions!X574 -> 0.01229219184 | Y150: =CRAssumptions!Y574 -> 0.08194794557 | Z150: =CRAssumptions!Z574 -> 0.09833753469 | AA150: =CRAssumptions!AA574 -> 0.09833753469 | AB150: =CRAssumptions!AB574 -> 0.09833753469
E151: 12 | F151: =INDEX(Lists!$D$3:$D$19, E151) -> Air Passengers | H151: % | U151: =CRAssumptions!U575 -> 0 | V151: =CRAssumptions!V575 -> 0 | W151: =CRAssumptions!W575 -> 8.407626362e-08 | X151: =CRAssumptions!X575 -> 4.631961776e-07 | Y151: =CRAssumptions!Y575 -> 4.166943906e-07 | Z151: =CRAssumptions!Z575 -> 4.825060833e-07 | AA151: =CRAssumptions!AA575 -> 4.78781876e-07 | AB151: =CRAssumptions!AB575 -> 4.778262236e-07
E152: 13 | F152: =INDEX(Lists!$D$3:$D$19, E152) -> Other Passengers | H152: % | U152: =CRAssumptions!U576 -> 0.01055798403 | V152: =CRAssumptions!V576 -> 0.01369681257 | W152: =CRAssumptions!W576 -> 0.00727607479 | X152: =CRAssumptions!X576 -> 0.009169747079 | Y152: =CRAssumptions!Y576 -> 0.009834799315 | Z152: =CRAssumptions!Z576 -> 0.01026309629 | AA152: =CRAssumptions!AA576 -> 0.01055798403 | AB152: =CRAssumptions!AB576 -> 0.01055798403
E153: 14 | F153: =INDEX(Lists!$D$3:$D$19, E153) -> Rail-air Passengers | H153: % | U153: =CRAssumptions!U577 -> 0.00304584144 | V153: =CRAssumptions!V577 -> 0.002840074977 | W153: =CRAssumptions!W577 -> 0.0008225540965 | X153: =CRAssumptions!X577 -> 0.002102531596 | Y153: =CRAssumptions!Y577 -> 0.001896193216 | Z153: =CRAssumptions!Z577 -> 0.002053645991 | AA153: =CRAssumptions!AA577 -> 0.00225441434 | AB153: =CRAssumptions!AB577 -> 0.002254164733
E154: 15 | F154: =INDEX(Lists!$D$3:$D$19, E154) -> Charter Coach Passengers | H154: % | U154: =CRAssumptions!U578 -> 0.02898727041 | V154: =CRAssumptions!V578 -> 0.02006128779 | W154: =CRAssumptions!W578 -> 0.01141301072 | X154: =CRAssumptions!X578 -> 0.02140273668 | Y154: =CRAssumptions!Y578 -> 0.02476134608 | Z154: =CRAssumptions!Z578 -> 0.02698491533 | AA154: =CRAssumptions!AA578 -> 0.02856298956 | AB154: =CRAssumptions!AB578 -> 0.02856324328
E155: 16 | F155: =INDEX(Lists!$D$3:$D$19, E155) -> Air Transfer Passengers | H155: % | U155: =CRAssumptions!U579 -> 0 | V155: =CRAssumptions!V579 -> 0 | W155: =CRAssumptions!W579 -> 8.407626362e-08 | X155: =CRAssumptions!X579 -> 6.805589737e-07 | Y155: =CRAssumptions!Y579 -> 1.865779698e-06 | Z155: =CRAssumptions!Z579 -> 2.221408452e-06 | AA155: =CRAssumptions!AA579 -> 2.217684245e-06 | AB155: =CRAssumptions!AB579 -> 2.216728593e-06
E156: 17 | F156: =INDEX(Lists!$D$3:$D$19, E156) -> Zero Passengers | H156: % | U156: =CRAssumptions!U580 -> 0 | V156: =CRAssumptions!V580 -> 0 | W156: =CRAssumptions!W580 -> 0 | X156: =CRAssumptions!X580 -> 0 | Y156: =CRAssumptions!Y580 -> 0 | Z156: =CRAssumptions!Z580 -> 0 | AA156: =CRAssumptions!AA580 -> 0 | AB156: =CRAssumptions!AB580 -> 0
D158: Geographic split
E160: 1 | F160: =INDEX(_GeogList, E160) -> UK & CI | G160: =INDEX(_GeogSummaryList, E160) -> UK | H160: % | K160: [2014-20, exc. 2019] H7_Revenue_Inputs; [2019] HAL CAP2265 Response - Table 20]; [2022-2026] CAA H7 Pax Forecast - Final Proposals - 7 April 2022 | P160: 0.07198605228 | Q160: 0.06858758117 | R160: 0.06141451496 | S160: 0.06157278591 | T160: 0.059861177 | U160: 0.06 | V160: 0.06603346902 | W160: =AVERAGE(V160,X160) -> 0.07154557153 | X160: 0.07705767405 | Y160: 0.05889167499 | Z160: 0.0514793537 | AA160: 0.04822916145 | AB160: 0.04688532228
E161: 2 | F161: =INDEX(_GeogList, E161) -> EEA | G161: =INDEX(_GeogSummaryList, E161) -> EEA | H161: % | K161: [2014-20, exc. 2019] H7_Revenue_Inputs; [2019] HAL CAP2265 Response - Table 20]; [2022-2026] CAA H7 Pax Forecast - Final Proposals - 7 April 2022 | P161: 0.3812158239 | Q161: 0.3878950296 | R161: 0.3911908761 | S161: 0.3887233307 | T161: 0.3882673916 | U161: 0.383 | V161: 0.4151229171 | W161: =AVERAGE(V161,X161) -> 0.4191437835 | X161: 0.4231646499 | Y161: 0.4032749251 | Z161: 0.4013292693 | AA161: 0.3935508325 | AB161: 0.3891730133
E162: 3 | F162: =INDEX(_GeogList, E162) -> Other Europe & CIS | G162: =INDEX(_GeogSummaryList, E162) -> Other | H162: % | K162: [2014-20, exc. 2019] H7_Revenue_Inputs; [2019] HAL CAP2265 Response - Table 20]; [2022-2026] CAA H7 Pax Forecast - Final Proposals - 7 April 2022 | P162: 0.02727267335 | Q162: 0.02775051237 | R162: 0.0279863015 | S162: 0.02780977011 | T162: 0.02777715163 | U162: 0.028 | V162: 0.02969843068 | W162: 0.02507866973 | X162: 0.02045890877 | Y162: 0.02584706904 | Z162: 0.02739705378 | AA162: 0.02730739735 | AB162: 0.02730449479
E163: 4 | F163: =INDEX(_GeogList, E163) -> Middle East | G163: =INDEX(_GeogSummaryList, E163) -> Middle East | H163: % | K163: [2014-20, exc. 2019] H7_Revenue_Inputs; [2019] HAL CAP2265 Response - Table 20]; [2022-2026] CAA H7 Pax Forecast - Final Proposals - 7 April 2022 | P163: 0.08262391544 | Q163: 0.08556114082 | R163: 0.09212177244 | S163: 0.0977317314 | T163: 0.09562807421 | U163: 0.096 | V163: 0.1113975577 | W163: 0.104414282 | X163: 0.09743100631 | Y163: 0.09351987776 | Z163: 0.09385663265 | AA163: 0.09698851557 | AB163: 0.09953145891
E164: 5 | F164: =INDEX(_GeogList, E164) -> Africa | G164: =INDEX(_GeogSummaryList, E164) -> Other | H164: % | K164: [2014-20, exc. 2019] H7_Revenue_Inputs; [2019] HAL CAP2265 Response - Table 20]; [2022-2026] CAA H7 Pax Forecast - Final Proposals - 7 April 2022 | P164: 0.04804064454 | Q164: 0.04398725316 | R164: 0.04178828502 | S164: 0.04064675788 | T164: 0.04167186837 | U164: 0.043 | V164: 0.05192220715 | W164: 0.04775086738 | X164: 0.04357952762 | Y164: 0.04599868136 | Z164: 0.04477578905 | AA164: 0.04328843747 | AB164: 0.04261667356
E165: 6 | F165: =INDEX(_GeogList, E165) -> North America | G165: =INDEX(_GeogSummaryList, E165) -> North America | H165: % | K165: [2014-20, exc. 2019] H7_Revenue_Inputs; [2019] HAL CAP2265 Response - Table 20]; [2022-2026] CAA H7 Pax Forecast - Final Proposals - 7 April 2022 | P165: 0.2314177915 | Q165: 0.2304164056 | R165: 0.2270091792 | S165: 0.2225698496 | T165: 0.2259618986 | U165: 0.233 | V165: 0.1746720941 | W165: 0.2012235473 | X165: 0.2277750006 | Y165: 0.246610711 | Z165: 0.2423504879 | AA165: 0.2371196641 | AB165: 0.2319562717
E166: 7 | F166: =INDEX(_GeogList, E166) -> Latin America | G166: =INDEX(_GeogSummaryList, E166) -> Other | H166: % | K166: [2014-20, exc. 2019] H7_Revenue_Inputs; [2019] HAL CAP2265 Response - Table 20]; [2022-2026] CAA H7 Pax Forecast - Final Proposals - 7 April 2022 | P166: 0.01520083904 | Q166: 0.01612021494 | R166: 0.01619230007 | S166: 0.0165920835 | T166: 0.01686599586 | U166: 0.017 | V166: 0.01949344188 | W166: 0.01838713289 | X166: 0.01728082391 | Y166: 0.01545924531 | Z166: 0.01514971613 | AA166: 0.01703446239 | AB166: 0.01742617401
E167: 8 | F167: =INDEX(_GeogList, E167) -> Asia / Pacific | G167: =INDEX(_GeogSummaryList, E167) -> Asia/Pacific | H167: % | K167: [2014-20, exc. 2019] H7_Revenue_Inputs; [2019] HAL CAP2265 Response - Table 20]; [2022-2026] CAA H7 Pax Forecast - Final Proposals - 7 April 2022 | P167: 0.14224226 | Q167: 0.1396818624 | R167: 0.1422967708 | S167: 0.1443536909 | T167: 0.1439664428 | U167: 0.14 | V167: 0.1316598824 | W167: 0.1124561365 | X167: 0.09325239064 | Y167: 0.1103977857 | Z167: 0.1236616709 | AA167: 0.1364815292 | AB167: 0.1451065915
C169: Cost / Revenue Driver values
E171: 1 | F171: =INDEX(_DriversList,$E171) -> Total Passengers | H171: million pax | K171: [2014-2020] Heathrow RBP (Update 2) - External H7 v1.00; [2021] https://www.heathrow.com/company/investor-centre/reports/traffic-statistics; [2022-2026] CAA H7 Pax Forecast - Final Proposals - 7 April 2022 | P171: 73.374678 | Q171: 74.958974 | R171: 75.675695 | S171: 77.988006 | T171: 80.102014 | U171: 80.88626 | V171: 22.10558 | W171: 19.393145 | X171: 54.874872 | Y171: 67.335952 | Z171: 75.36095 | AA171: 80.998858 | AB171: 81.631688
E172: 2 | F172: =INDEX(_DriversList,$E172) -> Utilised Terminal Area | H172: 000s m2 | K172: Heathrow RBP (Update 2) - External H7 v1.00.xlsb - "IC_Drivers" | T172: 1117.033 | U172: 1117.033 | V172: 837.3326667 | W172: 812.5925 | X172: 1013.2225 | Y172: 1117.033 | Z172: 1117.033 | AA172: 1117.033 | AB172: 1117.033
E173: 3 | F173: =INDEX(_DriversList,$E173) -> OD pax | H173: million pax | T173: =T136*T171 -> 60.206777 | U173: 62.317426 | V173: 17.46898698 | W173: 15.15680116 | X173: 42.00688994 | Y173: 51.64339721 | Z173: 57.98695279 | AA173: 62.45552016 | AB173: 63.04656332
E174: 4 | F174: =INDEX(_DriversList,$E174) -> HEx pax | H174: million pax | U174: =U147*U173 -> 5.322231074 | V174: 1.158485548 | W174: 0.8634464902 | X174: 3.067835624 | Y174: 3.430327685 | Z174: 3.918719351 | AA174: 4.381303959 | AB174: 4.422510157
E175: 5 | F175: =INDEX(_DriversList,$E175) -> Parking/rental pax | H175: million pax | U175: =(U140+U145) *U173 -> 5.581824853 | V175: 1.47316213 | W175: 1.478765678 | X175: 4.001640624 | Y175: 4.702224367 | Z175: 5.21501604 | AA175: 5.573563871 | AB175: 5.625923788
E176: 6 | F176: =INDEX(_DriversList,$E176) -> UK pax | G176: UK | H176: million pax | P176: =P$171*SUMIFS(P$160:P$167,$G$160:$G$167,$G176) -> 5.281953406 | Q176: =Q$171*SUMIFS(Q$160:Q$167,$G$160:$G$167,$G176) -> 5.141254713 | R176: 4.647586102 | S176: 4.801938797 | T176: 4.795000838 | U176: 4.8531756 | V176: 1.459708132 | W176: 1.387493643 | X176: 4.22853 | Y176: 3.965527 | Z176: 3.879533 | AA176: 3.906507 | AB176: 3.827328
E177: 7 | F177: =INDEX(_DriversList,$E177) -> EEA pax | G177: EEA | H177: million pax | P177: =P$171*SUMIFS(P$160:P$167,$G$160:$G$167,$G177) -> 27.97158832 | Q177: 29.07621344 | R177: 29.60364142 | S177: 30.31575745 | T177: 31.10100004 | U177: 30.97943758 | V177: 9.176532854 | W177: 8.12851617 | X177: 23.221106 | Y177: 27.154901 | Z177: 30.244555 | AA177: 31.877168 | AB177: 31.76885
E178: 8 | F178: =INDEX(_DriversList,$E178) -> Middle East pax | G178: Middle East | H178: million pax | P178: 6.062503191 | Q178: 6.41357533 | R178: 6.971379154 | S178: 7.621902855 | T178: 7.660001339 | U178: 7.76508096 | V178: 2.462507623 | W178: 2.024921311 | X178: 5.346514 | Y178: 6.29725 | Z178: 7.073125 | AA178: 7.855959 | AB178: 8.124921
E179: 9 | F179: =INDEX(_DriversList,$E179) -> North America pax | G179: North America | H179: million pax | P179: 16.98020594 | Q179: 17.27177735 | R179: 17.1790774 | S179: 17.35777877 | T179: 18.10000316 | U179: 18.84649858 | V179: 3.861227949 | W179: 3.90235743 | X179: 12.499124 | Y179: 16.605767 | Z179: 18.263763 | AA179: 19.206422 | AB179: 18.934982
E180: 10 | F180: =INDEX(_DriversList,$E180) -> Asia/Pacific pax | G180: Asia/Pacific | H180: million pax | P180: 10.43698002 | Q180: 10.47040909 | R180: 10.76840703 | S180: 11.25785651 | T180: 11.53200202 | U180: 11.3240764 | V180: 2.910418063 | W180: 2.180878162 | X180: 5.117213 | Y180: 7.43374 | Z180: 9.319261 | AA180: 11.054848 | AB180: 11.845296
E181: 11 | F181: =INDEX(_DriversList,$E181) -> Other pax | G181: Other | H181: million pax | P181: 6.641447119 | Q181: 6.585744074 | R181: 6.505603889 | S181: 6.632771623 | T181: 6.914006609 | U181: 7.11799088 | V181: 2.235185378 | W181: 1.768978108 | X181: 4.462384 | Y181: 5.878765 | Z181: 6.580711 | AA181: 7.097954 | AB181: 7.130311
E182: 12 | F182: =INDEX(_DriversList,$E182) -> No Elasticity | H182: # | P182: 0 | Q182: 0 | R182: 0 | S182: 0 | T182: 0 | U182: 0 | V182: 0 | W182: 0 | X182: 0 | Y182: 0 | Z182: 0 | AA182: 0 | AB182: 0
E183: 13 | F183: =INDEX(_DriversList,$E183) -> TDOC pax | H183: million pax | U183: =(U142*CRAssumptions!$J$238+U141) *U173 -> 20.67488671 | V183: =(V142*CRAssumptions!$J$238+V141) *V173 -> 6.643380293 | W183: =(W142*CRAssumptions!$J$238+W141) *W173 -> 6.423344159 | X183: =(X142*CRAssumptions!$J$238+X141) *X173 -> 15.06788252 | Y183: =(Y142*CRAssumptions!$J$238+Y141) *Y173 -> 16.71075108 | Z183: =(Z142*CRAssumptions!$J$238+Z141) *Z173 -> 17.74033712 | AA183: =(AA142*CRAssumptions!$J$238+AA141) *AA173 -> 18.58598639 | AB183: =(AB142*CRAssumptions!$J$238+AB141) *AB173 -> 18.76313836
C185: ="Cost / Revenue Driver (change vs. " &_ComparatorYear & ")" -> Cost / Revenue Driver (change vs. 2019)
E187: 1 | F187: =INDEX(_DriversList,$E187) -> Total Passengers | H187: % | P187: =IF(INDEX($P171:$AB171,0,MATCH(_ComparatorYear,$P$4:$AB$4,0))=0,0,(P171/INDEX($P171:$AB171,0,MATCH(_ComparatorYear,$P$4:$AB$4,0)))-1)*P$23 -> 0 | Q187: =IF(INDEX($P171:$AB171,0,MATCH(_ComparatorYear,$P$4:$AB$4,0))=0,0,(Q171/INDEX($P171:$AB171,0,MATCH(_ComparatorYear,$P$4:$AB$4,0)))-1)*Q$23 -> 0 | R187: =IF(INDEX($P171:$AB171,0,MATCH(_ComparatorYear,$P$4:$AB$4,0))=0,0,(R171/INDEX($P171:$AB171,0,MATCH(_ComparatorYear,$P$4:$AB$4,0)))-1)*R$23 -> 0 | S187: =IF(INDEX($P171:$AB171,0,MATCH(_ComparatorYear,$P$4:$AB$4,0))=0,0,(S171/INDEX($P171:$AB171,0,MATCH(_ComparatorYear,$P$4:$AB$4,0)))-1)*S$23 -> 0 | T187: =IF(INDEX($P171:$AB171,0,MATCH(_ComparatorYear,$P$4:$AB$4,0))=0,0,(T171/INDEX($P171:$AB171,0,MATCH(_ComparatorYear,$P$4:$AB$4,0)))-1)*T$23 -> 0 | U187: =IF(INDEX($P171:$AB171,0,MATCH(_ComparatorYear,$P$4:$AB$4,0))=0,0,(U171/INDEX($P171:$AB171,0,MATCH(_ComparatorYear,$P$4:$AB$4,0)))-1)*U$23 -> 0 | V187: =IF(INDEX($P171:$AB171,0,MATCH(_ComparatorYear,$P$4:$AB$4,0))=0,0,(V171/INDEX($P171:$AB171,0,MATCH(_ComparatorYear,$P$4:$AB$4,0)))-1)*V$23 -> 0 | W187: =IF(INDEX($P171:$AB171,0,MATCH(_ComparatorYear,$P$4:$AB$4,0))=0,0,(W171/INDEX($P171:$AB171,0,MATCH(_ComparatorYear,$P$4:$AB$4,0)))-1)*W$23 -> -0.7602417889 | X187: =IF(INDEX($P171:$AB171,0,MATCH(_ComparatorYear,$P$4:$AB$4,0))=0,0,(X171/INDEX($P171:$AB171,0,MATCH(_ComparatorYear,$P$4:$AB$4,0)))-1)*X$23 -> -0.3215798085 | Y187: =IF(INDEX($P171:$AB171,0,MATCH(_ComparatorYear,$P$4:$AB$4,0))=0,0,(Y171/INDEX($P171:$AB171,0,MATCH(_ComparatorYear,$P$4:$AB$4,0)))-1)*Y$23 -> -0.1675229885 | Z187: =IF(INDEX($P171:$AB171,0,MATCH(_ComparatorYear,$P$4:$AB$4,0))=0,0,(Z171/INDEX($P171:$AB171,0,MATCH(_ComparatorYear,$P$4:$AB$4,0)))-1)*Z$23 -> -0.06830962391 | AA187: =IF(INDEX($P171:$AB171,0,MATCH(_ComparatorYear,$P$4:$AB$4,0))=0,0,(AA171/INDEX($P171:$AB171,0,MATCH(_ComparatorYear,$P$4:$AB$4,0)))-1)*AA$23 -> 0.001392053483 | AB187: =IF(INDEX($P171:$AB171,0,MATCH(_ComparatorYear,$P$4:$AB$4,0))=0,0,(AB171/INDEX($P171:$AB171,0,MATCH(_ComparatorYear,$P$4:$AB$4,0)))-1)*AB$23 -> 0.009215755556
E188: 2 | F188: =INDEX(_DriversList,$E188) -> Utilised Terminal Area | H188: % | P188: =IF(INDEX($P172:$AB172,0,MATCH(_ComparatorYear,$P$4:$AB$4,0))=0,0,(P172/INDEX($P172:$AB172,0,MATCH(_ComparatorYear,$P$4:$AB$4,0)))-1)*P$23 -> 0 | Q188: =IF(INDEX($P172:$AB172,0,MATCH(_ComparatorYear,$P$4:$AB$4,0))=0,0,(Q172/INDEX($P172:$AB172,0,MATCH(_ComparatorYear,$P$4:$AB$4,0)))-1)*Q$23 -> 0 | R188: =IF(INDEX($P172:$AB172,0,MATCH(_ComparatorYear,$P$4:$AB$4,0))=0,0,(R172/INDEX($P172:$AB172,0,MATCH(_ComparatorYear,$P$4:$AB$4,0)))-1)*R$23 -> 0 | S188: =IF(INDEX($P172:$AB172,0,MATCH(_ComparatorYear,$P$4:$AB$4,0))=0,0,(S172/INDEX($P172:$AB172,0,MATCH(_ComparatorYear,$P$4:$AB$4,0)))-1)*S$23 -> 0 | T188: =IF(INDEX($P172:$AB172,0,MATCH(_ComparatorYear,$P$4:$AB$4,0))=0,0,(T172/INDEX($P172:$AB172,0,MATCH(_ComparatorYear,$P$4:$AB$4,0)))-1)*T$23 -> 0 | U188: =IF(INDEX($P172:$AB172,0,MATCH(_ComparatorYear,$P$4:$AB$4,0))=0,0,(U172/INDEX($P172:$AB172,0,MATCH(_ComparatorYear,$P$4:$AB$4,0)))-1)*U$23 -> 0 | V188: =IF(INDEX($P172:$AB172,0,MATCH(_ComparatorYear,$P$4:$AB$4,0))=0,0,(V172/INDEX($P172:$AB172,0,MATCH(_ComparatorYear,$P$4:$AB$4,0)))-1)*V$23 -> 0 | W188: =IF(INDEX($P172:$AB172,0,MATCH(_ComparatorYear,$P$4:$AB$4,0))=0,0,(W172/INDEX($P172:$AB172,0,MATCH(_ComparatorYear,$P$4:$AB$4,0)))-1)*W$23 -> -0.2725438729 | X188: =IF(INDEX($P172:$AB172,0,MATCH(_ComparatorYear,$P$4:$AB$4,0))=0,0,(X172/INDEX($P172:$AB172,0,MATCH(_ComparatorYear,$P$4:$AB$4,0)))-1)*X$23 -> -0.09293413892 | Y188: =IF(INDEX($P172:$AB172,0,MATCH(_ComparatorYear,$P$4:$AB$4,0))=0,0,(Y172/INDEX($P172:$AB172,0,MATCH(_ComparatorYear,$P$4:$AB$4,0)))-1)*Y$23 -> 0 | Z188: =IF(INDEX($P172:$AB172,0,MATCH(_ComparatorYear,$P$4:$AB$4,0))=0,0,(Z172/INDEX($P172:$AB172,0,MATCH(_ComparatorYear,$P$4:$AB$4,0)))-1)*Z$23 -> 0 | AA188: =IF(INDEX($P172:$AB172,0,MATCH(_ComparatorYear,$P$4:$AB$4,0))=0,0,(AA172/INDEX($P172:$AB172,0,MATCH(_ComparatorYear,$P$4:$AB$4,0)))-1)*AA$23 -> 0 | AB188: =IF(INDEX($P172:$AB172,0,MATCH(_ComparatorYear,$P$4:$AB$4,0))=0,0,(AB172/INDEX($P172:$AB172,0,MATCH(_ComparatorYear,$P$4:$AB$4,0)))-1)*AB$23 -> 0
E189: 3 | F189: =INDEX(_DriversList,$E189) -> OD pax | H189: % | P189: =IF(INDEX($P173:$AB173,0,MATCH(_ComparatorYear,$P$4:$AB$4,0))=0,0,(P173/INDEX($P173:$AB173,0,MATCH(_ComparatorYear,$P$4:$AB$4,0)))-1)*P$23 -> 0 | Q189: =IF(INDEX($P173:$AB173,0,MATCH(_ComparatorYear,$P$4:$AB$4,0))=0,0,(Q173/INDEX($P173:$AB173,0,MATCH(_ComparatorYear,$P$4:$AB$4,0)))-1)*Q$23 -> 0 | R189: =IF(INDEX($P173:$AB173,0,MATCH(_ComparatorYear,$P$4:$AB$4,0))=0,0,(R173/INDEX($P173:$AB173,0,MATCH(_ComparatorYear,$P$4:$AB$4,0)))-1)*R$23 -> 0 | S189: =IF(INDEX($P173:$AB173,0,MATCH(_ComparatorYear,$P$4:$AB$4,0))=0,0,(S173/INDEX($P173:$AB173,0,MATCH(_ComparatorYear,$P$4:$AB$4,0)))-1)*S$23 -> 0 | T189: =IF(INDEX($P173:$AB173,0,MATCH(_ComparatorYear,$P$4:$AB$4,0))=0,0,(T173/INDEX($P173:$AB173,0,MATCH(_ComparatorYear,$P$4:$AB$4,0)))-1)*T$23 -> 0 | U189: =IF(INDEX($P173:$AB173,0,MATCH(_ComparatorYear,$P$4:$AB$4,0))=0,0,(U173/INDEX($P173:$AB173,0,MATCH(_ComparatorYear,$P$4:$AB$4,0)))-1)*U$23 -> 0 | V189: =IF(INDEX($P173:$AB173,0,MATCH(_ComparatorYear,$P$4:$AB$4,0))=0,0,(V173/INDEX($P173:$AB173,0,MATCH(_ComparatorYear,$P$4:$AB$4,0)))-1)*V$23 -> 0 | W189: =IF(INDEX($P173:$AB173,0,MATCH(_ComparatorYear,$P$4:$AB$4,0))=0,0,(W173/INDEX($P173:$AB173,0,MATCH(_ComparatorYear,$P$4:$AB$4,0)))-1)*W$23 -> -0.7567806931 | X189: =IF(INDEX($P173:$AB173,0,MATCH(_ComparatorYear,$P$4:$AB$4,0))=0,0,(X173/INDEX($P173:$AB173,0,MATCH(_ComparatorYear,$P$4:$AB$4,0)))-1)*X$23 -> -0.3259206512 | Y189: =IF(INDEX($P173:$AB173,0,MATCH(_ComparatorYear,$P$4:$AB$4,0))=0,0,(Y173/INDEX($P173:$AB173,0,MATCH(_ComparatorYear,$P$4:$AB$4,0)))-1)*Y$23 -> -0.1712848151 | Z189: =IF(INDEX($P173:$AB173,0,MATCH(_ComparatorYear,$P$4:$AB$4,0))=0,0,(Z173/INDEX($P173:$AB173,0,MATCH(_ComparatorYear,$P$4:$AB$4,0)))-1)*Z$23 -> -0.06949056605 | AA189: =IF(INDEX($P173:$AB173,0,MATCH(_ComparatorYear,$P$4:$AB$4,0))=0,0,(AA173/INDEX($P173:$AB173,0,MATCH(_ComparatorYear,$P$4:$AB$4,0)))-1)*AA$23 -> 0.002215979829 | AB189: =IF(INDEX($P173:$AB173,0,MATCH(_ComparatorYear,$P$4:$AB$4,0))=0,0,(AB173/INDEX($P173:$AB173,0,MATCH(_ComparatorYear,$P$4:$AB$4,0)))-1)*AB$23 -> 0.01170037608
E190: 4 | F190: =INDEX(_DriversList,$E190) -> HEx pax | H190: % | P190: =IF(INDEX($P174:$AB174,0,MATCH(_ComparatorYear,$P$4:$AB$4,0))=0,0,(P174/INDEX($P174:$AB174,0,MATCH(_ComparatorYear,$P$4:$AB$4,0)))-1)*P$23 -> 0 | Q190: =IF(INDEX($P174:$AB174,0,MATCH(_ComparatorYear,$P$4:$AB$4,0))=0,0,(Q174/INDEX($P174:$AB174,0,MATCH(_ComparatorYear,$P$4:$AB$4,0)))-1)*Q$23 -> 0 | R190: =IF(INDEX($P174:$AB174,0,MATCH(_ComparatorYear,$P$4:$AB$4,0))=0,0,(R174/INDEX($P174:$AB174,0,MATCH(_ComparatorYear,$P$4:$AB$4,0)))-1)*R$23 -> 0 | S190: =IF(INDEX($P174:$AB174,0,MATCH(_ComparatorYear,$P$4:$AB$4,0))=0,0,(S174/INDEX($P174:$AB174,0,MATCH(_ComparatorYear,$P$4:$AB$4,0)))-1)*S$23 -> 0 | T190: =IF(INDEX($P174:$AB174,0,MATCH(_ComparatorYear,$P$4:$AB$4,0))=0,0,(T174/INDEX($P174:$AB174,0,MATCH(_ComparatorYear,$P$4:$AB$4,0)))-1)*T$23 -> 0 | U190: =IF(INDEX($P174:$AB174,0,MATCH(_ComparatorYear,$P$4:$AB$4,0))=0,0,(U174/INDEX($P174:$AB174,0,MATCH(_ComparatorYear,$P$4:$AB$4,0)))-1)*U$23 -> 0 | V190: =IF(INDEX($P174:$AB174,0,MATCH(_ComparatorYear,$P$4:$AB$4,0))=0,0,(V174/INDEX($P174:$AB174,0,MATCH(_ComparatorYear,$P$4:$AB$4,0)))-1)*V$23 -> 0 | W190: =IF(INDEX($P174:$AB174,0,MATCH(_ComparatorYear,$P$4:$AB$4,0))=0,0,(W174/INDEX($P174:$AB174,0,MATCH(_ComparatorYear,$P$4:$AB$4,0)))-1)*W$23 -> -0.837766065 | X190: =IF(INDEX($P174:$AB174,0,MATCH(_ComparatorYear,$P$4:$AB$4,0))=0,0,(X174/INDEX($P174:$AB174,0,MATCH(_ComparatorYear,$P$4:$AB$4,0)))-1)*X$23 -> -0.4235809042 | Y190: =IF(INDEX($P174:$AB174,0,MATCH(_ComparatorYear,$P$4:$AB$4,0))=0,0,(Y174/INDEX($P174:$AB174,0,MATCH(_ComparatorYear,$P$4:$AB$4,0)))-1)*Y$23 -> -0.3554718619 | Z190: =IF(INDEX($P174:$AB174,0,MATCH(_ComparatorYear,$P$4:$AB$4,0))=0,0,(Z174/INDEX($P174:$AB174,0,MATCH(_ComparatorYear,$P$4:$AB$4,0)))-1)*Z$23 -> -0.2637074009 | AA190: =IF(INDEX($P174:$AB174,0,MATCH(_ComparatorYear,$P$4:$AB$4,0))=0,0,(AA174/INDEX($P174:$AB174,0,MATCH(_ComparatorYear,$P$4:$AB$4,0)))-1)*AA$23 -> -0.1767918571 | AB190: =IF(INDEX($P174:$AB174,0,MATCH(_ComparatorYear,$P$4:$AB$4,0))=0,0,(AB174/INDEX($P174:$AB174,0,MATCH(_ComparatorYear,$P$4:$AB$4,0)))-1)*AB$23 -> -0.169049578
E191: 5 | F191: =INDEX(_DriversList,$E191) -> Parking/rental pax | H191: % | P191: =IF(INDEX($P175:$AB175,0,MATCH(_ComparatorYear,$P$4:$AB$4,0))=0,0,(P175/INDEX($P175:$AB175,0,MATCH(_ComparatorYear,$P$4:$AB$4,0)))-1)*P$23 -> 0 | Q191: =IF(INDEX($P175:$AB175,0,MATCH(_ComparatorYear,$P$4:$AB$4,0))=0,0,(Q175/INDEX($P175:$AB175,0,MATCH(_ComparatorYear,$P$4:$AB$4,0)))-1)*Q$23 -> 0 | R191: =IF(INDEX($P175:$AB175,0,MATCH(_ComparatorYear,$P$4:$AB$4,0))=0,0,(R175/INDEX($P175:$AB175,0,MATCH(_ComparatorYear,$P$4:$AB$4,0)))-1)*R$23 -> 0 | S191: =IF(INDEX($P175:$AB175,0,MATCH(_ComparatorYear,$P$4:$AB$4,0))=0,0,(S175/INDEX($P175:$AB175,0,MATCH(_ComparatorYear,$P$4:$AB$4,0)))-1)*S$23 -> 0 | T191: =IF(INDEX($P175:$AB175,0,MATCH(_ComparatorYear,$P$4:$AB$4,0))=0,0,(T175/INDEX($P175:$AB175,0,MATCH(_ComparatorYear,$P$4:$AB$4,0)))-1)*T$23 -> 0 | U191: =IF(INDEX($P175:$AB175,0,MATCH(_ComparatorYear,$P$4:$AB$4,0))=0,0,(U175/INDEX($P175:$AB175,0,MATCH(_ComparatorYear,$P$4:$AB$4,0)))-1)*U$23 -> 0 | V191: =IF(INDEX($P175:$AB175,0,MATCH(_ComparatorYear,$P$4:$AB$4,0))=0,0,(V175/INDEX($P175:$AB175,0,MATCH(_ComparatorYear,$P$4:$AB$4,0)))-1)*V$23 -> 0 | W191: =IF(INDEX($P175:$AB175,0,MATCH(_ComparatorYear,$P$4:$AB$4,0))=0,0,(W175/INDEX($P175:$AB175,0,MATCH(_ComparatorYear,$P$4:$AB$4,0)))-1)*W$23 -> -0.7350748694 | X191: =IF(INDEX($P175:$AB175,0,MATCH(_ComparatorYear,$P$4:$AB$4,0))=0,0,(X175/INDEX($P175:$AB175,0,MATCH(_ComparatorYear,$P$4:$AB$4,0)))-1)*X$23 -> -0.2830945562 | Y191: =IF(INDEX($P175:$AB175,0,MATCH(_ComparatorYear,$P$4:$AB$4,0))=0,0,(Y175/INDEX($P175:$AB175,0,MATCH(_ComparatorYear,$P$4:$AB$4,0)))-1)*Y$23 -> -0.1575829607 | Z191: =IF(INDEX($P175:$AB175,0,MATCH(_ComparatorYear,$P$4:$AB$4,0))=0,0,(Z175/INDEX($P175:$AB175,0,MATCH(_ComparatorYear,$P$4:$AB$4,0)))-1)*Z$23 -> -0.06571485551 | AA191: =IF(INDEX($P175:$AB175,0,MATCH(_ComparatorYear,$P$4:$AB$4,0))=0,0,(AA175/INDEX($P175:$AB175,0,MATCH(_ComparatorYear,$P$4:$AB$4,0)))-1)*AA$23 -> -0.001479978764 | AB191: =IF(INDEX($P175:$AB175,0,MATCH(_ComparatorYear,$P$4:$AB$4,0))=0,0,(AB175/INDEX($P175:$AB175,0,MATCH(_ComparatorYear,$P$4:$AB$4,0)))-1)*AB$23 -> 0.007900451092
E192: 6 | F192: =INDEX(_DriversList,$E192) -> UK pax | H192: % | P192: =IF(INDEX($P176:$AB176,0,MATCH(_ComparatorYear,$P$4:$AB$4,0))=0,0,(P176/INDEX($P176:$AB176,0,MATCH(_ComparatorYear,$P$4:$AB$4,0)))-1)*P$23 -> 0 | Q192: =IF(INDEX($P176:$AB176,0,MATCH(_ComparatorYear,$P$4:$AB$4,0))=0,0,(Q176/INDEX($P176:$AB176,0,MATCH(_ComparatorYear,$P$4:$AB$4,0)))-1)*Q$23 -> 0 | R192: =IF(INDEX($P176:$AB176,0,MATCH(_ComparatorYear,$P$4:$AB$4,0))=0,0,(R176/INDEX($P176:$AB176,0,MATCH(_ComparatorYear,$P$4:$AB$4,0)))-1)*R$23 -> 0 | S192: =IF(INDEX($P176:$AB176,0,MATCH(_ComparatorYear,$P$4:$AB$4,0))=0,0,(S176/INDEX($P176:$AB176,0,MATCH(_ComparatorYear,$P$4:$AB$4,0)))-1)*S$23 -> 0 | T192: =IF(INDEX($P176:$AB176,0,MATCH(_ComparatorYear,$P$4:$AB$4,0))=0,0,(T176/INDEX($P176:$AB176,0,MATCH(_ComparatorYear,$P$4:$AB$4,0)))-1)*T$23 -> 0 | U192: =IF(INDEX($P176:$AB176,0,MATCH(_ComparatorYear,$P$4:$AB$4,0))=0,0,(U176/INDEX($P176:$AB176,0,MATCH(_ComparatorYear,$P$4:$AB$4,0)))-1)*U$23 -> 0 | V192: =IF(INDEX($P176:$AB176,0,MATCH(_ComparatorYear,$P$4:$AB$4,0))=0,0,(V176/INDEX($P176:$AB176,0,MATCH(_ComparatorYear,$P$4:$AB$4,0)))-1)*V$23 -> 0 | W192: =IF(INDEX($P176:$AB176,0,MATCH(_ComparatorYear,$P$4:$AB$4,0))=0,0,(W176/INDEX($P176:$AB176,0,MATCH(_ComparatorYear,$P$4:$AB$4,0)))-1)*W$23 -> -0.7141060293 | X192: =IF(INDEX($P176:$AB176,0,MATCH(_ComparatorYear,$P$4:$AB$4,0))=0,0,(X176/INDEX($P176:$AB176,0,MATCH(_ComparatorYear,$P$4:$AB$4,0)))-1)*X$23 -> -0.1287086336 | Y192: =IF(INDEX($P176:$AB176,0,MATCH(_ComparatorYear,$P$4:$AB$4,0))=0,0,(Y176/INDEX($P176:$AB176,0,MATCH(_ComparatorYear,$P$4:$AB$4,0)))-1)*Y$23 -> -0.1829005734 | Z192: =IF(INDEX($P176:$AB176,0,MATCH(_ComparatorYear,$P$4:$AB$4,0))=0,0,(Z176/INDEX($P176:$AB176,0,MATCH(_ComparatorYear,$P$4:$AB$4,0)))-1)*Z$23 -> -0.2006196932 | AA192: =IF(INDEX($P176:$AB176,0,MATCH(_ComparatorYear,$P$4:$AB$4,0))=0,0,(AA176/INDEX($P176:$AB176,0,MATCH(_ComparatorYear,$P$4:$AB$4,0)))-1)*AA$23 -> -0.1950616829 | AB192: =IF(INDEX($P176:$AB176,0,MATCH(_ComparatorYear,$P$4:$AB$4,0))=0,0,(AB176/INDEX($P176:$AB176,0,MATCH(_ComparatorYear,$P$4:$AB$4,0)))-1)*AB$23 -> -0.2113765675
E193: 7 | F193: =INDEX(_DriversList,$E193) -> EEA pax | H193: % | P193: =IF(INDEX($P177:$AB177,0,MATCH(_ComparatorYear,$P$4:$AB$4,0))=0,0,(P177/INDEX($P177:$AB177,0,MATCH(_ComparatorYear,$P$4:$AB$4,0)))-1)*P$23 -> 0 | Q193: =IF(INDEX($P177:$AB177,0,MATCH(_ComparatorYear,$P$4:$AB$4,0))=0,0,(Q177/INDEX($P177:$AB177,0,MATCH(_ComparatorYear,$P$4:$AB$4,0)))-1)*Q$23 -> 0 | R193: =IF(INDEX($P177:$AB177,0,MATCH(_ComparatorYear,$P$4:$AB$4,0))=0,0,(R177/INDEX($P177:$AB177,0,MATCH(_ComparatorYear,$P$4:$AB$4,0)))-1)*R$23 -> 0 | S193: =IF(INDEX($P177:$AB177,0,MATCH(_ComparatorYear,$P$4:$AB$4,0))=0,0,(S177/INDEX($P177:$AB177,0,MATCH(_ComparatorYear,$P$4:$AB$4,0)))-1)*S$23 -> 0 | T193: =IF(INDEX($P177:$AB177,0,MATCH(_ComparatorYear,$P$4:$AB$4,0))=0,0,(T177/INDEX($P177:$AB177,0,MATCH(_ComparatorYear,$P$4:$AB$4,0)))-1)*T$23 -> 0 | U193: =IF(INDEX($P177:$AB177,0,MATCH(_ComparatorYear,$P$4:$AB$4,0))=0,0,(U177/INDEX($P177:$AB177,0,MATCH(_ComparatorYear,$P$4:$AB$4,0)))-1)*U$23 -> 0 | V193: =IF(INDEX($P177:$AB177,0,MATCH(_ComparatorYear,$P$4:$AB$4,0))=0,0,(V177/INDEX($P177:$AB177,0,MATCH(_ComparatorYear,$P$4:$AB$4,0)))-1)*V$23 -> 0 | W193: =IF(INDEX($P177:$AB177,0,MATCH(_ComparatorYear,$P$4:$AB$4,0))=0,0,(W177/INDEX($P177:$AB177,0,MATCH(_ComparatorYear,$P$4:$AB$4,0)))-1)*W$23 -> -0.7376157605 | X193: =IF(INDEX($P177:$AB177,0,MATCH(_ComparatorYear,$P$4:$AB$4,0))=0,0,(X177/INDEX($P177:$AB177,0,MATCH(_ComparatorYear,$P$4:$AB$4,0)))-1)*X$23 -> -0.2504348751 | Y193: =IF(INDEX($P177:$AB177,0,MATCH(_ComparatorYear,$P$4:$AB$4,0))=0,0,(Y177/INDEX($P177:$AB177,0,MATCH(_ComparatorYear,$P$4:$AB$4,0)))-1)*Y$23 -> -0.1234540353 | Z193: =IF(INDEX($P177:$AB177,0,MATCH(_ComparatorYear,$P$4:$AB$4,0))=0,0,(Z177/INDEX($P177:$AB177,0,MATCH(_ComparatorYear,$P$4:$AB$4,0)))-1)*Z$23 -> -0.02372162432 | AA193: =IF(INDEX($P177:$AB177,0,MATCH(_ComparatorYear,$P$4:$AB$4,0))=0,0,(AA177/INDEX($P177:$AB177,0,MATCH(_ComparatorYear,$P$4:$AB$4,0)))-1)*AA$23 -> 0.0289782672 | AB193: =IF(INDEX($P177:$AB177,0,MATCH(_ComparatorYear,$P$4:$AB$4,0))=0,0,(AB177/INDEX($P177:$AB177,0,MATCH(_ComparatorYear,$P$4:$AB$4,0)))-1)*AB$23 -> 0.02548181896
E194: 8 | F194: =INDEX(_DriversList,$E194) -> Middle East pax | H194: % | P194: =IF(INDEX($P178:$AB178,0,MATCH(_ComparatorYear,$P$4:$AB$4,0))=0,0,(P178/INDEX($P178:$AB178,0,MATCH(_ComparatorYear,$P$4:$AB$4,0)))-1)*P$23 -> 0 | Q194: =IF(INDEX($P178:$AB178,0,MATCH(_ComparatorYear,$P$4:$AB$4,0))=0,0,(Q178/INDEX($P178:$AB178,0,MATCH(_ComparatorYear,$P$4:$AB$4,0)))-1)*Q$23 -> 0 | R194: =IF(INDEX($P178:$AB178,0,MATCH(_ComparatorYear,$P$4:$AB$4,0))=0,0,(R178/INDEX($P178:$AB178,0,MATCH(_ComparatorYear,$P$4:$AB$4,0)))-1)*R$23 -> 0 | S194: =IF(INDEX($P178:$AB178,0,MATCH(_ComparatorYear,$P$4:$AB$4,0))=0,0,(S178/INDEX($P178:$AB178,0,MATCH(_ComparatorYear,$P$4:$AB$4,0)))-1)*S$23 -> 0 | T194: =IF(INDEX($P178:$AB178,0,MATCH(_ComparatorYear,$P$4:$AB$4,0))=0,0,(T178/INDEX($P178:$AB178,0,MATCH(_ComparatorYear,$P$4:$AB$4,0)))-1)*T$23 -> 0 | U194: =IF(INDEX($P178:$AB178,0,MATCH(_ComparatorYear,$P$4:$AB$4,0))=0,0,(U178/INDEX($P178:$AB178,0,MATCH(_ComparatorYear,$P$4:$AB$4,0)))-1)*U$23 -> 0 | V194: =IF(INDEX($P178:$AB178,0,MATCH(_ComparatorYear,$P$4:$AB$4,0))=0,0,(V178/INDEX($P178:$AB178,0,MATCH(_ComparatorYear,$P$4:$AB$4,0)))-1)*V$23 -> 0 | W194: =IF(INDEX($P178:$AB178,0,MATCH(_ComparatorYear,$P$4:$AB$4,0))=0,0,(W178/INDEX($P178:$AB178,0,MATCH(_ComparatorYear,$P$4:$AB$4,0)))-1)*W$23 -> -0.7392272764 | X194: =IF(INDEX($P178:$AB178,0,MATCH(_ComparatorYear,$P$4:$AB$4,0))=0,0,(X178/INDEX($P178:$AB178,0,MATCH(_ComparatorYear,$P$4:$AB$4,0)))-1)*X$23 -> -0.3114670629 | Y194: =IF(INDEX($P178:$AB178,0,MATCH(_ComparatorYear,$P$4:$AB$4,0))=0,0,(Y178/INDEX($P178:$AB178,0,MATCH(_ComparatorYear,$P$4:$AB$4,0)))-1)*Y$23 -> -0.1890297046 | Z194: =IF(INDEX($P178:$AB178,0,MATCH(_ComparatorYear,$P$4:$AB$4,0))=0,0,(Z178/INDEX($P178:$AB178,0,MATCH(_ComparatorYear,$P$4:$AB$4,0)))-1)*Z$23 -> -0.08911123574 | AA194: =IF(INDEX($P178:$AB178,0,MATCH(_ComparatorYear,$P$4:$AB$4,0))=0,0,(AA178/INDEX($P178:$AB178,0,MATCH(_ComparatorYear,$P$4:$AB$4,0)))-1)*AA$23 -> 0.01170342466 | AB194: =IF(INDEX($P178:$AB178,0,MATCH(_ComparatorYear,$P$4:$AB$4,0))=0,0,(AB178/INDEX($P178:$AB178,0,MATCH(_ComparatorYear,$P$4:$AB$4,0)))-1)*AB$23 -> 0.04634079694
E195: 9 | F195: =INDEX(_DriversList,$E195) -> North America pax | H195: % | P195: =IF(INDEX($P179:$AB179,0,MATCH(_ComparatorYear,$P$4:$AB$4,0))=0,0,(P179/INDEX($P179:$AB179,0,MATCH(_ComparatorYear,$P$4:$AB$4,0)))-1)*P$23 -> 0 | Q195: =IF(INDEX($P179:$AB179,0,MATCH(_ComparatorYear,$P$4:$AB$4,0))=0,0,(Q179/INDEX($P179:$AB179,0,MATCH(_ComparatorYear,$P$4:$AB$4,0)))-1)*Q$23 -> 0 | R195: =IF(INDEX($P179:$AB179,0,MATCH(_ComparatorYear,$P$4:$AB$4,0))=0,0,(R179/INDEX($P179:$AB179,0,MATCH(_ComparatorYear,$P$4:$AB$4,0)))-1)*R$23 -> 0 | S195: =IF(INDEX($P179:$AB179,0,MATCH(_ComparatorYear,$P$4:$AB$4,0))=0,0,(S179/INDEX($P179:$AB179,0,MATCH(_ComparatorYear,$P$4:$AB$4,0)))-1)*S$23 -> 0 | T195: =IF(INDEX($P179:$AB179,0,MATCH(_ComparatorYear,$P$4:$AB$4,0))=0,0,(T179/INDEX($P179:$AB179,0,MATCH(_ComparatorYear,$P$4:$AB$4,0)))-1)*T$23 -> 0 | U195: =IF(INDEX($P179:$AB179,0,MATCH(_ComparatorYear,$P$4:$AB$4,0))=0,0,(U179/INDEX($P179:$AB179,0,MATCH(_ComparatorYear,$P$4:$AB$4,0)))-1)*U$23 -> 0 | V195: =IF(INDEX($P179:$AB179,0,MATCH(_ComparatorYear,$P$4:$AB$4,0))=0,0,(V179/INDEX($P179:$AB179,0,MATCH(_ComparatorYear,$P$4:$AB$4,0)))-1)*V$23 -> 0 | W195: =IF(INDEX($P179:$AB179,0,MATCH(_ComparatorYear,$P$4:$AB$4,0))=0,0,(W179/INDEX($P179:$AB179,0,MATCH(_ComparatorYear,$P$4:$AB$4,0)))-1)*W$23 -> -0.7929399239 | X195: =IF(INDEX($P179:$AB179,0,MATCH(_ComparatorYear,$P$4:$AB$4,0))=0,0,(X179/INDEX($P179:$AB179,0,MATCH(_ComparatorYear,$P$4:$AB$4,0)))-1)*X$23 -> -0.3367933069 | Y195: =IF(INDEX($P179:$AB179,0,MATCH(_ComparatorYear,$P$4:$AB$4,0))=0,0,(Y179/INDEX($P179:$AB179,0,MATCH(_ComparatorYear,$P$4:$AB$4,0)))-1)*Y$23 -> -0.1188937866 | Z195: =IF(INDEX($P179:$AB179,0,MATCH(_ComparatorYear,$P$4:$AB$4,0))=0,0,(Z179/INDEX($P179:$AB179,0,MATCH(_ComparatorYear,$P$4:$AB$4,0)))-1)*Z$23 -> -0.03092009784 | AA195: =IF(INDEX($P179:$AB179,0,MATCH(_ComparatorYear,$P$4:$AB$4,0))=0,0,(AA179/INDEX($P179:$AB179,0,MATCH(_ComparatorYear,$P$4:$AB$4,0)))-1)*AA$23 -> 0.01909762805 | AB195: =IF(INDEX($P179:$AB179,0,MATCH(_ComparatorYear,$P$4:$AB$4,0))=0,0,(AB179/INDEX($P179:$AB179,0,MATCH(_ComparatorYear,$P$4:$AB$4,0)))-1)*AB$23 -> 0.004694952732
E196: 10 | F196: =INDEX(_DriversList,$E196) -> Asia/Pacific pax | H196: % | P196: =IF(INDEX($P180:$AB180,0,MATCH(_ComparatorYear,$P$4:$AB$4,0))=0,0,(P180/INDEX($P180:$AB180,0,MATCH(_ComparatorYear,$P$4:$AB$4,0)))-1)*P$23 -> 0 | Q196: =IF(INDEX($P180:$AB180,0,MATCH(_ComparatorYear,$P$4:$AB$4,0))=0,0,(Q180/INDEX($P180:$AB180,0,MATCH(_ComparatorYear,$P$4:$AB$4,0)))-1)*Q$23 -> 0 | R196: =IF(INDEX($P180:$AB180,0,MATCH(_ComparatorYear,$P$4:$AB$4,0))=0,0,(R180/INDEX($P180:$AB180,0,MATCH(_ComparatorYear,$P$4:$AB$4,0)))-1)*R$23 -> 0 | S196: =IF(INDEX($P180:$AB180,0,MATCH(_ComparatorYear,$P$4:$AB$4,0))=0,0,(S180/INDEX($P180:$AB180,0,MATCH(_ComparatorYear,$P$4:$AB$4,0)))-1)*S$23 -> 0 | T196: =IF(INDEX($P180:$AB180,0,MATCH(_ComparatorYear,$P$4:$AB$4,0))=0,0,(T180/INDEX($P180:$AB180,0,MATCH(_ComparatorYear,$P$4:$AB$4,0)))-1)*T$23 -> 0 | U196: =IF(INDEX($P180:$AB180,0,MATCH(_ComparatorYear,$P$4:$AB$4,0))=0,0,(U180/INDEX($P180:$AB180,0,MATCH(_ComparatorYear,$P$4:$AB$4,0)))-1)*U$23 -> 0 | V196: =IF(INDEX($P180:$AB180,0,MATCH(_ComparatorYear,$P$4:$AB$4,0))=0,0,(V180/INDEX($P180:$AB180,0,MATCH(_ComparatorYear,$P$4:$AB$4,0)))-1)*V$23 -> 0 | W196: =IF(INDEX($P180:$AB180,0,MATCH(_ComparatorYear,$P$4:$AB$4,0))=0,0,(W180/INDEX($P180:$AB180,0,MATCH(_ComparatorYear,$P$4:$AB$4,0)))-1)*W$23 -> -0.8074122706 | X196: =IF(INDEX($P180:$AB180,0,MATCH(_ComparatorYear,$P$4:$AB$4,0))=0,0,(X180/INDEX($P180:$AB180,0,MATCH(_ComparatorYear,$P$4:$AB$4,0)))-1)*X$23 -> -0.5481121092 | Y196: =IF(INDEX($P180:$AB180,0,MATCH(_ComparatorYear,$P$4:$AB$4,0))=0,0,(Y180/INDEX($P180:$AB180,0,MATCH(_ComparatorYear,$P$4:$AB$4,0)))-1)*Y$23 -> -0.3435455805 | Z196: =IF(INDEX($P180:$AB180,0,MATCH(_ComparatorYear,$P$4:$AB$4,0))=0,0,(Z180/INDEX($P180:$AB180,0,MATCH(_ComparatorYear,$P$4:$AB$4,0)))-1)*Z$23 -> -0.1770400807 | AA196: =IF(INDEX($P180:$AB180,0,MATCH(_ComparatorYear,$P$4:$AB$4,0))=0,0,(AA180/INDEX($P180:$AB180,0,MATCH(_ComparatorYear,$P$4:$AB$4,0)))-1)*AA$23 -> -0.02377486609 | AB196: =IF(INDEX($P180:$AB180,0,MATCH(_ComparatorYear,$P$4:$AB$4,0))=0,0,(AB180/INDEX($P180:$AB180,0,MATCH(_ComparatorYear,$P$4:$AB$4,0)))-1)*AB$23 -> 0.04602755947
E197: 11 | F197: =INDEX(_DriversList,$E197) -> Other pax | H197: % | P197: =IF(INDEX($P181:$AB181,0,MATCH(_ComparatorYear,$P$4:$AB$4,0))=0,0,(P181/INDEX($P181:$AB181,0,MATCH(_ComparatorYear,$P$4:$AB$4,0)))-1)*P$23 -> 0 | Q197: =IF(INDEX($P181:$AB181,0,MATCH(_ComparatorYear,$P$4:$AB$4,0))=0,0,(Q181/INDEX($P181:$AB181,0,MATCH(_ComparatorYear,$P$4:$AB$4,0)))-1)*Q$23 -> 0 | R197: =IF(INDEX($P181:$AB181,0,MATCH(_ComparatorYear,$P$4:$AB$4,0))=0,0,(R181/INDEX($P181:$AB181,0,MATCH(_ComparatorYear,$P$4:$AB$4,0)))-1)*R$23 -> 0 | S197: =IF(INDEX($P181:$AB181,0,MATCH(_ComparatorYear,$P$4:$AB$4,0))=0,0,(S181/INDEX($P181:$AB181,0,MATCH(_ComparatorYear,$P$4:$AB$4,0)))-1)*S$23 -> 0 | T197: =IF(INDEX($P181:$AB181,0,MATCH(_ComparatorYear,$P$4:$AB$4,0))=0,0,(T181/INDEX($P181:$AB181,0,MATCH(_ComparatorYear,$P$4:$AB$4,0)))-1)*T$23 -> 0 | U197: =IF(INDEX($P181:$AB181,0,MATCH(_ComparatorYear,$P$4:$AB$4,0))=0,0,(U181/INDEX($P181:$AB181,0,MATCH(_ComparatorYear,$P$4:$AB$4,0)))-1)*U$23 -> 0 | V197: =IF(INDEX($P181:$AB181,0,MATCH(_ComparatorYear,$P$4:$AB$4,0))=0,0,(V181/INDEX($P181:$AB181,0,MATCH(_ComparatorYear,$P$4:$AB$4,0)))-1)*V$23 -> 0 | W197: =IF(INDEX($P181:$AB181,0,MATCH(_ComparatorYear,$P$4:$AB$4,0))=0,0,(W181/INDEX($P181:$AB181,0,MATCH(_ComparatorYear,$P$4:$AB$4,0)))-1)*W$23 -> -0.7514778907 | X197: =IF(INDEX($P181:$AB181,0,MATCH(_ComparatorYear,$P$4:$AB$4,0))=0,0,(X181/INDEX($P181:$AB181,0,MATCH(_ComparatorYear,$P$4:$AB$4,0)))-1)*X$23 -> -0.3730837711 | Y197: =IF(INDEX($P181:$AB181,0,MATCH(_ComparatorYear,$P$4:$AB$4,0))=0,0,(Y181/INDEX($P181:$AB181,0,MATCH(_ComparatorYear,$P$4:$AB$4,0)))-1)*Y$23 -> -0.1740977055 | Z197: =IF(INDEX($P181:$AB181,0,MATCH(_ComparatorYear,$P$4:$AB$4,0))=0,0,(Z181/INDEX($P181:$AB181,0,MATCH(_ComparatorYear,$P$4:$AB$4,0)))-1)*Z$23 -> -0.07548195678 | AA197: =IF(INDEX($P181:$AB181,0,MATCH(_ComparatorYear,$P$4:$AB$4,0))=0,0,(AA181/INDEX($P181:$AB181,0,MATCH(_ComparatorYear,$P$4:$AB$4,0)))-1)*AA$23 -> -0.002814962865 | AB197: =IF(INDEX($P181:$AB181,0,MATCH(_ComparatorYear,$P$4:$AB$4,0))=0,0,(AB181/INDEX($P181:$AB181,0,MATCH(_ComparatorYear,$P$4:$AB$4,0)))-1)*AB$23 -> 0.001730842341
E198: 12 | F198: =INDEX(_DriversList,$E198) -> No Elasticity | H198: % | P198: =IF(INDEX($P182:$AB182,0,MATCH(_ComparatorYear,$P$4:$AB$4,0))=0,0,(P182/INDEX($P182:$AB182,0,MATCH(_ComparatorYear,$P$4:$AB$4,0)))-1)*P$23 -> 0 | Q198: =IF(INDEX($P182:$AB182,0,MATCH(_ComparatorYear,$P$4:$AB$4,0))=0,0,(Q182/INDEX($P182:$AB182,0,MATCH(_ComparatorYear,$P$4:$AB$4,0)))-1)*Q$23 -> 0 | R198: =IF(INDEX($P182:$AB182,0,MATCH(_ComparatorYear,$P$4:$AB$4,0))=0,0,(R182/INDEX($P182:$AB182,0,MATCH(_ComparatorYear,$P$4:$AB$4,0)))-1)*R$23 -> 0 | S198: =IF(INDEX($P182:$AB182,0,MATCH(_ComparatorYear,$P$4:$AB$4,0))=0,0,(S182/INDEX($P182:$AB182,0,MATCH(_ComparatorYear,$P$4:$AB$4,0)))-1)*S$23 -> 0 | T198: =IF(INDEX($P182:$AB182,0,MATCH(_ComparatorYear,$P$4:$AB$4,0))=0,0,(T182/INDEX($P182:$AB182,0,MATCH(_ComparatorYear,$P$4:$AB$4,0)))-1)*T$23 -> 0 | U198: =IF(INDEX($P182:$AB182,0,MATCH(_ComparatorYear,$P$4:$AB$4,0))=0,0,(U182/INDEX($P182:$AB182,0,MATCH(_ComparatorYear,$P$4:$AB$4,0)))-1)*U$23 -> 0 | V198: =IF(INDEX($P182:$AB182,0,MATCH(_ComparatorYear,$P$4:$AB$4,0))=0,0,(V182/INDEX($P182:$AB182,0,MATCH(_ComparatorYear,$P$4:$AB$4,0)))-1)*V$23 -> 0 | W198: =IF(INDEX($P182:$AB182,0,MATCH(_ComparatorYear,$P$4:$AB$4,0))=0,0,(W182/INDEX($P182:$AB182,0,MATCH(_ComparatorYear,$P$4:$AB$4,0)))-1)*W$23 -> 0 | X198: =IF(INDEX($P182:$AB182,0,MATCH(_ComparatorYear,$P$4:$AB$4,0))=0,0,(X182/INDEX($P182:$AB182,0,MATCH(_ComparatorYear,$P$4:$AB$4,0)))-1)*X$23 -> 0 | Y198: =IF(INDEX($P182:$AB182,0,MATCH(_ComparatorYear,$P$4:$AB$4,0))=0,0,(Y182/INDEX($P182:$AB182,0,MATCH(_ComparatorYear,$P$4:$AB$4,0)))-1)*Y$23 -> 0 | Z198: =IF(INDEX($P182:$AB182,0,MATCH(_ComparatorYear,$P$4:$AB$4,0))=0,0,(Z182/INDEX($P182:$AB182,0,MATCH(_ComparatorYear,$P$4:$AB$4,0)))-1)*Z$23 -> 0 | AA198: =IF(INDEX($P182:$AB182,0,MATCH(_ComparatorYear,$P$4:$AB$4,0))=0,0,(AA182/INDEX($P182:$AB182,0,MATCH(_ComparatorYear,$P$4:$AB$4,0)))-1)*AA$23 -> 0 | AB198: =IF(INDEX($P182:$AB182,0,MATCH(_ComparatorYear,$P$4:$AB$4,0))=0,0,(AB182/INDEX($P182:$AB182,0,MATCH(_ComparatorYear,$P$4:$AB$4,0)))-1)*AB$23 -> 0
E199: 13 | F199: =INDEX(_DriversList,$E199) -> TDOC pax | H199: % | P199: =IF(INDEX($P183:$AB183,0,MATCH(_ComparatorYear,$P$4:$AB$4,0))=0,0,(P183/INDEX($P183:$AB183,0,MATCH(_ComparatorYear,$P$4:$AB$4,0)))-1)*P$23 -> 0 | Q199: =IF(INDEX($P183:$AB183,0,MATCH(_ComparatorYear,$P$4:$AB$4,0))=0,0,(Q183/INDEX($P183:$AB183,0,MATCH(_ComparatorYear,$P$4:$AB$4,0)))-1)*Q$23 -> 0 | R199: =IF(INDEX($P183:$AB183,0,MATCH(_ComparatorYear,$P$4:$AB$4,0))=0,0,(R183/INDEX($P183:$AB183,0,MATCH(_ComparatorYear,$P$4:$AB$4,0)))-1)*R$23 -> 0 | S199: =IF(INDEX($P183:$AB183,0,MATCH(_ComparatorYear,$P$4:$AB$4,0))=0,0,(S183/INDEX($P183:$AB183,0,MATCH(_ComparatorYear,$P$4:$AB$4,0)))-1)*S$23 -> 0 | T199: =IF(INDEX($P183:$AB183,0,MATCH(_ComparatorYear,$P$4:$AB$4,0))=0,0,(T183/INDEX($P183:$AB183,0,MATCH(_ComparatorYear,$P$4:$AB$4,0)))-1)*T$23 -> 0 | U199: =IF(INDEX($P183:$AB183,0,MATCH(_ComparatorYear,$P$4:$AB$4,0))=0,0,(U183/INDEX($P183:$AB183,0,MATCH(_ComparatorYear,$P$4:$AB$4,0)))-1)*U$23 -> 0 | V199: =IF(INDEX($P183:$AB183,0,MATCH(_ComparatorYear,$P$4:$AB$4,0))=0,0,(V183/INDEX($P183:$AB183,0,MATCH(_ComparatorYear,$P$4:$AB$4,0)))-1)*V$23 -> 0 | W199: =IF(INDEX($P183:$AB183,0,MATCH(_ComparatorYear,$P$4:$AB$4,0))=0,0,(W183/INDEX($P183:$AB183,0,MATCH(_ComparatorYear,$P$4:$AB$4,0)))-1)*W$23 -> -0.689316597 | X199: =IF(INDEX($P183:$AB183,0,MATCH(_ComparatorYear,$P$4:$AB$4,0))=0,0,(X183/INDEX($P183:$AB183,0,MATCH(_ComparatorYear,$P$4:$AB$4,0)))-1)*X$23 -> -0.2711987868 | Y199: =IF(INDEX($P183:$AB183,0,MATCH(_ComparatorYear,$P$4:$AB$4,0))=0,0,(Y183/INDEX($P183:$AB183,0,MATCH(_ComparatorYear,$P$4:$AB$4,0)))-1)*Y$23 -> -0.1917367521 | Z199: =IF(INDEX($P183:$AB183,0,MATCH(_ComparatorYear,$P$4:$AB$4,0))=0,0,(Z183/INDEX($P183:$AB183,0,MATCH(_ComparatorYear,$P$4:$AB$4,0)))-1)*Z$23 -> -0.14193788 | AA199: =IF(INDEX($P183:$AB183,0,MATCH(_ComparatorYear,$P$4:$AB$4,0))=0,0,(AA183/INDEX($P183:$AB183,0,MATCH(_ComparatorYear,$P$4:$AB$4,0)))-1)*AA$23 -> -0.1010356354 | AB199: =IF(INDEX($P183:$AB183,0,MATCH(_ComparatorYear,$P$4:$AB$4,0))=0,0,(AB183/INDEX($P183:$AB183,0,MATCH(_ComparatorYear,$P$4:$AB$4,0)))-1)*AB$23 -> -0.09246717383
A202: 3 | B202: =INDEX(Lists!$B$3:$B$8, A202) -> Scenario 3: CAA Low passenger growth (FP - 7th April)
C204: Passenger splits
D206: O&D
F208: O&D | H208: % | K208: [2014-21] Heathrow RBP (Update 2) - External H7 v1.00; [2022-2026] CAA H7 Pax Forecast - Final Proposals - 7 April 2022 | T208: 0.7516262575 | U208: 0.7704327781 | V208: 0.79025237 | W208: 0.781554573 | X208: 0.7655031968 | Y208: 0.7669513191 | Z208: 0.7694562342 | AA208: 0.7710666755 | AB208: 0.7723295312
D210: Mode share
E212: 1 | F212: =INDEX(Lists!$D$3:$D$19, E212) -> Park & Fly Passengers | H212: % | U212: =CRAssumptions!U584 -> 0.06994908428 | V212: =CRAssumptions!V584 -> 0.06464270187 | W212: =CRAssumptions!W584 -> 0.07979048868 | X212: =CRAssumptions!X584 -> 0.0790683969 | Y212: =CRAssumptions!Y584 -> 0.07584000502 | Z212: =CRAssumptions!Z584 -> 0.0741525879 | AA212: =CRAssumptions!AA584 -> 0.07316392604 | AB212: =CRAssumptions!AB584 -> 0.07237230276
E213: 2 | F213: =INDEX(Lists!$D$3:$D$19, E213) -> Kiss & Fly Passengers | H213: % | U213: =CRAssumptions!U585 -> 0.1786778781 | V213: =CRAssumptions!V585 -> 0.2260671277 | W213: =CRAssumptions!W585 -> 0.2647797992 | X213: =CRAssumptions!X585 -> 0.2339612419 | Y213: =CRAssumptions!Y585 -> 0.2068523514 | Z213: =CRAssumptions!Z585 -> 0.1875788853 | AA213: =CRAssumptions!AA585 -> 0.1787105446 | AB213: =CRAssumptions!AB585 -> 0.1718392134
E214: 3 | F214: =INDEX(Lists!$D$3:$D$19, E214) -> Taxi Passengers | H214: % | U214: =CRAssumptions!U586 -> 0.3061789254 | V214: =CRAssumptions!V586 -> 0.3084571056 | W214: =CRAssumptions!W586 -> 0.3180261278 | X214: =CRAssumptions!X586 -> 0.3030333862 | Y214: =CRAssumptions!Y586 -> 0.2843171773 | Z214: =CRAssumptions!Z586 -> 0.276570939 | AA214: =CRAssumptions!AA586 -> 0.2752789519 | AB214: =CRAssumptions!AB586 -> 0.2743513913
E215: 4 | F215: =INDEX(Lists!$D$3:$D$19, E215) -> Bus/Coach Passengers | H215: % | U215: =CRAssumptions!U587 -> 0.08995732782 | V215: =CRAssumptions!V587 -> 0.08553809346 | W215: =CRAssumptions!W587 -> 0.06882293191 | X215: =CRAssumptions!X587 -> 0.07604279451 | Y215: =CRAssumptions!Y587 -> 0.07476030175 | Z215: =CRAssumptions!Z587 -> 0.07782789911 | AA215: =CRAssumptions!AA587 -> 0.08001404619 | AB215: =CRAssumptions!AB587 -> 0.08169833758
E216: 5 | F216: =INDEX(Lists!$D$3:$D$19, E216) -> Tube Passengers | H216: % | U216: =CRAssumptions!U588 -> 0.1981807809 | V216: =CRAssumptions!V588 -> 0.1830789421 | W216: =CRAssumptions!W588 -> 0.1597542346 | X216: =CRAssumptions!X588 -> 0.1724864892 | Y216: =CRAssumptions!Y588 -> 0.1661060024 | Z216: =CRAssumptions!Z588 -> 0.1707926912 | AA216: =CRAssumptions!AA588 -> 0.1747703705 | AB216: =CRAssumptions!AB588 -> 0.1778320425
E217: 6 | F217: =INDEX(Lists!$D$3:$D$19, E217) -> Car Rental Passengers | H217: % | U217: =CRAssumptions!U589 -> 0.01962176631 | V217: =CRAssumptions!V589 -> 0.01968743879 | W217: =CRAssumptions!W589 -> 0.01777400814 | X217: =CRAssumptions!X589 -> 0.01851913203 | Y217: =CRAssumptions!Y589 -> 0.01742084632 | Z217: =CRAssumptions!Z589 -> 0.01751269551 | AA217: =CRAssumptions!AA589 -> 0.01770637602 | AB217: =CRAssumptions!AB589 -> 0.01785299614
E218: 7 | F218: =INDEX(Lists!$D$3:$D$19, E218) -> Walk Passengers | H218: % | U218: =CRAssumptions!U590 -> 0 | V218: =CRAssumptions!V590 -> 0 | W218: =CRAssumptions!W590 -> 0 | X218: =CRAssumptions!X590 -> 0 | Y218: =CRAssumptions!Y590 -> 0 | Z218: =CRAssumptions!Z590 -> 0 | AA218: =CRAssumptions!AA590 -> 0 | AB218: =CRAssumptions!AB590 -> 0
E219: 8 | F219: =INDEX(Lists!$D$3:$D$19, E219) -> Heathrow Express Passengers | H219: % | U219: =CRAssumptions!U591 -> 0.08540518144 | V219: =CRAssumptions!V591 -> 0.06631669878 | W219: =CRAssumptions!W591 -> 0.05696759369 | X219: =CRAssumptions!X591 -> 0.06475692939 | Y219: =CRAssumptions!Y591 -> 0.05856460794 | Z219: =CRAssumptions!Z591 -> 0.06142131583 | AA219: =CRAssumptions!AA591 -> 0.06435284356 | AB219: =CRAssumptions!AB591 -> 0.06662166868
E220: 9 | F220: =INDEX(Lists!$D$3:$D$19, E220) -> Heathrow Connect Passengers | H220: % | U220: =CRAssumptions!U592 -> 0.009437959924 | V220: =CRAssumptions!V592 -> 0.009613716412 | W220: =CRAssumptions!W592 -> 0.01125464195 | X220: =CRAssumptions!X592 -> 0.01151075833 | Y220: =CRAssumptions!Y592 -> 0.002426878636 | Z220: =CRAssumptions!Z592 -> 0.0004832587613 | AA220: =CRAssumptions!AA592 -> 0.0003174570315 | AB220: =CRAssumptions!AB592 -> 0.0001671597462
E221: 10 | F221: =INDEX(Lists!$D$3:$D$19, E221) -> Rail Passengers | H221: % | U221: =CRAssumptions!U593 -> 0 | V221: =CRAssumptions!V593 -> 0 | W221: =CRAssumptions!W593 -> 0.003356301 | X221: =CRAssumptions!X593 -> 0.00239632397 | Y221: =CRAssumptions!Y593 -> 0.001667093361 | Z221: =CRAssumptions!Z593 -> 0.001028361706 | AA221: =CRAssumptions!AA593 -> 0.0006842931663 | AB221: =CRAssumptions!AB593 -> 0.0004160395653
E222: 11 | F222: =INDEX(Lists!$D$3:$D$19, E222) -> Elizabeth Line Passengers | H222: % | U222: =CRAssumptions!U594 -> 0 | V222: =CRAssumptions!V594 -> 0 | W222: =CRAssumptions!W594 -> 0 | X222: =CRAssumptions!X594 -> 0.01229219184 | Y222: =CRAssumptions!Y594 -> 0.08194794557 | Z222: =CRAssumptions!Z594 -> 0.09833753469 | AA222: =CRAssumptions!AA594 -> 0.09833753469 | AB222: =CRAssumptions!AB594 -> 0.09833753469
E223: 12 | F223: =INDEX(Lists!$D$3:$D$19, E223) -> Air Passengers | H223: % | U223: =CRAssumptions!U595 -> 0 | V223: =CRAssumptions!V595 -> 0 | W223: =CRAssumptions!W595 -> 8.407626362e-08 | X223: =CRAssumptions!X595 -> 4.876607659e-07 | Y223: =CRAssumptions!Y595 -> 4.399289231e-07 | Z223: =CRAssumptions!Z595 -> 5.007123647e-07 | AA223: =CRAssumptions!AA595 -> 4.959236082e-07 | AB223: =CRAssumptions!AB595 -> 4.882481292e-07
E224: 13 | F224: =INDEX(Lists!$D$3:$D$19, E224) -> Other Passengers | H224: % | U224: =CRAssumptions!U596 -> 0.01055798403 | V224: =CRAssumptions!V596 -> 0.01369681257 | W224: =CRAssumptions!W596 -> 0.00727607479 | X224: =CRAssumptions!X596 -> 0.008214774117 | Y224: =CRAssumptions!Y596 -> 0.008927841471 | Z224: =CRAssumptions!Z596 -> 0.009552415764 | AA224: =CRAssumptions!AA596 -> 0.009888858092 | AB224: =CRAssumptions!AB596 -> 0.0101511659
E225: 14 | F225: =INDEX(Lists!$D$3:$D$19, E225) -> Rail-air Passengers | H225: % | U225: =CRAssumptions!U597 -> 0.00304584144 | V225: =CRAssumptions!V597 -> 0.002840074977 | W225: =CRAssumptions!W597 -> 0.0008225540965 | X225: =CRAssumptions!X597 -> 0.001455597406 | Y225: =CRAssumptions!Y597 -> 0.001281786252 | Z225: =CRAssumptions!Z597 -> 0.00157220458 | AA225: =CRAssumptions!AA597 -> 0.001801123549 | AB225: =CRAssumptions!AB597 -> 0.001978571006
E226: 15 | F226: =INDEX(Lists!$D$3:$D$19, E226) -> Charter Coach Passengers | H226: % | U226: =CRAssumptions!U598 -> 0.02898727041 | V226: =CRAssumptions!V598 -> 0.02006128779 | W226: =CRAssumptions!W598 -> 0.01141301072 | X226: =CRAssumptions!X598 -> 0.01628896248 | Y226: =CRAssumptions!Y598 -> 0.01990468751 | Z226: =CRAssumptions!Z598 -> 0.0231793 | AA226: =CRAssumptions!AA598 -> 0.02497989442 | AB226: =CRAssumptions!AB598 -> 0.02638477735
E227: 16 | F227: =INDEX(Lists!$D$3:$D$19, E227) -> Air Transfer Passengers | H227: % | U227: =CRAssumptions!U599 -> 0 | V227: =CRAssumptions!V599 -> 0 | W227: =CRAssumptions!W599 -> 8.407626362e-08 | X227: =CRAssumptions!X599 -> 7.05023562e-07 | Y227: =CRAssumptions!Y599 -> 1.889014231e-06 | Z227: =CRAssumptions!Z599 -> 2.239614734e-06 | AA227: =CRAssumptions!AA599 -> 2.234825977e-06 | AB227: =CRAssumptions!AB599 -> 2.227150498e-06
E228: 17 | F228: =INDEX(Lists!$D$3:$D$19, E228) -> Zero Passengers | H228: % | U228: =CRAssumptions!U600 -> 0 | V228: =CRAssumptions!V600 -> 0 | W228: =CRAssumptions!W600 -> 0 | X228: =CRAssumptions!X600 -> 0 | Y228: =CRAssumptions!Y600 -> 0 | Z228: =CRAssumptions!Z600 -> 0 | AA228: =CRAssumptions!AA600 -> 0 | AB228: =CRAssumptions!AB600 -> 0
D230: Geographic split
E232: 1 | F232: =INDEX(_GeogList, E232) -> UK & CI | G232: =INDEX(_GeogSummaryList, E232) -> UK | H232: % | K232: [2014-20, exc. 2019] H7_Revenue_Inputs; [2019] HAL CAP2265 Response - Table 20]; [2022-2026] CAA H7 Pax Forecast - Final Proposals - 7 April 2022 | P232: 0.07198605228 | Q232: 0.06858758117 | R232: 0.06141451496 | S232: 0.06157278591 | T232: 0.059861177 | U232: 0.06 | V232: 0.06603346902 | W232: =AVERAGE(V232,X232) -> 0.07102147033 | X232: 0.07600947164 | Y232: 0.06612931458 | Z232: 0.06115137557 | AA232: 0.05282175117 | AB232: 0.04879519412
E233: 2 | F233: =INDEX(_GeogList, E233) -> EEA | G233: =INDEX(_GeogSummaryList, E233) -> EEA | H233: % | K233: [2014-20, exc. 2019] H7_Revenue_Inputs; [2019] HAL CAP2265 Response - Table 20]; [2022-2026] CAA H7 Pax Forecast - Final Proposals - 7 April 2022 | P233: 0.3812158239 | Q233: 0.3878950296 | R233: 0.3911908761 | S233: 0.3887233307 | T233: 0.3882673916 | U233: 0.383 | V233: 0.4151229171 | W233: =AVERAGE(V233,X233) -> 0.4135656879 | X233: 0.4120084586 | Y233: 0.4002503025 | Z233: 0.4031994361 | AA233: 0.3999957512 | AB233: 0.3986719428
E234: 3 | F234: =INDEX(_GeogList, E234) -> Other Europe & CIS | G234: =INDEX(_GeogSummaryList, E234) -> Other | H234: % | K234: [2014-20, exc. 2019] H7_Revenue_Inputs; [2019] HAL CAP2265 Response - Table 20]; [2022-2026] CAA H7 Pax Forecast - Final Proposals - 7 April 2022 | P234: 0.02727267335 | Q234: 0.02775051237 | R234: 0.0279863015 | S234: 0.02780977011 | T234: 0.02777715163 | U234: 0.028 | V234: 0.02969843068 | W234: 0.0283524626 | X234: 0.02700649451 | Y234: 0.02100625621 | Z234: 0.02714876008 | AA234: 0.02711034601 | AB234: 0.02693951716
E235: 4 | F235: =INDEX(_GeogList, E235) -> Middle East | G235: =INDEX(_GeogSummaryList, E235) -> Middle East | H235: % | K235: [2014-20, exc. 2019] H7_Revenue_Inputs; [2019] HAL CAP2265 Response - Table 20]; [2022-2026] CAA H7 Pax Forecast - Final Proposals - 7 April 2022 | P235: 0.08262391544 | Q235: 0.08556114082 | R235: 0.09212177244 | S235: 0.0977317314 | T235: 0.09562807421 | U235: 0.096 | V235: 0.1113975577 | W235: 0.1074464355 | X235: 0.1034953133 | Y235: 0.09989351298 | Z235: 0.09547150289 | AA235: 0.09551818216 | AB235: 0.09707468954
E236: 5 | F236: =INDEX(_GeogList, E236) -> Africa | G236: =INDEX(_GeogSummaryList, E236) -> Other | H236: % | K236: [2014-20, exc. 2019] H7_Revenue_Inputs; [2019] HAL CAP2265 Response - Table 20]; [2022-2026] CAA H7 Pax Forecast - Final Proposals - 7 April 2022 | P236: 0.04804064454 | Q236: 0.04398725316 | R236: 0.04178828502 | S236: 0.04064675788 | T236: 0.04167186837 | U236: 0.043 | V236: 0.05192220715 | W236: 0.05293301327 | X236: 0.05394381939 | Y236: 0.05359371032 | Z236: 0.04940488855 | AA236: 0.04685790548 | AB236: 0.04468856348
E237: 6 | F237: =INDEX(_GeogList, E237) -> North America | G237: =INDEX(_GeogSummaryList, E237) -> North America | H237: % | K237: [2014-20, exc. 2019] H7_Revenue_Inputs; [2019] HAL CAP2265 Response - Table 20]; [2022-2026] CAA H7 Pax Forecast - Final Proposals - 7 April 2022 | P237: 0.2314177915 | Q237: 0.2304164056 | R237: 0.2270091792 | S237: 0.2225698496 | T237: 0.2259618986 | U237: 0.233 | V237: 0.1746720941 | W237: 0.2059733031 | X237: 0.2372745122 | Y237: 0.2449892027 | Z237: 0.2446231347 | AA237: 0.2437184789 | AB237: 0.2404237891
E238: 7 | F238: =INDEX(_GeogList, E238) -> Latin America | G238: =INDEX(_GeogSummaryList, E238) -> Other | H238: % | K238: [2014-20, exc. 2019] H7_Revenue_Inputs; [2019] HAL CAP2265 Response - Table 20]; [2022-2026] CAA H7 Pax Forecast - Final Proposals - 7 April 2022 | P238: 0.01520083904 | Q238: 0.01612021494 | R238: 0.01619230007 | S238: 0.0165920835 | T238: 0.01686599586 | U238: 0.017 | V238: 0.01949344188 | W238: 0.01908452613 | X238: 0.01867561037 | Y238: 0.01644184309 | Z238: 0.01577803299 | AA238: 0.01744352659 | AB238: 0.01769186931
E239: 8 | F239: =INDEX(_GeogList, E239) -> Asia / Pacific | G239: =INDEX(_GeogSummaryList, E239) -> Asia/Pacific | H239: % | K239: [2014-20, exc. 2019] H7_Revenue_Inputs; [2019] HAL CAP2265 Response - Table 20]; [2022-2026] CAA H7 Pax Forecast - Final Proposals - 7 April 2022 | P239: 0.14224226 | Q239: 0.1396818624 | R239: 0.1422967708 | S239: 0.1443536909 | T239: 0.1439664428 | U239: 0.14 | V239: 0.1316598824 | W239: 0.1016231012 | X239: 0.07158631998 | Y239: 0.09769585761 | Z239: 0.1032228691 | AA239: 0.1165340585 | AB239: 0.1257144209
C241: Cost / Revenue Driver values
E243: 1 | F243: =INDEX(_DriversList,$E243) -> Total Passengers | H243: million pax | K243: [2014-2020] Heathrow RBP (Update 2) - External H7 v1.00; [2021] https://www.heathrow.com/company/investor-centre/reports/traffic-statistics; [2022-2026] CAA H7 Pax Forecast - Final Proposals - 7 April 2022 | P243: 73.374678 | Q243: 74.958974 | R243: 75.675695 | S243: 77.988006 | T243: 80.102014 | U243: 80.88626 | V243: 22.10558 | W243: 19.393145 | X243: 36.981549 | Y243: 50.342288 | Z243: 62.044933 | AA243: 68.348851 | AB243: 73.263711
E244: 2 | F244: =INDEX(_DriversList,$E244) -> Utilised Terminal Area | H244: 000s m2 | K244: Heathrow RBP (Update 2) - External H7 v1.00.xlsb - "IC_Drivers" | T244: 1117.033 | U244: 1117.033 | V244: 837.3326667 | W244: 812.5925 | X244: 1013.2225 | Y244: 1117.033 | Z244: 1117.033 | AA244: 1117.033 | AB244: 1117.033
E245: 3 | F245: =INDEX(_DriversList,$E245) -> OD pax | H245: million pax | T245: =T208*T243 -> 60.206777 | U245: 62.317426 | V245: 17.46898698 | W245: 15.15680116 | X245: 28.30949398 | Y245: 38.61008419 | Z245: 47.7408605 | AA245: 52.70152132 | AB245: 56.58372757
E246: 4 | F246: =INDEX(_DriversList,$E246) -> HEx pax | H246: million pax | U246: =U219*U245 -> 5.322231074 | V246: 1.158485548 | W246: 0.8634464902 | X246: 1.833235903 | Y246: 2.261184443 | Z246: 2.932306471 | AA246: 3.391492757 | AB246: 3.769702351
E247: 5 | F247: =INDEX(_DriversList,$E247) -> Parking/rental pax | H247: million pax | U247: =(U212+U217) *U245 -> 5.581824853 | V247: 1.47316213 | W247: 1.478765678 | X247: 2.762653563 | Y247: 3.600809322 | Z247: 4.376179508 | AA247: 4.789003161 | AB247: 5.105283732
E248: 6 | F248: =INDEX(_DriversList,$E248) -> UK pax | G248: UK | H248: million pax | P248: =P$243*SUMIFS(P$232:P$239,$G$232:$G$239,$G248) -> 5.281953406 | Q248: =Q$243*SUMIFS(Q$232:Q$239,$G$232:$G$239,$G248) -> 5.141254713 | R248: 4.647586102 | S248: 4.801938797 | T248: 4.795000838 | U248: 4.8531756 | V248: 1.459708132 | W248: 1.377329672 | X248: 2.810948 | Y248: 3.329101 | Z248: 3.794133 | AA248: 3.610306 | AB248: 3.574917
E249: 7 | F249: =INDEX(_DriversList,$E249) -> EEA pax | G249: EEA | H249: million pax | P249: =P$243*SUMIFS(P$232:P$239,$G$232:$G$239,$G249) -> 27.97158832 | Q249: 29.07621344 | R249: 29.60364142 | S249: 30.31575745 | T249: 31.10100004 | U249: 30.97943758 | V249: 9.176532854 | W249: 8.020339352 | X249: 15.236711 | Y249: 20.149516 | Z249: 25.016482 | AA249: 27.33925 | AB249: 29.208186
... 198 more rows

Sheet PriceEffects
A1: =RIGHT(CELL("filename",A$2),LEN(CELL("filename",A$2))-FIND("]",CELL("filename",A$2))) -> PriceEffects
A2: ="["&_ModelStatus&"] "&_ModelName&" - "&_OrganisationName&" - "&_ModelVersion&" ("&TEXT(_ModelDate,"dd/mm/yyyy")&")" -> [AIRLINE REDACTED VERSION] H7 Opex and Commercial Revenues - Civil Aviation Authority - Version 11.4 (10/01/2023)
F4: Item | H4: Units | I4: Price Base | J4: Constant | K4: Source | O4: 2013 | P4: =Historic!P4 -> 2014 | Q4: =Historic!Q4 -> 2015 | R4: =Historic!R4 -> 2016 | S4: =Historic!S4 -> 2017 | T4: =Historic!T4 -> 2018 | U4: =Historic!U4 -> 2019 | V4: =Historic!V4 -> 2020 | W4: =Historic!W4 -> 2021 | X4: =Historic!X4 -> 2022 | Y4: =Historic!Y4 -> 2023 | Z4: =Historic!Z4 -> 2024 | AA4: =Historic!AA4 -> 2025 | AB4: =Historic!AB4 -> 2026
F5: Period End Date | P5: =Historic!P5 -> 2014-12-31 | Q5: =Historic!Q5 -> 2015-12-31 | R5: =Historic!R5 -> 2016-12-31 | S5: =Historic!S5 -> 2017-12-31 | T5: =Historic!T5 -> 2018-12-31 | U5: =Historic!U5 -> 2019-12-31 | V5: =Historic!V5 -> 2020-12-31 | W5: =Historic!W5 -> 2021-12-31 | X5: =Historic!X5 -> 2022-12-31 | Y5: =Historic!Y5 -> 2023-12-31 | Z5: =Historic!Z5 -> 2024-12-31 | AA5: =Historic!AA5 -> 2025-12-31 | AB5: =Historic!AB5 -> 2026-12-31
F6: Days in Period | P6: =Historic!P6 -> 365 | Q6: =Historic!Q6 -> 365 | R6: =Historic!R6 -> 366 | S6: =Historic!S6 -> 365 | T6: =Historic!T6 -> 365 | U6: =Historic!U6 -> 365 | V6: =Historic!V6 -> 366 | W6: =Historic!W6 -> 365 | X6: =Historic!X6 -> 365 | Y6: =Historic!Y6 -> 365 | Z6: =Historic!Z6 -> 366 | AA6: =Historic!AA6 -> 365 | AB6: =Historic!AB6 -> 365
B8: Description
C10: This sheet lists the flags, cost drivers and indices used.
B12: Flags
C14: Forecast Flag
F16: Forecast Year Start | J16: =_ForecastYearStart -> 2021
F17: Forecast Flag | P17: =Historic!P17 -> 0 | Q17: =Historic!Q17 -> 0 | R17: =Historic!R17 -> 0 | S17: =Historic!S17 -> 0 | T17: =Historic!T17 -> 0 | U17: =Historic!U17 -> 0 | V17: =Historic!V17 -> 0 | W17: =Historic!W17 -> 1 | X17: =Historic!X17 -> 1 | Y17: =Historic!Y17 -> 1 | Z17: =Historic!Z17 -> 1 | AA17: =Historic!AA17 -> 1 | AB17: =Historic!AB17 -> 1
B20: Settings: Price drivers for cost and revenue categories
B22: 1 | C22: =INDEX(_CategoriesList, B22) -> Other revenue
E24: 1 | F24: =INDEX(_OtherList, $E24) -> Cargo revenue | J24: CPI | K24: CEPA assumption
E25: 2 | F25: =INDEX(_OtherList, $E25) -> ORC revenue | J25: --- | K25: CEPA assumption
B27: 2 | C27: =INDEX(_CategoriesList, B27) -> Commercial revenue
E29: 1 | F29: =INDEX(_CommercialList, $E29) -> Catering | J29: CPI | K29: CEPA assumption
E30: 2 | F30: =INDEX(_CommercialList, $E30) -> Retail concessions - UK | J30: CPI | K30: CEPA assumption
E31: 3 | F31: =INDEX(_CommercialList, $E31) -> Retail concessions - EEA | J31: CPI | K31: CEPA assumption
E32: 4 | F32: =INDEX(_CommercialList, $E32) -> Retail concessions - North America | J32: CPI | K32: CEPA assumption
E33: 5 | F33: =INDEX(_CommercialList, $E33) -> Retail concessions - Middle East | J33: CPI | K33: CEPA assumption
E34: 6 | F34: =INDEX(_CommercialList, $E34) -> Retail concessions - Asia/Pacific | J34: CPI | K34: CEPA assumption
E35: 7 | F35: =INDEX(_CommercialList, $E35) -> Retail concessions - Other | J35: CPI | K35: CEPA assumption
E36: 8 | F36: =INDEX(_CommercialList, $E36) -> Other retail revenue | J36: CPI | K36: CEPA assumption
E37: 9 | F37: =INDEX(_CommercialList, $E37) -> Bureaux Revenue | J37: CPI | K37: CEPA assumption
E38: 10 | F38: =INDEX(_CommercialList, $E38) -> Car parking | J38: CPI | K38: CEPA assumption
E39: 11 | F39: =INDEX(_CommercialList, $E39) -> Other surface access | J39: CPI | K39: CEPA assumption
E40: 12 | F40: =INDEX(_CommercialList, $E40) -> Service revenue excl. surface access | J40: CPI | K40: CEPA assumption
E41: 13 | F41: =INDEX(_CommercialList, $E41) -> Track access revenue | J41: CPI | K41: CEPA assumption
E42: 14 | F42: =INDEX(_CommercialList, $E42) -> Heathrow Express revenue | J42: CPI | K42: CEPA assumption
E43: 15 | F43: =INDEX(_CommercialList, $E43) -> Property revenue | J43: --- CPI / Guide Price blend | K43: CEPA assumption
E44: 16 | F44: =INDEX(_CommercialList, $E44) -> Other revenue | J44: CPI | K44: CEPA assumption
E45: 17 | F45: =INDEX(_CommercialList, $E45) -> Intercompany revenue | J45: CPI | K45: CEPA assumption
E46: 18 | F46: =INDEX(_CommercialList, $E46) -> Terminal drop-off charge revenue | J46: CPI | K46: CEPA assumption
E47: 19 | F47: =INDEX(_CommercialList, $E47) -> Red Terminal Cost Recovery | J47: CPI | K47: CEPA assumption
E48: 20 | F48: =INDEX(_CommercialList, $E48) -> T5 Piccadilly Line revenue | J48: --- | K48: CEPA assumption
B50: 3 | C50: =INDEX(_CategoriesList, B50) -> Opex
E52: 1 | F52: =INDEX(_OpexList, $E52) -> Security staff | J52: --- Labour (Taylor Airey) | K52: TA assumption
E53: 2 | F53: =INDEX(_OpexList, $E53) -> Operational staff | J53: --- Labour (Taylor Airey) | K53: TA assumption
E54: 3 | F54: =INDEX(_OpexList, $E54) -> Non-operational staff | J54: --- Labour (Taylor Airey) | K54: TA assumption
E55: 4 | F55: =INDEX(_OpexList, $E55) -> Pensions | J55: --- | K55: TA assumption
E56: 5 | F56: =INDEX(_OpexList, $E56) -> Operational costs excl. insurance | J56: --- Labour (OBR) / CPI / RPI blend (Operations) | K56: TA assumption
E57: 6 | F57: =INDEX(_OpexList, $E57) -> Insurance | J57: --- Insurance | K57: TA assumption
E58: 7 | F58: =INDEX(_OpexList, $E58) -> Facilities maintenance costs | J58: --- Labour (OBR) / CPI / RPI blend (F&M) | K58: TA assumption
E59: 8 | F59: =INDEX(_OpexList, $E59) -> Rates costs | J59: CPI | K59: TA assumption
E60: 9 | F60: =INDEX(_OpexList, $E60) -> Utility costs excl. distribution contract | J60: --- Utilities (HAL / EIC) | K60: TA assumption
E61: 10 | F61: =INDEX(_OpexList, $E61) -> Distribution contract | J61: --- | K61: TA assumption
E62: 11 | F62: =INDEX(_OpexList, $E62) -> General expenses incl. consultants & marketing, gen ex & interco | J62: CPI | K62: TA assumption
E63: 12 | F63: =INDEX(_OpexList, $E63) -> Preopening | J63: CPI | K63: TA assumption
E64: 13 | F64: =INDEX(_OpexList, $E64) -> Terminal drop-off charge opex | J64: CPI | K64: TA assumption
E65: 14 | F65: =INDEX(_OpexList, $E65) -> Surface access | J65: CPI | K65: TA assumption
E66: 15 | F66: =INDEX(_OpexList, $E66) -> Covid-19 overlay | J66: CPI | K66: TA assumption
E67: 16 | F67: =INDEX(_OpexList, $E67) -> Service overlay | J67: CPI | K67: TA assumption
E68: 17 | F68: =INDEX(_OpexList, $E68) -> Opex Spare 1 | J68: CPI | K68: TA assumption
E69: 18 | F69: =INDEX(_OpexList, $E69) -> Opex Spare 2 | J69: CPI | K69: TA assumption
E70: 19 | F70: =INDEX(_OpexList, $E70) -> Opex Spare 3 | J70: CPI | K70: TA assumption
E71: 20 | F71: =INDEX(_OpexList, $E71) -> Opex Spare 4 | J71: CPI | K71: TA assumption
B74: Indices
C76: Historical Inflation Index
E80: 1 | F80: =INDEX(Lists!$K$3:$K$5, E80) -> CPI | H80: Index (2015=100) | K80: v4_InflationInputs.xlsx | O80: 98.5 | P80: 100 | Q80: 100 | R80: 100.7 | S80: 103.4 | T80: 105.9 | U80: 107.8 | V80: 108.7 | W80: 111.6
E81: 2 | F81: =INDEX(Lists!$K$3:$K$5, E81) -> RPI | H81: Index (Jan 1987=100) | K81: v4_InflationInputs.xlsx | O81: 250.1 | P81: 256 | Q81: 258.5 | R81: 263.1 | S81: 272.5 | T81: 281.6 | U81: 288.8 | V81: 293.1 | W81: 305
E82: 3 | F82: =INDEX(Lists!$K$3:$K$5, E82) -> --- | H82: Index | O82: 100 | P82: 100 | Q82: 100 | R82: 100 | S82: 100 | T82: 100 | U82: 100 | V82: 100 | W82: 100
C84: Historical Inflation Rate
E86: 1 | F86: =INDEX(Lists!$K$3:$K$5, E86) -> CPI | H86: % | P86: =P80/O80-1 -> 0.0152284264 | Q86: =Q80/P80-1 -> 0 | R86: 0.007 | S86: 0.0268123138 | T86: 0.02417794971 | U86: 0.0179414542 | V86: 0.008348794063 | W86: 0.02667893284
E87: 2 | F87: =INDEX(Lists!$K$3:$K$5, E87) -> RPI | H87: % | P87: =P81/O81-1 -> 0.02359056377 | Q87: 0.009765625 | R87: 0.01779497099 | S87: 0.03572786013 | T87: 0.03339449541 | U87: 0.02556818182 | V87: 0.01488919668 | W87: 0.04060047765
E88: 3 | F88: =INDEX(Lists!$K$3:$K$5, E88) -> --- | H88: % | P88: 0 | Q88: 0 | R88: 0 | S88: 0 | T88: 0 | U88: 0 | V88: 0 | W88: 0
F90: Flag | H90: Bool | P90: =AND(ISNUMBER(P86),ISNUMBER(P87),ISNUMBER(P88)) -> TRUE | Q90: =AND(ISNUMBER(Q86),ISNUMBER(Q87),ISNUMBER(Q88)) -> TRUE | R90: TRUE | S90: TRUE | T90: TRUE | U90: TRUE | V90: TRUE | W90: TRUE | X90: FALSE | Y90: FALSE | Z90: FALSE | AA90: FALSE | AB90: FALSE
C92: Inflation Rate Forecasts
E94: 1 | F94: =INDEX(Lists!$K$3:$K$5, E94) -> CPI | H94: % | K94: v4_InflationInputs.xlsx | W94: 0.026 | X94: 0.091 | Y94: 0.074 | Z94: 0.006 | AA94: -0.008 | AB94: 0.002
E95: 2 | F95: =INDEX(Lists!$K$3:$K$5, E95) -> RPI | H95: % | K95: v4_InflationInputs.xlsx | W95: 0.04 | X95: 0.116 | Y95: 0.107 | Z95: 0.015 | AA95: -0.004 | AB95: 0.01
E96: 3 | F96: =INDEX(Lists!$K$3:$K$5, E96) -> --- | H96: % | W96: 0 | X96: 0 | Y96: 0 | Z96: 0 | AA96: 0 | AB96: 0
C98: Price indices
E100: 1 | F100: =INDEX(Lists!$L$3:$L$11, E100) -> Labour (OBR) | H100: % | I100: Nominal | K100: v4_InflationInputs.xlsx | V100: 0.01760701842 | W100: 0.053 | X100: 0.059 | Y100: 0.042 | Z100: 0.017 | AA100: 0.017 | AB100: 0.019
E101: 2 | F101: =INDEX(Lists!$L$3:$L$11, E101) -> + Power (BEIS) | H101: % | I101: Real | K101: v4_InflationInputs.xlsx | V101: -0.005855268012 | W101: 0.0194289653 | X101: 0.02238636042 | Y101: 0.0009976069409 | Z101: -0.001749841162 | AA101: 0.006835554177 | AB101: 0.03052826575
E102: 3 | F102: =INDEX(Lists!$L$3:$L$11, E102) -> Utilities (HAL / EIC) | H102: % | I102: Nominal | K102: v4_InflationInputs.xlsx | V102: =Sensitivities!V17 -> 0.1172459375 | W102: =Sensitivities!W17 -> 0.04241669909 | X102: =Sensitivities!X17 -> 0.5673515407 | Y102: =Sensitivities!Y17 -> 0.08531311349 | Z102: =Sensitivities!Z17 -> -0.05357340654 | AA102: =Sensitivities!AA17 -> -0.05890433276 | AB102: =Sensitivities!AB17 -> -0.03612923468
E103: 4 | F103: =INDEX(Lists!$L$3:$L$11, E103) -> Insurance | H103: % | I103: Nominal | K103: v4_InflationInputs.xlsx | V103: =Sensitivities!V19 -> 0.02434879406 | W103: =Sensitivities!W19 -> 0.06667893284 | X103: =Sensitivities!X19 -> 0.127 | Y103: =Sensitivities!Y19 -> 0.103 | Z103: =Sensitivities!Z19 -> 0.04311317036 | AA103: =Sensitivities!AA19 -> 0.02911317036 | AB103: =Sensitivities!AB19 -> 0.03911317036
E104: 5 | F104: =INDEX(Lists!$L$3:$L$11, E104) -> Labour (OBR) / CPI / RPI blend (Operations) | H104: % | I104: Nominal | K104: v4_InflationInputs.xlsx | V104: 0.01226434946 | W104: 0.03591203232 | X104: 0.0888424825 | Y104: 0.07368705641 | Z104: 0.01079826815 | AA104: -0.0008887982459 | AB104: 0.008053035969
E105: 6 | F105: =INDEX(Lists!$L$3:$L$11, E105) -> Labour (OBR) / CPI / RPI blend (F&M) | H105: % | I105: Nominal | K105: v4_InflationInputs.xlsx | V105: 0.009779180097 | W105: 0.0297757659 | X105: 0.0865250182 | Y105: 0.0695250182 | Z105: 0.007538274995 | AA105: -0.004503920467 | AB105: 0.004377334083
E106: 7 | F106: =INDEX(Lists!$L$3:$L$11, E106) -> Labour (OBR) / CPI / RPI blend (GE) | H106: % | I106: Nominal | K106: v4_InflationInputs.xlsx | V106: 0.0137000379 | W106: 0.04140846906 | X106: 0.07273811075 | Y106: 0.05573811075 | Z106: 0.01227752443 | AA106: 0.006267100977 | AB106: 0.01170162866
E107: 8 | F107: =INDEX(Lists!$L$3:$L$11, E107) -> Labour (Taylor Airey) | H107: % | I107: Nominal | K107: v4_InflationInputs.xlsx | V107: =Sensitivities!V26 -> 0 | W107: =Sensitivities!W26 -> 0 | X107: =Sensitivities!X26 -> 0.08170099838 | Y107: =Sensitivities!Y26 -> 0.05525128762 | Z107: =Sensitivities!Z26 -> 0.05244702398 | AA107: =Sensitivities!AA26 -> 0.02931866527 | AB107: =Sensitivities!AB26 -> 0.03201978356
E108: 9 | F108: =INDEX(Lists!$L$3:$L$11, E108) -> CPI / Guide Price blend | H108: % | I108: Nominal | K108: v4_InflationInputs.xlsx | V108: 0.002053302827 | W108: 0.006247432293 | X108: 0.01796803892 | Y108: 0.009756438446 | Z108: 0.003705383447 | AA108: 0.004537816736 | AB108: 0.004827586207
C110: Nominal price growth rates
E112: 1 | F112: =INDEX(_InputInflationList, E112) -> CPI | H112: % | P112: =IF( P$90 = TRUE, INDEX(P$86:P$88, MATCH(LEFT($F112, 3), $F$86:$F$88, 0)), INDEX(P$94:P$96, MATCH(LEFT($F112, 3), $F$94:$F$96, 0)) ) + IFERROR(INDEX(P$100:P$108, MATCH(RIGHT($F112,LEN($F112)-4), $F$100:$F$108, 0)), 0) -> 0.0152284264 | Q112: 0 | R112: 0.007 | S112: 0.0268123138 | T112: 0.02417794971 | U112: 0.0179414542 | V112: 0.008348794063 | W112: 0.02667893284 | X112: 0.091 | Y112: 0.074 | Z112: 0.006 | AA112: -0.008 | AB112: 0.002
E113: 2 | F113: =INDEX(_InputInflationList, E113) -> RPI | H113: % | P113: 0.02359056377 | Q113: 0.009765625 | R113: 0.01779497099 | S113: 0.03572786013 | T113: 0.03339449541 | U113: 0.02556818182 | V113: 0.01488919668 | W113: 0.04060047765 | X113: 0.116 | Y113: 0.107 | Z113: 0.015 | AA113: -0.004 | AB113: 0.01
E114: 3 | F114: =INDEX(_InputInflationList, E114) -> --- Labour (OBR) | H114: % | V114: =IF( V$90 = TRUE, INDEX(V$86:V$88, MATCH(LEFT($F114, 3), $F$86:$F$88, 0)), INDEX(V$94:V$96, MATCH(LEFT($F114, 3), $F$94:$F$96, 0)) ) + IFERROR(INDEX(V$100:V$108, MATCH(RIGHT($F114,LEN($F114)-4), $F$100:$F$108, 0)), 0) -> 0.01760701842 | W114: 0.053 | X114: 0.059 | Y114: 0.042 | Z114: 0.017 | AA114: 0.017 | AB114: 0.019
E115: 4 | F115: =INDEX(_InputInflationList, E115) -> CPI + Power (BEIS) | H115: % | V115: 0.002493526051 | W115: 0.04610789814 | X115: 0.1133863604 | Y115: 0.07499760694 | Z115: 0.004250158838 | AA115: -0.001164445823 | AB115: 0.03252826575
E116: 5 | F116: =INDEX(_InputInflationList, E116) -> --- Utilities (HAL / EIC) | H116: % | V116: 0.1172459375 | W116: 0.04241669909 | X116: 0.5673515407 | Y116: 0.08531311349 | Z116: -0.05357340654 | AA116: -0.05890433276 | AB116: -0.03612923468
E117: 6 | F117: =INDEX(_InputInflationList, E117) -> --- Labour (OBR) / CPI / RPI blend (Operations) | H117: % | V117: 0.01226434946 | W117: 0.03591203232 | X117: 0.0888424825 | Y117: 0.07368705641 | Z117: 0.01079826815 | AA117: -0.0008887982459 | AB117: 0.008053035969
E118: 7 | F118: =INDEX(_InputInflationList, E118) -> --- Labour (OBR) / CPI / RPI blend (F&M) | H118: % | V118: 0.009779180097 | W118: 0.0297757659 | X118: 0.0865250182 | Y118: 0.0695250182 | Z118: 0.007538274995 | AA118: -0.004503920467 | AB118: 0.004377334083
E119: 8 | F119: =INDEX(_InputInflationList, E119) -> --- Labour (OBR) / CPI / RPI blend (GE) | H119: % | V119: 0.0137000379 | W119: 0.04140846906 | X119: 0.07273811075 | Y119: 0.05573811075 | Z119: 0.01227752443 | AA119: 0.006267100977 | AB119: 0.01170162866
E120: 9 | F120: =INDEX(_InputInflationList, E120) -> --- | H120: % | V120: 0 | W120: 0 | X120: 0 | Y120: 0 | Z120: 0 | AA120: 0 | AB120: 0
E121: 10 | F121: =INDEX(_InputInflationList, E121) -> --- Insurance | H121: % | V121: 0.02434879406 | W121: 0.06667893284 | X121: 0.127 | Y121: 0.103 | Z121: 0.04311317036 | AA121: 0.02911317036 | AB121: 0.03911317036
E122: 11 | F122: =INDEX(_InputInflationList, E122) -> --- Labour (Taylor Airey) | H122: % | V122: 0 | W122: 0 | X122: 0.08170099838 | Y122: 0.05525128762 | Z122: 0.05244702398 | AA122: 0.02931866527 | AB122: 0.03201978356
E123: 12 | F123: =INDEX(_InputInflationList, E123) -> --- CPI / Guide Price blend | H123: % | V123: 0.002053302827 | W123: 0.006247432293 | X123: 0.01796803892 | Y123: 0.009756438446 | Z123: 0.003705383447 | AA123: 0.004537816736 | AB123: 0.004827586207
E124: 13 | F124: =INDEX(_InputInflationList, E124) -> --- Spare 1 | H124: % | V124: 0 | W124: 0 | X124: 0 | Y124: 0 | Z124: 0 | AA124: 0 | AB124: 0
C126: Deflator series index | H126: ="Index: "& _PriceBase -> Index: 2020
E128: 1 | F128: =INDEX(Lists!$K$3:$K$4, E128) -> CPI | H128: Index | P128: =IF(_PriceBase=P$4, 1, IF(_PriceBase>P$4, Q128/(1+Q112), O128*(1+P112))) -> 0.9199632015 | Q128: 0.9199632015 | R128: 0.9264029439 | S128: 0.9512419503 | T128: 0.9742410304 | U128: 0.9917203312 | V128: 1 | W128: 1.026678933 | X128: 1.120106716 | Y128: 1.202994613 | Z128: 1.21021258 | AA128: 1.20053088 | AB128: =IF(_PriceBase=AB$4, 1, IF(_PriceBase>AB$4, AC128/(1+AC112), AA128*(1+AB112))) -> 1.202931941
E129: 2 | F129: =INDEX(Lists!$K$3:$K$4, E129) -> RPI | H129: Index | P129: =IF(_PriceBase=P$4, 1, IF(_PriceBase>P$4, Q129/(1+Q113), O129*(1+P113))) -> 0.8734220403 | Q129: 0.8819515524 | R129: 0.8976458547 | S129: 0.9297168202 | T129: 0.9607642443 | U129: 0.9853292392 | V129: 1 | W129: 1.040600478 | X129: 1.161310133 | Y129: 1.285570317 | Z129: 1.304853872 | AA129: 1.299634457 | AB129: 1.312630801
C131: Nominal price indices | H131: ="Index: "& _ComparatorYear -> Index: 2019
E133: 1 | F133: =INDEX(_InputInflationList, E133) -> CPI | H133: Index | P133: =IF(_ComparatorYear=P$4, 1, IF(_ComparatorYear>P$4, Q133/(1+Q112), O133*(1+P112))) -> 0.9276437848 | Q133: 0.9276437848 | R133: 0.9341372913 | S133: 0.9591836735 | T133: 0.9823747681 | U133: 1 | V133: 1.008348794 | W133: 1.035250464 | X133: 1.129458256 | Y133: 1.213038167 | Z133: 1.220316396 | AA133: 1.210553865 | AB133: 1.212974973
E134: 2 | F134: =INDEX(_InputInflationList, E134) -> RPI | H134: Index | P134: =IF(_ComparatorYear=P$4, 1, IF(_ComparatorYear>P$4, Q134/(1+Q113), O134*(1+P113))) -> 0.8864265928 | Q134: 0.8950831025 | R134: 0.9110110803 | S134: 0.9435595568 | T134: 0.9750692521 | U134: 1 | V134: 1.014889197 | W134: 1.056094183 | X134: 1.178601108 | Y134: 1.304711427 | Z134: 1.324282098 | AA134: 1.31898497 | AB134: 1.332174819
E135: 3 | F135: =INDEX(_InputInflationList, E135) -> --- Labour (OBR) | H135: Index | U135: =IF(_ComparatorYear=U$4, 1, IF(_ComparatorYear>U$4, V135/(1+V114), T135*(1+U114))) -> 1 | V135: 1.017607018 | W135: 1.07154019 | X135: 1.134761062 | Y135: 1.182421026 | Z135: 1.202522184 | AA135: 1.222965061 | AB135: 1.246201397
E136: 4 | F136: =INDEX(_InputInflationList, E136) -> CPI + Power (BEIS) | H136: Index | U136: =IF(_ComparatorYear=U$4, 1, IF(_ComparatorYear>U$4, V136/(1+V115), T136*(1+U115))) -> 1 | V136: 1.002493526 | W136: 1.048716395 | X136: 1.167626531 | Y136: 1.255195726 | Z136: 1.260530507 | AA136: 1.259062688 | AB136: 1.300017814
E137: 5 | F137: =INDEX(_InputInflationList, E137) -> --- Utilities (HAL / EIC) | H137: Index | U137: =IF(_ComparatorYear=U$4, 1, IF(_ComparatorYear>U$4, V137/(1+V116), T137*(1+U116))) -> 1 | V137: 1.117245937 | W137: 1.164635822 | X137: 1.82539375 | Y137: 1.981123775 | Z137: 1.874988225 | AA137: 1.764543295 | AB137: 1.700791696
E138: 6 | F138: =INDEX(_InputInflationList, E138) -> --- Labour (OBR) / CPI / RPI blend (Operations) | H138: Index | U138: =IF(_ComparatorYear=U$4, 1, IF(_ComparatorYear>U$4, V138/(1+V117), T138*(1+U117))) -> 1 | V138: 1.012264349 | W138: 1.048616819 | X138: 1.141778541 | Y138: 1.225912841 | Z138: 1.239150576 | AA138: 1.238049221 | AB138: 1.248019276
E139: 7 | F139: =INDEX(_InputInflationList, E139) -> --- Labour (OBR) / CPI / RPI blend (F&M) | H139: Index | U139: =IF(_ComparatorYear=U$4, 1, IF(_ComparatorYear>U$4, V139/(1+V118), T139*(1+U118))) -> 1 | V139: 1.00977918 | W139: 1.039846129 | X139: 1.129818834 | Y139: 1.208369509 | Z139: 1.21747853 | AA139: 1.211995104 | AB139: 1.217300411
E140: 8 | F140: =INDEX(_InputInflationList, E140) -> --- Labour (OBR) / CPI / RPI blend (GE) | H140: Index | U140: =IF(_ComparatorYear=U$4, 1, IF(_ComparatorYear>U$4, V140/(1+V119), T140*(1+U119))) -> 1 | V140: 1.013700038 | W140: 1.055675805 | X140: 1.132463668 | Y140: 1.195585053 | Z140: 1.210263878 | AA140: 1.217848724 | AB140: 1.232099538
E141: 9 | F141: =INDEX(_InputInflationList, E141) -> --- | H141: Index | U141: =IF(_ComparatorYear=U$4, 1, IF(_ComparatorYear>U$4, V141/(1+V120), T141*(1+U120))) -> 1 | V141: 1 | W141: 1 | X141: 1 | Y141: 1 | Z141: 1 | AA141: 1 | AB141: 1
E142: 10 | F142: =INDEX(_InputInflationList, E142) -> --- Insurance | H142: Index | U142: =IF(_ComparatorYear=U$4, 1, IF(_ComparatorYear>U$4, V142/(1+V121), T142*(1+U121))) -> 1 | V142: 1.024348794 | W142: 1.092651279 | X142: 1.231417991 | Y142: 1.358254044 | Z142: 1.416812682 | AA142: 1.458060591 | AB142: 1.515089963
E143: 11 | F143: =INDEX(_InputInflationList, E143) -> --- Labour (Taylor Airey) | H143: Index | U143: =IF(_ComparatorYear=U$4, 1, IF(_ComparatorYear>U$4, V143/(1+V122), T143*(1+U122))) -> 1 | V143: 1 | W143: 1 | X143: 1.081700998 | Y143: 1.141466371 | Z143: 1.201332886 | AA143: 1.236554362 | AB143: 1.276148565
E144: 12 | F144: =INDEX(_InputInflationList, E144) -> --- CPI / Guide Price blend | H144: Index | U144: =IF(_ComparatorYear=U$4, 1, IF(_ComparatorYear>U$4, V144/(1+V123), T144*(1+U123))) -> 1 | V144: 1.002053303 | W144: 1.008313563 | X144: 1.02643098 | Y144: 1.036445291 | Z144: 1.040285718 | AA144: 1.045006344 | AB144: 1.050051202
E145: 13 | F145: =INDEX(_InputInflationList, E145) -> --- Spare 1 | H145: Index | U145: =IF(_ComparatorYear=U$4, 1, IF(_ComparatorYear>U$4, V145/(1+V124), T145*(1+U124))) -> 1 | V145: 1 | W145: 1 | X145: 1 | Y145: 1 | Z145: 1 | AA145: 1 | AB145: 1
A147: END | B147: =A147 -> END | C147: =B147 -> END | D147: END | E147: END | F147: END | G147: END | H147: END | I147: END | J147: END | K147: END | L147: END | M147: END | N147: END | O147: END | P147: END | Q147: END | R147: END | S147: END | T147: END | U147: END | V147: END | W147: END | X147: END | Y147: END | Z147: END | AA147: END | AB147: END | AC147: END

Sheet Efficiencies
A1: =RIGHT(CELL("filename",A$2),LEN(CELL("filename",A$2))-FIND("]",CELL("filename",A$2))) -> Efficiencies
A2: ="["&_ModelStatus&"] "&_ModelName&" - "&_OrganisationName&" - "&_ModelVersion&" ("&TEXT(_ModelDate,"dd/mm/yyyy")&")" -> [AIRLINE REDACTED VERSION] H7 Opex and Commercial Revenues - Civil Aviation Authority - Version 11.4 (10/01/2023)
F4: Item | H4: Units | I4: Price Base | J4: Constant | K4: Source | P4: =Historic!P4 -> 2014 | Q4: =Historic!Q4 -> 2015 | R4: =Historic!R4 -> 2016 | S4: =Historic!S4 -> 2017 | T4: =Historic!T4 -> 2018 | U4: =Historic!U4 -> 2019 | V4: =Historic!V4 -> 2020 | W4: =Historic!W4 -> 2021 | X4: =Historic!X4 -> 2022 | Y4: =Historic!Y4 -> 2023 | Z4: =Historic!Z4 -> 2024 | AA4: =Historic!AA4 -> 2025 | AB4: =Historic!AB4 -> 2026
F5: Period End Date | P5: =Historic!P5 -> 2014-12-31 | Q5: =Historic!Q5 -> 2015-12-31 | R5: =Historic!R5 -> 2016-12-31 | S5: =Historic!S5 -> 2017-12-31 | T5: =Historic!T5 -> 2018-12-31 | U5: =Historic!U5 -> 2019-12-31 | V5: =Historic!V5 -> 2020-12-31 | W5: =Historic!W5 -> 2021-12-31 | X5: =Historic!X5 -> 2022-12-31 | Y5: =Historic!Y5 -> 2023-12-31 | Z5: =Historic!Z5 -> 2024-12-31 | AA5: =Historic!AA5 -> 2025-12-31 | AB5: =Historic!AB5 -> 2026-12-31
F6: Days in Period | P6: =Historic!P6 -> 365 | Q6: =Historic!Q6 -> 365 | R6: =Historic!R6 -> 366 | S6: =Historic!S6 -> 365 | T6: =Historic!T6 -> 365 | U6: =Historic!U6 -> 365 | V6: =Historic!V6 -> 366 | W6: =Historic!W6 -> 365 | X6: =Historic!X6 -> 365 | Y6: =Historic!Y6 -> 365 | Z6: =Historic!Z6 -> 366 | AA6: =Historic!AA6 -> 365 | AB6: =Historic!AB6 -> 365
B8: Description
C10: This sheet provides catch-up efficiency data, reflecting whether HAL is considered to be on or behind the efficiency frontier. In addition, the sheet provides Year-on-Year Management / Efficiency Stretch values, which differ by scenario. These reflect the assumption that the efficiency frontier should shift over time.
B12: Catch-up efficiencies
B14: 1 | C14: =INDEX(_CategoriesList, B14) -> Other revenue
E16: 1 | F16: =INDEX(_OtherList, $E16) -> Cargo revenue | H16: % | K16: [Source] | P16: 0 | Q16: 0 | R16: 0 | S16: 0 | T16: 0 | U16: 0 | V16: 0 | W16: 0 | X16: 0 | Y16: 0 | Z16: 0 | AA16: 0 | AB16: 0
E17: 2 | F17: =INDEX(_OtherList, $E17) -> ORC revenue | H17: % | K17: [Source] | P17: 0 | Q17: 0 | R17: 0 | S17: 0 | T17: 0 | U17: 0 | V17: 0 | W17: 0 | X17: 0 | Y17: 0 | Z17: 0 | AA17: 0 | AB17: 0
B19: 2 | C19: =INDEX(_CategoriesList, B19) -> Commercial revenue
E21: 1 | F21: =INDEX(_CommercialList, $E21) -> Catering | H21: % | K21: [Source] | P21: 0 | Q21: 0 | R21: 0 | S21: 0 | T21: 0 | U21: 0 | V21: 0 | W21: 0 | X21: 0 | Y21: 0 | Z21: 0 | AA21: 0 | AB21: 0
E22: 2 | F22: =INDEX(_CommercialList, $E22) -> Retail concessions - UK | H22: % | K22: [Source] | P22: 0 | Q22: 0 | R22: 0 | S22: 0 | T22: 0 | U22: 0 | V22: 0 | W22: 0 | X22: 0 | Y22: 0 | Z22: 0 | AA22: 0 | AB22: 0
E23: 3 | F23: =INDEX(_CommercialList, $E23) -> Retail concessions - EEA | H23: % | K23: [Source] | P23: 0 | Q23: 0 | R23: 0 | S23: 0 | T23: 0 | U23: 0 | V23: 0 | W23: 0 | X23: 0 | Y23: 0 | Z23: 0 | AA23: 0 | AB23: 0
E24: 4 | F24: =INDEX(_CommercialList, $E24) -> Retail concessions - North America | H24: % | K24: [Source] | P24: 0 | Q24: 0 | R24: 0 | S24: 0 | T24: 0 | U24: 0 | V24: 0 | W24: 0 | X24: 0 | Y24: 0 | Z24: 0 | AA24: 0 | AB24: 0
E25: 5 | F25: =INDEX(_CommercialList, $E25) -> Retail concessions - Middle East | H25: % | K25: [Source] | P25: 0 | Q25: 0 | R25: 0 | S25: 0 | T25: 0 | U25: 0 | V25: 0 | W25: 0 | X25: 0 | Y25: 0 | Z25: 0 | AA25: 0 | AB25: 0
E26: 6 | F26: =INDEX(_CommercialList, $E26) -> Retail concessions - Asia/Pacific | H26: % | K26: [Source] | P26: 0 | Q26: 0 | R26: 0 | S26: 0 | T26: 0 | U26: 0 | V26: 0 | W26: 0 | X26: 0 | Y26: 0 | Z26: 0 | AA26: 0 | AB26: 0
E27: 7 | F27: =INDEX(_CommercialList, $E27) -> Retail concessions - Other | H27: % | K27: [Source] | P27: 0 | Q27: 0 | R27: 0 | S27: 0 | T27: 0 | U27: 0 | V27: 0 | W27: 0 | X27: 0 | Y27: 0 | Z27: 0 | AA27: 0 | AB27: 0
E28: 8 | F28: =INDEX(_CommercialList, $E28) -> Other retail revenue | H28: % | K28: [Source] | P28: 0 | Q28: 0 | R28: 0 | S28: 0 | T28: 0 | U28: 0 | V28: 0 | W28: 0 | X28: 0 | Y28: 0 | Z28: 0 | AA28: 0 | AB28: 0
E29: 9 | F29: =INDEX(_CommercialList, $E29) -> Bureaux Revenue | H29: % | K29: [Source] | P29: 0 | Q29: 0 | R29: 0 | S29: 0 | T29: 0 | U29: 0 | V29: 0 | W29: 0 | X29: 0 | Y29: 0 | Z29: 0 | AA29: 0 | AB29: 0
E30: 10 | F30: =INDEX(_CommercialList, $E30) -> Car parking | H30: % | K30: [Source] | P30: 0 | Q30: 0 | R30: 0 | S30: 0 | T30: 0 | U30: 0 | V30: 0 | W30: 0 | X30: 0 | Y30: 0 | Z30: 0 | AA30: 0 | AB30: 0
E31: 11 | F31: =INDEX(_CommercialList, $E31) -> Other surface access | H31: % | K31: [Source] | P31: 0 | Q31: 0 | R31: 0 | S31: 0 | T31: 0 | U31: 0 | V31: 0 | W31: 0 | X31: 0 | Y31: 0 | Z31: 0 | AA31: 0 | AB31: 0
E32: 12 | F32: =INDEX(_CommercialList, $E32) -> Service revenue excl. surface access | H32: % | K32: [Source] | P32: 0 | Q32: 0 | R32: 0 | S32: 0 | T32: 0 | U32: 0 | V32: 0 | W32: 0 | X32: 0 | Y32: 0 | Z32: 0 | AA32: 0 | AB32: 0
E33: 13 | F33: =INDEX(_CommercialList, $E33) -> Track access revenue | H33: % | K33: [Source] | P33: 0 | Q33: 0 | R33: 0 | S33: 0 | T33: 0 | U33: 0 | V33: 0 | W33: 0 | X33: 0 | Y33: 0 | Z33: 0 | AA33: 0 | AB33: 0
E34: 14 | F34: =INDEX(_CommercialList, $E34) -> Heathrow Express revenue | H34: % | K34: [Source] | P34: 0 | Q34: 0 | R34: 0 | S34: 0 | T34: 0 | U34: 0 | V34: 0 | W34: 0 | X34: 0 | Y34: 0 | Z34: 0 | AA34: 0 | AB34: 0
E35: 15 | F35: =INDEX(_CommercialList, $E35) -> Property revenue | H35: % | K35: [Source] | P35: 0 | Q35: 0 | R35: 0 | S35: 0 | T35: 0 | U35: 0 | V35: 0 | W35: 0 | X35: 0 | Y35: 0 | Z35: 0 | AA35: 0 | AB35: 0
E36: 16 | F36: =INDEX(_CommercialList, $E36) -> Other revenue | H36: % | K36: [Source] | P36: 0 | Q36: 0 | R36: 0 | S36: 0 | T36: 0 | U36: 0 | V36: 0 | W36: 0 | X36: 0 | Y36: 0 | Z36: 0 | AA36: 0 | AB36: 0
E37: 17 | F37: =INDEX(_CommercialList, $E37) -> Intercompany revenue | H37: % | K37: [Source] | P37: 0 | Q37: 0 | R37: 0 | S37: 0 | T37: 0 | U37: 0 | V37: 0 | W37: 0 | X37: 0 | Y37: 0 | Z37: 0 | AA37: 0 | AB37: 0
E38: 18 | F38: =INDEX(_CommercialList, $E38) -> Terminal drop-off charge revenue | H38: % | K38: [Source] | P38: 0 | Q38: 0 | R38: 0 | S38: 0 | T38: 0 | U38: 0 | V38: 0 | W38: 0 | X38: 0 | Y38: 0 | Z38: 0 | AA38: 0 | AB38: 0
E39: 19 | F39: =INDEX(_CommercialList, $E39) -> Red Terminal Cost Recovery | H39: % | K39: [Source] | P39: 0 | Q39: 0 | R39: 0 | S39: 0 | T39: 0 | U39: 0 | V39: 0 | W39: 0 | X39: 0 | Y39: 0 | Z39: 0 | AA39: 0 | AB39: 0
E40: 20 | F40: =INDEX(_CommercialList, $E40) -> T5 Piccadilly Line revenue | H40: % | K40: [Source] | P40: 0 | Q40: 0 | R40: 0 | S40: 0 | T40: 0 | U40: 0 | V40: 0 | W40: 0 | X40: 0 | Y40: 0 | Z40: 0 | AA40: 0 | AB40: 0
B42: 3 | C42: =INDEX(_CategoriesList, B42) -> Opex
E44: 1 | F44: =INDEX(_OpexList, $E44) -> Security staff | H44: % | K44: [Source] | P44: 0 | Q44: 0 | R44: 0 | S44: 0 | T44: 0 | U44: 0 | V44: 0 | W44: 0 | X44: 0 | Y44: 0 | Z44: 0 | AA44: 0 | AB44: 0
E45: 2 | F45: =INDEX(_OpexList, $E45) -> Operational staff | H45: % | K45: [Source] | P45: 0 | Q45: 0 | R45: 0 | S45: 0 | T45: 0 | U45: 0 | V45: 0 | W45: 0 | X45: 0 | Y45: 0 | Z45: 0 | AA45: 0 | AB45: 0
E46: 3 | F46: =INDEX(_OpexList, $E46) -> Non-operational staff | H46: % | K46: [Source] | P46: 0 | Q46: 0 | R46: 0 | S46: 0 | T46: 0 | U46: 0 | V46: 0 | W46: 0 | X46: 0 | Y46: 0 | Z46: 0 | AA46: 0 | AB46: 0
E47: 4 | F47: =INDEX(_OpexList, $E47) -> Pensions | H47: % | K47: [Source] | P47: 0 | Q47: 0 | R47: 0 | S47: 0 | T47: 0 | U47: 0 | V47: 0 | W47: 0 | X47: 0 | Y47: 0 | Z47: 0 | AA47: 0 | AB47: 0
E48: 5 | F48: =INDEX(_OpexList, $E48) -> Operational costs excl. insurance | H48: % | K48: [Source] | P48: 0 | Q48: 0 | R48: 0 | S48: 0 | T48: 0 | U48: 0 | V48: 0 | W48: 0 | X48: 0 | Y48: 0 | Z48: 0 | AA48: 0 | AB48: 0
E49: 6 | F49: =INDEX(_OpexList, $E49) -> Insurance | H49: % | K49: [Source] | P49: 0 | Q49: 0 | R49: 0 | S49: 0 | T49: 0 | U49: 0 | V49: 0 | W49: 0 | X49: 0 | Y49: 0 | Z49: 0 | AA49: 0 | AB49: 0
E50: 7 | F50: =INDEX(_OpexList, $E50) -> Facilities maintenance costs | H50: % | K50: [Source] | P50: 0 | Q50: 0 | R50: 0 | S50: 0 | T50: 0 | U50: 0 | V50: 0 | W50: 0 | X50: 0 | Y50: 0 | Z50: 0 | AA50: 0 | AB50: 0
E51: 8 | F51: =INDEX(_OpexList, $E51) -> Rates costs | H51: % | K51: [Source] | P51: 0 | Q51: 0 | R51: 0 | S51: 0 | T51: 0 | U51: 0 | V51: 0 | W51: 0 | X51: 0 | Y51: 0 | Z51: 0 | AA51: 0 | AB51: 0
E52: 9 | F52: =INDEX(_OpexList, $E52) -> Utility costs excl. distribution contract | H52: % | K52: [Source] | P52: 0 | Q52: 0 | R52: 0 | S52: 0 | T52: 0 | U52: 0 | V52: 0 | W52: 0 | X52: 0 | Y52: 0 | Z52: 0 | AA52: 0 | AB52: 0
E53: 10 | F53: =INDEX(_OpexList, $E53) -> Distribution contract | H53: % | K53: [Source] | P53: 0 | Q53: 0 | R53: 0 | S53: 0 | T53: 0 | U53: 0 | V53: 0 | W53: 0 | X53: 0 | Y53: 0 | Z53: 0 | AA53: 0 | AB53: 0
E54: 11 | F54: =INDEX(_OpexList, $E54) -> General expenses incl. consultants & marketing, gen ex & interco | H54: % | K54: [Source] | P54: 0 | Q54: 0 | R54: 0 | S54: 0 | T54: 0 | U54: 0 | V54: 0 | W54: 0 | X54: 0 | Y54: 0 | Z54: 0 | AA54: 0 | AB54: 0
E55: 12 | F55: =INDEX(_OpexList, $E55) -> Preopening | H55: % | K55: [Source] | P55: 0 | Q55: 0 | R55: 0 | S55: 0 | T55: 0 | U55: 0 | V55: 0 | W55: 0 | X55: 0 | Y55: 0 | Z55: 0 | AA55: 0 | AB55: 0
E56: 13 | F56: =INDEX(_OpexList, $E56) -> Terminal drop-off charge opex | H56: % | K56: [Source] | P56: 0 | Q56: 0 | R56: 0 | S56: 0 | T56: 0 | U56: 0 | V56: 0 | W56: 0 | X56: 0 | Y56: 0 | Z56: 0 | AA56: 0 | AB56: 0
E57: 14 | F57: =INDEX(_OpexList, $E57) -> Surface access | H57: % | K57: [Source] | P57: 0 | Q57: 0 | R57: 0 | S57: 0 | T57: 0 | U57: 0 | V57: 0 | W57: 0 | X57: 0 | Y57: 0 | Z57: 0 | AA57: 0 | AB57: 0
E58: 15 | F58: =INDEX(_OpexList, $E58) -> Covid-19 overlay | H58: % | K58: [Source] | P58: 0 | Q58: 0 | R58: 0 | S58: 0 | T58: 0 | U58: 0 | V58: 0 | W58: 0 | X58: 0 | Y58: 0 | Z58: 0 | AA58: 0 | AB58: 0
E59: 16 | F59: =INDEX(_OpexList, $E59) -> Service overlay | H59: % | K59: [Source] | P59: 0 | Q59: 0 | R59: 0 | S59: 0 | T59: 0 | U59: 0 | V59: 0 | W59: 0 | X59: 0 | Y59: 0 | Z59: 0 | AA59: 0 | AB59: 0
E60: 17 | F60: =INDEX(_OpexList, $E60) -> Opex Spare 1 | H60: % | K60: [Source] | P60: 0 | Q60: 0 | R60: 0 | S60: 0 | T60: 0 | U60: 0 | V60: 0 | W60: 0 | X60: 0 | Y60: 0 | Z60: 0 | AA60: 0 | AB60: 0
E61: 18 | F61: =INDEX(_OpexList, $E61) -> Opex Spare 2 | H61: % | K61: [Source] | P61: 0 | Q61: 0 | R61: 0 | S61: 0 | T61: 0 | U61: 0 | V61: 0 | W61: 0 | X61: 0 | Y61: 0 | Z61: 0 | AA61: 0 | AB61: 0
E62: 19 | F62: =INDEX(_OpexList, $E62) -> Opex Spare 3 | H62: % | K62: [Source] | P62: 0 | Q62: 0 | R62: 0 | S62: 0 | T62: 0 | U62: 0 | V62: 0 | W62: 0 | X62: 0 | Y62: 0 | Z62: 0 | AA62: 0 | AB62: 0
E63: 20 | F63: =INDEX(_OpexList, $E63) -> Opex Spare 4 | H63: % | K63: [Source] | P63: 0 | Q63: 0 | R63: 0 | S63: 0 | T63: 0 | U63: 0 | V63: 0 | W63: 0 | X63: 0 | Y63: 0 | Z63: 0 | AA63: 0 | AB63: 0
B66: Frontier Shift and Management Stretch efficiencies
C68: Efficiency assumptions
F70: Scenario Counter | R70: 1 | S70: 2 | T70: 3 | U70: 4 | V70: 5 | W70: 6
F71: Scenario | P71: Year efficiency starts | R71: =INDEX(Lists!$B$3:$B$8, R$70) -> Scenario 1: CAA High passenger growth (FP - 7th April) | S71: =INDEX(Lists!$B$3:$B$8, S$70) -> Scenario 2: CAA Mid passenger growth (FP - 7th April) | T71: =INDEX(Lists!$B$3:$B$8, T$70) -> Scenario 3: CAA Low passenger growth (FP - 7th April) | U71: =INDEX(Lists!$B$3:$B$8, U$70) -> Scenario 4: HAL Medium passenger growth (RBPU2) | V71: =INDEX(Lists!$B$3:$B$8, V$70) -> Scenario 5: CAA Mid Passenger Growth (FD - 19th December) | W71: =INDEX(Lists!$B$3:$B$8, W$70) -> Scenario 6: Custom Scenario
E73: 1 | F73: =INDEX(Lists!$E$3:$E$5, E73) -> Other revenue | H73: % | P73: 2020 | R73: =Sensitivities!$K$15 -> 0.01 | S73: =Sensitivities!$K$15 -> 0.01 | T73: =Sensitivities!$K$15 -> 0.01 | U73: =Sensitivities!$K$15 -> 0.01 | V73: =S73 -> 0.01 | W73: =Settings!J38 -> 0
E74: 2 | F74: =INDEX(Lists!$E$3:$E$5, E74) -> Commercial revenue | H74: % | P74: 2020 | R74: =Sensitivities!$K$15 -> 0.01 | S74: =Sensitivities!$K$15 -> 0.01 | T74: =Sensitivities!$K$15 -> 0.01 | U74: =Sensitivities!$K$15 -> 0.01 | V74: =S74 -> 0.01 | W74: =Settings!J39 -> 0
E76: 3 | F76: =INDEX(Lists!$E$3:$E$5, E76) -> Opex | H76: % | P76: See below | R76: -0.01 | S76: -0.01 | T76: -0.01 | U76: -0.01 | V76: =S76 -> -0.01 | W76: =Settings!J34 -> 0
B78: 1 | C78: =INDEX(_CategoriesList, B78) -> Other revenue | J78: Apply efficiency?
E80: 1 | F80: =INDEX(_OtherList, $E80) -> Cargo revenue | H80: Bool | J80: TRUE | K80: CEPA assumption
E81: 2 | F81: =INDEX(_OtherList, $E81) -> ORC revenue | H81: Bool | J81: FALSE | K81: CEPA assumption
B83: 2 | C83: =INDEX(_CategoriesList, B83) -> Commercial revenue | J83: Apply efficiency?
E85: 1 | F85: =INDEX(_CommercialList, $E85) -> Catering | H85: Bool | J85: TRUE | K85: CEPA assumption
E86: 2 | F86: =INDEX(_CommercialList, $E86) -> Retail concessions - UK | H86: Bool | J86: TRUE | K86: CEPA assumption
E87: 3 | F87: =INDEX(_CommercialList, $E87) -> Retail concessions - EEA | H87: Bool | J87: TRUE | K87: CEPA assumption
E88: 4 | F88: =INDEX(_CommercialList, $E88) -> Retail concessions - North America | H88: Bool | J88: TRUE | K88: CEPA assumption
E89: 5 | F89: =INDEX(_CommercialList, $E89) -> Retail concessions - Middle East | H89: Bool | J89: TRUE | K89: CEPA assumption
E90: 6 | F90: =INDEX(_CommercialList, $E90) -> Retail concessions - Asia/Pacific | H90: Bool | J90: TRUE | K90: CEPA assumption
E91: 7 | F91: =INDEX(_CommercialList, $E91) -> Retail concessions - Other | H91: Bool | J91: TRUE | K91: CEPA assumption
E92: 8 | F92: =INDEX(_CommercialList, $E92) -> Other retail revenue | H92: Bool | J92: TRUE | K92: CEPA assumption
E93: 9 | F93: =INDEX(_CommercialList, $E93) -> Bureaux Revenue | H93: Bool | J93: TRUE | K93: CEPA assumption
E94: 10 | F94: =INDEX(_CommercialList, $E94) -> Car parking | H94: Bool | J94: TRUE | K94: CEPA assumption
E95: 11 | F95: =INDEX(_CommercialList, $E95) -> Other surface access | H95: Bool | J95: TRUE | K95: CEPA assumption
E96: 12 | F96: =INDEX(_CommercialList, $E96) -> Service revenue excl. surface access | H96: Bool | J96: TRUE | K96: CEPA assumption
E97: 13 | F97: =INDEX(_CommercialList, $E97) -> Track access revenue | H97: Bool | J97: FALSE | K97: CEPA assumption
E98: 14 | F98: =INDEX(_CommercialList, $E98) -> Heathrow Express revenue | H98: Bool | J98: TRUE | K98: CEPA assumption
E99: 15 | F99: =INDEX(_CommercialList, $E99) -> Property revenue | H99: Bool | J99: FALSE | K99: CEPA assumption
E100: 16 | F100: =INDEX(_CommercialList, $E100) -> Other revenue | H100: Bool | J100: TRUE | K100: CEPA assumption
E101: 17 | F101: =INDEX(_CommercialList, $E101) -> Intercompany revenue | H101: Bool | J101: FALSE | K101: CEPA assumption
E102: 18 | F102: =INDEX(_CommercialList, $E102) -> Terminal drop-off charge revenue | H102: Bool | J102: FALSE | K102: CEPA assumption
E103: 19 | F103: =INDEX(_CommercialList, $E103) -> Red Terminal Cost Recovery | H103: Bool | J103: FALSE | K103: CEPA assumption
E104: 20 | F104: =INDEX(_CommercialList, $E104) -> T5 Piccadilly Line revenue | H104: Bool | J104: FALSE | K104: CEPA assumption
B106: 3 | C106: =INDEX(_CategoriesList, B106) -> Opex | J106: Apply efficiency?
E108: 1 | F108: =INDEX(_OpexList, $E108) -> Security staff | H108: Bool | J108: FALSE | K108: TA assumption
E109: 2 | F109: =INDEX(_OpexList, $E109) -> Operational staff | H109: Bool | J109: TRUE | K109: TA assumption
E110: 3 | F110: =INDEX(_OpexList, $E110) -> Non-operational staff | H110: Bool | J110: TRUE | K110: TA assumption
E111: 4 | F111: =INDEX(_OpexList, $E111) -> Pensions | H111: Bool | J111: FALSE | K111: TA assumption
E112: 5 | F112: =INDEX(_OpexList, $E112) -> Operational costs excl. insurance | H112: Bool | J112: TRUE | K112: TA assumption
E113: 6 | F113: =INDEX(_OpexList, $E113) -> Insurance | H113: Bool | J113: TRUE | K113: TA assumption
E114: 7 | F114: =INDEX(_OpexList, $E114) -> Facilities maintenance costs | H114: Bool | J114: TRUE | K114: TA assumption
E115: 8 | F115: =INDEX(_OpexList, $E115) -> Rates costs | H115: Bool | J115: FALSE | K115: TA assumption
E116: 9 | F116: =INDEX(_OpexList, $E116) -> Utility costs excl. distribution contract | H116: Bool | J116: TRUE | K116: TA assumption
E117: 10 | F117: =INDEX(_OpexList, $E117) -> Distribution contract | H117: Bool | J117: FALSE | K117: TA assumption
E118: 11 | F118: =INDEX(_OpexList, $E118) -> General expenses incl. consultants & marketing, gen ex & interco | H118: Bool | J118: TRUE | K118: TA assumption
E119: 12 | F119: =INDEX(_OpexList, $E119) -> Preopening | H119: Bool | J119: FALSE | K119: TA assumption
E120: 13 | F120: =INDEX(_OpexList, $E120) -> Terminal drop-off charge opex | H120: Bool | J120: FALSE | K120: TA assumption
E121: 14 | F121: =INDEX(_OpexList, $E121) -> Surface access | H121: Bool | J121: FALSE | K121: TA assumption
E122: 15 | F122: =INDEX(_OpexList, $E122) -> Covid-19 overlay | H122: Bool | J122: FALSE | K122: TA assumption
E123: 16 | F123: =INDEX(_OpexList, $E123) -> Service overlay | H123: Bool | J123: FALSE | K123: TA assumption
E124: 17 | F124: =INDEX(_OpexList, $E124) -> Opex Spare 1 | H124: Bool | J124: FALSE | K124: TA assumption
E125: 18 | F125: =INDEX(_OpexList, $E125) -> Opex Spare 2 | H125: Bool | J125: FALSE | K125: TA assumption
E126: 19 | F126: =INDEX(_OpexList, $E126) -> Opex Spare 3 | H126: Bool | J126: FALSE | K126: TA assumption
E127: 20 | F127: =INDEX(_OpexList, $E127) -> Opex Spare 4 | H127: Bool | J127: FALSE | K127: TA assumption
B129: 3 | C129: =INDEX(_CategoriesList, B129) -> Opex | J129: When does efficiency start?
E131: 1 | F131: =INDEX(_OpexList, $E131) -> Security staff | H131: Year | J131: - | K131: TA assumption
E132: 2 | F132: =INDEX(_OpexList, $E132) -> Operational staff | H132: Year | J132: 2022 | K132: TA assumption
E133: 3 | F133: =INDEX(_OpexList, $E133) -> Non-operational staff | H133: Year | J133: 2022 | K133: TA assumption
E134: 4 | F134: =INDEX(_OpexList, $E134) -> Pensions | H134: Year | J134: - | K134: TA assumption
E135: 5 | F135: =INDEX(_OpexList, $E135) -> Operational costs excl. insurance | H135: Year | J135: 2020 | K135: TA assumption
E136: 6 | F136: =INDEX(_OpexList, $E136) -> Insurance | H136: Year | J136: 2020 | K136: TA assumption
E137: 7 | F137: =INDEX(_OpexList, $E137) -> Facilities maintenance costs | H137: Year | J137: 2020 | K137: TA assumption
E138: 8 | F138: =INDEX(_OpexList, $E138) -> Rates costs | H138: Year | J138: - | K138: TA assumption
E139: 9 | F139: =INDEX(_OpexList, $E139) -> Utility costs excl. distribution contract | H139: Year | J139: 2020 | K139: TA assumption
E140: 10 | F140: =INDEX(_OpexList, $E140) -> Distribution contract | H140: Year | J140: - | K140: TA assumption
E141: 11 | F141: =INDEX(_OpexList, $E141) -> General expenses incl. consultants & marketing, gen ex & interco | H141: Year | J141: 2020 | K141: TA assumption
E142: 12 | F142: =INDEX(_OpexList, $E142) -> Preopening | H142: Year | J142: - | K142: TA assumption
E143: 13 | F143: =INDEX(_OpexList, $E143) -> Terminal drop-off charge opex | H143: Year | J143: - | K143: TA assumption
E144: 14 | F144: =INDEX(_OpexList, $E144) -> Surface access | H144: Year | J144: - | K144: TA assumption
E145: 15 | F145: =INDEX(_OpexList, $E145) -> Covid-19 overlay | H145: Year | J145: - | K145: TA assumption
E146: 16 | F146: =INDEX(_OpexList, $E146) -> Service overlay | H146: Year | J146: - | K146: TA assumption
E147: 17 | F147: =INDEX(_OpexList, $E147) -> Opex Spare 1 | H147: Year | J147: - | K147: TA assumption
E148: 18 | F148: =INDEX(_OpexList, $E148) -> Opex Spare 2 | H148: Year | J148: - | K148: TA assumption
E149: 19 | F149: =INDEX(_OpexList, $E149) -> Opex Spare 3 | H149: Year | J149: - | K149: TA assumption
E150: 20 | F150: =INDEX(_OpexList, $E150) -> Opex Spare 4 | H150: Year | J150: - | K150: TA assumption
A152: END | B152: =A152 -> END | C152: =B152 -> END | D152: END | E152: END | F152: END | G152: END | H152: END | I152: END | J152: END | K152: END | L152: END | M152: END | N152: END | O152: END | P152: END | Q152: END | R152: END | S152: END | T152: END | U152: END | V152: END | W152: END | X152: END | Y152: END | Z152: END | AA152: END | AB152: END | AC152: END

Sheet Elasticities
A1: =RIGHT(CELL("filename",A$2),LEN(CELL("filename",A$2))-FIND("]",CELL("filename",A$2))) -> Elasticities
A2: ="["&_ModelStatus&"] "&_ModelName&" - "&_OrganisationName&" - "&_ModelVersion&" ("&TEXT(_ModelDate,"dd/mm/yyyy")&")" -> [AIRLINE REDACTED VERSION] H7 Opex and Commercial Revenues - Civil Aviation Authority - Version 11.4 (10/01/2023)
F4: Item | K4: Cost Driver 1 | L4: Elasticity | M4: Source | O4: Cost Driver 2 | P4: Elasticity | Q4: Source
B8: Description
C10: This sheet lists the elasticities of each cost driver, across the cost / revenue sub-categories. The elasticities are defined by Scenario.
B12: Active Scenario
F14: Active Scenario | K14: =_ActiveScenario -> Scenario 5: CAA Mid Passenger Growth (FD - 19th December)
F15: Scenario Counter | K15: =MID(K14,10,1) -> 5
F16: Row length of scenario | K16: =ROW($B$124) - ROW(B70) -> 54
C18: Cargo Revenue
E20: 1 | F20: =INDEX(_OtherList, $E20) -> Cargo revenue | K20: No Elasticity | L20: =INDEX($A$1:$Q$392, $K$15*$K$16 + ROW(L20), COLUMN(L20)) -> 1 | M20: =INDEX($A$1:$Q$392, $K$15*$K$16 + ROW(M20), COLUMN(M20)) -> CEPA assumption | O20: No Elasticity | P20: =INDEX($A$1:$Q$392, $K$15*$K$16 + ROW(P20), COLUMN(P20)) -> 1 | Q20: =INDEX($A$1:$Q$392, $K$15*$K$16 + ROW(Q20), COLUMN(Q20)) -> 0
E21: 2 | F21: =INDEX(_OtherList, $E21) -> ORC revenue | K21: Total Passengers | L21: =INDEX($A$1:$Q$392, $K$15*$K$16 + ROW(L21), COLUMN(L21)) -> 0 | M21: =INDEX($A$1:$Q$392, $K$15*$K$16 + ROW(M21), COLUMN(M21)) -> CEPA assumption | O21: No Elasticity | P21: =INDEX($A$1:$Q$392, $K$15*$K$16 + ROW(P21), COLUMN(P21)) -> 1 | Q21: =INDEX($A$1:$Q$392, $K$15*$K$16 + ROW(Q21), COLUMN(Q21)) -> 0
C23: Commercial Revenue
E25: 1 | F25: =INDEX(_CommercialList, $E25) -> Catering | K25: Total Passengers | L25: =INDEX($A$1:$Q$392, $K$15*$K$16 + ROW(L25), COLUMN(L25)) -> 0.97 | M25: =INDEX($A$1:$Q$392, $K$15*$K$16 + ROW(M25), COLUMN(M25)) -> CEPA assumption | O25: No Elasticity | P25: =INDEX($A$1:$Q$392, $K$15*$K$16 + ROW(P25), COLUMN(P25)) -> 1 | Q25: =INDEX($A$1:$Q$392, $K$15*$K$16 + ROW(Q25), COLUMN(Q25)) -> 0
E26: 2 | F26: =INDEX(_CommercialList, $E26) -> Retail concessions - UK | K26: UK pax | L26: =INDEX($A$1:$Q$392, $K$15*$K$16 + ROW(L26), COLUMN(L26)) -> 0.97 | M26: =INDEX($A$1:$Q$392, $K$15*$K$16 + ROW(M26), COLUMN(M26)) -> CEPA assumption | O26: No Elasticity | P26: =INDEX($A$1:$Q$392, $K$15*$K$16 + ROW(P26), COLUMN(P26)) -> 1 | Q26: =INDEX($A$1:$Q$392, $K$15*$K$16 + ROW(Q26), COLUMN(Q26)) -> 0
E27: 3 | F27: =INDEX(_CommercialList, $E27) -> Retail concessions - EEA | K27: EEA pax | L27: =INDEX($A$1:$Q$392, $K$15*$K$16 + ROW(L27), COLUMN(L27)) -> 0.97 | M27: =INDEX($A$1:$Q$392, $K$15*$K$16 + ROW(M27), COLUMN(M27)) -> CEPA assumption | O27: No Elasticity | P27: =INDEX($A$1:$Q$392, $K$15*$K$16 + ROW(P27), COLUMN(P27)) -> 1 | Q27: =INDEX($A$1:$Q$392, $K$15*$K$16 + ROW(Q27), COLUMN(Q27)) -> 0
E28: 4 | F28: =INDEX(_CommercialList, $E28) -> Retail concessions - North America | K28: North America pax | L28: =INDEX($A$1:$Q$392, $K$15*$K$16 + ROW(L28), COLUMN(L28)) -> 0.97 | M28: =INDEX($A$1:$Q$392, $K$15*$K$16 + ROW(M28), COLUMN(M28)) -> CEPA assumption | O28: No Elasticity | P28: =INDEX($A$1:$Q$392, $K$15*$K$16 + ROW(P28), COLUMN(P28)) -> 1 | Q28: =INDEX($A$1:$Q$392, $K$15*$K$16 + ROW(Q28), COLUMN(Q28)) -> 0
E29: 5 | F29: =INDEX(_CommercialList, $E29) -> Retail concessions - Middle East | K29: Middle East pax | L29: =INDEX($A$1:$Q$392, $K$15*$K$16 + ROW(L29), COLUMN(L29)) -> 0.97 | M29: =INDEX($A$1:$Q$392, $K$15*$K$16 + ROW(M29), COLUMN(M29)) -> CEPA assumption | O29: No Elasticity | P29: =INDEX($A$1:$Q$392, $K$15*$K$16 + ROW(P29), COLUMN(P29)) -> 1 | Q29: =INDEX($A$1:$Q$392, $K$15*$K$16 + ROW(Q29), COLUMN(Q29)) -> 0
E30: 6 | F30: =INDEX(_CommercialList, $E30) -> Retail concessions - Asia/Pacific | K30: Asia/Pacific pax | L30: =INDEX($A$1:$Q$392, $K$15*$K$16 + ROW(L30), COLUMN(L30)) -> 0.97 | M30: =INDEX($A$1:$Q$392, $K$15*$K$16 + ROW(M30), COLUMN(M30)) -> CEPA assumption | O30: No Elasticity | P30: =INDEX($A$1:$Q$392, $K$15*$K$16 + ROW(P30), COLUMN(P30)) -> 1 | Q30: =INDEX($A$1:$Q$392, $K$15*$K$16 + ROW(Q30), COLUMN(Q30)) -> 0
E31: 7 | F31: =INDEX(_CommercialList, $E31) -> Retail concessions - Other | K31: Other pax | L31: =INDEX($A$1:$Q$392, $K$15*$K$16 + ROW(L31), COLUMN(L31)) -> 0.97 | M31: =INDEX($A$1:$Q$392, $K$15*$K$16 + ROW(M31), COLUMN(M31)) -> CEPA assumption | O31: No Elasticity | P31: =INDEX($A$1:$Q$392, $K$15*$K$16 + ROW(P31), COLUMN(P31)) -> 1 | Q31: =INDEX($A$1:$Q$392, $K$15*$K$16 + ROW(Q31), COLUMN(Q31)) -> 0
E32: 8 | F32: =INDEX(_CommercialList, $E32) -> Other retail revenue | K32: Total Passengers | L32: =INDEX($A$1:$Q$392, $K$15*$K$16 + ROW(L32), COLUMN(L32)) -> 0.97 | M32: =INDEX($A$1:$Q$392, $K$15*$K$16 + ROW(M32), COLUMN(M32)) -> CEPA assumption | O32: No Elasticity | P32: =INDEX($A$1:$Q$392, $K$15*$K$16 + ROW(P32), COLUMN(P32)) -> 1 | Q32: =INDEX($A$1:$Q$392, $K$15*$K$16 + ROW(Q32), COLUMN(Q32)) -> 0
E33: 9 | F33: =INDEX(_CommercialList, $E33) -> Bureaux Revenue | K33: Total Passengers | L33: =INDEX($A$1:$Q$392, $K$15*$K$16 + ROW(L33), COLUMN(L33)) -> 0.97 | M33: =INDEX($A$1:$Q$392, $K$15*$K$16 + ROW(M33), COLUMN(M33)) -> CEPA assumption | O33: No Elasticity | P33: =INDEX($A$1:$Q$392, $K$15*$K$16 + ROW(P33), COLUMN(P33)) -> 1 | Q33: =INDEX($A$1:$Q$392, $K$15*$K$16 + ROW(Q33), COLUMN(Q33)) -> 0
E34: 10 | F34: =INDEX(_CommercialList, $E34) -> Car parking | K34: Parking/rental pax | L34: =INDEX($A$1:$Q$392, $K$15*$K$16 + ROW(L34), COLUMN(L34)) -> 1 | M34: =INDEX($A$1:$Q$392, $K$15*$K$16 + ROW(M34), COLUMN(M34)) -> CEPA assumption | O34: No Elasticity | P34: =INDEX($A$1:$Q$392, $K$15*$K$16 + ROW(P34), COLUMN(P34)) -> 1 | Q34: =INDEX($A$1:$Q$392, $K$15*$K$16 + ROW(Q34), COLUMN(Q34)) -> 0
E35: 11 | F35: =INDEX(_CommercialList, $E35) -> Other surface access | K35: Parking/rental pax | L35: =INDEX($A$1:$Q$392, $K$15*$K$16 + ROW(L35), COLUMN(L35)) -> 1 | M35: =INDEX($A$1:$Q$392, $K$15*$K$16 + ROW(M35), COLUMN(M35)) -> CEPA assumption | O35: No Elasticity | P35: =INDEX($A$1:$Q$392, $K$15*$K$16 + ROW(P35), COLUMN(P35)) -> 1 | Q35: =INDEX($A$1:$Q$392, $K$15*$K$16 + ROW(Q35), COLUMN(Q35)) -> 0
E36: 12 | F36: =INDEX(_CommercialList, $E36) -> Service revenue excl. surface access | K36: Total Passengers | L36: =INDEX($A$1:$Q$392, $K$15*$K$16 + ROW(L36), COLUMN(L36)) -> 0.8 | M36: =INDEX($A$1:$Q$392, $K$15*$K$16 + ROW(M36), COLUMN(M36)) -> CEPA assumption | O36: No Elasticity | P36: =INDEX($A$1:$Q$392, $K$15*$K$16 + ROW(P36), COLUMN(P36)) -> 1 | Q36: =INDEX($A$1:$Q$392, $K$15*$K$16 + ROW(Q36), COLUMN(Q36)) -> 0
E37: 13 | F37: =INDEX(_CommercialList, $E37) -> Track access revenue | K37: No Elasticity | L37: =INDEX($A$1:$Q$392, $K$15*$K$16 + ROW(L37), COLUMN(L37)) -> 1 | M37: =INDEX($A$1:$Q$392, $K$15*$K$16 + ROW(M37), COLUMN(M37)) -> CEPA assumption | O37: No Elasticity | P37: =INDEX($A$1:$Q$392, $K$15*$K$16 + ROW(P37), COLUMN(P37)) -> 1 | Q37: =INDEX($A$1:$Q$392, $K$15*$K$16 + ROW(Q37), COLUMN(Q37)) -> 0
E38: 14 | F38: =INDEX(_CommercialList, $E38) -> Heathrow Express revenue | K38: HEx pax | L38: =INDEX($A$1:$Q$392, $K$15*$K$16 + ROW(L38), COLUMN(L38)) -> 1 | M38: =INDEX($A$1:$Q$392, $K$15*$K$16 + ROW(M38), COLUMN(M38)) -> CEPA assumption | O38: No Elasticity | P38: =INDEX($A$1:$Q$392, $K$15*$K$16 + ROW(P38), COLUMN(P38)) -> 1 | Q38: =INDEX($A$1:$Q$392, $K$15*$K$16 + ROW(Q38), COLUMN(Q38)) -> 0
E39: 15 | F39: =INDEX(_CommercialList, $E39) -> Property revenue | K39: Utilised Terminal Area | L39: =INDEX($A$1:$Q$392, $K$15*$K$16 + ROW(L39), COLUMN(L39)) -> 0.524 | M39: =INDEX($A$1:$Q$392, $K$15*$K$16 + ROW(M39), COLUMN(M39)) -> CEPA assumption | O39: No Elasticity | P39: =INDEX($A$1:$Q$392, $K$15*$K$16 + ROW(P39), COLUMN(P39)) -> 1 | Q39: =INDEX($A$1:$Q$392, $K$15*$K$16 + ROW(Q39), COLUMN(Q39)) -> 0
E40: 16 | F40: =INDEX(_CommercialList, $E40) -> Other revenue | K40: No Elasticity | L40: =INDEX($A$1:$Q$392, $K$15*$K$16 + ROW(L40), COLUMN(L40)) -> 1 | M40: =INDEX($A$1:$Q$392, $K$15*$K$16 + ROW(M40), COLUMN(M40)) -> CEPA assumption | O40: No Elasticity | P40: =INDEX($A$1:$Q$392, $K$15*$K$16 + ROW(P40), COLUMN(P40)) -> 1 | Q40: =INDEX($A$1:$Q$392, $K$15*$K$16 + ROW(Q40), COLUMN(Q40)) -> 0
E41: 17 | F41: =INDEX(_CommercialList, $E41) -> Intercompany revenue | K41: No Elasticity | L41: =INDEX($A$1:$Q$392, $K$15*$K$16 + ROW(L41), COLUMN(L41)) -> 1 | M41: =INDEX($A$1:$Q$392, $K$15*$K$16 + ROW(M41), COLUMN(M41)) -> CEPA assumption | O41: No Elasticity | P41: =INDEX($A$1:$Q$392, $K$15*$K$16 + ROW(P41), COLUMN(P41)) -> 1 | Q41: =INDEX($A$1:$Q$392, $K$15*$K$16 + ROW(Q41), COLUMN(Q41)) -> 0
E42: 18 | F42: =INDEX(_CommercialList, $E42) -> Terminal drop-off charge revenue | K42: No Elasticity | L42: =INDEX($A$1:$Q$392, $K$15*$K$16 + ROW(L42), COLUMN(L42)) -> 1 | M42: =INDEX($A$1:$Q$392, $K$15*$K$16 + ROW(M42), COLUMN(M42)) -> CEPA assumption | O42: No Elasticity | P42: =INDEX($A$1:$Q$392, $K$15*$K$16 + ROW(P42), COLUMN(P42)) -> 1 | Q42: =INDEX($A$1:$Q$392, $K$15*$K$16 + ROW(Q42), COLUMN(Q42)) -> 0
E43: 19 | F43: =INDEX(_CommercialList, $E43) -> Red Terminal Cost Recovery | K43: No Elasticity | L43: =INDEX($A$1:$Q$392, $K$15*$K$16 + ROW(L43), COLUMN(L43)) -> 1 | M43: =INDEX($A$1:$Q$392, $K$15*$K$16 + ROW(M43), COLUMN(M43)) -> CEPA assumption | O43: No Elasticity | P43: =INDEX($A$1:$Q$392, $K$15*$K$16 + ROW(P43), COLUMN(P43)) -> 1 | Q43: =INDEX($A$1:$Q$392, $K$15*$K$16 + ROW(Q43), COLUMN(Q43)) -> 0
E44: 20 | F44: =INDEX(_CommercialList, $E44) -> T5 Piccadilly Line revenue | K44: No Elasticity | L44: =INDEX($A$1:$Q$392, $K$15*$K$16 + ROW(L44), COLUMN(L44)) -> 1 | M44: =INDEX($A$1:$Q$392, $K$15*$K$16 + ROW(M44), COLUMN(M44)) -> CEPA assumption | O44: No Elasticity | P44: =INDEX($A$1:$Q$392, $K$15*$K$16 + ROW(P44), COLUMN(P44)) -> 1 | Q44: =INDEX($A$1:$Q$392, $K$15*$K$16 + ROW(Q44), COLUMN(Q44)) -> 0
C46: Opex
E48: 1 | F48: =INDEX(_OpexList, $E48) -> Security staff | K48: Total Passengers | L48: =INDEX($A$1:$Q$392, $K$15*$K$16 + ROW(L48), COLUMN(L48)) -> 0.53593212 | M48: =INDEX($A$1:$Q$392, $K$15*$K$16 + ROW(M48), COLUMN(M48)) -> TA assumption | O48: No Elasticity | P48: =INDEX($A$1:$Q$392, $K$15*$K$16 + ROW(P48), COLUMN(P48)) -> 1 | Q48: =INDEX($A$1:$Q$392, $K$15*$K$16 + ROW(Q48), COLUMN(Q48)) -> 0
E49: 2 | F49: =INDEX(_OpexList, $E49) -> Operational staff | K49: Total Passengers | L49: =INDEX($A$1:$Q$392, $K$15*$K$16 + ROW(L49), COLUMN(L49)) -> 0.39 | M49: =INDEX($A$1:$Q$392, $K$15*$K$16 + ROW(M49), COLUMN(M49)) -> TA assumption | O49: No Elasticity | P49: =INDEX($A$1:$Q$392, $K$15*$K$16 + ROW(P49), COLUMN(P49)) -> 1 | Q49: =INDEX($A$1:$Q$392, $K$15*$K$16 + ROW(Q49), COLUMN(Q49)) -> 0
E50: 3 | F50: =INDEX(_OpexList, $E50) -> Non-operational staff | K50: No Elasticity | L50: =INDEX($A$1:$Q$392, $K$15*$K$16 + ROW(L50), COLUMN(L50)) -> 1 | M50: =INDEX($A$1:$Q$392, $K$15*$K$16 + ROW(M50), COLUMN(M50)) -> TA assumption | O50: No Elasticity | P50: =INDEX($A$1:$Q$392, $K$15*$K$16 + ROW(P50), COLUMN(P50)) -> 1 | Q50: =INDEX($A$1:$Q$392, $K$15*$K$16 + ROW(Q50), COLUMN(Q50)) -> 0
E51: 4 | F51: =INDEX(_OpexList, $E51) -> Pensions | K51: No Elasticity | L51: =INDEX($A$1:$Q$392, $K$15*$K$16 + ROW(L51), COLUMN(L51)) -> 1 | M51: =INDEX($A$1:$Q$392, $K$15*$K$16 + ROW(M51), COLUMN(M51)) -> TA assumption | O51: No Elasticity | P51: =INDEX($A$1:$Q$392, $K$15*$K$16 + ROW(P51), COLUMN(P51)) -> 1 | Q51: =INDEX($A$1:$Q$392, $K$15*$K$16 + ROW(Q51), COLUMN(Q51)) -> 0
E52: 5 | F52: =INDEX(_OpexList, $E52) -> Operational costs excl. insurance | K52: Total Passengers | L52: =INDEX($A$1:$Q$392, $K$15*$K$16 + ROW(L52), COLUMN(L52)) -> 0.39 | M52: =INDEX($A$1:$Q$392, $K$15*$K$16 + ROW(M52), COLUMN(M52)) -> TA assumption | O52: No Elasticity | P52: =INDEX($A$1:$Q$392, $K$15*$K$16 + ROW(P52), COLUMN(P52)) -> 1 | Q52: =INDEX($A$1:$Q$392, $K$15*$K$16 + ROW(Q52), COLUMN(Q52)) -> 0
E53: 6 | F53: =INDEX(_OpexList, $E53) -> Insurance | K53: No Elasticity | L53: =INDEX($A$1:$Q$392, $K$15*$K$16 + ROW(L53), COLUMN(L53)) -> 1 | M53: =INDEX($A$1:$Q$392, $K$15*$K$16 + ROW(M53), COLUMN(M53)) -> TA assumption | O53: No Elasticity | P53: =INDEX($A$1:$Q$392, $K$15*$K$16 + ROW(P53), COLUMN(P53)) -> 1 | Q53: =INDEX($A$1:$Q$392, $K$15*$K$16 + ROW(Q53), COLUMN(Q53)) -> 0
